Workbook

Sheet PI vs x
A1: Measurement | B1: Hall
A2: Type | B2: Off-axis
A4: Project | B4: ='10 x=-2'!B5 -> 504313
A5: PS serial no | B5: ='10 x=-2'!B7 -> 2410082
A7: Measurement date | B7: =LEFT('10 x=-2'!B4,10) -> 15-07-2024
C11: Nominal gap [mm] | D11: Encoder [counts] | E11: Encoder [mm] | F11: PI [T^2mm^3] | G11: x [mm] | H11: Encoder value at 10 mm gap:
B12: ='PI vs x'!$C$12 & "mm gap" -> 10mm gap | C12: ='10 x=-2'!B48 -> 10 | D12: ='10 x=-2'!$B$50 -> 20.4293 | E12: =D12-$H$12+10 -> 9.99995 | F12: ='10 x=-2'!$K$3 -> 10541.85288 | G12: -2 | H12: 20.42935
C13: =C12 -> 10 | D13: ='10 x=-1'!$B$50 -> 20.4293 | E13: =D13-$H$12+10 -> 9.99995 | F13: ='10 x=-1'!$K$3 -> 10550.2939 | G13: -1
C14: =C13 -> 10 | D14: ='10 x=0'!$B$50 -> 20.4293 | E14: 9.99995 | F14: ='10 x=0'!$K$3 -> 10553.31658 | G14: 0
C15: 10 | D15: ='10 x=1'!$B$50 -> 20.4293 | E15: 9.99995 | F15: ='10 x=1'!$K$3 -> 10552.58354 | G15: 1
C16: 10 | D16: ='10 x=2'!$B$50 -> 20.4293 | E16: 9.99995 | F16: ='10 x=2'!$K$3 -> 10546.26282 | G16: 2
B17: ='PI vs x'!$C$17 & "mm gap" -> 30mm gap | C17: ='30 x=-2'!B48 -> 30 | D17: ='30 x=-2'!$B$50 -> 40.5 | E17: 30.07065 | F17: ='30 x=-2'!$K$3 -> 2436.928462 | G17: =G12 -> -2
C18: 30 | D18: ='30 x=-1'!$B$50 -> 40.5 | E18: 30.07065 | F18: ='30 x=-1'!$K$3 -> 2439.371191 | G18: =G13 -> -1
C19: 30 | D19: ='30 x=0'!$B$50 -> 40.5 | E19: 30.07065 | F19: ='30 x=0'!$K$3 -> 2439.505687 | G19: 0
C20: 30 | D20: ='30 x=1'!$B$50 -> 40.5 | E20: 30.07065 | F20: ='30 x=1'!$K$3 -> 2437.701515 | G20: 1
C21: 30 | D21: ='30 x=2'!$B$50 -> 40.5 | E21: 30.07065 | F21: ='30 x=2'!$K$3 -> 2434.076277 | G21: 2

Sheet 10 x=-2
A1: =IF('DF raw data'!A1="","",'DF raw data'!A1) -> Number of header lines | B1: =IF('DF raw data'!B1="","",'DF raw data'!B1) -> 54 | C1: =IF('DF raw data'!C1="","",'DF raw data'!C1) ->  | D1: =IF('DF raw data'!D1="","",'DF raw data'!D1) ->  | F1: T_coeff | G1: -0.00073 | H1: /degC | J1: IBy total | K1: =J1262*1000 -> -3.038100843 | L1: muTm | M1: =L1262*1000 -> -9.232249274 | R1: DF ref | S1: 1
A2: =IF('DF raw data'!A2="","",'DF raw data'!A2) -> Measured by | B2: =IF('DF raw data'!B2="","",'DF raw data'!B2) -> Danfysik | C2: =IF('DF raw data'!C2="","",'DF raw data'!C2) ->  | D2: =IF('DF raw data'!D2="","",'DF raw data'!D2) ->  | F2: Tcorr | G2: 20 | H2: degC | J2: JBy total | K2: =K1262 -> -6.850085598 | L2: muTm^2 | M2: =M1262 -> -2.693506185
A3: =IF('DF raw data'!A3="","",'DF raw data'!A3) -> Operator | B3: =IF('DF raw data'!B3="","",'DF raw data'!B3) -> PMHA | C3: =IF('DF raw data'!C3="","",'DF raw data'!C3) ->  | D3: =IF('DF raw data'!D3="","",'DF raw data'!D3) ->  | F3: Step | G3: =A63-A62 -> 0.5 | H3: mm | J3: PI total | K3: =N1262 -> 10541.85288 | L3: T^2mm^3
A4: =IF('DF raw data'!A4="","",'DF raw data'!A4) -> Data-time | B4: =IF('DF raw data'!B4="","",'DF raw data'!B4) -> 15-07-2024, 16:44:53 | C4: =IF('DF raw data'!C4="","",'DF raw data'!C4) ->  | D4: =IF('DF raw data'!D4="","",'DF raw data'!D4) -> 
A5: =IF('DF raw data'!A5="","",'DF raw data'!A5) -> Project | B5: =IF('DF raw data'!B5="","",'DF raw data'!B5) -> 504313 | C5: =IF('DF raw data'!C5="","",'DF raw data'!C5) ->  | D5: =IF('DF raw data'!D5="","",'DF raw data'!D5) -> 
A6: =IF('DF raw data'!A6="","",'DF raw data'!A6) -> Magnet type | B6: =IF('DF raw data'!B6="","",'DF raw data'!B6) -> Dipole | C6: =IF('DF raw data'!C6="","",'DF raw data'!C6) ->  | D6: =IF('DF raw data'!D6="","",'DF raw data'!D6) -> 
A7: =IF('DF raw data'!A7="","",'DF raw data'!A7) -> Magnet nr. | B7: =IF('DF raw data'!B7="","",'DF raw data'!B7) -> 2410082 | C7: =IF('DF raw data'!C7="","",'DF raw data'!C7) ->  | D7: =IF('DF raw data'!D7="","",'DF raw data'!D7) -> 
A8: =IF('DF raw data'!A8="","",'DF raw data'!A8) -> Meas. number | B8: =IF('DF raw data'!B8="","",'DF raw data'!B8) -> 54 | C8: =IF('DF raw data'!C8="","",'DF raw data'!C8) ->  | D8: =IF('DF raw data'!D8="","",'DF raw data'!D8) -> 
A9: =IF('DF raw data'!A9="","",'DF raw data'!A9) -> Add. info | B9: =IF('DF raw data'!B9="","",'DF raw data'!B9) -> X-alignment scan 1) | C9: =IF('DF raw data'!C9="","",'DF raw data'!C9) ->  | D9: =IF('DF raw data'!D9="","",'DF raw data'!D9) -> 
A10: =IF('DF raw data'!A10="","",'DF raw data'!A10) -> Device | B10: =IF('DF raw data'!B10="","",'DF raw data'!B10) -> (HAL) HALL-PROBE | C10: =IF('DF raw data'!C10="","",'DF raw data'!C10) ->  | D10: =IF('DF raw data'!D10="","",'DF raw data'!D10) -> 
A11: =IF('DF raw data'!A11="","",'DF raw data'!A11) -> Goal | B11: =IF('DF raw data'!B11="","",'DF raw data'!B11) -> (AXI) AXis Integral (Line, EFB) | C11: =IF('DF raw data'!C11="","",'DF raw data'!C11) ->  | D11: =IF('DF raw data'!D11="","",'DF raw data'!D11) -> 
A12: =IF('DF raw data'!A12="","",'DF raw data'!A12) -> Power supply mode | B12: =IF('DF raw data'!B12="","",'DF raw data'!B12) -> (PM) Permanent Magnet (no MPS in use) | C12: =IF('DF raw data'!C12="","",'DF raw data'!C12) ->  | D12: =IF('DF raw data'!D12="","",'DF raw data'!D12) -> 
A13: =IF('DF raw data'!A13="","",'DF raw data'!A13) -> Data format | B13: =IF('DF raw data'!B13="","",'DF raw data'!B13) -> Raw data text file | C13: =IF('DF raw data'!C13="","",'DF raw data'!C13) ->  | D13: =IF('DF raw data'!D13="","",'DF raw data'!D13) -> 
A14: =IF('DF raw data'!A14="","",'DF raw data'!A14) -> Direction of the pos. x-axis | B14: =IF('DF raw data'!B14="","",'DF raw data'!B14) -> See test program | C14: =IF('DF raw data'!C14="","",'DF raw data'!C14) ->  | D14: =IF('DF raw data'!D14="","",'DF raw data'!D14) -> 
A15: =IF('DF raw data'!A15="","",'DF raw data'!A15) -> Direction of the pos. y-axis | B15: =IF('DF raw data'!B15="","",'DF raw data'!B15) -> Vertical up | C15: =IF('DF raw data'!C15="","",'DF raw data'!C15) ->  | D15: =IF('DF raw data'!D15="","",'DF raw data'!D15) -> 
A16: =IF('DF raw data'!A16="","",'DF raw data'!A16) -> Direction of the pos. z-axis | B16: =IF('DF raw data'!B16="","",'DF raw data'!B16) -> See test program | C16: =IF('DF raw data'!C16="","",'DF raw data'!C16) ->  | D16: =IF('DF raw data'!D16="","",'DF raw data'!D16) -> 
A17: =IF('DF raw data'!A17="","",'DF raw data'!A17) -> Mapper type | B17: =IF('DF raw data'!B17="","",'DF raw data'!B17) -> Precision Hall Mapper | C17: =IF('DF raw data'!C17="","",'DF raw data'!C17) ->  | D17: =IF('DF raw data'!D17="","",'DF raw data'!D17) -> 
A18: =IF('DF raw data'!A18="","",'DF raw data'!A18) -> Mapper Danfysik Reg. Number | B18: =IF('DF raw data'!B18="","",'DF raw data'!B18) -> 2033-D (mapper 1) | C18: =IF('DF raw data'!C18="","",'DF raw data'!C18) ->  | D18: =IF('DF raw data'!D18="","",'DF raw data'!D18) -> 
A19: =IF('DF raw data'!A19="","",'DF raw data'!A19) -> Measurement consept | B19: =IF('DF raw data'!B19="","",'DF raw data'!B19) -> Square line grid | C19: =IF('DF raw data'!C19="","",'DF raw data'!C19) ->  | D19: =IF('DF raw data'!D19="","",'DF raw data'!D19) -> 
A20: =IF('DF raw data'!A20="","",'DF raw data'!A20) -> Mode | B20: =IF('DF raw data'!B20="","",'DF raw data'!B20) -> On-the-fly measurement | C20: =IF('DF raw data'!C20="","",'DF raw data'!C20) ->  | D20: =IF('DF raw data'!D20="","",'DF raw data'!D20) -> 
A21: =IF('DF raw data'!A21="","",'DF raw data'!A21) ->  | B21: =IF('DF raw data'!B21="","",'DF raw data'!B21) ->  | C21: =IF('DF raw data'!C21="","",'DF raw data'!C21) ->  | D21: =IF('DF raw data'!D21="","",'DF raw data'!D21) -> 
A22: =IF('DF raw data'!A22="","",'DF raw data'!A22) -> Probe Name | B22: =IF('DF raw data'!B22="","",'DF raw data'!B22) -> ID12_By | C22: =IF('DF raw data'!C22="","",'DF raw data'!C22) ->  | D22: =IF('DF raw data'!D22="","",'DF raw data'!D22) -> 
A23: =IF('DF raw data'!A23="","",'DF raw data'!A23) -> Probe Type | B23: =IF('DF raw data'!B23="","",'DF raw data'!B23) -> DF_ID_3D_Bxyz | C23: =IF('DF raw data'!C23="","",'DF raw data'!C23) ->  | D23: =IF('DF raw data'!D23="","",'DF raw data'!D23) -> 
A24: =IF('DF raw data'!A24="","",'DF raw data'!A24) -> Probe Danfysik Reg. Number | B24: =IF('DF raw data'!B24="","",'DF raw data'!B24) -> 2277 | C24: =IF('DF raw data'!C24="","",'DF raw data'!C24) ->  | D24: =IF('DF raw data'!D24="","",'DF raw data'!D24) -> 
A25: =IF('DF raw data'!A25="","",'DF raw data'!A25) -> Probe Axis | B25: =IF('DF raw data'!B25="","",'DF raw data'!B25) -> By | C25: =IF('DF raw data'!C25="","",'DF raw data'!C25) ->  | D25: =IF('DF raw data'!D25="","",'DF raw data'!D25) -> 
A26: =IF('DF raw data'!A26="","",'DF raw data'!A26) -> Probe Current Supply | B26: =IF('DF raw data'!B26="","",'DF raw data'!B26) -> 1825-D | C26: =IF('DF raw data'!C26="","",'DF raw data'!C26) ->  | D26: =IF('DF raw data'!D26="","",'DF raw data'!D26) -> 
A27: =IF('DF raw data'!A27="","",'DF raw data'!A27) -> Probe Gain Correction | B27: =IF('DF raw data'!B27="","",'DF raw data'!B27) -> 0.99613 | C27: =IF('DF raw data'!C27="","",'DF raw data'!C27) ->  | D27: =IF('DF raw data'!D27="","",'DF raw data'!D27) -> 
A28: =IF('DF raw data'!A28="","",'DF raw data'!A28) -> Probe Offset Correction | B28: =IF('DF raw data'!B28="","",'DF raw data'!B28) -> 0.0027685 | C28: =IF('DF raw data'!C28="","",'DF raw data'!C28) ->  | D28: =IF('DF raw data'!D28="","",'DF raw data'!D28) -> 
A29: =IF('DF raw data'!A29="","",'DF raw data'!A29) -> DVM Number | B29: =IF('DF raw data'!B29="","",'DF raw data'!B29) -> 2 | C29: =IF('DF raw data'!C29="","",'DF raw data'!C29) ->  | D29: =IF('DF raw data'!D29="","",'DF raw data'!D29) -> 
A30: =IF('DF raw data'!A30="","",'DF raw data'!A30) -> DVM Type | B30: =IF('DF raw data'!B30="","",'DF raw data'!B30) -> K2701 | C30: =IF('DF raw data'!C30="","",'DF raw data'!C30) ->  | D30: =IF('DF raw data'!D30="","",'DF raw data'!D30) -> 
A31: =IF('DF raw data'!A31="","",'DF raw data'!A31) -> DVM Danfysik Reg. Number | B31: =IF('DF raw data'!B31="","",'DF raw data'!B31) -> 1743-D | C31: =IF('DF raw data'!C31="","",'DF raw data'!C31) ->  | D31: =IF('DF raw data'!D31="","",'DF raw data'!D31) -> 
A32: =IF('DF raw data'!A32="","",'DF raw data'!A32) -> Probe Name | B32: =IF('DF raw data'!B32="","",'DF raw data'!B32) -> ID12_Bx | C32: =IF('DF raw data'!C32="","",'DF raw data'!C32) ->  | D32: =IF('DF raw data'!D32="","",'DF raw data'!D32) -> 
A33: =IF('DF raw data'!A33="","",'DF raw data'!A33) -> Probe Type | B33: =IF('DF raw data'!B33="","",'DF raw data'!B33) -> DF_ID_3D_Bxyz | C33: =IF('DF raw data'!C33="","",'DF raw data'!C33) ->  | D33: =IF('DF raw data'!D33="","",'DF raw data'!D33) -> 
A34: =IF('DF raw data'!A34="","",'DF raw data'!A34) -> Probe Danfysik Reg. Number | B34: =IF('DF raw data'!B34="","",'DF raw data'!B34) -> 2277 | C34: =IF('DF raw data'!C34="","",'DF raw data'!C34) ->  | D34: =IF('DF raw data'!D34="","",'DF raw data'!D34) -> 
A35: =IF('DF raw data'!A35="","",'DF raw data'!A35) -> Probe Axis | B35: =IF('DF raw data'!B35="","",'DF raw data'!B35) -> Bx | C35: =IF('DF raw data'!C35="","",'DF raw data'!C35) ->  | D35: =IF('DF raw data'!D35="","",'DF raw data'!D35) -> 
A36: =IF('DF raw data'!A36="","",'DF raw data'!A36) -> Probe Current Supply | B36: =IF('DF raw data'!B36="","",'DF raw data'!B36) -> 1825-D | C36: =IF('DF raw data'!C36="","",'DF raw data'!C36) ->  | D36: =IF('DF raw data'!D36="","",'DF raw data'!D36) -> 
A37: =IF('DF raw data'!A37="","",'DF raw data'!A37) -> Probe Gain Correction | B37: =IF('DF raw data'!B37="","",'DF raw data'!B37) -> 1 | C37: =IF('DF raw data'!C37="","",'DF raw data'!C37) ->  | D37: =IF('DF raw data'!D37="","",'DF raw data'!D37) -> 
A38: =IF('DF raw data'!A38="","",'DF raw data'!A38) -> Probe Offset Correction | B38: =IF('DF raw data'!B38="","",'DF raw data'!B38) -> -0.17517 | C38: =IF('DF raw data'!C38="","",'DF raw data'!C38) ->  | D38: =IF('DF raw data'!D38="","",'DF raw data'!D38) -> 
A39: =IF('DF raw data'!A39="","",'DF raw data'!A39) -> DVM Number | B39: =IF('DF raw data'!B39="","",'DF raw data'!B39) -> 3 | C39: =IF('DF raw data'!C39="","",'DF raw data'!C39) ->  | D39: =IF('DF raw data'!D39="","",'DF raw data'!D39) -> 
A40: =IF('DF raw data'!A40="","",'DF raw data'!A40) -> DVM Type | B40: =IF('DF raw data'!B40="","",'DF raw data'!B40) -> K2701 | C40: =IF('DF raw data'!C40="","",'DF raw data'!C40) ->  | D40: =IF('DF raw data'!D40="","",'DF raw data'!D40) -> 
A41: =IF('DF raw data'!A41="","",'DF raw data'!A41) -> DVM Danfysik Reg. Number | B41: =IF('DF raw data'!B41="","",'DF raw data'!B41) -> 1744-D | C41: =IF('DF raw data'!C41="","",'DF raw data'!C41) ->  | D41: =IF('DF raw data'!D41="","",'DF raw data'!D41) -> 
A42: =IF('DF raw data'!A42="","",'DF raw data'!A42) -> Probe Name | B42: =IF('DF raw data'!B42="","",'DF raw data'!B42) -> ID12_Bz | C42: =IF('DF raw data'!C42="","",'DF raw data'!C42) ->  | D42: =IF('DF raw data'!D42="","",'DF raw data'!D42) -> 
A43: =IF('DF raw data'!A43="","",'DF raw data'!A43) -> Probe Type | B43: =IF('DF raw data'!B43="","",'DF raw data'!B43) -> DF_ID_3D_Bxyz | C43: =IF('DF raw data'!C43="","",'DF raw data'!C43) ->  | D43: =IF('DF raw data'!D43="","",'DF raw data'!D43) -> 
A44: =IF('DF raw data'!A44="","",'DF raw data'!A44) -> Probe Danfysik Reg. Number | B44: =IF('DF raw data'!B44="","",'DF raw data'!B44) -> 2277 | C44: =IF('DF raw data'!C44="","",'DF raw data'!C44) ->  | D44: =IF('DF raw data'!D44="","",'DF raw data'!D44) -> 
A45: =IF('DF raw data'!A45="","",'DF raw data'!A45) -> Probe Axis | B45: =IF('DF raw data'!B45="","",'DF raw data'!B45) -> Bz | C45: =IF('DF raw data'!C45="","",'DF raw data'!C45) ->  | D45: =IF('DF raw data'!D45="","",'DF raw data'!D45) -> 
A46: =IF('DF raw data'!A46="","",'DF raw data'!A46) -> Probe Current Supply | B46: =IF('DF raw data'!B46="","",'DF raw data'!B46) -> 1825-D | C46: =IF('DF raw data'!C46="","",'DF raw data'!C46) ->  | D46: =IF('DF raw data'!D46="","",'DF raw data'!D46) -> 
A47: =IF('DF raw data'!A47="","",'DF raw data'!A47) -> Probe Gain Correction | B47: =IF('DF raw data'!B47="","",'DF raw data'!B47) -> 1 | C47: =IF('DF raw data'!C47="","",'DF raw data'!C47) ->  | D47: =IF('DF raw data'!D47="","",'DF raw data'!D47) -> 
A48: =IF('DF raw data'!A53="","",'DF raw data'!A53) -> PS-Gap: | B48: =IF('DF raw data'!B53="","",'DF raw data'!B53) -> 10 | C48: =IF('DF raw data'!C53="","",'DF raw data'!C53) ->  | D48: =IF('DF raw data'!D53="","",'DF raw data'!D53) -> 
A49: =IF('DF raw data'!A54="","",'DF raw data'!A54) -> PS-Temperature: | B49: =IF('DF raw data'!B54="","",'DF raw data'!B54) -> 24.9 | C49: =IF('DF raw data'!C54="","",'DF raw data'!C54) ->  | D49: =IF('DF raw data'!D54="","",'DF raw data'!D54) -> 
A50: =IF('DF raw data'!A55="","",'DF raw data'!A55) -> PS-Encoder: | B50: =IF('DF raw data'!B55="","",'DF raw data'!B55) -> 20.4293 | C50: =IF('DF raw data'!C55="","",'DF raw data'!C55) ->  | D50: =IF('DF raw data'!D55="","",'DF raw data'!D55) -> 
A51: =IF('DF raw data'!A56="","",'DF raw data'!A56) ->  | B51: =IF('DF raw data'!B56="","",'DF raw data'!B56) ->  | C51: =IF('DF raw data'!C56="","",'DF raw data'!C56) ->  | D51: =IF('DF raw data'!D56="","",'DF raw data'!D56) -> 
A52: =IF('DF raw data'!A57="","",'DF raw data'!A57) -> Monitor-Index | B52: =IF('DF raw data'!B57="","",'DF raw data'!B57) -> [1,1,4] | C52: =IF('DF raw data'!C57="","",'DF raw data'!C57) ->  | D52: =IF('DF raw data'!D57="","",'DF raw data'!D57) -> 
A53: =IF('DF raw data'!A58="","",'DF raw data'!A58) ->  | B53: =IF('DF raw data'!B58="","",'DF raw data'!B58) ->  | C53: =IF('DF raw data'!C58="","",'DF raw data'!C58) ->  | D53: =IF('DF raw data'!D58="","",'DF raw data'!D58) -> 
A54: =IF('DF raw data'!A59="","",'DF raw data'!A59) -> Time [s] | B54: =IF('DF raw data'!B59="","",'DF raw data'!B59) -> Y [mm] | C54: =IF('DF raw data'!C59="","",'DF raw data'!C59) -> X [mm] | D54: =IF('DF raw data'!D59="","",'DF raw data'!D59) -> Nominal current [A]
A55: =IF('DF raw data'!A60="","",'DF raw data'!A60) ->  | B55: =IF('DF raw data'!B60="","",'DF raw data'!B60) ->  | C55: =IF('DF raw data'!C60="","",'DF raw data'!C60) ->  | D55: =IF('DF raw data'!D60="","",'DF raw data'!D60) -> 
A56: =IF('DF raw data'!A61="","",'DF raw data'!A61) -> 226.8 | B56: =IF('DF raw data'!B61="","",'DF raw data'!B61) -> 30.8 | C56: =IF('DF raw data'!C61="","",'DF raw data'!C61) -> 299.8 | D56: =IF('DF raw data'!D61="","",'DF raw data'!D61) -> 0
A57: =IF('DF raw data'!A62="","",'DF raw data'!A62) ->  | B57: =IF('DF raw data'!B62="","",'DF raw data'!B62) ->  | C57: =IF('DF raw data'!C62="","",'DF raw data'!C62) ->  | D57: =IF('DF raw data'!D62="","",'DF raw data'!D62) -> 
A58: =IF('DF raw data'!A63="","",'DF raw data'!A63) -> Measurement-Index | B58: =IF('DF raw data'!B63="","",'DF raw data'!B63) -> [1,1,1201,2] | C58: =IF('DF raw data'!C63="","",'DF raw data'!C63) ->  | D58: =IF('DF raw data'!D63="","",'DF raw data'!D63) -> 
A59: =IF('DF raw data'!A64="","",'DF raw data'!A64) ->  | B59: =IF('DF raw data'!B64="","",'DF raw data'!B64) ->  | C59: =IF('DF raw data'!C64="","",'DF raw data'!C64) ->  | D59: =IF('DF raw data'!D64="","",'DF raw data'!D64) -> 
A60: =IF('DF raw data'!A65="","",'DF raw data'!A65) -> Z [mm] | B60: =IF('DF raw data'!B65="","",'DF raw data'!B65) -> By [T] | C60: =IF('DF raw data'!C65="","",'DF raw data'!C65) -> Bx [T] | D60: =IF('DF raw data'!D65="","",'DF raw data'!D65) -> Bz [T] | F60: By_corr | G60: Bx_corr | H60: Bz_corr | J60: Iy | K60: Jy | L60: Ix | M60: Jx | N60: PI
A62: =IF('DF raw data'!A67="","",'DF raw data'!A67) -> -300 | B62: =IF('DF raw data'!B67="","",'DF raw data'!B67) -> -4.04032e-05 | C62: =IF('DF raw data'!C67="","",'DF raw data'!C67) -> 1.21959e-05 | D62: =IF('DF raw data'!D67="","",'DF raw data'!D67) -> -6.10251e-06 | F62: =(1-$G$1*($B$49))*B62 -> -4.113760897e-05 | G62: =(1-$G$1*($B$49-$G$2))*C62 -> 1.223952473e-05 | H62: =(1-$G$1*($B$49-$G$2))*D62 -> -6.124338678e-06 | J62: =F62*$G$3 -> -2.056880448e-05 | K62: =J62*$G$3 -> -1.028440224e-05 | L62: =G62*$G$3 -> 6.119762367e-06 | M62: =L62*$G$3 -> 3.059881184e-06 | N62: =(J62^2+L62^2)*$G$3 -> 2.302636046e-10
A63: =IF('DF raw data'!A68="","",'DF raw data'!A68) -> -299.5 | B63: =IF('DF raw data'!B68="","",'DF raw data'!B68) -> -4.02109e-05 | C63: =IF('DF raw data'!C68="","",'DF raw data'!C68) -> 1.90638e-05 | D63: =IF('DF raw data'!D68="","",'DF raw data'!D68) -> -6.04252e-06 | F63: =(1-$G$1*($B$49-$G$2))*B63 -> -4.035473439e-05 | G63: =(1-$G$1*($B$49-$G$2))*C63 -> 1.913199121e-05 | H63: -6.064134094e-06 | J63: =F63*$G$3+J62 -> -4.074617168e-05 | K63: =J63*$G$3+K62 -> -3.065748808e-05 | L63: =G63*$G$3+L62 -> 1.568575797e-05 | M63: =L63*$G$3+M62 -> 1.090276017e-05 | N63: =(J63^2+L63^2)*$G$3+N62 -> 1.183410359e-09
A64: =IF('DF raw data'!A69="","",'DF raw data'!A69) -> -299 | B64: =IF('DF raw data'!B69="","",'DF raw data'!B69) -> -3.3739e-05 | C64: =IF('DF raw data'!C69="","",'DF raw data'!C69) -> 1.77533e-05 | D64: =IF('DF raw data'!D69="","",'DF raw data'!D69) -> -6.11815e-06 | F64: =(1-$G$1*($B$49-$G$2))*B64 -> -3.38596844e-05 | G64: 1.781680355e-05 | H64: -6.140034623e-06 | J64: =F64*$G$3+J63 -> -5.767601388e-05 | K64: =J64*$G$3+K63 -> -5.949549502e-05 | L64: =G64*$G$3+L63 -> 2.459415975e-05 | M64: =L64*$G$3+M63 -> 2.319984005e-05 | N64: =(J64^2+L64^2)*$G$3+N63 -> 3.149107995e-09
A65: =IF('DF raw data'!A70="","",'DF raw data'!A70) -> -298.5 | B65: =IF('DF raw data'!B70="","",'DF raw data'!B70) -> -3.38669e-05 | C65: =IF('DF raw data'!C70="","",'DF raw data'!C70) -> 2.08944e-05 | D65: =IF('DF raw data'!D70="","",'DF raw data'!D70) -> -6.52517e-06 | F65: -3.39880419e-05 | G65: 2.096913927e-05 | H65: -6.548510533e-06 | J65: -7.467003483e-05 | K65: -9.683051244e-05 | L65: 3.507872938e-05 | M65: 4.073920474e-05 | N65: 6.552173673e-09
A66: =IF('DF raw data'!A71="","",'DF raw data'!A71) -> -298 | B66: =IF('DF raw data'!B71="","",'DF raw data'!B71) -> -3.29695e-05 | C66: =IF('DF raw data'!C71="","",'DF raw data'!C71) -> 2.82423e-05 | D66: =IF('DF raw data'!D71="","",'DF raw data'!D71) -> -7.13845e-06 | F66: -3.30874319e-05 | G66: 2.834332271e-05 | H66: -7.163984236e-06 | J66: -9.121375078e-05 | K66: -0.0001424373878 | L66: 4.925039074e-05 | M66: 6.536440011e-05 | N66: 1.192494833e-08
A67: =IF('DF raw data'!A72="","",'DF raw data'!A72) -> -297.5 | B67: =IF('DF raw data'!B72="","",'DF raw data'!B72) -> -3.32256e-05 | C67: =IF('DF raw data'!C72="","",'DF raw data'!C72) -> 2.29757e-05 | D67: =IF('DF raw data'!D72="","",'DF raw data'!D72) -> -7.43161e-06 | F67: -3.334444797e-05 | G67: 2.305788408e-05 | H67: -7.458192869e-06 | J67: -0.0001078859748 | K67: -0.0001963803752 | L67: 6.077933278e-05 | M67: 9.57540665e-05 | N67: 1.959170376e-08
A68: =IF('DF raw data'!A73="","",'DF raw data'!A73) -> -297 | B68: =IF('DF raw data'!B73="","",'DF raw data'!B73) -> -4.38628e-05 | C68: =IF('DF raw data'!C73="","",'DF raw data'!C73) -> 1.27445e-05 | D68: =IF('DF raw data'!D73="","",'DF raw data'!D73) -> -6.88013e-06 | F68: -4.401969724e-05 | G68: 1.279008708e-05 | H68: -6.904740225e-06 | J68: -0.0001298958234 | K68: -0.0002613282869 | L68: 6.717437632e-05 | M68: 0.0001293412547 | N68: 3.028436464e-08
A69: =IF('DF raw data'!A74="","",'DF raw data'!A74) -> -296.5 | B69: =IF('DF raw data'!B74="","",'DF raw data'!B74) -> -3.5277e-05 | C69: =IF('DF raw data'!C74="","",'DF raw data'!C74) -> 1.8366e-05 | D69: =IF('DF raw data'!D74="","",'DF raw data'!D74) -> -5.97538e-06 | F69: -3.540318583e-05 | G69: 1.843169518e-05 | H69: -5.996753934e-06 | J69: -0.0001475974163 | K69: -0.0003351269951 | L69: 7.639022391e-05 | M69: 0.0001675363666 | N69: 4.409459644e-08
A70: =IF('DF raw data'!A75="","",'DF raw data'!A75) -> -296 | B70: =IF('DF raw data'!B75="","",'DF raw data'!B75) -> -3.5213e-05 | C70: =IF('DF raw data'!C75="","",'DF raw data'!C75) -> 1.64677e-05 | D70: =IF('DF raw data'!D75="","",'DF raw data'!D75) -> -5.65133e-06 | F70: -3.53389569e-05 | G70: 1.652660496e-05 | H70: -5.671544807e-06 | J70: -0.0001652668947 | K70: -0.0004177604424 | L70: 8.465352639e-05 | M70: 0.0002098631298 | N70: 6.133427946e-08
A71: =IF('DF raw data'!A76="","",'DF raw data'!A76) -> -295.5 | B71: =IF('DF raw data'!B76="","",'DF raw data'!B76) -> -2.47038e-05 | C71: =IF('DF raw data'!C76="","",'DF raw data'!C76) -> 1.68095e-05 | D71: =IF('DF raw data'!D76="","",'DF raw data'!D76) -> -6.34423e-06 | F71: -2.479216549e-05 | G71: 1.686962758e-05 | H71: -6.366923311e-06 | J71: -0.0001776629775 | K71: -0.0005065919312 | L71: 9.308834018e-05 | M71: 0.0002564072999 | N71: 8.144906578e-08
A72: =IF('DF raw data'!A77="","",'DF raw data'!A77) -> -295 | B72: =IF('DF raw data'!B77="","",'DF raw data'!B77) -> -2.77788e-05 | C72: =IF('DF raw data'!C77="","",'DF raw data'!C77) -> 2.53884e-05 | D72: =IF('DF raw data'!D77="","",'DF raw data'!D77) -> -7.27197e-06 | F72: -2.787816477e-05 | G72: 2.547921431e-05 | H72: -7.297981837e-06 | J72: -0.0001916020599 | K72: -0.0006023929611 | L72: 0.0001058279473 | M72: 0.0003093212736 | N72: 1.054045177e-07
A73: =IF('DF raw data'!A78="","",'DF raw data'!A78) -> -294.5 | B73: =IF('DF raw data'!B78="","",'DF raw data'!B78) -> -3.56603e-05 | C73: =IF('DF raw data'!C78="","",'DF raw data'!C78) -> 3.13732e-05 | D73: =IF('DF raw data'!D78="","",'DF raw data'!D78) -> -7.69156e-06 | F73: -3.578785689e-05 | G73: 3.148542194e-05 | H73: -7.71907271e-06 | J73: -0.0002094959883 | K73: -0.0007071409553 | L73: 0.0001215706583 | M73: 0.0003701066027 | N73: 1.347385147e-07
A74: =IF('DF raw data'!A79="","",'DF raw data'!A79) -> -294 | B74: =IF('DF raw data'!B79="","",'DF raw data'!B79) -> -3.0342e-05 | C74: =IF('DF raw data'!C79="","",'DF raw data'!C79) -> 2.48524e-05 | D74: =IF('DF raw data'!D79="","",'DF raw data'!D79) -> -7.56116e-06 | F74: -3.045053333e-05 | G74: 2.494129703e-05 | H74: -7.588206269e-06 | J74: -0.000224721255 | K74: -0.0008195015828 | L74: 0.0001340413068 | M74: 0.0004371272561 | N74: 1.689718719e-07
A75: =IF('DF raw data'!A80="","",'DF raw data'!A80) -> -293.5 | B75: =IF('DF raw data'!B80="","",'DF raw data'!B80) -> -4.39909e-05 | C75: =IF('DF raw data'!C80="","",'DF raw data'!C80) -> 2.01187e-05 | D75: =IF('DF raw data'!D80="","",'DF raw data'!D80) -> -6.96612e-06 | F75: -4.414825545e-05 | G75: 2.019066459e-05 | H75: -6.991037811e-06 | J75: -0.0002467953827 | K75: -0.0009428992741 | L75: 0.0001441366391 | M75: 0.0005091955757 | N75: 2.098135377e-07
A76: =IF('DF raw data'!A81="","",'DF raw data'!A81) -> -293 | B76: =IF('DF raw data'!B81="","",'DF raw data'!B81) -> -3.34182e-05 | C76: =IF('DF raw data'!C81="","",'DF raw data'!C81) -> 1.71801e-05 | D76: =IF('DF raw data'!D81="","",'DF raw data'!D81) -> -6.55428e-06 | F76: -3.35377369e-05 | G76: 1.724155322e-05 | H76: -6.57772466e-06 | J76: -0.0002635642512 | K76: -0.0010746814 | L76: 0.0001527574157 | M76: 0.0005855742835 | N76: 2.56214009e-07
A77: =IF('DF raw data'!A82="","",'DF raw data'!A82) -> -292.5 | B77: =IF('DF raw data'!B82="","",'DF raw data'!B82) -> -3.4059e-05 | C77: =IF('DF raw data'!C82="","",'DF raw data'!C82) -> 1.53051e-05 | D77: =IF('DF raw data'!D82="","",'DF raw data'!D82) -> -6.58516e-06 | F77: -3.418082904e-05 | G77: 1.535984634e-05 | H77: -6.608715117e-06 | J77: -0.0002806546657 | K77: -0.001215008733 | L77: 0.0001604373389 | M77: 0.000665792953 | N77: 3.084675996e-07
A78: =IF('DF raw data'!A83="","",'DF raw data'!A83) -> -292 | B78: =IF('DF raw data'!B83="","",'DF raw data'!B83) -> -3.7455e-05 | C78: =IF('DF raw data'!C83="","",'DF raw data'!C83) -> 1.15775e-05 | D78: =IF('DF raw data'!D83="","",'DF raw data'!D83) -> -6.7454e-06 | F78: -3.758897653e-05 | G78: 1.161891272e-05 | H78: -6.769528296e-06 | J78: -0.000299449154 | K78: -0.00136473331 | L78: 0.0001662467953 | M78: 0.0007489163506 | N78: 3.671214959e-07
A79: =IF('DF raw data'!A84="","",'DF raw data'!A84) -> -291.5 | B79: =IF('DF raw data'!B84="","",'DF raw data'!B84) -> -3.12967e-05 | C79: =IF('DF raw data'!C84="","",'DF raw data'!C84) -> 1.12401e-05 | D79: =IF('DF raw data'!D84="","",'DF raw data'!D84) -> -1.71547e-05 | F79: -3.14086483e-05 | G79: 1.128030584e-05 | H79: -1.721606236e-05 | J79: -0.0003151534781 | K79: -0.001522310049 | L79: 0.0001718869482 | M79: 0.0008348598247 | N79: 4.315549148e-07
A80: =IF('DF raw data'!A85="","",'DF raw data'!A85) -> -291 | B80: =IF('DF raw data'!B85="","",'DF raw data'!B85) -> -3.86037e-05 | C80: =IF('DF raw data'!C85="","",'DF raw data'!C85) -> 9.79084e-06 | D80: =IF('DF raw data'!D85="","",'DF raw data'!D85) -> -1.39215e-05 | F80: -3.874178543e-05 | G80: 9.825861835e-06 | H80: -1.397129721e-05 | J80: -0.0003345243708 | K80: -0.001689572234 | L80: 0.0001767998791 | M80: 0.0009232597642 | N80: 5.031372907e-07
A81: =IF('DF raw data'!A86="","",'DF raw data'!A86) -> -290.5 | B81: =IF('DF raw data'!B86="","",'DF raw data'!B86) -> -3.16852e-05 | C81: =IF('DF raw data'!C86="","",'DF raw data'!C86) -> 1.93266e-05 | D81: =IF('DF raw data'!D86="","",'DF raw data'!D86) -> -1.09899e-05 | F81: -3.179853796e-05 | G81: 1.939573125e-05 | H81: -1.102921087e-05 | J81: -0.0003504236398 | K81: -0.001864784054 | L81: 0.0001864977447 | M81: 0.001016508637 | N81: 5.819263588e-07
A82: =IF('DF raw data'!A87="","",'DF raw data'!A87) -> -290 | B82: =IF('DF raw data'!B87="","",'DF raw data'!B87) -> -3.69941e-05 | C82: =IF('DF raw data'!C87="","",'DF raw data'!C87) -> 1.67865e-05 | D82: =IF('DF raw data'!D87="","",'DF raw data'!D87) -> -2.60881e-05 | F82: -3.71264279e-05 | G82: 1.684654531e-05 | H82: -2.618141713e-05 | J82: -0.0003689868538 | K82: -0.002049277481 | L82: 0.0001949210174 | M82: 0.001113969145 | N82: 6.689991094e-07
A83: =IF('DF raw data'!A88="","",'DF raw data'!A88) -> -289.5 | B83: =IF('DF raw data'!B88="","",'DF raw data'!B88) -> -3.3412e-05 | C83: =IF('DF raw data'!C88="","",'DF raw data'!C88) -> 1.15474e-05 | D83: =IF('DF raw data'!D88="","",'DF raw data'!D88) -> -1.61912e-05 | F83: -3.353151472e-05 | G83: 1.158870505e-05 | H83: -1.624911592e-05 | J83: -0.0003857526111 | K83: -0.002242153786 | L83: 0.0002007153699 | M83: 0.00121432683 | N83: 7.635449778e-07
A84: =IF('DF raw data'!A89="","",'DF raw data'!A89) -> -289 | B84: =IF('DF raw data'!B89="","",'DF raw data'!B89) -> -1.91864e-05 | C84: =IF('DF raw data'!C89="","",'DF raw data'!C89) -> 1.1387e-05 | D84: =IF('DF raw data'!D89="","",'DF raw data'!D89) -> -1.6589e-05 | F84: -1.925502975e-05 | G84: 1.14277313e-05 | H84: -1.664833885e-05 | J84: -0.000395380126 | K84: -0.002439843849 | L84: 0.0002064292355 | M84: 0.001317541448 | N84: 8.630142144e-07
A85: =IF('DF raw data'!A90="","",'DF raw data'!A90) -> -288.5 | B85: =IF('DF raw data'!B90="","",'DF raw data'!B90) -> -4.60361e-05 | C85: =IF('DF raw data'!C90="","",'DF raw data'!C90) -> 5.88186e-06 | D85: =IF('DF raw data'!D90="","",'DF raw data'!D90) -> -1.4982e-05 | F85: -4.620077113e-05 | G85: 5.902899413e-06 | H85: -1.503559061e-05 | J85: -0.0004184805116 | K85: -0.002649084105 | L85: 0.0002093806852 | M85: 0.001422231791 | N85: 9.724973194e-07
A86: =IF('DF raw data'!A91="","",'DF raw data'!A91) -> -288 | B86: =IF('DF raw data'!B91="","",'DF raw data'!B91) -> -3.94295e-05 | C86: =IF('DF raw data'!C91="","",'DF raw data'!C91) -> 6.2436e-06 | D86: =IF('DF raw data'!D91="","",'DF raw data'!D91) -> -2.53009e-05 | F86: -3.957053932e-05 | G86: 6.265933357e-06 | H86: -2.539140132e-05 | J86: -0.0004382657812 | K86: -0.002868216996 | L86: 0.0002125136519 | M86: 0.001528488617 | N86: 1.091116793e-06
A87: =IF('DF raw data'!A92="","",'DF raw data'!A92) -> -287.5 | B87: =IF('DF raw data'!B92="","",'DF raw data'!B92) -> -3.35418e-05 | C87: =IF('DF raw data'!C92="","",'DF raw data'!C92) -> 1.3423e-05 | D87: =IF('DF raw data'!D92="","",'DF raw data'!D92) -> -1.36087e-05 | F87: -3.366177902e-05 | G87: 1.347101407e-05 | H87: -1.365737832e-05 | J87: -0.0004550966707 | K87: -0.003095765331 | L87: 0.000219249159 | M87: 0.001638113196 | N87: 1.21870838e-06
A88: =IF('DF raw data'!A93="","",'DF raw data'!A93) -> -287 | B88: =IF('DF raw data'!B93="","",'DF raw data'!B93) -> -4.97482e-05 | C88: =IF('DF raw data'!C93="","",'DF raw data'!C93) -> 2.50097e-05 | D88: =IF('DF raw data'!D93="","",'DF raw data'!D93) -> -2.20179e-05 | F88: -4.992614931e-05 | G88: 2.50991597e-05 | H88: -2.209665803e-05 | J88: -0.0004800597454 | K88: -0.003335795204 | L88: 0.0002317987388 | M88: 0.001754012565 | N88: 1.360802387e-06
A89: =IF('DF raw data'!A94="","",'DF raw data'!A94) -> -286.5 | B89: =IF('DF raw data'!B94="","",'DF raw data'!B94) -> -4.50075e-05 | C89: =IF('DF raw data'!C94="","",'DF raw data'!C94) -> 1.80745e-05 | D89: =IF('DF raw data'!D94="","",'DF raw data'!D94) -> -2.03425e-05 | F89: -4.516849183e-05 | G89: 1.813915249e-05 | H89: -2.041526512e-05 | J89: -0.0005026439913 | K89: -0.003587117199 | L89: 0.0002408683151 | M89: 0.001874446723 | N89: 1.516136651e-06
A90: =IF('DF raw data'!A95="","",'DF raw data'!A95) -> -286 | B90: =IF('DF raw data'!B95="","",'DF raw data'!B95) -> -3.02002e-05 | C90: =IF('DF raw data'!C95="","",'DF raw data'!C95) -> 1.64585e-05 | D90: =IF('DF raw data'!D95="","",'DF raw data'!D95) -> -2.85216e-05 | F90: -3.030822612e-05 | G90: 1.651737205e-05 | H90: -2.862362176e-05 | J90: -0.0005177981044 | K90: -0.003846016252 | L90: 0.0002491270011 | M90: 0.001999010224 | N90: 1.68122622e-06
A91: =IF('DF raw data'!A96="","",'DF raw data'!A96) -> -285.5 | B91: =IF('DF raw data'!B96="","",'DF raw data'!B96) -> -3.34126e-05 | C91: =IF('DF raw data'!C96="","",'DF raw data'!C96) -> 2.15041e-05 | D91: =IF('DF raw data'!D96="","",'DF raw data'!D96) -> -1.52672e-05 | F91: -3.353211687e-05 | G91: 2.158102017e-05 | H91: -1.532181077e-05 | J91: -0.0005345641628 | K91: -0.004113298333 | L91: 0.0002599175112 | M91: 0.002128968979 | N91: 1.857884199e-06
A92: =IF('DF raw data'!A97="","",'DF raw data'!A97) -> -285 | B92: =IF('DF raw data'!B97="","",'DF raw data'!B97) -> -3.85341e-05 | C92: =IF('DF raw data'!C97="","",'DF raw data'!C97) -> 2.01447e-05 | D92: =IF('DF raw data'!D97="","",'DF raw data'!D97) -> -2.26571e-05 | F92: -3.867193648e-05 | G92: 2.021675759e-05 | H92: -2.273814445e-05 | J92: -0.000553900131 | K92: -0.004390248398 | L92: 0.00027002589 | M92: 0.002263981924 | N92: 2.047743867e-06
A93: =IF('DF raw data'!A98="","",'DF raw data'!A98) -> -284.5 | B93: =IF('DF raw data'!B98="","",'DF raw data'!B98) -> -3.57863e-05 | C93: =IF('DF raw data'!C98="","",'DF raw data'!C98) -> 1.48274e-05 | D93: =IF('DF raw data'!D98="","",'DF raw data'!D98) -> -1.10023e-05 | F93: -3.59143076e-05 | G93: 1.488043761e-05 | H93: -1.104165523e-05 | J93: -0.0005718572848 | K93: -0.004676177041 | L93: 0.0002774661088 | M93: 0.002402714978 | N93: 2.249747965e-06
A94: =IF('DF raw data'!A99="","",'DF raw data'!A99) -> -284 | B94: =IF('DF raw data'!B99="","",'DF raw data'!B99) -> -3.49514e-05 | C94: =IF('DF raw data'!C99="","",'DF raw data'!C99) -> 2.14926e-05 | D94: =IF('DF raw data'!D99="","",'DF raw data'!D99) -> -1.38368e-05 | F94: -3.507642116e-05 | G94: 2.156947903e-05 | H94: -1.388629423e-05 | J94: -0.0005893954954 | K94: -0.004970874789 | L94: 0.0002882508483 | M94: 0.002546840403 | N94: 2.464985765e-06
A95: =IF('DF raw data'!A100="","",'DF raw data'!A100) -> -283.5 | B95: =IF('DF raw data'!B100="","",'DF raw data'!B100) -> -3.33526e-05 | C95: =IF('DF raw data'!C100="","",'DF raw data'!C100) -> 1.71468e-05 | D95: =IF('DF raw data'!D100="","",'DF raw data'!D100) -> -9.19434e-06 | F95: -3.347190225e-05 | G95: 1.72081341e-05 | H95: -9.227228154e-06 | J95: -0.0006061314465 | K95: -0.005273940512 | L95: 0.0002968549153 | M95: 0.00269526786 | N95: 2.692744851e-06
A96: =IF('DF raw data'!A101="","",'DF raw data'!A101) -> -283 | B96: =IF('DF raw data'!B101="","",'DF raw data'!B101) -> -2.57758e-05 | C96: =IF('DF raw data'!C101="","",'DF raw data'!C101) -> 1.08178e-05 | D96: =IF('DF raw data'!D101="","",'DF raw data'!D101) -> -3.32093e-05 | F96: -2.586800004e-05 | G96: 1.085649527e-05 | H96: -3.332808967e-05 | J96: -0.0006190654465 | K96: -0.005583473235 | L96: 0.000302283163 | M96: 0.002846409442 | N96: 2.93005342e-06
A97: =IF('DF raw data'!A102="","",'DF raw data'!A102) -> -282.5 | B97: =IF('DF raw data'!B102="","",'DF raw data'!B102) -> -2.92508e-05 | C97: =IF('DF raw data'!C102="","",'DF raw data'!C102) -> 1.22032e-05 | D97: =IF('DF raw data'!D102="","",'DF raw data'!D102) -> -1.02591e-05 | F97: -2.935543011e-05 | G97: 1.224685085e-05 | H97: -1.02957968e-05 | J97: -0.0006337431616 | K97: -0.005900344816 | L97: 0.0003084065884 | M97: 0.003000612736 | N97: 3.178425929e-06
A98: =IF('DF raw data'!A103="","",'DF raw data'!A103) -> -282 | B98: =IF('DF raw data'!B103="","",'DF raw data'!B103) -> -3.52711e-05 | C98: =IF('DF raw data'!C103="","",'DF raw data'!C103) -> 1.51016e-05 | D98: =IF('DF raw data'!D103="","",'DF raw data'!D103) -> -1.49862e-05 | F98: -3.539726472e-05 | G98: 1.515561842e-05 | H98: -1.503980564e-05 | J98: -0.000651441794 | K98: -0.006226065713 | L98: 0.0003159843976 | M98: 0.003158604935 | N98: 3.440537205e-06
A99: =IF('DF raw data'!A104="","",'DF raw data'!A104) -> -281.5 | B99: =IF('DF raw data'!B104="","",'DF raw data'!B104) -> -3.45623e-05 | C99: =IF('DF raw data'!C104="","",'DF raw data'!C104) -> 1.76001e-05 | D99: =IF('DF raw data'!D104="","",'DF raw data'!D104) -> -2.09773e-05 | F99: -3.468592935e-05 | G99: 1.766305556e-05 | H99: -2.10523358e-05 | J99: -0.0006687847586 | K99: -0.006560458092 | L99: 0.0003248159254 | M99: 0.003321012897 | N99: 3.716926424e-06
A100: =IF('DF raw data'!A105="","",'DF raw data'!A105) -> -281 | B100: =IF('DF raw data'!B105="","",'DF raw data'!B105) -> -2.85462e-05 | C100: =IF('DF raw data'!C105="","",'DF raw data'!C105) -> 1.94319e-05 | D100: =IF('DF raw data'!D105="","",'DF raw data'!D105) -> -1.00729e-05 | F100: -2.864830976e-05 | G100: 1.950140791e-05 | H100: -1.010893076e-05 | J100: -0.0006831089135 | K100: -0.006902012549 | L100: 0.0003345666293 | M100: 0.003488296212 | N100: 4.006212732e-06
A101: =IF('DF raw data'!A106="","",'DF raw data'!A106) -> -280.5 | B101: =IF('DF raw data'!B106="","",'DF raw data'!B106) -> -2.87981e-05 | C101: =IF('DF raw data'!C106="","",'DF raw data'!C106) -> 1.4581e-05 | D101: =IF('DF raw data'!D106="","",'DF raw data'!D106) -> -1.68463e-05 | F101: -2.89011108e-05 | G101: 1.463315624e-05 | H101: -1.690655922e-05 | J101: -0.0006975594689 | K101: -0.007250792283 | L101: 0.0003418832075 | M101: 0.003659237816 | N101: 4.307949403e-06
A102: =IF('DF raw data'!A107="","",'DF raw data'!A107) -> -280 | B102: =IF('DF raw data'!B107="","",'DF raw data'!B107) -> -4.09079e-05 | C102: =IF('DF raw data'!C107="","",'DF raw data'!C107) -> 8.83136e-06 | D102: =IF('DF raw data'!D107="","",'DF raw data'!D107) -> -1.83494e-05 | F102: -4.105422756e-05 | G102: 8.862949775e-06 | H102: -1.84150358e-05 | J102: -0.0007180865827 | K102: -0.007609835575 | L102: 0.0003463146823 | M102: 0.003832395157 | N102: 4.625740502e-06
A103: =IF('DF raw data'!A108="","",'DF raw data'!A108) -> -279.5 | B103: =IF('DF raw data'!B108="","",'DF raw data'!B108) -> -4.92959e-05 | C103: =IF('DF raw data'!C108="","",'DF raw data'!C108) -> 1.40209e-05 | D103: =IF('DF raw data'!D108="","",'DF raw data'!D108) -> -2.77081e-05 | F103: -4.947223143e-05 | G103: 1.407105276e-05 | H103: -2.780721187e-05 | J103: -0.0007428226984 | K103: -0.007981246924 | L103: 0.0003533502087 | M103: 0.004009070261 | N103: 4.964061468e-06
A104: =IF('DF raw data'!A109="","",'DF raw data'!A109) -> -279 | B104: =IF('DF raw data'!B109="","",'DF raw data'!B109) -> -3.66122e-05 | C104: =IF('DF raw data'!C109="","",'DF raw data'!C109) -> 2.15185e-05 | D104: =IF('DF raw data'!D109="","",'DF raw data'!D109) -> -2.21713e-05 | F104: -3.674316184e-05 | G104: 2.159547167e-05 | H104: -2.225060674e-05 | J104: -0.0007611942793 | K104: -0.008361844064 | L104: 0.0003641479446 | M104: 0.004191144234 | N104: 5.320071696e-06
A105: =IF('DF raw data'!A110="","",'DF raw data'!A110) -> -278.5 | B105: =IF('DF raw data'!B110="","",'DF raw data'!B110) -> -3.22564e-05 | C105: =IF('DF raw data'!C110="","",'DF raw data'!C110) -> 1.45317e-05 | D105: =IF('DF raw data'!D110="","",'DF raw data'!D110) -> -1.96101e-05 | F105: -3.237178114e-05 | G105: 1.458367989e-05 | H105: -1.968024533e-05 | J105: -0.0007773801699 | K105: -0.008750534149 | L105: 0.0003714397845 | M105: 0.004376864126 | N105: 5.691215417e-06
A106: =IF('DF raw data'!A111="","",'DF raw data'!A111) -> -278 | B106: =IF('DF raw data'!B111="","",'DF raw data'!B111) -> -4.39759e-05 | C106: =IF('DF raw data'!C111="","",'DF raw data'!C111) -> 2.03871e-05 | D106: =IF('DF raw data'!D111="","",'DF raw data'!D111) -> -3.01279e-05 | F106: -4.413320179e-05 | G106: 2.046002466e-05 | H106: -3.02356675e-05 | J106: -0.0007994467708 | K106: -0.009150257534 | L106: 0.0003816697968 | M106: 0.004567699024 | N106: 6.083608904e-06
A107: =IF('DF raw data'!A112="","",'DF raw data'!A112) -> -277.5 | B107: =IF('DF raw data'!B112="","",'DF raw data'!B112) -> -4.07184e-05 | C107: =IF('DF raw data'!C112="","",'DF raw data'!C112) -> 2.36541e-05 | D107: =IF('DF raw data'!D112="","",'DF raw data'!D112) -> -1.39901e-05 | F107: -4.086404972e-05 | G107: 2.373871072e-05 | H107: -1.404014259e-05 | J107: -0.0008198787957 | K107: -0.009560196932 | L107: 0.0003935391522 | M107: 0.0047644686 | N107: 6.497146056e-06
A108: =IF('DF raw data'!A113="","",'DF raw data'!A113) -> -277 | B108: =IF('DF raw data'!B113="","",'DF raw data'!B113) -> -4.40576e-05 | C108: =IF('DF raw data'!C113="","",'DF raw data'!C113) -> 2.31246e-05 | D108: =IF('DF raw data'!D113="","",'DF raw data'!D113) -> -3.09478e-06 | F108: -4.421519404e-05 | G108: 2.320731669e-05 | H108: -3.105850028e-06 | J108: -0.0008419863927 | K108: -0.009981190128 | L108: 0.0004051428105 | M108: 0.004967040006 | N108: 6.933686947e-06
A109: =IF('DF raw data'!A114="","",'DF raw data'!A114) -> -276.5 | B109: =IF('DF raw data'!B114="","",'DF raw data'!B114) -> -2.96963e-05 | C109: =IF('DF raw data'!C114="","",'DF raw data'!C114) -> 2.96382e-05 | D109: =IF('DF raw data'!D114="","",'DF raw data'!D114) -> -1.5127e-05 | F109: -2.980252367e-05 | G109: 2.974421584e-05 | H109: -1.518110928e-05 | J109: -0.0008568876545 | K109: -0.01040963396 | L109: 0.0004200149185 | M109: 0.005177047465 | N109: 7.389021439e-06
A110: =IF('DF raw data'!A115="","",'DF raw data'!A115) -> -276 | B110: =IF('DF raw data'!B115="","",'DF raw data'!B115) -> -2.63559e-05 | C110: =IF('DF raw data'!C115="","",'DF raw data'!C115) -> 2.32884e-05 | D110: =IF('DF raw data'!D115="","",'DF raw data'!D115) -> -2.77957e-05 | F110: -2.645017505e-05 | G110: 2.337170261e-05 | H110: -2.789512522e-05 | J110: -0.000870112742 | K110: -0.01084469033 | L110: 0.0004317007698 | M110: 0.00539289785 | N110: 7.860752308e-06
A111: =IF('DF raw data'!A116="","",'DF raw data'!A116) -> -275.5 | B111: =IF('DF raw data'!B116="","",'DF raw data'!B116) -> -4.1934e-05 | C111: =IF('DF raw data'!C116="","",'DF raw data'!C116) -> 2.17408e-05 | D111: =IF('DF raw data'!D116="","",'DF raw data'!D116) -> -1.70052e-05 | F111: -4.208399792e-05 | G111: 2.181856684e-05 | H111: -1.70660276e-05 | J111: -0.000891154741 | K111: -0.0112902677 | L111: 0.0004426100532 | M111: 0.005614202876 | N111: 8.355782524e-06
A112: =IF('DF raw data'!A117="","",'DF raw data'!A117) -> -275 | B112: =IF('DF raw data'!B117="","",'DF raw data'!B117) -> -3.80908e-05 | C112: =IF('DF raw data'!C117="","",'DF raw data'!C117) -> 1.88623e-05 | D112: =IF('DF raw data'!D117="","",'DF raw data'!D117) -> -1.44091e-05 | F112: -3.822705079e-05 | G112: 1.892977045e-05 | H112: -1.446064135e-05 | J112: -0.0009102682664 | K112: -0.01174540183 | L112: 0.0004520749384 | M112: 0.005840240346 | N112: 8.872262557e-06
A113: =IF('DF raw data'!A118="","",'DF raw data'!A118) -> -274.5 | B113: =IF('DF raw data'!B118="","",'DF raw data'!B118) -> -3.75779e-05 | C113: =IF('DF raw data'!C118="","",'DF raw data'!C118) -> 2.31575e-05 | D113: =IF('DF raw data'!D118="","",'DF raw data'!D118) -> -1.49939e-05 | F113: -3.771231615e-05 | G113: 2.324033438e-05 | H113: -1.504753318e-05 | J113: -0.0009291244245 | K113: -0.01220996404 | L113: 0.0004636951056 | M113: 0.006072087898 | N113: 9.411405231e-06
A114: =IF('DF raw data'!A119="","",'DF raw data'!A119) -> -274 | B114: =IF('DF raw data'!B119="","",'DF raw data'!B119) -> -3.86586e-05 | C114: =IF('DF raw data'!C119="","",'DF raw data'!C119) -> 1.64995e-05 | D114: =IF('DF raw data'!D119="","",'DF raw data'!D119) -> -2.83973e-05 | F114: -3.879688181e-05 | G114: 1.655851871e-05 | H114: -2.849887714e-05 | J114: -0.0009485228654 | K114: -0.01268422548 | L114: 0.0004719743649 | M114: 0.006308075081 | N114: 9.972632945e-06
A115: =IF('DF raw data'!A120="","",'DF raw data'!A120) -> -273.5 | B115: =IF('DF raw data'!B120="","",'DF raw data'!B120) -> -4.85334e-05 | C115: =IF('DF raw data'!C120="","",'DF raw data'!C120) -> 1.72345e-05 | D115: =IF('DF raw data'!D120="","",'DF raw data'!D120) -> -1.7834e-05 | F115: -4.870700397e-05 | G115: 1.729614781e-05 | H115: -1.789779222e-05 | J115: -0.0009728763674 | K115: -0.01317066366 | L115: 0.0004806224389 | M115: 0.0065483863 | N115: 1.056137612e-05
A116: =IF('DF raw data'!A121="","",'DF raw data'!A121) -> -273 | B116: =IF('DF raw data'!B121="","",'DF raw data'!B121) -> -3.53286e-05 | C116: =IF('DF raw data'!C121="","",'DF raw data'!C121) -> 1.74227e-05 | D116: =IF('DF raw data'!D121="","",'DF raw data'!D121) -> -2.50491e-05 | F116: -3.54549704e-05 | G116: 1.7485021e-05 | H116: -2.513870063e-05 | J116: -0.0009906038526 | K116: -0.01366596559 | L116: 0.0004893649494 | M116: 0.006793068775 | N116: 1.117176315e-05
A117: =IF('DF raw data'!A122="","",'DF raw data'!A122) -> -272.5 | B117: =IF('DF raw data'!B122="","",'DF raw data'!B122) -> -5.18001e-05 | C117: =IF('DF raw data'!C122="","",'DF raw data'!C122) -> 1.05466e-05 | D117: =IF('DF raw data'!D122="","",'DF raw data'!D122) -> -1.97897e-05 | F117: -5.198538896e-05 | G117: 1.058432519e-05 | H117: -1.986048776e-05 | J117: -0.001016596547 | K117: -0.01417426386 | L117: 0.0004946571119 | M117: 0.007040397331 | N117: 1.181084024e-05
A118: =IF('DF raw data'!A123="","",'DF raw data'!A123) -> -272 | B118: =IF('DF raw data'!B123="","",'DF raw data'!B123) -> -3.53356e-05 | C118: =IF('DF raw data'!C123="","",'DF raw data'!C123) -> 1.53231e-05 | D118: =IF('DF raw data'!D123="","",'DF raw data'!D123) -> -1.41432e-05 | F118: -3.546199544e-05 | G118: 1.537791073e-05 | H118: -1.419379023e-05 | J118: -0.001034327545 | K118: -0.01469142763 | L118: 0.0005023460673 | M118: 0.007291570365 | N118: 1.247193276e-05
A119: =IF('DF raw data'!A124="","",'DF raw data'!A124) -> -271.5 | B119: =IF('DF raw data'!B124="","",'DF raw data'!B124) -> -4.89881e-05 | C119: =IF('DF raw data'!C124="","",'DF raw data'!C124) -> 2.16694e-05 | D119: =IF('DF raw data'!D124="","",'DF raw data'!D124) -> -8.62702e-06 | F119: -4.916333043e-05 | G119: 2.174691144e-05 | H119: -8.657878851e-06 | J119: -0.00105890921 | K119: -0.01522088224 | L119: 0.000513219523 | M119: 0.007548180126 | N119: 1.316427426e-05
A120: =IF('DF raw data'!A125="","",'DF raw data'!A125) -> -271 | B120: =IF('DF raw data'!B125="","",'DF raw data'!B125) -> -4.11664e-05 | C120: =IF('DF raw data'!C125="","",'DF raw data'!C125) -> 2.99382e-05 | D120: =IF('DF raw data'!D125="","",'DF raw data'!D125) -> -1.50364e-05 | F120: -4.131365221e-05 | G120: 3.004528894e-05 | H120: -1.50901852e-05 | J120: -0.001079566036 | K120: -0.01576066525 | L120: 0.0005282421675 | M120: 0.00781230121 | N120: 1.388652557e-05
A121: =IF('DF raw data'!A126="","",'DF raw data'!A126) -> -270.5 | B121: =IF('DF raw data'!B126="","",'DF raw data'!B126) -> -3.82857e-05 | C121: =IF('DF raw data'!C126="","",'DF raw data'!C126) -> 2.17148e-05 | D121: =IF('DF raw data'!D126="","",'DF raw data'!D126) -> -1.06179e-05 | F121: -3.842264795e-05 | G121: 2.179247384e-05 | H121: -1.065588023e-05 | J121: -0.00109877736 | K121: -0.01631005393 | L121: 0.0005391384044 | M121: 0.008081870412 | N121: 1.463551652e-05
A122: =IF('DF raw data'!A127="","",'DF raw data'!A127) -> -270 | B122: =IF('DF raw data'!B127="","",'DF raw data'!B127) -> -4.43618e-05 | C122: =IF('DF raw data'!C127="","",'DF raw data'!C127) -> 1.22082e-05 | D122: =IF('DF raw data'!D127="","",'DF raw data'!D127) -> -2.79731e-05 | F122: -4.452048216e-05 | G122: 1.225186873e-05 | H122: -2.807315978e-05 | J122: -0.001121037601 | K122: -0.01687057273 | L122: 0.0005452643388 | M122: 0.008354502581 | N122: 1.541253577e-05
A123: =IF('DF raw data'!A128="","",'DF raw data'!A128) -> -269.5 | B123: =IF('DF raw data'!B128="","",'DF raw data'!B128) -> -3.6609e-05 | C123: =IF('DF raw data'!C128="","",'DF raw data'!C128) -> 2.26226e-05 | D123: =IF('DF raw data'!D128="","",'DF raw data'!D128) -> -2.70871e-05 | F123: -3.673995039e-05 | G123: 2.270352104e-05 | H123: -2.718399056e-05 | J123: -0.001139407576 | K123: -0.01744027652 | L123: 0.0005566160993 | M123: 0.008632810631 | N123: 1.621657133e-05
A124: =IF('DF raw data'!A129="","",'DF raw data'!A129) -> -269 | B124: =IF('DF raw data'!B129="","",'DF raw data'!B129) -> -3.1156e-05 | C124: =IF('DF raw data'!C129="","",'DF raw data'!C129) -> 2.38327e-05 | D124: =IF('DF raw data'!D129="","",'DF raw data'!D129) -> -3.66134e-05 | F124: -3.126744501e-05 | G124: 2.391794957e-05 | H124: -3.674436613e-05 | J124: -0.001155041299 | K124: -0.01801779717 | L124: 0.0005685750741 | M124: 0.008917098168 | N124: 1.704527033e-05
A125: =IF('DF raw data'!A130="","",'DF raw data'!A130) -> -268.5 | B125: =IF('DF raw data'!B130="","",'DF raw data'!B130) -> -3.72609e-05 | C125: =IF('DF raw data'!C130="","",'DF raw data'!C130) -> 8.24429e-06 | D125: =IF('DF raw data'!D130="","",'DF raw data'!D130) -> -9.96486e-06 | F125: -3.739418224e-05 | G125: 8.273779825e-06 | H125: -1.00005043e-05 | J125: -0.00117373839 | K125: -0.01860466637 | L125: 0.000572711964 | M125: 0.00920345415 | N125: 1.789810074e-05
A126: =IF('DF raw data'!A131="","",'DF raw data'!A131) -> -268 | B126: =IF('DF raw data'!B131="","",'DF raw data'!B131) -> -4.78902e-05 | C126: =IF('DF raw data'!C131="","",'DF raw data'!C131) -> 1.54006e-05 | D126: =IF('DF raw data'!D131="","",'DF raw data'!D131) -> -2.16049e-05 | F126: -4.806150325e-05 | G126: 1.545568795e-05 | H126: -2.168218073e-05 | J126: -0.001197769142 | K126: -0.01920355094 | L126: 0.000580439808 | M126: 0.009493674054 | N126: 1.878388138e-05
A127: =IF('DF raw data'!A132="","",'DF raw data'!A132) -> -267.5 | B127: =IF('DF raw data'!B132="","",'DF raw data'!B132) -> -4.04565e-05 | C127: =IF('DF raw data'!C132="","",'DF raw data'!C132) -> 9.13799e-06 | D127: =IF('DF raw data'!D132="","",'DF raw data'!D132) -> -2.26255e-05 | F127: -4.06012129e-05 | G127: 9.17067659e-06 | H127: -2.270643141e-05 | J127: -0.001218069748 | K127: -0.01981258581 | L127: 0.0005850251463 | M127: 0.009786186627 | N127: 1.969685555e-05
A128: =IF('DF raw data'!A133="","",'DF raw data'!A133) -> -267 | B128: =IF('DF raw data'!B133="","",'DF raw data'!B133) -> -5.04564e-05 | C128: =IF('DF raw data'!C133="","",'DF raw data'!C133) -> 8.13095e-06 | D128: =IF('DF raw data'!D133="","",'DF raw data'!D133) -> -1.6792e-05 | F128: =(1-$G$1*($B$49-$G$2))*B128 -> -5.063688254e-05 | G128: 8.160034408e-06 | H128: -1.685206498e-05 | J128: =F128*$G$3+J127 -> -0.001243388189 | K128: =J128*$G$3+K127 -> -0.02043427991 | L128: =G128*$G$3+L127 -> 0.0005891051635 | M128: =L128*$G$3+M127 -> 0.01008073921 | N128: =(J128^2+L128^2)*$G$3+N127 -> 2.064338509e-05
A129: =IF('DF raw data'!A134="","",'DF raw data'!A134) -> -266.5 | B129: =IF('DF raw data'!B134="","",'DF raw data'!B134) -> -4.70538e-05 | C129: =IF('DF raw data'!C134="","",'DF raw data'!C134) -> 1.08938e-05 | D129: =IF('DF raw data'!D134="","",'DF raw data'!D134) -> -2.70734e-05 | F129: -4.722211144e-05 | G129: 1.093276712e-05 | H129: -2.717024155e-05 | J129: -0.001266999245 | K129: -0.02106777953 | L129: 0.000594571547 | M129: 0.01037802498 | N129: 2.162278629e-05
A130: =IF('DF raw data'!A135="","",'DF raw data'!A135) -> -266 | B130: =IF('DF raw data'!B135="","",'DF raw data'!B135) -> -3.13576e-05 | C130: =IF('DF raw data'!C135="","",'DF raw data'!C135) -> 9.71534e-06 | D130: =IF('DF raw data'!D135="","",'DF raw data'!D135) -> -2.2311e-05 | F130: -3.146976614e-05 | G130: 9.750091771e-06 | H130: -2.239080645e-05 | J130: -0.001282734128 | K130: -0.02170914659 | L130: 0.0005994465929 | M130: 0.01067774828 | N130: 2.262515782e-05
A131: =IF('DF raw data'!A136="","",'DF raw data'!A136) -> -265.5 | B131: =IF('DF raw data'!B136="","",'DF raw data'!B136) -> -4.11633e-05 | C131: =IF('DF raw data'!C136="","",'DF raw data'!C136) -> 9.66787e-06 | D131: =IF('DF raw data'!D136="","",'DF raw data'!D136) -> -1.9721e-05 | F131: -4.131054112e-05 | G131: 9.702451971e-06 | H131: -1.979154202e-05 | J131: -0.001303389399 | K131: -0.02236084129 | L131: 0.0006042978189 | M131: 0.01097989719 | N131: 2.365715771e-05
A132: =IF('DF raw data'!A137="","",'DF raw data'!A137) -> -265 | B132: =IF('DF raw data'!B137="","",'DF raw data'!B137) -> -4.00821e-05 | C132: =IF('DF raw data'!C137="","",'DF raw data'!C137) -> 9.02213e-06 | D132: =IF('DF raw data'!D137="","",'DF raw data'!D137) -> -7.07413e-06 | F132: -4.022547367e-05 | G132: 9.054402159e-06 | H132: -7.099434163e-06 | J132: -0.001323502135 | K132: -0.02302259236 | L132: 0.00060882502 | M132: 0.0112843097 | N132: 2.471832062e-05
A133: =IF('DF raw data'!A138="","",'DF raw data'!A138) -> -264.5 | B133: =IF('DF raw data'!B138="","",'DF raw data'!B138) -> -4.21204e-05 | C133: =IF('DF raw data'!C138="","",'DF raw data'!C138) -> 1.37688e-05 | D133: =IF('DF raw data'!D138="","",'DF raw data'!D138) -> -2.58088e-05 | F133: -4.227106467e-05 | G133: 1.3818051e-05 | H133: -2.590111808e-05 | J133: -0.001344637668 | K133: -0.02369491119 | L133: 0.0006157340455 | M133: 0.01159217672 | N133: 2.581191005e-05
A134: =IF('DF raw data'!A139="","",'DF raw data'!A139) -> -264 | B134: =IF('DF raw data'!B139="","",'DF raw data'!B139) -> -3.90493e-05 | C134: =IF('DF raw data'!C139="","",'DF raw data'!C139) -> 2.32467e-05 | D134: =IF('DF raw data'!D139="","",'DF raw data'!D139) -> -1.88465e-05 | F134: -3.918897935e-05 | G134: 2.332985345e-05 | H134: -1.891391393e-05 | J134: -0.001364232157 | K134: -0.02437702727 | L134: 0.0006273989722 | M134: 0.01190587621 | N134: 2.693928948e-05
A135: =IF('DF raw data'!A140="","",'DF raw data'!A140) -> -263.5 | B135: =IF('DF raw data'!B140="","",'DF raw data'!B140) -> -2.91809e-05 | C135: =IF('DF raw data'!C140="","",'DF raw data'!C140) -> 2.3134e-05 | D135: =IF('DF raw data'!D140="","",'DF raw data'!D140) -> -1.94868e-05 | F135: -2.928528008e-05 | G135: 2.321675032e-05 | H135: -1.955650428e-05 | J135: -0.001378874798 | K135: -0.02506646467 | L135: 0.0006390073474 | M135: 0.01222537988 | N135: 2.809410253e-05
A136: =IF('DF raw data'!A141="","",'DF raw data'!A141) -> -263 | B136: =IF('DF raw data'!B141="","",'DF raw data'!B141) -> -3.53333e-05 | C136: =IF('DF raw data'!C141="","",'DF raw data'!C141) -> 1.76922e-05 | D136: =IF('DF raw data'!D141="","",'DF raw data'!D141) -> -1.77489e-05 | F136: -3.545968721e-05 | G136: 1.7755485e-05 | H136: -1.781238782e-05 | J136: -0.001396604641 | K136: -0.02576476699 | L136: 0.0006478850899 | M136: 0.01254932243 | N136: 2.927923233e-05
A137: =IF('DF raw data'!A142="","",'DF raw data'!A142) -> -262.5 | B137: =IF('DF raw data'!B142="","",'DF raw data'!B142) -> -3.45648e-05 | C137: =IF('DF raw data'!C142="","",'DF raw data'!C142) -> 2.42832e-05 | D137: =IF('DF raw data'!D142="","",'DF raw data'!D142) -> -1.71016e-05 | F137: -3.468843829e-05 | G137: 2.437006101e-05 | H137: -1.716277242e-05 | J137: -0.00141394886 | K137: -0.02647174142 | L137: 0.0006600701204 | M137: 0.01287935749 | N137: 3.04967043e-05
A138: =IF('DF raw data'!A143="","",'DF raw data'!A143) -> -262 | B138: =IF('DF raw data'!B143="","",'DF raw data'!B143) -> -4.35319e-05 | C138: =IF('DF raw data'!C143="","",'DF raw data'!C143) -> 3.02563e-05 | D138: =IF('DF raw data'!D143="","",'DF raw data'!D143) -> -2.34314e-05 | F138: -4.368761361e-05 | G138: 3.036452679e-05 | H138: -2.351521412e-05 | J138: -0.001435792667 | K138: -0.02718963776 | L138: 0.0006752523838 | M138: 0.01321698368 | N138: 3.175543749e-05
A139: =IF('DF raw data'!A144="","",'DF raw data'!A144) -> -261.5 | B139: =IF('DF raw data'!B144="","",'DF raw data'!B144) -> -3.1749e-05 | C139: =IF('DF raw data'!C144="","",'DF raw data'!C144) -> 3.17491e-05 | D139: =IF('DF raw data'!D144="","",'DF raw data'!D144) -> -1.17176e-05 | F139: -3.186256617e-05 | G139: 3.186266653e-05 | H139: -1.175951386e-05 | J139: -0.00145172395 | K139: -0.02791549973 | L139: 0.000691183717 | M139: 0.01356257554 | N139: 3.304805617e-05
A140: =IF('DF raw data'!A145="","",'DF raw data'!A145) -> -261 | B140: =IF('DF raw data'!B145="","",'DF raw data'!B145) -> -2.7385e-05 | C140: =IF('DF raw data'!C145="","",'DF raw data'!C145) -> 3.09135e-05 | D140: =IF('DF raw data'!D145="","",'DF raw data'!D145) -> -2.1825e-05 | F140: -2.748295614e-05 | G140: 3.102407759e-05 | H140: -2.190306802e-05 | J140: -0.001465465428 | K140: -0.02864823245 | L140: 0.0007066957558 | M140: 0.01391592341 | N140: 3.437156007e-05
A141: =IF('DF raw data'!A146="","",'DF raw data'!A146) -> -260.5 | B141: =IF('DF raw data'!B146="","",'DF raw data'!B146) -> -3.61075e-05 | C141: =IF('DF raw data'!C146="","",'DF raw data'!C146) -> 3.06735e-05 | D141: =IF('DF raw data'!D146="","",'DF raw data'!D146) -> -9.97305e-06 | F141: -3.623665653e-05 | G141: 3.078321911e-05 | H141: -1.00087236e-05 | J141: -0.001483583757 | K141: -0.02939002432 | L141: 0.0007220873654 | M141: 0.0142769671 | N141: 3.573277554e-05
A142: =IF('DF raw data'!A147="","",'DF raw data'!A147) -> -260 | B142: =IF('DF raw data'!B147="","",'DF raw data'!B147) -> -2.68732e-05 | C142: =IF('DF raw data'!C147="","",'DF raw data'!C147) -> 3.02714e-05 | D142: =IF('DF raw data'!D147="","",'DF raw data'!D147) -> -2.06193e-05 | F142: -2.696932544e-05 | G142: 3.03796808e-05 | H142: -2.069305524e-05 | J142: -0.001497068419 | K142: -0.03013855853 | L142: 0.0007372772058 | M142: 0.0146456057 | N142: 3.71251713e-05
A143: =IF('DF raw data'!A148="","",'DF raw data'!A148) -> -259.5 | B143: =IF('DF raw data'!B148="","",'DF raw data'!B148) -> -3.48894e-05 | C143: =IF('DF raw data'!C148="","",'DF raw data'!C148) -> 2.65563e-05 | D143: =IF('DF raw data'!D148="","",'DF raw data'!D148) -> -1.07711e-05 | F143: -3.501419938e-05 | G143: 2.665129189e-05 | H143: -1.080962822e-05 | J143: -0.001514575519 | K143: -0.03089584629 | L143: 0.0007506028517 | M143: 0.01502090713 | N143: 3.855384312e-05
A144: =IF('DF raw data'!A149="","",'DF raw data'!A149) -> -259 | B144: =IF('DF raw data'!B149="","",'DF raw data'!B149) -> -3.68009e-05 | C144: =IF('DF raw data'!C149="","",'DF raw data'!C149) -> 1.78649e-05 | D144: =IF('DF raw data'!D149="","",'DF raw data'!D149) -> -2.73954e-05 | F144: -3.693253682e-05 | G144: 1.792880275e-05 | H144: -2.749339335e-05 | J144: -0.001533041787 | K144: -0.03166236719 | L144: 0.0007595672531 | M144: 0.01540069075 | N144: 4.001742289e-05
A145: =IF('DF raw data'!A150="","",'DF raw data'!A150) -> -258.5 | B145: =IF('DF raw data'!B150="","",'DF raw data'!B150) -> -3.84761e-05 | C145: =IF('DF raw data'!C150="","",'DF raw data'!C150) -> 2.55648e-05 | D145: =IF('DF raw data'!D150="","",'DF raw data'!D150) -> -1.33023e-05 | F145: -3.861372901e-05 | G145: 2.565624529e-05 | H145: -1.334988233e-05 | J145: -0.001552348652 | K145: -0.03243854151 | L145: 0.0007723953757 | M145: 0.01578688844 | N145: 4.152061337e-05
A146: =IF('DF raw data'!A151="","",'DF raw data'!A151) -> -258 | B146: =IF('DF raw data'!B151="","",'DF raw data'!B151) -> -3.99468e-05 | C146: =IF('DF raw data'!C151="","",'DF raw data'!C151) -> 2.94681e-05 | D146: =IF('DF raw data'!D151="","",'DF raw data'!D151) -> -1.81784e-05 | F146: -4.00896897e-05 | G146: 2.957350739e-05 | H146: -1.824342414e-05 | J146: -0.001572393497 | K146: -0.03322473826 | L146: 0.0007871821294 | M146: 0.01618047951 | N146: 4.306665187e-05
A147: =IF('DF raw data'!A152="","",'DF raw data'!A152) -> -257.5 | B147: =IF('DF raw data'!B152="","",'DF raw data'!B152) -> -4.05826e-05 | C147: =IF('DF raw data'!C152="","",'DF raw data'!C152) -> 2.17773e-05 | D147: =IF('DF raw data'!D152="","",'DF raw data'!D152) -> -2.57553e-05 | F147: -4.072776396e-05 | G147: 2.18551974e-05 | H147: -2.584742671e-05 | J147: -0.001592757379 | K147: -0.03402111695 | L147: 0.0007981097281 | M147: 0.01657953437 | N147: 4.465357947e-05
A148: =IF('DF raw data'!A153="","",'DF raw data'!A153) -> -257 | B148: =IF('DF raw data'!B153="","",'DF raw data'!B153) -> -2.52664e-05 | C148: =IF('DF raw data'!C153="","",'DF raw data'!C153) -> 1.67003e-05 | D148: =IF('DF raw data'!D153="","",'DF raw data'!D153) -> -2.83953e-05 | F148: -2.535677791e-05 | G148: 1.676003697e-05 | H148: -2.849686999e-05 | J148: -0.001605435768 | K148: -0.03482383483 | L148: 0.0008064897466 | M148: 0.01698277924 | N148: 4.626750433e-05
A149: =IF('DF raw data'!A154="","",'DF raw data'!A154) -> -256.5 | B149: =IF('DF raw data'!B154="","",'DF raw data'!B154) -> -3.1878e-05 | C149: =IF('DF raw data'!C154="","",'DF raw data'!C154) -> 1.63359e-05 | D149: =IF('DF raw data'!D154="","",'DF raw data'!D154) -> -1.0321e-05 | F149: -3.199202761e-05 | G149: 1.639433351e-05 | H149: -1.035791822e-05 | J149: -0.001621431781 | K149: -0.03563455072 | L149: 0.0008146869134 | M149: 0.0173901227 | N149: 4.791388223e-05
A150: =IF('DF raw data'!A155="","",'DF raw data'!A155) -> -256 | B150: =IF('DF raw data'!B155="","",'DF raw data'!B155) -> -3.97485e-05 | C150: =IF('DF raw data'!C155="","",'DF raw data'!C155) -> 2.50994e-05 | D150: =IF('DF raw data'!D155="","",'DF raw data'!D155) -> -2.76873e-05 | F150: -3.989068038e-05 | G150: 2.518918055e-05 | H150: -2.778633747e-05 | J150: -0.001641377122 | K150: -0.03645523929 | L150: 0.0008272815037 | M150: 0.01780376345 | N150: 4.9603139e-05
A151: =IF('DF raw data'!A156="","",'DF raw data'!A156) -> -255.5 | B151: =IF('DF raw data'!B156="","",'DF raw data'!B156) -> -4.60964e-05 | C151: =IF('DF raw data'!C156="","",'DF raw data'!C156) -> 2.98461e-05 | D151: =IF('DF raw data'!D156="","",'DF raw data'!D156) -> -2.11222e-05 | F151: -4.626128682e-05 | G151: 2.99528595e-05 | H151: -2.119775411e-05 | J151: -0.001664507765 | K151: -0.03728749317 | L151: 0.0008422579334 | M151: 0.01822489242 | N151: 5.134313126e-05
A152: =IF('DF raw data'!A157="","",'DF raw data'!A157) -> -255 | B152: =IF('DF raw data'!B157="","",'DF raw data'!B157) -> -3.76362e-05 | C152: =IF('DF raw data'!C157="","",'DF raw data'!C157) -> 2.01556e-05 | D152: =IF('DF raw data'!D157="","",'DF raw data'!D157) -> -2.40938e-05 | F152: -3.777082469e-05 | G152: 2.022769658e-05 | H152: -2.417998352e-05 | J152: -0.001683393177 | K152: -0.03812918976 | L152: 0.0008523717817 | M152: 0.01865107831 | N152: 5.312330638e-05
A153: =IF('DF raw data'!A158="","",'DF raw data'!A158) -> -254.5 | B153: =IF('DF raw data'!B158="","",'DF raw data'!B158) -> -3.257e-05 | C153: =IF('DF raw data'!C158="","",'DF raw data'!C158) -> 1.66128e-05 | D153: =IF('DF raw data'!D158="","",'DF raw data'!D158) -> -3.04456e-05 | F153: -3.268650289e-05 | G153: 1.667222399e-05 | H153: -3.055450391e-05 | J153: -0.001699736429 | K153: -0.03897905797 | L153: 0.0008607078937 | M153: 0.01908143226 | N153: 5.493826739e-05
A154: =IF('DF raw data'!A159="","",'DF raw data'!A159) -> -254 | B154: =IF('DF raw data'!B159="","",'DF raw data'!B159) -> -4.2632e-05 | C154: =IF('DF raw data'!C159="","",'DF raw data'!C159) -> 1.86304e-05 | D154: =IF('DF raw data'!D159="","",'DF raw data'!D159) -> -2.73776e-05 | F154: -4.278449466e-05 | G154: 1.869704094e-05 | H154: -2.747552968e-05 | J154: -0.001721128676 | K154: -0.03983962231 | L154: 0.0008700564142 | M154: 0.01951646046 | N154: 5.679790843e-05
A155: =IF('DF raw data'!A160="","",'DF raw data'!A160) -> -253.5 | B155: =IF('DF raw data'!B160="","",'DF raw data'!B160) -> -4.15446e-05 | C155: =IF('DF raw data'!C160="","",'DF raw data'!C160) -> 1.92776e-05 | D155: =IF('DF raw data'!D160="","",'DF raw data'!D160) -> -2.46187e-05 | F155: -4.169320503e-05 | G155: 1.934655598e-05 | H155: -2.470676109e-05 | J155: -0.001741975279 | K155: -0.04071060995 | L155: 0.0008797296921 | M155: 0.01995632531 | N155: 5.870210953e-05
A156: =IF('DF raw data'!A161="","",'DF raw data'!A161) -> -253 | B156: =IF('DF raw data'!B161="","",'DF raw data'!B161) -> -4.36568e-05 | C156: =IF('DF raw data'!C161="","",'DF raw data'!C161) -> 1.43026e-05 | D156: =IF('DF raw data'!D161="","",'DF raw data'!D161) -> -2.84748e-05 | F156: -4.381296037e-05 | G156: 1.43537604e-05 | H156: -2.857665436e-05 | J156: -0.001763881759 | K156: -0.04159255083 | L156: 0.0008869065723 | M156: 0.02039977859 | N156: 6.065105059e-05
A157: =IF('DF raw data'!A162="","",'DF raw data'!A162) -> -252.5 | B157: =IF('DF raw data'!B162="","",'DF raw data'!B162) -> -3.76332e-05 | C157: =IF('DF raw data'!C162="","",'DF raw data'!C162) -> 1.21699e-05 | D157: =IF('DF raw data'!D162="","",'DF raw data'!D162) -> -2.88171e-05 | F157: -3.776781396e-05 | G157: 1.221343173e-05 | H157: -2.892017877e-05 | J157: -0.001782765666 | K157: -0.04248393366 | L157: 0.0008930132882 | M157: 0.02084628524 | N157: 6.263891367e-05
A158: =IF('DF raw data'!A163="","",'DF raw data'!A163) -> -252 | B158: =IF('DF raw data'!B163="","",'DF raw data'!B163) -> -4.5393e-05 | C158: =IF('DF raw data'!C163="","",'DF raw data'!C163) -> 2.04002e-05 | D158: =IF('DF raw data'!D163="","",'DF raw data'!D163) -> -1.87553e-05 | F158: -4.555537076e-05 | G158: 2.047317152e-05 | H158: -1.882238771e-05 | J158: -0.001805543351 | K158: -0.04338670534 | L158: 0.000903249874 | M158: 0.02129791018 | N158: 6.467683723e-05
A159: =IF('DF raw data'!A164="","",'DF raw data'!A164) -> -251.5 | B159: =IF('DF raw data'!B164="","",'DF raw data'!B164) -> -4.94929e-05 | C159: =IF('DF raw data'!C164="","",'DF raw data'!C164) -> 2.2373e-05 | D159: =IF('DF raw data'!D164="","",'DF raw data'!D164) -> -2.07352e-05 | F159: -4.96699361e-05 | G159: 2.245302822e-05 | H159: -2.080936981e-05 | J159: -0.001830378319 | K159: -0.0443018945 | L159: 0.0009144763881 | M159: 0.02175514837 | N159: 6.677011316e-05
A160: =IF('DF raw data'!A165="","",'DF raw data'!A165) -> -251 | B160: =IF('DF raw data'!B165="","",'DF raw data'!B165) -> -3.69955e-05 | C160: =IF('DF raw data'!C165="","",'DF raw data'!C165) -> 1.88922e-05 | D160: =IF('DF raw data'!D165="","",'DF raw data'!D165) -> -2.39945e-05 | F160: -3.71278329e-05 | G160: 1.89597774e-05 | H160: -2.408032833e-05 | J160: -0.001848942236 | K160: -0.04522636561 | L160: 0.0009239562768 | M160: 0.02221712651 | N160: 6.890625446e-05
A161: =IF('DF raw data'!A166="","",'DF raw data'!A166) -> -250.5 | B161: =IF('DF raw data'!B166="","",'DF raw data'!B166) -> -4.03193e-05 | C161: =IF('DF raw data'!C166="","",'DF raw data'!C166) -> 1.34667e-05 | D161: =IF('DF raw data'!D166="","",'DF raw data'!D166) -> -3.65833e-05 | F161: -4.046352214e-05 | G161: 1.351487039e-05 | H161: -3.671415846e-05 | J161: -0.001869173997 | K161: -0.04616095261 | L161: 0.000930713712 | M161: 0.02268248336 | N161: 7.108627418e-05
A162: =IF('DF raw data'!A167="","",'DF raw data'!A167) -> -250 | B162: =IF('DF raw data'!B167="","",'DF raw data'!B167) -> -3.54524e-05 | C162: =IF('DF raw data'!C167="","",'DF raw data'!C167) -> 1.49479e-05 | D162: =IF('DF raw data'!D167="","",'DF raw data'!D167) -> -3.17397e-05 | F162: -3.557921323e-05 | G162: 1.500136864e-05 | H162: -3.185323291e-05 | J162: -0.001886963603 | K162: -0.04710443441 | L162: 0.0009382143963 | M162: 0.02315159056 | N162: 7.330671313e-05
A163: =IF('DF raw data'!A168="","",'DF raw data'!A168) -> -249.5 | B163: =IF('DF raw data'!B168="","",'DF raw data'!B168) -> -3.83345e-05 | C163: =IF('DF raw data'!C168="","",'DF raw data'!C168) -> 1.78104e-05 | D163: =IF('DF raw data'!D168="","",'DF raw data'!D168) -> -3.39815e-05 | F163: -3.847162251e-05 | G163: 1.78741078e-05 | H163: -3.410305183e-05 | J163: -0.001906199415 | K163: -0.04805753412 | L163: 0.0009471514502 | M163: 0.02362516629 | N163: 7.557205916e-05
A164: =IF('DF raw data'!A169="","",'DF raw data'!A169) -> -249 | B164: =IF('DF raw data'!B169="","",'DF raw data'!B169) -> -4.00106e-05 | C164: =IF('DF raw data'!C169="","",'DF raw data'!C169) -> 1.9661e-05 | D164: =IF('DF raw data'!D169="","",'DF raw data'!D169) -> -1.8783e-05 | F164: -4.015371792e-05 | G164: 1.97313274e-05 | H164: -1.885018679e-05 | J164: -0.001926276274 | K164: -0.04902067226 | L164: 0.0009570171139 | M164: 0.02410367484 | N164: 7.788527018e-05
A165: =IF('DF raw data'!A170="","",'DF raw data'!A170) -> -248.5 | B165: =IF('DF raw data'!B170="","",'DF raw data'!B170) -> -3.99407e-05 | C165: =IF('DF raw data'!C170="","",'DF raw data'!C170) -> 2.05537e-05 | D165: =IF('DF raw data'!D170="","",'DF raw data'!D170) -> -2.76475e-05 | F165: -4.008356788e-05 | G165: 2.062722058e-05 | H165: -2.774639511e-05 | J165: -0.001946318058 | K165: -0.04999383129 | L165: 0.0009673307242 | M165: 0.02458734021 | N165: 8.024721154e-05
A166: =IF('DF raw data'!A171="","",'DF raw data'!A171) -> -248 | B166: =IF('DF raw data'!B171="","",'DF raw data'!B171) -> -4.19289e-05 | C166: =IF('DF raw data'!C171="","",'DF raw data'!C171) -> 2.22213e-05 | D166: =IF('DF raw data'!D171="","",'DF raw data'!D171) -> -2.49211e-05 | F166: -4.207887968e-05 | G166: 2.230078559e-05 | H166: -2.501024277e-05 | J166: -0.001967357497 | K166: -0.05097751004 | L166: 0.000978481117 | M166: 0.02507658076 | N166: 8.266117195e-05
A167: =IF('DF raw data'!A172="","",'DF raw data'!A172) -> -247.5 | B167: =IF('DF raw data'!B172="","",'DF raw data'!B172) -> -4.5004e-05 | C167: =IF('DF raw data'!C172="","",'DF raw data'!C172) -> 1.0466e-05 | D167: =IF('DF raw data'!D172="","",'DF raw data'!D172) -> -2.58339e-05 | F167: -4.516497931e-05 | G167: 1.050343688e-05 | H167: -2.592630786e-05 | J167: -0.001989939987 | K167: -0.05197248003 | L167: 0.0009837328354 | M167: 0.02556844718 | N167: 8.512496767e-05
A168: =IF('DF raw data'!A173="","",'DF raw data'!A173) -> -247 | B168: =IF('DF raw data'!B173="","",'DF raw data'!B173) -> -3.71229e-05 | C168: =IF('DF raw data'!C173="","",'DF raw data'!C173) -> 5.43097e-06 | D168: =IF('DF raw data'!D173="","",'DF raw data'!D173) -> -2.51487e-05 | F168: -3.725568861e-05 | G168: 5.45039658e-06 | H168: -2.52386569e-05 | J168: -0.002008567831 | K168: -0.05297676394 | L168: 0.0009864580337 | M168: 0.0260616762 | N168: 8.762868976e-05
A169: =IF('DF raw data'!A174="","",'DF raw data'!A174) -> -246.5 | B169: =IF('DF raw data'!B174="","",'DF raw data'!B174) -> -4.3913e-05 | C169: =IF('DF raw data'!C174="","",'DF raw data'!C174) -> 9.57816e-06 | D169: =IF('DF raw data'!D174="","",'DF raw data'!D174) -> -2.85889e-05 | F169: -4.40700768e-05 | G169: 9.612421078e-06 | H169: -2.86911625e-05 | J169: -0.00203060287 | K169: -0.05399206538 | L169: 0.0009912642443 | M169: 0.02655730832 | N169: 9.018166617e-05
A170: =IF('DF raw data'!A175="","",'DF raw data'!A175) -> -246 | B170: =IF('DF raw data'!B175="","",'DF raw data'!B175) -> -3.59042e-05 | C170: =IF('DF raw data'!C175="","",'DF raw data'!C175) -> 1.01438e-05 | D170: =IF('DF raw data'!D175="","",'DF raw data'!D175) -> -2.69193e-05 | F170: -3.603262932e-05 | G170: 1.018008437e-05 | H170: -2.701559034e-05 | J170: -0.002048619184 | K170: -0.05501637497 | L170: 0.0009963542864 | M170: 0.02705548546 | N170: 9.277644739e-05
A171: =IF('DF raw data'!A176="","",'DF raw data'!A176) -> -245.5 | B171: =IF('DF raw data'!B176="","",'DF raw data'!B176) -> -4.64163e-05 | C171: =IF('DF raw data'!C176="","",'DF raw data'!C176) -> 9.07676e-06 | D171: =IF('DF raw data'!D176="","",'DF raw data'!D176) -> -2.17376e-05 | F171: -4.658233111e-05 | G171: 9.109227571e-06 | H171: -2.18153554e-05 | J171: -0.00207191035 | K171: -0.05605233015 | L171: 0.0010009089 | M171: 0.02755593991 | N171: 9.542376295e-05
A172: =IF('DF raw data'!A177="","",'DF raw data'!A177) -> -245 | B172: =IF('DF raw data'!B177="","",'DF raw data'!B177) -> -3.71902e-05 | C172: =IF('DF raw data'!C177="","",'DF raw data'!C177) -> 2.98171e-06 | D172: =IF('DF raw data'!D177="","",'DF raw data'!D177) -> -2.00468e-05 | F172: -3.732322935e-05 | G172: 2.992375577e-06 | H172: -2.01185074e-05 | J172: -0.002090571965 | K172: -0.05709761613 | L172: 0.001002405088 | M172: 0.02805714246 | N172: 9.81114165e-05
A173: =IF('DF raw data'!A178="","",'DF raw data'!A178) -> -244.5 | B173: =IF('DF raw data'!B178="","",'DF raw data'!B178) -> -4.5002e-05 | C173: =IF('DF raw data'!C178="","",'DF raw data'!C178) -> -5.48231e-06 | D173: =IF('DF raw data'!D178="","",'DF raw data'!D178) -> -2.88942e-05 | F173: -4.516297215e-05 | G173: -5.501920223e-06 | H173: -2.899755455e-05 | J173: -0.002113153451 | K173: -0.05815419285 | L173: 0.0009996541279 | M173: 0.02855696952 | N173: 0.0001008437794
A174: =IF('DF raw data'!A179="","",'DF raw data'!A179) -> -244 | B174: =IF('DF raw data'!B179="","",'DF raw data'!B179) -> -3.50687e-05 | C174: =IF('DF raw data'!C179="","",'DF raw data'!C179) -> -5.38933e-07 | D174: =IF('DF raw data'!D179="","",'DF raw data'!D179) -> -3.0622e-05 | F174: -3.519414074e-05 | G174: -5.408607633e-07 | H174: -3.073153489e-05 | J174: -0.002130750521 | K174: -0.05921956811 | L174: 0.0009993836975 | M174: 0.02905666137 | N174: 0.0001036132122
A175: =IF('DF raw data'!A180="","",'DF raw data'!A180) -> -243.5 | B175: =IF('DF raw data'!B180="","",'DF raw data'!B180) -> -3.61733e-05 | C175: =IF('DF raw data'!C180="","",'DF raw data'!C180) -> 3.17725e-06 | D175: =IF('DF raw data'!D180="","",'DF raw data'!D180) -> -7.21516e-06 | F175: -3.630269189e-05 | G175: 3.188615023e-06 | H175: -7.240968627e-06 | J175: -0.002148901867 | K175: -0.06029401905 | L175: 0.001000978005 | M175: 0.02955715037 | N175: 0.0001064230803
A176: =IF('DF raw data'!A181="","",'DF raw data'!A181) -> -243 | B176: =IF('DF raw data'!B181="","",'DF raw data'!B181) -> -3.56554e-05 | C176: =IF('DF raw data'!C181="","",'DF raw data'!C181) -> 9.2562e-06 | D176: =IF('DF raw data'!D181="","",'DF raw data'!D181) -> -1.53076e-05 | F176: -3.578293937e-05 | G176: 9.289309427e-06 | H176: -1.536235529e-05 | J176: -0.002166793337 | K176: -0.06137741572 | L176: 0.00100562266 | M176: 0.0300599617 | N176: 0.0001092762155
A177: =IF('DF raw data'!A182="","",'DF raw data'!A182) -> -242.5 | B177: =IF('DF raw data'!B182="","",'DF raw data'!B182) -> -2.85319e-05 | C177: =IF('DF raw data'!C182="","",'DF raw data'!C182) -> 1.09756e-05 | D177: =IF('DF raw data'!D182="","",'DF raw data'!D182) -> -3.23038e-05 | F177: -2.863395861e-05 | G177: 1.101485972e-05 | H177: -3.241935069e-05 | J177: -0.002181110316 | K177: -0.06246797087 | L177: 0.00101113009 | M177: 0.03056552675 | N177: 0.0001121660286
A178: =IF('DF raw data'!A183="","",'DF raw data'!A183) -> -242 | B178: =IF('DF raw data'!B183="","",'DF raw data'!B183) -> -3.12269e-05 | C178: =IF('DF raw data'!C183="","",'DF raw data'!C183) -> 1.68083e-05 | D178: =IF('DF raw data'!D183="","",'DF raw data'!D183) -> -2.63385e-05 | F178: -3.133859862e-05 | G178: 1.686842329e-05 | H178: -2.643271281e-05 | J178: -0.002196779615 | K178: -0.06356636068 | L178: 0.001019564301 | M178: 0.0310753089 | N178: 0.0001150987046
A179: =IF('DF raw data'!A184="","",'DF raw data'!A184) -> -241.5 | B179: =IF('DF raw data'!B184="","",'DF raw data'!B184) -> -3.53963e-05 | C179: =IF('DF raw data'!C184="","",'DF raw data'!C184) -> 2.04541e-05 | D179: =IF('DF raw data'!D184="","",'DF raw data'!D184) -> -1.97186e-05 | F179: -3.552291257e-05 | G179: 2.052726432e-05 | H179: -1.978913343e-05 | J179: -0.002214541072 | K179: -0.06467363122 | L179: 0.001029827933 | M179: 0.03159022287 | N179: 0.0001180810735
A180: =IF('DF raw data'!A185="","",'DF raw data'!A185) -> -241 | B180: =IF('DF raw data'!B185="","",'DF raw data'!B185) -> -3.97489e-05 | C180: =IF('DF raw data'!C185="","",'DF raw data'!C185) -> 1.97979e-05 | D180: =IF('DF raw data'!D185="","",'DF raw data'!D185) -> -2.71271e-05 | F180: -3.989108182e-05 | G180: 1.986871709e-05 | H180: -2.722413364e-05 | J180: -0.002234486613 | K180: -0.06579087452 | L180: 0.001039762292 | M180: 0.03211010401 | N180: 0.0001211180915
A181: =IF('DF raw data'!A186="","",'DF raw data'!A186) -> -240.5 | B181: =IF('DF raw data'!B186="","",'DF raw data'!B186) -> -4.28249e-05 | C181: =IF('DF raw data'!C186="","",'DF raw data'!C186) -> 1.10633e-05 | D181: =IF('DF raw data'!D186="","",'DF raw data'!D186) -> -2.65374e-05 | F181: -4.297808467e-05 | G181: 1.110287342e-05 | H181: -2.663232428e-05 | J181: -0.002255975655 | K181: -0.06691886235 | L181: 0.001045313729 | M181: 0.03263276088 | N181: 0.000124209145
A182: =IF('DF raw data'!A187="","",'DF raw data'!A187) -> -240 | B182: =IF('DF raw data'!B187="","",'DF raw data'!B187) -> -3.99499e-05 | C182: =IF('DF raw data'!C187="","",'DF raw data'!C187) -> 4.54609e-06 | D182: =IF('DF raw data'!D187="","",'DF raw data'!D187) -> -1.34375e-05 | F182: -4.009280079e-05 | G182: 4.562351364e-06 | H182: -1.348556594e-05 | J182: -0.002276022055 | K182: -0.06805687338 | L182: 0.001047594904 | M182: 0.03315655833 | N182: 0.0001273480107
A183: =IF('DF raw data'!A188="","",'DF raw data'!A188) -> -239.5 | B183: =IF('DF raw data'!B188="","",'DF raw data'!B188) -> -3.57817e-05 | C183: =IF('DF raw data'!C188="","",'DF raw data'!C188) -> 1.06518e-05 | D183: =IF('DF raw data'!D188="","",'DF raw data'!D188) -> -1.81675e-05 | F183: -3.590969114e-05 | G183: 1.068990149e-05 | H183: -1.823248515e-05 | J183: -0.002293976901 | K183: -0.06920386183 | L183: 0.001052939855 | M183: 0.03368302826 | N183: 0.0001305335169
A184: =IF('DF raw data'!A189="","",'DF raw data'!A189) -> -239 | B184: =IF('DF raw data'!B189="","",'DF raw data'!B189) -> -3.57826e-05 | C184: =IF('DF raw data'!C189="","",'DF raw data'!C189) -> 9.53873e-06 | D184: =IF('DF raw data'!D189="","",'DF raw data'!D189) -> -1.68687e-05 | F184: -3.591059436e-05 | G184: 9.572850037e-06 | H184: -1.692903934e-05 | J184: -0.002311932198 | K184: -0.07035982793 | L184: 0.00105772628 | M184: 0.0342118914 | N184: 0.0001337654246
A185: =IF('DF raw data'!A190="","",'DF raw data'!A190) -> -238.5 | B185: =IF('DF raw data'!B190="","",'DF raw data'!B190) -> -3.57796e-05 | C185: =IF('DF raw data'!C190="","",'DF raw data'!C190) -> 8.00574e-06 | D185: =IF('DF raw data'!D190="","",'DF raw data'!D190) -> -2.14135e-05 | F185: -3.590758363e-05 | G185: 8.034376532e-06 | H185: -2.149009609e-05 | J185: -0.00232988599 | K185: -0.07152477092 | L185: 0.001061743468 | M185: 0.03474276313 | N185: 0.0001370432585
A186: =IF('DF raw data'!A191="","",'DF raw data'!A191) -> -238 | B186: =IF('DF raw data'!B191="","",'DF raw data'!B191) -> -2.86712e-05 | C186: =IF('DF raw data'!C191="","",'DF raw data'!C191) -> 1.62422e-05 | D186: =IF('DF raw data'!D191="","",'DF raw data'!D191) -> -1.50034e-05 | F186: -2.877375688e-05 | G186: 1.630029835e-05 | H186: -1.505706716e-05 | J186: -0.002344272868 | K186: -0.07269690736 | L186: 0.001069893618 | M186: 0.03527770994 | N186: 0.0001403634024
A187: =IF('DF raw data'!A192="","",'DF raw data'!A192) -> -237.5 | B187: =IF('DF raw data'!B192="","",'DF raw data'!B192) -> -2.85991e-05 | C187: =IF('DF raw data'!C192="","",'DF raw data'!C192) -> 1.56869e-05 | D187: =IF('DF raw data'!D192="","",'DF raw data'!D192) -> -2.72682e-05 | F187: -2.870139898e-05 | G187: 1.574301204e-05 | H187: -2.736573835e-05 | J187: -0.002358623568 | K187: -0.07387621914 | L187: 0.001077765124 | M187: 0.0358165925 | N187: 0.0001437257438
A188: =IF('DF raw data'!A193="","",'DF raw data'!A193) -> -237 | B188: =IF('DF raw data'!B193="","",'DF raw data'!B193) -> -4.94857e-05 | C188: =IF('DF raw data'!C193="","",'DF raw data'!C193) -> 6.0099e-06 | D188: =IF('DF raw data'!D193="","",'DF raw data'!D193) -> -3.17961e-05 | F188: -4.966271035e-05 | G188: 6.031397412e-06 | H188: -3.190983465e-05 | J188: -0.002383454923 | K188: -0.0750679466 | L188: 0.001080780822 | M188: 0.03635698291 | N188: 0.000147150216
A189: =IF('DF raw data'!A194="","",'DF raw data'!A194) -> -236.5 | B189: =IF('DF raw data'!B194="","",'DF raw data'!B194) -> -4.60979e-05 | C189: =IF('DF raw data'!C194="","",'DF raw data'!C194) -> 1.50305e-06 | D189: =IF('DF raw data'!D194="","",'DF raw data'!D194) -> -1.89378e-05 | F189: -4.626279219e-05 | G189: 1.50842641e-06 | H189: -1.900554051e-05 | J189: -0.002406586319 | K189: -0.07627123976 | L189: 0.001081535035 | M189: 0.03689775043 | N189: 0.0001506309039
A190: =IF('DF raw data'!A195="","",'DF raw data'!A195) -> -236 | B190: =IF('DF raw data'!B195="","",'DF raw data'!B195) -> -4.08505e-05 | C190: =IF('DF raw data'!C195="","",'DF raw data'!C195) -> -2.75039e-08 | D190: =IF('DF raw data'!D195="","",'DF raw data'!D195) -> -7.95506e-06 | F190: -4.099662224e-05 | G190: -2.760228145e-08 | H190: -7.98351525e-06 | J190: -0.00242708463 | K190: -0.07748478208 | L190: 0.001081521234 | M190: 0.03743851105 | N190: 0.0001541611179
A191: =IF('DF raw data'!A196="","",'DF raw data'!A196) -> -235.5 | B191: =IF('DF raw data'!B196="","",'DF raw data'!B196) -> -4.48824e-05 | C191: =IF('DF raw data'!C196="","",'DF raw data'!C196) -> -2.76226e-06 | D191: =IF('DF raw data'!D196="","",'DF raw data'!D196) -> -1.56571e-05 | F191: -4.504294434e-05 | G191: -2.772140604e-06 | H191: -1.571310545e-05 | J191: -0.002449606102 | K191: -0.07870958513 | L191: 0.001080135164 | M191: 0.03797857863 | N191: 0.0001577447489
A192: =IF('DF raw data'!A197="","",'DF raw data'!A197) -> -235 | B192: =IF('DF raw data'!B197="","",'DF raw data'!B197) -> -3.68644e-05 | C192: =IF('DF raw data'!C197="","",'DF raw data'!C197) -> -3.08673e-07 | D192: =IF('DF raw data'!D197="","",'DF raw data'!D197) -> -2.86479e-05 | F192: =(1-$G$1*($B$49-$G$2))*B192 -> -3.699626396e-05 | G192: -3.097771233e-07 | H192: -2.875037354e-05 | J192: =F192*$G$3+J191 -> -0.002468104234 | K192: =J192*$G$3+K191 -> -0.07994363725 | L192: =G192*$G$3+L191 -> 0.001079980275 | M192: =L192*$G$3+M191 -> 0.03851856877 | N192: =(J192^2+L192^2)*$G$3+N191 -> 0.0001613736969
A193: =IF('DF raw data'!A198="","",'DF raw data'!A198) -> -234.5 | B193: =IF('DF raw data'!B198="","",'DF raw data'!B198) -> -3.80179e-05 | C193: =IF('DF raw data'!C198="","",'DF raw data'!C198) -> 2.78872e-06 | D193: =IF('DF raw data'!D198="","",'DF raw data'!D198) -> -2.84036e-05 | F193: -3.815389003e-05 | G193: 2.798695251e-06 | H193: -2.850519968e-05 | J193: -0.002487181179 | K193: -0.08118722784 | L193: 0.001081379623 | M193: 0.03905925858 | N193: 0.0001650514229
A194: =IF('DF raw data'!A199="","",'DF raw data'!A199) -> -234 | B194: =IF('DF raw data'!B199="","",'DF raw data'!B199) -> -2.59778e-05 | C194: =IF('DF raw data'!C199="","",'DF raw data'!C199) -> 5.17662e-07 | D194: =IF('DF raw data'!D199="","",'DF raw data'!D199) -> -1.80952e-05 | F194: -2.607072259e-05 | G194: 5.19513677e-07 | H194: -1.815992653e-05 | J194: -0.002500216541 | K194: -0.08243733611 | L194: 0.00108163938 | M194: 0.03960007827 | N194: 0.0001687619362
A195: =IF('DF raw data'!A200="","",'DF raw data'!A200) -> -233.5 | B195: =IF('DF raw data'!B200="","",'DF raw data'!B200) -> -2.86021e-05 | C195: =IF('DF raw data'!C200="","",'DF raw data'!C200) -> 2.34913e-06 | D195: =IF('DF raw data'!D200="","",'DF raw data'!D200) -> -2.2533e-05 | F195: -2.870440971e-05 | G195: 2.357532838e-06 | H195: -2.261360054e-05 | J195: -0.002514568745 | K195: -0.08369462048 | L195: 0.001082818146 | M195: 0.04014148734 | N195: 0.0001725097117
A196: =IF('DF raw data'!A201="","",'DF raw data'!A201) -> -233 | B196: =IF('DF raw data'!B201="","",'DF raw data'!B201) -> -3.7372e-05 | C196: =IF('DF raw data'!C201="","",'DF raw data'!C201) -> 8.99416e-06 | D196: =IF('DF raw data'!D201="","",'DF raw data'!D201) -> -3.62935e-05 | F196: -3.750567964e-05 | G196: 9.02633211e-06 | H196: -3.642332185e-05 | J196: -0.002533321585 | K196: -0.08496128127 | L196: 0.001087331312 | M196: 0.040685153 | N196: 0.0001763097156
A197: =IF('DF raw data'!A202="","",'DF raw data'!A202) -> -232.5 | B197: =IF('DF raw data'!B202="","",'DF raw data'!B202) -> -3.6736e-05 | C197: =IF('DF raw data'!C202="","",'DF raw data'!C202) -> 1.15712e-05 | D197: =IF('DF raw data'!D202="","",'DF raw data'!D202) -> -2.89216e-05 | F197: -3.686740467e-05 | G197: 1.161259018e-05 | H197: -2.902505256e-05 | J197: -0.002551755288 | K197: -0.08623715892 | L197: 0.001093137608 | M197: 0.0412317218 | N197: 0.000180162918
A198: =IF('DF raw data'!A203="","",'DF raw data'!A203) -> -232 | B198: =IF('DF raw data'!B203="","",'DF raw data'!B203) -> -4.19251e-05 | C198: =IF('DF raw data'!C203="","",'DF raw data'!C203) -> 1.41682e-05 | D198: =IF('DF raw data'!D203="","",'DF raw data'!D203) -> -3.07459e-05 | F198: -4.207506608e-05 | G198: 1.421887965e-05 | H198: -3.085587808e-05 | J198: -0.002572792821 | K198: -0.08752355533 | L198: 0.001100247047 | M198: 0.04178184533 | N198: 0.0001840778212
A199: =IF('DF raw data'!A204="","",'DF raw data'!A204) -> -231.5 | B199: =IF('DF raw data'!B204="","",'DF raw data'!B204) -> -3.27019e-05 | C199: =IF('DF raw data'!C204="","",'DF raw data'!C204) -> 1.34277e-05 | D199: =IF('DF raw data'!D204="","",'DF raw data'!D204) -> -2.46958e-05 | F199: -3.28188747e-05 | G199: 1.347573088e-05 | H199: -2.478413688e-05 | J199: -0.002589202258 | K199: -0.08881815645 | L199: 0.001106984913 | M199: 0.04233533778 | N199: 0.0001880425132
A200: =IF('DF raw data'!A205="","",'DF raw data'!A205) -> -231 | B200: =IF('DF raw data'!B205="","",'DF raw data'!B205) -> -4.21141e-05 | C200: =IF('DF raw data'!C205="","",'DF raw data'!C205) -> 1.87841e-05 | D200: =IF('DF raw data'!D205="","",'DF raw data'!D205) -> -3.55418e-05 | F200: -4.226474214e-05 | G200: 1.885129073e-05 | H200: -3.566893302e-05 | J200: -0.002610334629 | K200: -0.09012332377 | L200: 0.001116410558 | M200: 0.04289354306 | N200: 0.0001920726229
A201: =IF('DF raw data'!A206="","",'DF raw data'!A206) -> -230.5 | B201: =IF('DF raw data'!B206="","",'DF raw data'!B206) -> -4.83947e-05 | C201: =IF('DF raw data'!C206="","",'DF raw data'!C206) -> 7.27683e-06 | D201: =IF('DF raw data'!D206="","",'DF raw data'!D206) -> -3.42592e-05 | F201: -4.856780784e-05 | G201: 7.302859221e-06 | H201: -3.438174516e-05 | J201: -0.002634618533 | K201: -0.09144063304 | L201: 0.001120061988 | M201: 0.04345357405 | N201: 0.0001961704997
... 1061 more rows

Sheet 10 x=-1
A1: =IF('DF raw data'!E1="","",'DF raw data'!E1) -> Number of header lines | B1: =IF('DF raw data'!F1="","",'DF raw data'!F1) -> 54 | C1: =IF('DF raw data'!G1="","",'DF raw data'!G1) ->  | D1: =IF('DF raw data'!H1="","",'DF raw data'!H1) ->  | F1: T_coeff | G1: -0.00073 | H1: /degC | J1: IBy total | K1: =J1262*1000 -> -1.854255049 | L1: muTm | M1: =L1262*1000 -> 28.98791083 | R1: DF ref | S1: ='10 x=-2'!S1 -> 1
A2: =IF('DF raw data'!E2="","",'DF raw data'!E2) -> Measured by | B2: =IF('DF raw data'!F2="","",'DF raw data'!F2) -> Danfysik | C2: =IF('DF raw data'!G2="","",'DF raw data'!G2) ->  | D2: =IF('DF raw data'!H2="","",'DF raw data'!H2) ->  | F2: Tcorr | G2: 20 | H2: degC | J2: JBy total | K2: =K1262 -> -6.094160704 | L2: muTm^2 | M2: =M1262 -> 9.551679727
A3: =IF('DF raw data'!E3="","",'DF raw data'!E3) -> Operator | B3: =IF('DF raw data'!F3="","",'DF raw data'!F3) -> PMHA | C3: =IF('DF raw data'!G3="","",'DF raw data'!G3) ->  | D3: =IF('DF raw data'!H3="","",'DF raw data'!H3) ->  | F3: Step | G3: =A63-A62 -> 0.5 | H3: mm | J3: PI total | K3: =N1262 -> 10550.2939 | L3: T^2mm^3
A4: =IF('DF raw data'!E4="","",'DF raw data'!E4) -> Data-time | B4: =IF('DF raw data'!F4="","",'DF raw data'!F4) -> 15-07-2024, 16:48:18 | C4: =IF('DF raw data'!G4="","",'DF raw data'!G4) ->  | D4: =IF('DF raw data'!H4="","",'DF raw data'!H4) -> 
A5: =IF('DF raw data'!E5="","",'DF raw data'!E5) -> Project | B5: =IF('DF raw data'!F5="","",'DF raw data'!F5) -> 504313 | C5: =IF('DF raw data'!G5="","",'DF raw data'!G5) ->  | D5: =IF('DF raw data'!H5="","",'DF raw data'!H5) -> 
A6: =IF('DF raw data'!E6="","",'DF raw data'!E6) -> Magnet type | B6: =IF('DF raw data'!F6="","",'DF raw data'!F6) -> Dipole | C6: =IF('DF raw data'!G6="","",'DF raw data'!G6) ->  | D6: =IF('DF raw data'!H6="","",'DF raw data'!H6) -> 
A7: =IF('DF raw data'!E7="","",'DF raw data'!E7) -> Magnet nr. | B7: =IF('DF raw data'!F7="","",'DF raw data'!F7) -> 2410082 | C7: =IF('DF raw data'!G7="","",'DF raw data'!G7) ->  | D7: =IF('DF raw data'!H7="","",'DF raw data'!H7) -> 
A8: =IF('DF raw data'!E8="","",'DF raw data'!E8) -> Meas. number | B8: =IF('DF raw data'!F8="","",'DF raw data'!F8) -> 55 | C8: =IF('DF raw data'!G8="","",'DF raw data'!G8) ->  | D8: =IF('DF raw data'!H8="","",'DF raw data'!H8) -> 
A9: =IF('DF raw data'!E9="","",'DF raw data'!E9) -> Add. info | B9: =IF('DF raw data'!F9="","",'DF raw data'!F9) -> X-alignment scan 2) | C9: =IF('DF raw data'!G9="","",'DF raw data'!G9) ->  | D9: =IF('DF raw data'!H9="","",'DF raw data'!H9) -> 
A10: =IF('DF raw data'!E10="","",'DF raw data'!E10) -> Device | B10: =IF('DF raw data'!F10="","",'DF raw data'!F10) -> (HAL) HALL-PROBE | C10: =IF('DF raw data'!G10="","",'DF raw data'!G10) ->  | D10: =IF('DF raw data'!H10="","",'DF raw data'!H10) -> 
A11: =IF('DF raw data'!E11="","",'DF raw data'!E11) -> Goal | B11: =IF('DF raw data'!F11="","",'DF raw data'!F11) -> (AXI) AXis Integral (Line, EFB) | C11: =IF('DF raw data'!G11="","",'DF raw data'!G11) ->  | D11: =IF('DF raw data'!H11="","",'DF raw data'!H11) -> 
A12: =IF('DF raw data'!E12="","",'DF raw data'!E12) -> Power supply mode | B12: =IF('DF raw data'!F12="","",'DF raw data'!F12) -> (PM) Permanent Magnet (no MPS in use) | C12: =IF('DF raw data'!G12="","",'DF raw data'!G12) ->  | D12: =IF('DF raw data'!H12="","",'DF raw data'!H12) -> 
A13: =IF('DF raw data'!E13="","",'DF raw data'!E13) -> Data format | B13: =IF('DF raw data'!F13="","",'DF raw data'!F13) -> Raw data text file | C13: =IF('DF raw data'!G13="","",'DF raw data'!G13) ->  | D13: =IF('DF raw data'!H13="","",'DF raw data'!H13) -> 
A14: =IF('DF raw data'!E14="","",'DF raw data'!E14) -> Direction of the pos. x-axis | B14: =IF('DF raw data'!F14="","",'DF raw data'!F14) -> See test program | C14: =IF('DF raw data'!G14="","",'DF raw data'!G14) ->  | D14: =IF('DF raw data'!H14="","",'DF raw data'!H14) -> 
A15: =IF('DF raw data'!E15="","",'DF raw data'!E15) -> Direction of the pos. y-axis | B15: =IF('DF raw data'!F15="","",'DF raw data'!F15) -> Vertical up | C15: =IF('DF raw data'!G15="","",'DF raw data'!G15) ->  | D15: =IF('DF raw data'!H15="","",'DF raw data'!H15) -> 
A16: =IF('DF raw data'!E16="","",'DF raw data'!E16) -> Direction of the pos. z-axis | B16: =IF('DF raw data'!F16="","",'DF raw data'!F16) -> See test program | C16: =IF('DF raw data'!G16="","",'DF raw data'!G16) ->  | D16: =IF('DF raw data'!H16="","",'DF raw data'!H16) -> 
A17: =IF('DF raw data'!E17="","",'DF raw data'!E17) -> Mapper type | B17: =IF('DF raw data'!F17="","",'DF raw data'!F17) -> Precision Hall Mapper | C17: =IF('DF raw data'!G17="","",'DF raw data'!G17) ->  | D17: =IF('DF raw data'!H17="","",'DF raw data'!H17) -> 
A18: =IF('DF raw data'!E18="","",'DF raw data'!E18) -> Mapper Danfysik Reg. Number | B18: =IF('DF raw data'!F18="","",'DF raw data'!F18) -> 2033-D (mapper 1) | C18: =IF('DF raw data'!G18="","",'DF raw data'!G18) ->  | D18: =IF('DF raw data'!H18="","",'DF raw data'!H18) -> 
A19: =IF('DF raw data'!E19="","",'DF raw data'!E19) -> Measurement consept | B19: =IF('DF raw data'!F19="","",'DF raw data'!F19) -> Square line grid | C19: =IF('DF raw data'!G19="","",'DF raw data'!G19) ->  | D19: =IF('DF raw data'!H19="","",'DF raw data'!H19) -> 
A20: =IF('DF raw data'!E20="","",'DF raw data'!E20) -> Mode | B20: =IF('DF raw data'!F20="","",'DF raw data'!F20) -> On-the-fly measurement | C20: =IF('DF raw data'!G20="","",'DF raw data'!G20) ->  | D20: =IF('DF raw data'!H20="","",'DF raw data'!H20) -> 
A21: =IF('DF raw data'!E21="","",'DF raw data'!E21) ->  | B21: =IF('DF raw data'!F21="","",'DF raw data'!F21) ->  | C21: =IF('DF raw data'!G21="","",'DF raw data'!G21) ->  | D21: =IF('DF raw data'!H21="","",'DF raw data'!H21) -> 
A22: =IF('DF raw data'!E22="","",'DF raw data'!E22) -> Probe Name | B22: =IF('DF raw data'!F22="","",'DF raw data'!F22) -> ID12_By | C22: =IF('DF raw data'!G22="","",'DF raw data'!G22) ->  | D22: =IF('DF raw data'!H22="","",'DF raw data'!H22) -> 
A23: =IF('DF raw data'!E23="","",'DF raw data'!E23) -> Probe Type | B23: =IF('DF raw data'!F23="","",'DF raw data'!F23) -> DF_ID_3D_Bxyz | C23: =IF('DF raw data'!G23="","",'DF raw data'!G23) ->  | D23: =IF('DF raw data'!H23="","",'DF raw data'!H23) -> 
A24: =IF('DF raw data'!E24="","",'DF raw data'!E24) -> Probe Danfysik Reg. Number | B24: =IF('DF raw data'!F24="","",'DF raw data'!F24) -> 2277 | C24: =IF('DF raw data'!G24="","",'DF raw data'!G24) ->  | D24: =IF('DF raw data'!H24="","",'DF raw data'!H24) -> 
A25: =IF('DF raw data'!E25="","",'DF raw data'!E25) -> Probe Axis | B25: =IF('DF raw data'!F25="","",'DF raw data'!F25) -> By | C25: =IF('DF raw data'!G25="","",'DF raw data'!G25) ->  | D25: =IF('DF raw data'!H25="","",'DF raw data'!H25) -> 
A26: =IF('DF raw data'!E26="","",'DF raw data'!E26) -> Probe Current Supply | B26: =IF('DF raw data'!F26="","",'DF raw data'!F26) -> 1825-D | C26: =IF('DF raw data'!G26="","",'DF raw data'!G26) ->  | D26: =IF('DF raw data'!H26="","",'DF raw data'!H26) -> 
A27: =IF('DF raw data'!E27="","",'DF raw data'!E27) -> Probe Gain Correction | B27: =IF('DF raw data'!F27="","",'DF raw data'!F27) -> 0.99613 | C27: =IF('DF raw data'!G27="","",'DF raw data'!G27) ->  | D27: =IF('DF raw data'!H27="","",'DF raw data'!H27) -> 
A28: =IF('DF raw data'!E28="","",'DF raw data'!E28) -> Probe Offset Correction | B28: =IF('DF raw data'!F28="","",'DF raw data'!F28) -> 0.0027685 | C28: =IF('DF raw data'!G28="","",'DF raw data'!G28) ->  | D28: =IF('DF raw data'!H28="","",'DF raw data'!H28) -> 
A29: =IF('DF raw data'!E29="","",'DF raw data'!E29) -> DVM Number | B29: =IF('DF raw data'!F29="","",'DF raw data'!F29) -> 2 | C29: =IF('DF raw data'!G29="","",'DF raw data'!G29) ->  | D29: =IF('DF raw data'!H29="","",'DF raw data'!H29) -> 
A30: =IF('DF raw data'!E30="","",'DF raw data'!E30) -> DVM Type | B30: =IF('DF raw data'!F30="","",'DF raw data'!F30) -> K2701 | C30: =IF('DF raw data'!G30="","",'DF raw data'!G30) ->  | D30: =IF('DF raw data'!H30="","",'DF raw data'!H30) -> 
A31: =IF('DF raw data'!E31="","",'DF raw data'!E31) -> DVM Danfysik Reg. Number | B31: =IF('DF raw data'!F31="","",'DF raw data'!F31) -> 1743-D | C31: =IF('DF raw data'!G31="","",'DF raw data'!G31) ->  | D31: =IF('DF raw data'!H31="","",'DF raw data'!H31) -> 
A32: =IF('DF raw data'!E32="","",'DF raw data'!E32) -> Probe Name | B32: =IF('DF raw data'!F32="","",'DF raw data'!F32) -> ID12_Bx | C32: =IF('DF raw data'!G32="","",'DF raw data'!G32) ->  | D32: =IF('DF raw data'!H32="","",'DF raw data'!H32) -> 
A33: =IF('DF raw data'!E33="","",'DF raw data'!E33) -> Probe Type | B33: =IF('DF raw data'!F33="","",'DF raw data'!F33) -> DF_ID_3D_Bxyz | C33: =IF('DF raw data'!G33="","",'DF raw data'!G33) ->  | D33: =IF('DF raw data'!H33="","",'DF raw data'!H33) -> 
A34: =IF('DF raw data'!E34="","",'DF raw data'!E34) -> Probe Danfysik Reg. Number | B34: =IF('DF raw data'!F34="","",'DF raw data'!F34) -> 2277 | C34: =IF('DF raw data'!G34="","",'DF raw data'!G34) ->  | D34: =IF('DF raw data'!H34="","",'DF raw data'!H34) -> 
A35: =IF('DF raw data'!E35="","",'DF raw data'!E35) -> Probe Axis | B35: =IF('DF raw data'!F35="","",'DF raw data'!F35) -> Bx | C35: =IF('DF raw data'!G35="","",'DF raw data'!G35) ->  | D35: =IF('DF raw data'!H35="","",'DF raw data'!H35) -> 
A36: =IF('DF raw data'!E36="","",'DF raw data'!E36) -> Probe Current Supply | B36: =IF('DF raw data'!F36="","",'DF raw data'!F36) -> 1825-D | C36: =IF('DF raw data'!G36="","",'DF raw data'!G36) ->  | D36: =IF('DF raw data'!H36="","",'DF raw data'!H36) -> 
A37: =IF('DF raw data'!E37="","",'DF raw data'!E37) -> Probe Gain Correction | B37: =IF('DF raw data'!F37="","",'DF raw data'!F37) -> 1 | C37: =IF('DF raw data'!G37="","",'DF raw data'!G37) ->  | D37: =IF('DF raw data'!H37="","",'DF raw data'!H37) -> 
A38: =IF('DF raw data'!E38="","",'DF raw data'!E38) -> Probe Offset Correction | B38: =IF('DF raw data'!F38="","",'DF raw data'!F38) -> -0.17517 | C38: =IF('DF raw data'!G38="","",'DF raw data'!G38) ->  | D38: =IF('DF raw data'!H38="","",'DF raw data'!H38) -> 
A39: =IF('DF raw data'!E39="","",'DF raw data'!E39) -> DVM Number | B39: =IF('DF raw data'!F39="","",'DF raw data'!F39) -> 3 | C39: =IF('DF raw data'!G39="","",'DF raw data'!G39) ->  | D39: =IF('DF raw data'!H39="","",'DF raw data'!H39) -> 
A40: =IF('DF raw data'!E40="","",'DF raw data'!E40) -> DVM Type | B40: =IF('DF raw data'!F40="","",'DF raw data'!F40) -> K2701 | C40: =IF('DF raw data'!G40="","",'DF raw data'!G40) ->  | D40: =IF('DF raw data'!H40="","",'DF raw data'!H40) -> 
A41: =IF('DF raw data'!E41="","",'DF raw data'!E41) -> DVM Danfysik Reg. Number | B41: =IF('DF raw data'!F41="","",'DF raw data'!F41) -> 1744-D | C41: =IF('DF raw data'!G41="","",'DF raw data'!G41) ->  | D41: =IF('DF raw data'!H41="","",'DF raw data'!H41) -> 
A42: =IF('DF raw data'!E42="","",'DF raw data'!E42) -> Probe Name | B42: =IF('DF raw data'!F42="","",'DF raw data'!F42) -> ID12_Bz | C42: =IF('DF raw data'!G42="","",'DF raw data'!G42) ->  | D42: =IF('DF raw data'!H42="","",'DF raw data'!H42) -> 
A43: =IF('DF raw data'!E43="","",'DF raw data'!E43) -> Probe Type | B43: =IF('DF raw data'!F43="","",'DF raw data'!F43) -> DF_ID_3D_Bxyz | C43: =IF('DF raw data'!G43="","",'DF raw data'!G43) ->  | D43: =IF('DF raw data'!H43="","",'DF raw data'!H43) -> 
A44: =IF('DF raw data'!E44="","",'DF raw data'!E44) -> Probe Danfysik Reg. Number | B44: =IF('DF raw data'!F44="","",'DF raw data'!F44) -> 2277 | C44: =IF('DF raw data'!G44="","",'DF raw data'!G44) ->  | D44: =IF('DF raw data'!H44="","",'DF raw data'!H44) -> 
A45: =IF('DF raw data'!E45="","",'DF raw data'!E45) -> Probe Axis | B45: =IF('DF raw data'!F45="","",'DF raw data'!F45) -> Bz | C45: =IF('DF raw data'!G45="","",'DF raw data'!G45) ->  | D45: =IF('DF raw data'!H45="","",'DF raw data'!H45) -> 
A46: =IF('DF raw data'!E46="","",'DF raw data'!E46) -> Probe Current Supply | B46: =IF('DF raw data'!F46="","",'DF raw data'!F46) -> 1825-D | C46: =IF('DF raw data'!G46="","",'DF raw data'!G46) ->  | D46: =IF('DF raw data'!H46="","",'DF raw data'!H46) -> 
A47: =IF('DF raw data'!E47="","",'DF raw data'!E47) -> Probe Gain Correction | B47: =IF('DF raw data'!F47="","",'DF raw data'!F47) -> 1 | C47: =IF('DF raw data'!G47="","",'DF raw data'!G47) ->  | D47: =IF('DF raw data'!H47="","",'DF raw data'!H47) -> 
A48: =IF('DF raw data'!E53="","",'DF raw data'!E53) -> PS-Gap: | B48: =IF('DF raw data'!F53="","",'DF raw data'!F53) -> 10 | C48: =IF('DF raw data'!G53="","",'DF raw data'!G53) ->  | D48: =IF('DF raw data'!H53="","",'DF raw data'!H53) -> 
A49: =IF('DF raw data'!E54="","",'DF raw data'!E54) -> PS-Temperature: | B49: =IF('DF raw data'!F54="","",'DF raw data'!F54) -> 24.9 | C49: =IF('DF raw data'!G54="","",'DF raw data'!G54) ->  | D49: =IF('DF raw data'!H54="","",'DF raw data'!H54) -> 
A50: =IF('DF raw data'!E55="","",'DF raw data'!E55) -> PS-Encoder: | B50: =IF('DF raw data'!F55="","",'DF raw data'!F55) -> 20.4293 | C50: =IF('DF raw data'!G55="","",'DF raw data'!G55) ->  | D50: =IF('DF raw data'!H55="","",'DF raw data'!H55) -> 
A51: =IF('DF raw data'!E56="","",'DF raw data'!E56) ->  | B51: =IF('DF raw data'!F56="","",'DF raw data'!F56) ->  | C51: =IF('DF raw data'!G56="","",'DF raw data'!G56) ->  | D51: =IF('DF raw data'!H56="","",'DF raw data'!H56) -> 
A52: =IF('DF raw data'!E57="","",'DF raw data'!E57) -> Monitor-Index | B52: =IF('DF raw data'!F57="","",'DF raw data'!F57) -> [1,1,4] | C52: =IF('DF raw data'!G57="","",'DF raw data'!G57) ->  | D52: =IF('DF raw data'!H57="","",'DF raw data'!H57) -> 
A53: =IF('DF raw data'!E58="","",'DF raw data'!E58) ->  | B53: =IF('DF raw data'!F58="","",'DF raw data'!F58) ->  | C53: =IF('DF raw data'!G58="","",'DF raw data'!G58) ->  | D53: =IF('DF raw data'!H58="","",'DF raw data'!H58) -> 
A54: =IF('DF raw data'!E59="","",'DF raw data'!E59) -> Time [s] | B54: =IF('DF raw data'!F59="","",'DF raw data'!F59) -> Y [mm] | C54: =IF('DF raw data'!G59="","",'DF raw data'!G59) -> X [mm] | D54: =IF('DF raw data'!H59="","",'DF raw data'!H59) -> Nominal current [A]
A55: =IF('DF raw data'!E60="","",'DF raw data'!E60) ->  | B55: =IF('DF raw data'!F60="","",'DF raw data'!F60) ->  | C55: =IF('DF raw data'!G60="","",'DF raw data'!G60) ->  | D55: =IF('DF raw data'!H60="","",'DF raw data'!H60) -> 
A56: =IF('DF raw data'!E61="","",'DF raw data'!E61) -> 204.3 | B56: =IF('DF raw data'!F61="","",'DF raw data'!F61) -> 30.8 | C56: =IF('DF raw data'!G61="","",'DF raw data'!G61) -> 300.8 | D56: =IF('DF raw data'!H61="","",'DF raw data'!H61) -> 0
A57: =IF('DF raw data'!E62="","",'DF raw data'!E62) ->  | B57: =IF('DF raw data'!F62="","",'DF raw data'!F62) ->  | C57: =IF('DF raw data'!G62="","",'DF raw data'!G62) ->  | D57: =IF('DF raw data'!H62="","",'DF raw data'!H62) -> 
A58: =IF('DF raw data'!E63="","",'DF raw data'!E63) -> Measurement-Index | B58: =IF('DF raw data'!F63="","",'DF raw data'!F63) -> [1,1,1201,2] | C58: =IF('DF raw data'!G63="","",'DF raw data'!G63) ->  | D58: =IF('DF raw data'!H63="","",'DF raw data'!H63) -> 
A59: =IF('DF raw data'!E64="","",'DF raw data'!E64) ->  | B59: =IF('DF raw data'!F64="","",'DF raw data'!F64) ->  | C59: =IF('DF raw data'!G64="","",'DF raw data'!G64) ->  | D59: =IF('DF raw data'!H64="","",'DF raw data'!H64) -> 
A60: =IF('DF raw data'!E65="","",'DF raw data'!E65) -> Z [mm] | B60: By [T] | C60: Bx [T] | D60: Bz [T] | F60: By_corr | G60: Bx_corr | H60: Bz_corr | J60: Iy | K60: Jy | L60: Ix | M60: Jx | N60: PI
A62: =IF('DF raw data'!E67="","",'DF raw data'!E67) -> -300 | B62: =IF('DF raw data'!F67="","",'DF raw data'!F67) -> -1.76265e-05 | C62: =IF('DF raw data'!G67="","",'DF raw data'!G67) -> 0.000107003 | D62: =IF('DF raw data'!H67="","",'DF raw data'!H67) -> -2.63578e-05 | F62: =(1-$G$1*($B$49))*B62 -> -1.794689689e-05 | G62: =(1-$G$1*($B$49-$G$2))*C62 -> 0.0001073857497 | H62: =(1-$G$1*($B$49-$G$2))*D62 -> -2.645208185e-05 | J62: =F62*$G$3 -> -8.973448445e-06 | K62: =J62*$G$3 -> -4.486724223e-06 | L62: =G62*$G$3 -> 5.369287487e-05 | M62: =L62*$G$3 -> 2.684643743e-05 | N62: =(J62^2+L62^2)*$G$3 -> 1.481723794e-09
A63: =IF('DF raw data'!E68="","",'DF raw data'!E68) -> -299.5 | B63: =IF('DF raw data'!F68="","",'DF raw data'!F68) -> -2.43543e-05 | C63: =IF('DF raw data'!G68="","",'DF raw data'!G68) -> 0.000101292 | D63: =IF('DF raw data'!H68="","",'DF raw data'!H68) -> -2.6088e-05 | F63: =(1-$G$1*($B$49-$G$2))*B63 -> -2.444141533e-05 | G63: =(1-$G$1*($B$49-$G$2))*C63 -> 0.0001016543215 | H63: -2.618131678e-05 | J63: =F63*$G$3+J62 -> -2.119415611e-05 | K63: =J63*$G$3+K62 -> -1.508380228e-05 | L63: =G63*$G$3+L62 -> 0.0001045200356 | M63: =L63*$G$3+M62 -> 7.910645524e-05 | N63: =(J63^2+L63^2)*$G$3+N62 -> 7.168538842e-09
A64: =IF('DF raw data'!E69="","",'DF raw data'!E69) -> -299 | B64: =IF('DF raw data'!F69="","",'DF raw data'!F69) -> -6.60634e-06 | C64: =IF('DF raw data'!G69="","",'DF raw data'!G69) -> 0.000104661 | D64: =IF('DF raw data'!H69="","",'DF raw data'!H69) -> -2.62e-05 | F64: =(1-$G$1*($B$49-$G$2))*B64 -> -6.629970878e-06 | G64: 0.0001050353724 | H64: -2.62937174e-05 | J64: =F64*$G$3+J63 -> -2.450914155e-05 | K64: =J64*$G$3+K63 -> -2.733837305e-05 | L64: =G64*$G$3+L63 -> 0.0001570377218 | M64: =L64*$G$3+M63 -> 0.0001576253161 | N64: =(J64^2+L64^2)*$G$3+N63 -> 1.979931089e-08
A65: =IF('DF raw data'!E70="","",'DF raw data'!E70) -> -298.5 | B65: =IF('DF raw data'!F70="","",'DF raw data'!F70) -> -1.66651e-05 | C65: =IF('DF raw data'!G70="","",'DF raw data'!G70) -> 0.000103939 | D65: =IF('DF raw data'!H70="","",'DF raw data'!H70) -> -2.70962e-05 | F65: -1.672471106e-05 | G65: 0.0001043107898 | H65: -2.719312311e-05 | J65: -3.287149708e-05 | K65: -4.377412159e-05 | L65: 0.0002091931167 | M65: 0.0002622218745 | N65: 4.222045859e-08
A66: =IF('DF raw data'!E71="","",'DF raw data'!E71) -> -298 | B66: =IF('DF raw data'!F71="","",'DF raw data'!F71) -> -1.31405e-05 | C66: =IF('DF raw data'!G71="","",'DF raw data'!G71) -> 0.000110569 | D66: =IF('DF raw data'!H71="","",'DF raw data'!H71) -> -2.81076e-05 | F66: -1.318750357e-05 | G66: 0.0001109645053 | H66: -2.820814089e-05 | J66: -3.946524887e-05 | K66: -6.350674603e-05 | L66: 0.0002646753694 | M66: 0.0003945595592 | N66: 7.802573709e-08
A67: =IF('DF raw data'!E72="","",'DF raw data'!E72) -> -297.5 | B67: =IF('DF raw data'!F72="","",'DF raw data'!F72) -> -2.5378e-05 | C67: =IF('DF raw data'!G72="","",'DF raw data'!G72) -> 0.000111221 | D67: =IF('DF raw data'!H72="","",'DF raw data'!H72) -> -2.83763e-05 | F67: -2.546877711e-05 | G67: 0.0001116188375 | H67: -2.847780203e-05 | J67: -5.219963742e-05 | K67: -8.960656474e-05 | L67: 0.0003204847881 | M67: 0.0005548019532 | N67: 1.307433879e-07
A68: =IF('DF raw data'!E73="","",'DF raw data'!E73) -> -297 | B68: =IF('DF raw data'!F73="","",'DF raw data'!F73) -> -3.11448e-05 | C68: =IF('DF raw data'!G73="","",'DF raw data'!G73) -> 0.000118116 | D68: =IF('DF raw data'!H73="","",'DF raw data'!H73) -> -2.7918e-05 | F68: -3.125620495e-05 | G68: 0.0001185385009 | H68: -2.801786269e-05 | J68: -6.782773989e-05 | K68: -0.0001235204347 | L68: 0.0003797540386 | M68: 0.0007446789725 | N68: 2.051502539e-07
A69: =IF('DF raw data'!E74="","",'DF raw data'!E74) -> -296.5 | B69: =IF('DF raw data'!F74="","",'DF raw data'!F74) -> -3.23627e-05 | C69: =IF('DF raw data'!G74="","",'DF raw data'!G74) -> 0.000119905 | D69: =IF('DF raw data'!H74="","",'DF raw data'!H74) -> -2.72503e-05 | F69: -3.247846138e-05 | G69: 0.0001203339002 | H69: -2.734777432e-05 | J69: -8.406697058e-05 | K69: -0.00016555392 | L69: 0.0004399209887 | M69: 0.0009646394669 | N69: 3.054491199e-07
A70: =IF('DF raw data'!E75="","",'DF raw data'!E75) -> -296 | B70: =IF('DF raw data'!F75="","",'DF raw data'!F75) -> -3.40288e-05 | C70: =IF('DF raw data'!G75="","",'DF raw data'!G75) -> 0.000112899 | D70: =IF('DF raw data'!H75="","",'DF raw data'!H75) -> -2.66901e-05 | F70: -3.415052102e-05 | G70: 0.0001133028397 | H70: -2.678557049e-05 | J70: -0.0001011422311 | K70: -0.0002161250355 | L70: 0.0004965724085 | M70: 0.001212925671 | N70: 4.338560738e-07
A71: =IF('DF raw data'!E76="","",'DF raw data'!E76) -> -295.5 | B71: =IF('DF raw data'!F76="","",'DF raw data'!F76) -> -3.467e-05 | C71: =IF('DF raw data'!G76="","",'DF raw data'!G76) -> 0.000109628 | D71: =IF('DF raw data'!H76="","",'DF raw data'!H76) -> -2.59745e-05 | F71: -3.479401459e-05 | G71: 0.0001100201394 | H71: -2.606741079e-05 | J71: -0.0001185392384 | K71: -0.0002753946547 | L71: 0.0005515824782 | M71: 0.00148871691 | N71: 5.930034644e-07
A72: =IF('DF raw data'!E77="","",'DF raw data'!E77) -> -295 | B72: =IF('DF raw data'!F77="","",'DF raw data'!F77) -> -3.20435e-05 | C72: =IF('DF raw data'!G77="","",'DF raw data'!G77) -> 0.000109309 | D72: =IF('DF raw data'!H77="","",'DF raw data'!H77) -> -2.52138e-05 | F72: -3.21581196e-05 | G72: 0.0001096999983 | H72: -2.530398976e-05 | J72: -0.0001346182982 | K72: -0.0003427038038 | L72: 0.0006064324774 | M72: 0.001791933149 | N72: 7.859446823e-07
A73: =IF('DF raw data'!E78="","",'DF raw data'!E78) -> -294.5 | B73: =IF('DF raw data'!F78="","",'DF raw data'!F78) -> -2.55723e-05 | C73: =IF('DF raw data'!G78="","",'DF raw data'!G78) -> 0.000108058 | D73: =IF('DF raw data'!H78="","",'DF raw data'!H78) -> -2.53596e-05 | F73: -2.566377212e-05 | G73: 0.0001084445235 | H73: -2.545031129e-05 | J73: -0.0001474501842 | K73: -0.0004164288959 | L73: 0.0006606547391 | M73: 0.002122260518 | N73: 1.015047803e-06
A74: =IF('DF raw data'!E79="","",'DF raw data'!E79) -> -294 | B74: =IF('DF raw data'!F79="","",'DF raw data'!F79) -> -1.26289e-05 | C74: =IF('DF raw data'!G79="","",'DF raw data'!G79) -> 0.000112343 | D74: =IF('DF raw data'!H79="","",'DF raw data'!H79) -> -2.65712e-05 | F74: -1.267407358e-05 | G74: 0.0001127448509 | H74: -2.666624518e-05 | J74: -0.000153787221 | K74: -0.0004933225064 | L74: 0.0007170271646 | M74: 0.002480774101 | N74: 1.283937035e-06
A75: =IF('DF raw data'!E80="","",'DF raw data'!E80) -> -293.5 | B75: =IF('DF raw data'!F80="","",'DF raw data'!F80) -> -3.14015e-05 | C75: =IF('DF raw data'!G80="","",'DF raw data'!G80) -> 0.000116088 | D75: =IF('DF raw data'!H80="","",'DF raw data'!H80) -> -2.72913e-05 | F75: -3.151382317e-05 | G75: 0.0001165032468 | H75: -2.738892098e-05 | J75: -0.0001695441326 | K75: -0.0005780945728 | L75: 0.0007752787879 | M75: 0.002868413495 | N75: 1.598838241e-06
A76: =IF('DF raw data'!E81="","",'DF raw data'!E81) -> -293 | B76: =IF('DF raw data'!F81="","",'DF raw data'!F81) -> -2.461e-05 | C76: =IF('DF raw data'!G81="","",'DF raw data'!G81) -> 0.000108359 | D76: =IF('DF raw data'!H81="","",'DF raw data'!H81) -> -2.69941e-05 | F76: -2.469802997e-05 | G76: 0.0001087466001 | H76: -2.70906579e-05 | J76: -0.0001818931476 | K76: -0.0006690411466 | L76: 0.000829652088 | M76: 0.003283239539 | N76: 1.959542093e-06
A77: =IF('DF raw data'!E82="","",'DF raw data'!E82) -> -292.5 | B77: =IF('DF raw data'!F82="","",'DF raw data'!F82) -> -3.21069e-05 | C77: =IF('DF raw data'!G82="","",'DF raw data'!G82) -> 0.000101971 | D77: =IF('DF raw data'!H82="","",'DF raw data'!H82) -> -2.65382e-05 | F77: -3.222174638e-05 | G77: 0.0001023357503 | H77: -2.663312714e-05 | J77: -0.0001980040208 | K77: -0.0007680431569 | L77: 0.0008808199631 | M77: 0.00372364952 | N77: 2.367066793e-06
A78: =IF('DF raw data'!E83="","",'DF raw data'!E83) -> -292 | B78: =IF('DF raw data'!F83="","",'DF raw data'!F83) -> -2.02533e-05 | C78: =IF('DF raw data'!G83="","",'DF raw data'!G83) -> 0.000107341 | D78: =IF('DF raw data'!H83="","",'DF raw data'!H83) -> -2.65332e-05 | F78: -2.032574605e-05 | G78: 0.0001077249588 | H78: -2.662810926e-05 | J78: -0.0002081668938 | K78: -0.0008721266039 | L78: 0.0009346824425 | M78: 0.004190990742 | N78: 2.825549155e-06
A79: =IF('DF raw data'!E84="","",'DF raw data'!E84) -> -291.5 | B79: =IF('DF raw data'!F84="","",'DF raw data'!F84) -> -3.41691e-05 | C79: =IF('DF raw data'!G84="","",'DF raw data'!G84) -> 0.000116419 | D79: =IF('DF raw data'!H84="","",'DF raw data'!H84) -> -7.96798e-06 | F79: -3.429132287e-05 | G79: 0.0001168354308 | H79: -7.996481464e-06 | J79: -0.0002253125553 | K79: -0.0009847828815 | L79: 0.0009931001579 | M79: 0.004687540821 | N79: 3.344055991e-06
A80: =IF('DF raw data'!E85="","",'DF raw data'!E85) -> -291 | B80: =IF('DF raw data'!F85="","",'DF raw data'!F85) -> -2.30159e-05 | C80: =IF('DF raw data'!G85="","",'DF raw data'!G85) -> 0.000113041 | D80: =IF('DF raw data'!H85="","",'DF raw data'!H85) -> -1.50113e-05 | F80: -2.309822787e-05 | G80: 0.0001134453477 | H80: -1.506499542e-05 | J80: -0.0002368616692 | K80: -0.001103213716 | L80: 0.001049822832 | M80: 0.005212452236 | N80: 3.923171705e-06
A81: =IF('DF raw data'!E86="","",'DF raw data'!E86) -> -290.5 | B81: =IF('DF raw data'!F86="","",'DF raw data'!F86) -> -2.30146e-05 | C81: =IF('DF raw data'!G86="","",'DF raw data'!G86) -> 0.000106026 | D81: =IF('DF raw data'!H86="","",'DF raw data'!H86) -> -1.70183e-05 | F81: -2.309692322e-05 | G81: 0.000106405255 | H81: -1.707917446e-05 | J81: -0.0002484101308 | K81: -0.001227418781 | L81: 0.001103025459 | M81: 0.005763964966 | N81: 4.562358083e-06
A82: =IF('DF raw data'!E87="","",'DF raw data'!E87) -> -290 | B82: =IF('DF raw data'!F87="","",'DF raw data'!F87) -> -2.44273e-05 | C82: =IF('DF raw data'!G87="","",'DF raw data'!G87) -> 0.000111811 | D82: =IF('DF raw data'!H87="","",'DF raw data'!H87) -> -1.21405e-05 | F82: -2.451467645e-05 | G82: 0.0001122109479 | H82: -1.218392657e-05 | J82: -0.000260667469 | K82: -0.001357752516 | L82: 0.001159130933 | M82: 0.006343530433 | N82: 5.268124108e-06
A83: =IF('DF raw data'!E88="","",'DF raw data'!E88) -> -289.5 | B83: =IF('DF raw data'!F88="","",'DF raw data'!F88) -> -3.37198e-05 | C83: =IF('DF raw data'!G88="","",'DF raw data'!G88) -> 0.00011099 | D83: =IF('DF raw data'!H88="","",'DF raw data'!H88) -> -9.11084e-06 | F83: -3.384041572e-05 | G83: 0.0001113870112 | H83: -9.143429475e-06 | J83: -0.0002775876769 | K83: -0.001496546354 | L83: 0.001214824439 | M83: 0.006950942652 | N83: 6.044550776e-06
A84: =IF('DF raw data'!E89="","",'DF raw data'!E89) -> -289 | B84: =IF('DF raw data'!F89="","",'DF raw data'!F89) -> -1.53893e-05 | C84: =IF('DF raw data'!G89="","",'DF raw data'!G89) -> 0.000108338 | D84: =IF('DF raw data'!H89="","",'DF raw data'!H89) -> -1.84897e-05 | F84: -1.544434753e-05 | G84: 0.000108725525 | H84: -1.855583766e-05 | J84: -0.0002853098507 | K84: -0.00163920128 | L84: 0.001269187201 | M84: 0.007585536253 | N84: 6.890669707e-06
A85: =IF('DF raw data'!E90="","",'DF raw data'!E90) -> -288.5 | B85: =IF('DF raw data'!F90="","",'DF raw data'!F90) -> -3.08291e-05 | C85: =IF('DF raw data'!G90="","",'DF raw data'!G90) -> 0.000112009 | D85: =IF('DF raw data'!H90="","",'DF raw data'!H90) -> -2.05871e-05 | F85: -3.093937569e-05 | G85: 0.0001124096562 | H85: -2.066074006e-05 | J85: -0.0003007795385 | K85: -0.001789591049 | L85: 0.001325392029 | M85: 0.008248232267 | N85: 7.814235888e-06
A86: =IF('DF raw data'!E91="","",'DF raw data'!E91) -> -288 | B86: =IF('DF raw data'!F91="","",'DF raw data'!F91) -> -2.54474e-05 | C86: =IF('DF raw data'!G91="","",'DF raw data'!G91) -> 0.000113773 | D86: =IF('DF raw data'!H91="","",'DF raw data'!H91) -> -2.03771e-05 | F86: -2.553842535e-05 | G86: 0.000114179966 | H86: -2.044998889e-05 | J86: -0.0003135487512 | K86: -0.001946365425 | L86: 0.001382482012 | M86: 0.008939473274 | N86: 8.819020556e-06
A87: =IF('DF raw data'!E92="","",'DF raw data'!E92) -> -287.5 | B87: =IF('DF raw data'!F92="","",'DF raw data'!F92) -> -1.80786e-05 | C87: =IF('DF raw data'!G92="","",'DF raw data'!G92) -> 0.000121293 | D87: =IF('DF raw data'!H92="","",'DF raw data'!H92) -> -2.09982e-05 | F87: -1.814326715e-05 | G87: 0.0001217268651 | H87: -2.107331056e-05 | J87: -0.0003226203847 | K87: -0.002107675617 | L87: 0.001443345445 | M87: 0.009661145996 | N87: 9.912685549e-06
A88: =IF('DF raw data'!E93="","",'DF raw data'!E93) -> -287 | B88: =IF('DF raw data'!F93="","",'DF raw data'!F93) -> -3.06405e-05 | C88: =IF('DF raw data'!G93="","",'DF raw data'!G93) -> 0.000117859 | D88: =IF('DF raw data'!H93="","",'DF raw data'!H93) -> -1.52276e-05 | F88: -3.075010107e-05 | G88: 0.0001182805816 | H88: -1.528206913e-05 | J88: -0.0003379954353 | K88: -0.002276673335 | L88: 0.001502485736 | M88: 0.01041238886 | N88: 1.10985377e-05
A89: =IF('DF raw data'!E94="","",'DF raw data'!E94) -> -286.5 | B89: =IF('DF raw data'!F94="","",'DF raw data'!F94) -> -3.32012e-05 | C89: =IF('DF raw data'!G94="","",'DF raw data'!G94) -> 0.00010088 | D89: =IF('DF raw data'!H94="","",'DF raw data'!H94) -> -1.84802e-05 | F89: -3.331996069e-05 | G89: 0.0001012408478 | H89: -1.854630368e-05 | J89: -0.0003546554156 | K89: -0.002454001042 | L89: 0.00155310616 | M89: 0.01118894194 | N89: 1.23674973e-05
A90: =IF('DF raw data'!E95="","",'DF raw data'!E95) -> -286 | B90: =IF('DF raw data'!F95="","",'DF raw data'!F95) -> -2.69187e-05 | C90: =IF('DF raw data'!G95="","",'DF raw data'!G95) -> 9.28612e-05 | D90: =IF('DF raw data'!H95="","",'DF raw data'!H95) -> -2.36789e-05 | F90: -2.701498819e-05 | G90: 9.319336451e-05 | H90: -2.376359943e-05 | J90: -0.0003681629097 | K90: -0.002638082497 | L90: 0.001599702842 | M90: 0.01198879336 | N90: 1.371479386e-05
A91: =IF('DF raw data'!E96="","",'DF raw data'!E96) -> -285.5 | B91: =IF('DF raw data'!F96="","",'DF raw data'!F96) -> -2.95565e-05 | C91: =IF('DF raw data'!G96="","",'DF raw data'!G96) -> 9.69718e-05 | D91: =IF('DF raw data'!H96="","",'DF raw data'!H96) -> -7.06859e-06 | F91: -2.96622236e-05 | G91: 9.731866813e-05 | H91: -7.093874346e-06 | J91: -0.0003829940215 | K91: -0.002829579508 | L91: 0.001648362176 | M91: 0.01281297445 | N91: 1.5146685e-05
A92: =IF('DF raw data'!E97="","",'DF raw data'!E97) -> -285 | B92: =IF('DF raw data'!F97="","",'DF raw data'!F97) -> -1.41727e-05 | C92: =IF('DF raw data'!G97="","",'DF raw data'!G97) -> 0.000104828 | D92: =IF('DF raw data'!H97="","",'DF raw data'!H97) -> -1.71227e-05 | F92: -1.422339575e-05 | G92: 0.0001052029698 | H92: -1.71839479e-05 | J92: -0.0003901057194 | K92: -0.003024632368 | L92: 0.001700963661 | M92: 0.01366345628 | N92: 1.666941492e-05
A93: =IF('DF raw data'!E98="","",'DF raw data'!E98) -> -284.5 | B93: =IF('DF raw data'!F98="","",'DF raw data'!F98) -> -2.89856e-05 | C93: =IF('DF raw data'!G98="","",'DF raw data'!G98) -> 9.84273e-05 | D93: =IF('DF raw data'!H98="","",'DF raw data'!H98) -> 1.6387e-06 | F93: -2.908928149e-05 | G93: 9.877937445e-05 | H93: 1.64456163e-06 | J93: -0.0004046503601 | K93: -0.003226957548 | L93: 0.001750353348 | M93: 0.01453863296 | N93: 1.82831543e-05
A94: =IF('DF raw data'!E99="","",'DF raw data'!E99) -> -284 | B94: =IF('DF raw data'!F99="","",'DF raw data'!F99) -> -2.03888e-05 | C94: =IF('DF raw data'!G99="","",'DF raw data'!G99) -> 0.000103293 | D94: =IF('DF raw data'!H99="","",'DF raw data'!H99) -> -1.53022e-05 | F94: -2.046173074e-05 | G94: 0.0001036624791 | H94: -1.535693597e-05 | J94: -0.0004148812255 | K94: -0.003434398161 | L94: 0.001802184588 | M94: 0.01543972525 | N94: 1.999315216e-05
A95: =IF('DF raw data'!E100="","",'DF raw data'!E100) -> -283.5 | B95: =IF('DF raw data'!F100="","",'DF raw data'!F100) -> -2.94919e-05 | C95: =IF('DF raw data'!G100="","",'DF raw data'!G100) -> 0.000104415 | D95: =IF('DF raw data'!H100="","",'DF raw data'!H100) -> -8.06056e-06 | F95: -2.959739253e-05 | G95: 0.0001047884925 | H95: -8.089392623e-06 | J95: -0.0004296799218 | K95: -0.003649238121 | L95: 0.001854578834 | M95: 0.01636701467 | N95: 2.18051959e-05
A96: =IF('DF raw data'!E101="","",'DF raw data'!E101) -> -283 | B96: =IF('DF raw data'!F101="","",'DF raw data'!F101) -> -2.82001e-05 | C96: =IF('DF raw data'!G101="","",'DF raw data'!G101) -> 0.000107613 | D96: =IF('DF raw data'!H101="","",'DF raw data'!H101) -> -2.41031e-05 | F96: -2.830097176e-05 | G96: 0.0001079979317 | H96: -2.418931679e-05 | J96: -0.0004438304077 | K96: -0.003871153325 | L96: 0.0019085778 | M96: 0.01732130357 | N96: 2.372502323e-05
A97: =IF('DF raw data'!E102="","",'DF raw data'!E102) -> -282.5 | B97: =IF('DF raw data'!F102="","",'DF raw data'!F102) -> -3.85872e-05 | C97: =IF('DF raw data'!G102="","",'DF raw data'!G102) -> 0.000111252 | D97: =IF('DF raw data'!H102="","",'DF raw data'!H102) -> -1.23761e-05 | F97: -3.872522641e-05 | G97: 0.0001116499484 | H97: -1.242036931e-05 | J97: -0.0004631930209 | K97: -0.004102749836 | L97: 0.001964402774 | M97: 0.01830350495 | N97: 2.576173625e-05
A98: =IF('DF raw data'!E103="","",'DF raw data'!E103) -> -282 | B98: =IF('DF raw data'!F103="","",'DF raw data'!F103) -> -2.46803e-05 | C98: =IF('DF raw data'!G103="","",'DF raw data'!G103) -> 0.000114213 | D98: =IF('DF raw data'!H103="","",'DF raw data'!H103) -> -1.72492e-05 | F98: -2.476858143e-05 | G98: 0.0001146215399 | H98: -1.731090039e-05 | J98: -0.0004755773116 | K98: -0.004340538492 | L98: 0.002021713544 | M98: 0.01931436173 | N98: 2.791848596e-05
A99: =IF('DF raw data'!E104="","",'DF raw data'!E104) -> -281.5 | B99: =IF('DF raw data'!F104="","",'DF raw data'!F104) -> -2.38529e-05 | C99: =IF('DF raw data'!G104="","",'DF raw data'!G104) -> 0.000106555 | D99: =IF('DF raw data'!H104="","",'DF raw data'!H104) -> -8.94609e-06 | F99: -2.393822182e-05 | G99: 0.0001069361472 | H99: -8.978090164e-06 | J99: -0.0004875464225 | K99: -0.004584311703 | L99: 0.002075181617 | M99: 0.02035195254 | N99: 3.019052609e-05
A100: =IF('DF raw data'!E105="","",'DF raw data'!E105) -> -281 | B100: =IF('DF raw data'!F105="","",'DF raw data'!F105) -> -1.89748e-05 | C100: =IF('DF raw data'!G105="","",'DF raw data'!G105) -> 9.96602e-05 | D100: =IF('DF raw data'!H105="","",'DF raw data'!H105) -> -2.22079e-05 | F100: -1.904267286e-05 | G100: 0.0001000166845 | H100: -2.228733766e-05 | J100: -0.0004970677589 | K100: -0.004832845582 | L100: 0.00212518996 | M100: 0.02141454752 | N100: 3.257228045e-05
A101: =IF('DF raw data'!E106="","",'DF raw data'!E106) -> -280.5 | B101: =IF('DF raw data'!F106="","",'DF raw data'!F106) -> -3.21751e-05 | C101: =IF('DF raw data'!G106="","",'DF raw data'!G106) -> 0.000107051 | D101: =IF('DF raw data'!H106="","",'DF raw data'!H106) -> -1.99893e-05 | F101: -3.229019033e-05 | G101: 0.0001074339214 | H101: -2.006080173e-05 | J101: -0.0005132128541 | K101: -0.005089452009 | L101: 0.00217890692 | M101: 0.02250400098 | N101: 3.507779185e-05
A102: =IF('DF raw data'!E107="","",'DF raw data'!E107) -> -280 | B102: =IF('DF raw data'!F107="","",'DF raw data'!F107) -> -2.32116e-05 | C102: =IF('DF raw data'!G107="","",'DF raw data'!G107) -> 0.000113947 | D102: =IF('DF raw data'!H107="","",'DF raw data'!H107) -> -9.86054e-06 | F102: -2.329462789e-05 | G102: 0.0001143545884 | H102: -9.895811152e-06 | J102: -0.000524860168 | K102: -0.005351882093 | L102: 0.002236084215 | M102: 0.02362204308 | N102: 3.771556726e-05
A103: =IF('DF raw data'!E108="","",'DF raw data'!E108) -> -279.5 | B103: =IF('DF raw data'!F108="","",'DF raw data'!F108) -> -2.2759e-05 | C103: =IF('DF raw data'!G108="","",'DF raw data'!G108) -> 0.000108358 | D103: =IF('DF raw data'!H108="","",'DF raw data'!H108) -> -1.6096e-05 | F103: -2.284040894e-05 | G103: 0.0001087455966 | H103: -1.615357539e-05 | J103: -0.0005362803725 | K103: -0.00562002228 | L103: 0.002290457013 | M103: 0.02476727159 | N103: 4.048246224e-05
A104: =IF('DF raw data'!E109="","",'DF raw data'!E109) -> -279 | B104: =IF('DF raw data'!F109="","",'DF raw data'!F109) -> -2.43617e-05 | C104: =IF('DF raw data'!G109="","",'DF raw data'!G109) -> 0.000121432 | D104: =IF('DF raw data'!H109="","",'DF raw data'!H109) -> -1.48261e-05 | F104: -2.44488418e-05 | G104: 0.0001218663623 | H104: -1.487913296e-05 | J104: -0.0005485047934 | K104: -0.005894274676 | L104: 0.002351390194 | M104: 0.02594296669 | N104: 4.339740892e-05
A105: =IF('DF raw data'!E110="","",'DF raw data'!E110) -> -278.5 | B105: =IF('DF raw data'!F110="","",'DF raw data'!F110) -> -1.73894e-05 | C105: =IF('DF raw data'!G110="","",'DF raw data'!G110) -> 0.000118987 | D105: =IF('DF raw data'!H110="","",'DF raw data'!H110) -> 3.21717e-06 | F105: -1.745160188e-05 | G105: 0.0001194126165 | H105: 3.228677817e-06 | J105: -0.0005572305943 | K105: -0.006172889973 | L105: 0.002411096502 | M105: 0.02714851494 | N105: 4.645935506e-05
A106: =IF('DF raw data'!E111="","",'DF raw data'!E111) -> -278 | B106: =IF('DF raw data'!F111="","",'DF raw data'!F111) -> -2.19308e-05 | C106: =IF('DF raw data'!G111="","",'DF raw data'!G111) -> 0.000108982 | D106: =IF('DF raw data'!H111="","",'DF raw data'!H111) -> -9.04512e-06 | F106: -2.200924647e-05 | G106: 0.0001093718286 | H106: -9.077474394e-06 | J106: -0.0005682352176 | K106: -0.006457007582 | L106: 0.002465782417 | M106: 0.02838140615 | N106: 4.966084215e-05
A107: =IF('DF raw data'!E112="","",'DF raw data'!E112) -> -277.5 | B107: =IF('DF raw data'!F112="","",'DF raw data'!F112) -> -1.99439e-05 | C107: =IF('DF raw data'!G112="","",'DF raw data'!G112) -> 0.000107818 | D107: =IF('DF raw data'!H112="","",'DF raw data'!H112) -> -1.00082e-05 | F107: -2.001523933e-05 | G107: 0.000108203665 | H107: -1.004399933e-05 | J107: -0.0005782428372 | K107: -0.006746129001 | L107: 0.002519884249 | M107: 0.02964134827 | N107: 5.300293286e-05
A108: =IF('DF raw data'!E113="","",'DF raw data'!E113) -> -277 | B108: =IF('DF raw data'!F113="","",'DF raw data'!F113) -> -2.44163e-05 | C108: =IF('DF raw data'!G113="","",'DF raw data'!G113) -> 0.000106277 | D108: =IF('DF raw data'!H113="","",'DF raw data'!H113) -> -2.91832e-05 | F108: -2.450363711e-05 | G108: 0.0001066571528 | H108: -2.928758831e-05 | J108: -0.0005904946558 | K108: -0.007041376329 | L108: 0.002573212826 | M108: 0.03092795468 | N108: 5.648798695e-05
A109: =IF('DF raw data'!E114="","",'DF raw data'!E114) -> -276.5 | B109: =IF('DF raw data'!F114="","",'DF raw data'!F114) -> -1.3396e-05 | C109: =IF('DF raw data'!G114="","",'DF raw data'!G114) -> 0.000100459 | D109: =IF('DF raw data'!H114="","",'DF raw data'!H114) -> -2.93025e-05 | F109: -1.344391749e-05 | G109: 0.0001008183418 | H109: -2.940731504e-05 | J109: -0.0005972166145 | K109: -0.007339984636 | L109: 0.002623621996 | M109: 0.03223976568 | N109: 6.010801698e-05
A110: =IF('DF raw data'!E115="","",'DF raw data'!E115) -> -276 | B110: =IF('DF raw data'!F115="","",'DF raw data'!F115) -> -2.48702e-05 | C110: =IF('DF raw data'!G115="","",'DF raw data'!G115) -> 8.80821e-05 | D110: =IF('DF raw data'!H115="","",'DF raw data'!H115) -> -2.10907e-05 | F110: -2.495916071e-05 | G110: 8.839716967e-05 | H110: -2.116614143e-05 | J110: -0.0006096961949 | K110: -0.007644832733 | L110: 0.002667820581 | M110: 0.03357367597 | N110: 6.385251503e-05
A111: =IF('DF raw data'!E116="","",'DF raw data'!E116) -> -275.5 | B111: =IF('DF raw data'!F116="","",'DF raw data'!F116) -> -3.20522e-05 | C111: =IF('DF raw data'!G116="","",'DF raw data'!G116) -> 9.86714e-05 | D111: =IF('DF raw data'!H116="","",'DF raw data'!H116) -> -1.18236e-05 | F111: -3.216685072e-05 | G111: 9.90243476e-05 | H111: -1.186589302e-05 | J111: -0.0006257796203 | K111: -0.007957722544 | L111: 0.002717332755 | M111: 0.03493234235 | N111: 6.774026375e-05
A112: =IF('DF raw data'!E117="","",'DF raw data'!E117) -> -275 | B112: =IF('DF raw data'!F117="","",'DF raw data'!F117) -> -2.86516e-05 | C112: =IF('DF raw data'!G117="","",'DF raw data'!G117) -> 9.9842e-05 | D112: =IF('DF raw data'!H117="","",'DF raw data'!H117) -> -1.93061e-05 | F112: -2.875408677e-05 | G112: 0.0001001991348 | H112: -1.937515792e-05 | J112: -0.0006401566636 | K112: -0.008277800875 | L112: 0.002767432323 | M112: 0.03631605851 | N112: 7.177450486e-05
A113: =IF('DF raw data'!E118="","",'DF raw data'!E118) -> -274.5 | B113: =IF('DF raw data'!F118="","",'DF raw data'!F118) -> -2.05804e-05 | C113: =IF('DF raw data'!G118="","",'DF raw data'!G118) -> 0.000107554 | D113: =IF('DF raw data'!H118="","",'DF raw data'!H118) -> -1.64168e-05 | F113: -2.065401609e-05 | G113: 0.0001079387207 | H113: -1.647552289e-05 | J113: -0.0006504836717 | K113: -0.008603042711 | L113: 0.002821401683 | M113: 0.03772675935 | N113: 7.596622309e-05
A114: =IF('DF raw data'!E119="","",'DF raw data'!E119) -> -274 | B114: =IF('DF raw data'!F119="","",'DF raw data'!F119) -> -2.23156e-05 | C114: =IF('DF raw data'!G119="","",'DF raw data'!G119) -> 9.96203e-05 | D114: =IF('DF raw data'!H119="","",'DF raw data'!H119) -> -8.43631e-06 | F114: -2.23954229e-05 | G114: 9.997664181e-05 | H114: -8.466486681e-06 | J114: -0.0006616813831 | K114: -0.008933883403 | L114: 0.002871390004 | M114: 0.03916245435 | N114: 8.030757449e-05
A115: =IF('DF raw data'!E120="","",'DF raw data'!E120) -> -273.5 | B115: =IF('DF raw data'!F120="","",'DF raw data'!F120) -> -3.53849e-05 | C115: =IF('DF raw data'!G120="","",'DF raw data'!G120) -> 9.34941e-05 | D115: =IF('DF raw data'!H120="","",'DF raw data'!H120) -> -1.06962e-05 | F115: -3.551147179e-05 | G115: 9.38285284e-05 | H115: -1.073446031e-05 | J115: -0.000679437119 | K115: -0.009273601962 | L115: 0.002918304268 | M115: 0.04062160649 | N115: 8.479664179e-05
A116: =IF('DF raw data'!E121="","",'DF raw data'!E121) -> -273 | B116: =IF('DF raw data'!F121="","",'DF raw data'!F121) -> -1.29573e-05 | C116: =IF('DF raw data'!G121="","",'DF raw data'!G121) -> 9.84453e-05 | D116: =IF('DF raw data'!H121="","",'DF raw data'!H121) -> -1.40422e-05 | F116: -1.300364826e-05 | G116: 9.879743884e-05 | H116: -1.409242895e-05 | J116: -0.0006859389432 | K116: -0.009616571434 | L116: 0.002967702987 | M116: 0.04210545798 | N116: 8.943552842e-05
A117: =IF('DF raw data'!E122="","",'DF raw data'!E122) -> -272.5 | B117: =IF('DF raw data'!F122="","",'DF raw data'!F122) -> -1.8145e-05 | C117: =IF('DF raw data'!G122="","",'DF raw data'!G122) -> 9.57108e-05 | D117: =IF('DF raw data'!H122="","",'DF raw data'!H122) -> -1.76319e-05 | F117: -1.820990466e-05 | G117: 9.605315753e-05 | H117: -1.769496931e-05 | J117: -0.0006950438955 | K117: -0.009964093382 | L117: 0.003015729566 | M117: 0.04361332277 | N117: 9.422438384e-05
A118: =IF('DF raw data'!E123="","",'DF raw data'!E123) -> -272 | B118: =IF('DF raw data'!F123="","",'DF raw data'!F123) -> -2.30037e-05 | C118: =IF('DF raw data'!G123="","",'DF raw data'!G123) -> 9.93362e-05 | D118: =IF('DF raw data'!H123="","",'DF raw data'!H123) -> -3.39167e-05 | F118: -2.308598423e-05 | G118: 9.969152559e-05 | H118: -3.403802004e-05 | J118: -0.0007065868876 | K118: -0.01031738683 | L118: 0.003065575329 | M118: 0.04514611043 | N118: 9.91728924e-05
A119: =IF('DF raw data'!E124="","",'DF raw data'!E124) -> -271.5 | B119: =IF('DF raw data'!F124="","",'DF raw data'!F124) -> -2.47426e-05 | C119: =IF('DF raw data'!G124="","",'DF raw data'!G124) -> 9.42282e-05 | D119: =IF('DF raw data'!H124="","",'DF raw data'!H124) -> -2.01546e-05 | F119: -2.483110428e-05 | G119: 9.456525427e-05 | H119: -2.0226693e-05 | J119: -0.0007190024398 | K119: -0.01067688805 | L119: 0.003112857956 | M119: 0.04670253941 | N119: 0.000104276317
A120: =IF('DF raw data'!E125="","",'DF raw data'!E125) -> -271 | B120: =IF('DF raw data'!F125="","",'DF raw data'!F125) -> -2.81421e-05 | C120: =IF('DF raw data'!G125="","",'DF raw data'!G125) -> 9.20111e-05 | D120: =IF('DF raw data'!H125="","",'DF raw data'!H125) -> -1.4469e-05 | F120: -2.824276429e-05 | G120: 9.23402237e-05 | H120: -1.452075561e-05 | J120: -0.0007331238219 | K120: -0.01104344996 | L120: 0.003159028068 | M120: 0.04828205344 | N120: 0.0001095347814
A121: =IF('DF raw data'!E126="","",'DF raw data'!E126) -> -270.5 | B121: =IF('DF raw data'!F126="","",'DF raw data'!F126) -> -8.79463e-06 | C121: =IF('DF raw data'!G126="","",'DF raw data'!G126) -> 9.12337e-05 | D121: =IF('DF raw data'!H126="","",'DF raw data'!H126) -> -1.09197e-05 | F121: -8.826088392e-06 | G121: 9.156004294e-05 | H121: -1.095875977e-05 | J121: -0.0007375368661 | K121: -0.01141221839 | L121: 0.003204808089 | M121: 0.04988445749 | N121: 0.0001149421592
A122: =IF('DF raw data'!E127="","",'DF raw data'!E127) -> -270 | B122: =IF('DF raw data'!F127="","",'DF raw data'!F127) -> -2.33321e-05 | C122: =IF('DF raw data'!G127="","",'DF raw data'!G127) -> 9.07617e-05 | D122: =IF('DF raw data'!H127="","",'DF raw data'!H127) -> -2.1682e-05 | F122: -2.341555892e-05 | G122: 9.10863546e-05 | H122: -2.175955651e-05 | J122: -0.0007492446456 | K122: -0.01178684071 | L122: 0.003250351267 | M122: 0.05150963312 | N122: 0.0001205052346
A123: =IF('DF raw data'!E128="","",'DF raw data'!E128) -> -269.5 | B123: =IF('DF raw data'!F128="","",'DF raw data'!F128) -> -2.77428e-05 | C123: =IF('DF raw data'!G128="","",'DF raw data'!G128) -> 9.39643e-05 | D123: =IF('DF raw data'!H128="","",'DF raw data'!H128) -> -3.74664e-05 | F123: -2.7842036e-05 | G123: 9.43004103e-05 | H123: -3.760041731e-05 | J123: -0.0007631656636 | K123: -0.01216842354 | L123: 0.003297501472 | M123: 0.05315838386 | N123: 0.0001262332035
A124: =IF('DF raw data'!E129="","",'DF raw data'!E129) -> -269 | B124: =IF('DF raw data'!F129="","",'DF raw data'!F129) -> -2.94263e-05 | C124: =IF('DF raw data'!G129="","",'DF raw data'!G129) -> 0.000100667 | D124: =IF('DF raw data'!H129="","",'DF raw data'!H129) -> -1.01609e-05 | F124: -2.953155788e-05 | G124: 0.0001010270859 | H124: -1.019724554e-05 | J124: -0.0007779314425 | K124: -0.01255738927 | L124: 0.003348015015 | M124: 0.05483239136 | N124: 0.0001321403945
A125: =IF('DF raw data'!E130="","",'DF raw data'!E130) -> -268.5 | B125: =IF('DF raw data'!F130="","",'DF raw data'!F130) -> -2.78199e-05 | C125: =IF('DF raw data'!G130="","",'DF raw data'!G130) -> 9.08062e-05 | D125: =IF('DF raw data'!H130="","",'DF raw data'!H130) -> -1.72545e-05 | F125: -2.791941178e-05 | G125: 9.113101378e-05 | H125: -1.731621935e-05 | J125: -0.0007918911484 | K125: -0.01295333484 | L125: 0.003393580522 | M125: 0.05652918162 | N125: 0.0001382121346
A126: =IF('DF raw data'!E131="","",'DF raw data'!E131) -> -268 | B126: =IF('DF raw data'!F131="","",'DF raw data'!F131) -> -2.35315e-05 | C126: =IF('DF raw data'!G131="","",'DF raw data'!G131) -> 9.15327e-05 | D126: =IF('DF raw data'!H131="","",'DF raw data'!H131) -> -1.04766e-05 | F126: -2.361567218e-05 | G126: 9.186011247e-05 | H126: -1.05140748e-05 | J126: -0.0008036989845 | K126: -0.01335518433 | L126: 0.003439510578 | M126: 0.05824893691 | N126: 0.0001444502172
A127: =IF('DF raw data'!E132="","",'DF raw data'!E132) -> -267.5 | B127: =IF('DF raw data'!F132="","",'DF raw data'!F132) -> -3.32723e-05 | C127: =IF('DF raw data'!G132="","",'DF raw data'!G132) -> 8.73146e-05 | D127: =IF('DF raw data'!H132="","",'DF raw data'!H132) -> -7.85946e-06 | F127: -3.339131502e-05 | G127: 8.762692432e-05 | H127: -7.887573288e-06 | J127: -0.000820394642 | K127: -0.01376538165 | L127: 0.00348332404 | M127: 0.05999059893 | N127: 0.000150853514
A128: =IF('DF raw data'!E133="","",'DF raw data'!E133) -> -267 | B128: =IF('DF raw data'!F133="","",'DF raw data'!F133) -> -1.94205e-05 | C128: =IF('DF raw data'!G133="","",'DF raw data'!G133) -> 9.20584e-05 | D128: =IF('DF raw data'!H133="","",'DF raw data'!H133) -> -2.66662e-05 | F128: =(1-$G$1*($B$49-$G$2))*B128 -> -1.948996713e-05 | G128: 9.23876929e-05 | H128: -2.6761585e-05 | J128: =F128*$G$3+J127 -> -0.0008301396255 | K128: =J128*$G$3+K127 -> -0.01418045147 | L128: =G128*$G$3+L127 -> 0.003529517887 | M128: =L128*$G$3+M127 -> 0.06175535788 | N128: =(J128^2+L128^2)*$G$3+N127 -> 0.0001574268282
A129: =IF('DF raw data'!E134="","",'DF raw data'!E134) -> -266.5 | B129: =IF('DF raw data'!F134="","",'DF raw data'!F134) -> -2.788e-05 | C129: =IF('DF raw data'!G134="","",'DF raw data'!G134) -> 0.000101407 | D129: =IF('DF raw data'!H134="","",'DF raw data'!H134) -> -2.35806e-05 | F129: -2.797972676e-05 | G129: 0.0001017697328 | H129: -2.366494781e-05 | J129: -0.0008441294889 | K129: -0.01460251621 | L129: 0.003580402753 | M129: 0.06354555925 | N129: 0.0001641927474
A130: =IF('DF raw data'!E135="","",'DF raw data'!E135) -> -266 | B130: =IF('DF raw data'!F135="","",'DF raw data'!F135) -> -3.35214e-05 | C130: =IF('DF raw data'!G135="","",'DF raw data'!G135) -> 0.000102392 | D130: =IF('DF raw data'!H135="","",'DF raw data'!H135) -> -1.88814e-05 | F130: -3.364130605e-05 | G130: 0.0001027582562 | H130: -1.894893877e-05 | J130: -0.000860950142 | K130: -0.01503299128 | L130: 0.003631781881 | M130: 0.06536145019 | N130: 0.0001711582848
A131: =IF('DF raw data'!E136="","",'DF raw data'!E136) -> -265.5 | B131: =IF('DF raw data'!F136="","",'DF raw data'!F136) -> -2.57032e-05 | C131: =IF('DF raw data'!G136="","",'DF raw data'!G136) -> 0.000101858 | D131: =IF('DF raw data'!H136="","",'DF raw data'!H136) -> -2.11057e-05 | F131: -2.579514035e-05 | G131: 0.0001022223461 | H131: -2.118119509e-05 | J131: -0.0008738477121 | K131: -0.01546991514 | L131: 0.003682893054 | M131: 0.06720289672 | N131: 0.0001783219403
A132: =IF('DF raw data'!E137="","",'DF raw data'!E137) -> -265 | B132: =IF('DF raw data'!F137="","",'DF raw data'!F137) -> -2.79545e-05 | C132: =IF('DF raw data'!G137="","",'DF raw data'!G137) -> 0.000102322 | D132: =IF('DF raw data'!H137="","",'DF raw data'!H137) -> -7.30824e-06 | F132: -2.805449325e-05 | G132: 0.0001026880058 | H132: -7.334381574e-06 | J132: -0.0008878749587 | K132: -0.01591385262 | L132: 0.003734237057 | M132: 0.06907001525 | N132: 0.0001856883645
A133: =IF('DF raw data'!E138="","",'DF raw data'!E138) -> -264.5 | B133: =IF('DF raw data'!F138="","",'DF raw data'!F138) -> -1.59018e-05 | C133: =IF('DF raw data'!G138="","",'DF raw data'!G138) -> 0.000101837 | D133: =IF('DF raw data'!H138="","",'DF raw data'!H138) -> -1.85519e-05 | F133: -1.595868074e-05 | G133: 0.0001022012709 | H133: -1.861826015e-05 | J133: -0.0008958542991 | K133: -0.01636177977 | L133: 0.003785337692 | M133: 0.07096268409 | N133: 0.0001932540327
A134: =IF('DF raw data'!E139="","",'DF raw data'!E139) -> -264 | B134: =IF('DF raw data'!F139="","",'DF raw data'!F139) -> -1.58371e-05 | C134: =IF('DF raw data'!G139="","",'DF raw data'!G139) -> 0.000114671 | D134: =IF('DF raw data'!H139="","",'DF raw data'!H139) -> -1.92864e-05 | F134: -1.589374931e-05 | G134: 0.0001150811782 | H134: -1.935538745e-05 | J134: -0.0009038011738 | K134: -0.01681368035 | L134: 0.003842878282 | M134: 0.07288412324 | N134: 0.0002010463177
A135: =IF('DF raw data'!E140="","",'DF raw data'!E140) -> -263.5 | B135: =IF('DF raw data'!F140="","",'DF raw data'!F140) -> -3.32652e-05 | C135: =IF('DF raw data'!G140="","",'DF raw data'!G140) -> 0.000110105 | D135: =IF('DF raw data'!H140="","",'DF raw data'!H140) -> -1.87451e-05 | F135: -3.338418962e-05 | G135: 0.0001104988456 | H135: -1.881215122e-05 | J135: -0.0009204932686 | K135: -0.01727392699 | L135: 0.003898127704 | M135: 0.07483318709 | N135: 0.0002090676715
A136: =IF('DF raw data'!E141="","",'DF raw data'!E141) -> -263 | B136: =IF('DF raw data'!F141="","",'DF raw data'!F141) -> -6.80416e-06 | C136: =IF('DF raw data'!G141="","",'DF raw data'!G141) -> 0.000115394 | D136: =IF('DF raw data'!H141="","",'DF raw data'!H141) -> -1.73634e-05 | F136: -6.82849848e-06 | G136: 0.0001158067643 | H136: -1.742550888e-05 | J136: -0.0009239075178 | K136: -0.01773588075 | L136: 0.003956031086 | M136: 0.07681120263 | N136: 0.000217319565
A137: =IF('DF raw data'!E142="","",'DF raw data'!E142) -> -262.5 | B137: =IF('DF raw data'!F142="","",'DF raw data'!F142) -> -2.46822e-05 | C137: =IF('DF raw data'!G142="","",'DF raw data'!G142) -> 0.000107716 | D137: =IF('DF raw data'!H142="","",'DF raw data'!H142) -> -1.43303e-05 | F137: -2.477048823e-05 | G137: 0.0001081013001 | H137: -1.438155948e-05 | J137: -0.0009362927619 | K137: -0.01820402713 | L137: 0.004010081737 | M137: 0.0788162435 | N137: 0.0002257982648
A138: =IF('DF raw data'!E143="","",'DF raw data'!E143) -> -262 | B138: =IF('DF raw data'!F143="","",'DF raw data'!F143) -> -1.8401e-05 | C138: =IF('DF raw data'!G143="","",'DF raw data'!G143) -> 0.000104829 | D138: =IF('DF raw data'!H143="","",'DF raw data'!H143) -> -1.80637e-05 | F138: -1.846682038e-05 | G138: 0.0001052039733 | H138: -1.812831385e-05 | J138: -0.0009455261721 | K138: -0.01867679021 | L138: 0.004062683723 | M138: 0.08084758536 | N138: 0.0002344979742
A139: =IF('DF raw data'!E144="","",'DF raw data'!E144) -> -261.5 | B139: =IF('DF raw data'!F144="","",'DF raw data'!F144) -> -2.43601e-05 | C139: =IF('DF raw data'!G144="","",'DF raw data'!G144) -> 0.000103468 | D139: =IF('DF raw data'!H144="","",'DF raw data'!H144) -> -1.72432e-05 | F139: -2.444723608e-05 | G139: 0.000103838105 | H139: -1.730487893e-05 | J139: -0.0009577497902 | K139: -0.01915566511 | L139: 0.004114602776 | M139: 0.08290488675 | N139: 0.0002434215945
A140: =IF('DF raw data'!E145="","",'DF raw data'!E145) -> -261 | B140: =IF('DF raw data'!F145="","",'DF raw data'!F145) -> -2.53123e-05 | C140: =IF('DF raw data'!G145="","",'DF raw data'!G145) -> 0.000104916 | D140: =IF('DF raw data'!H145="","",'DF raw data'!H145) -> -3.11562e-05 | F140: -2.54028421e-05 | G140: 0.0001052912845 | H140: -3.126764573e-05 | J140: -0.0009704512112 | K140: -0.01964089071 | L140: 0.004167248418 | M140: 0.08498851096 | N140: 0.000252575462
A141: =IF('DF raw data'!E146="","",'DF raw data'!E146) -> -260.5 | B141: =IF('DF raw data'!F146="","",'DF raw data'!F146) -> -2.53189e-05 | C141: =IF('DF raw data'!G146="","",'DF raw data'!G146) -> 9.24208e-05 | D141: =IF('DF raw data'!H146="","",'DF raw data'!H146) -> -2.08821e-05 | F141: -2.540946571e-05 | G141: 9.27513892e-05 | H141: -2.095679527e-05 | J141: -0.0009831559441 | K141: -0.02013246869 | L141: 0.004213624113 | M141: 0.08709532301 | N141: 0.0002619360739
A142: =IF('DF raw data'!E147="","",'DF raw data'!E147) -> -260 | B142: =IF('DF raw data'!F147="","",'DF raw data'!F147) -> -1.10933e-05 | C142: =IF('DF raw data'!G147="","",'DF raw data'!G147) -> 9.19319e-05 | D142: =IF('DF raw data'!H147="","",'DF raw data'!H147) -> -2.29273e-05 | F142: -1.113298073e-05 | G142: 9.226074041e-05 | H142: -2.300931095e-05 | J142: -0.0009887224344 | K142: -0.0206268299 | L142: 0.004259754483 | M142: 0.08922520026 | N142: 0.000271497614
A143: =IF('DF raw data'!E148="","",'DF raw data'!E148) -> -259.5 | B143: =IF('DF raw data'!F148="","",'DF raw data'!F148) -> -1.64683e-05 | C143: =IF('DF raw data'!G148="","",'DF raw data'!G148) -> 9.32575e-05 | D143: =IF('DF raw data'!H148="","",'DF raw data'!H148) -> -3.40288e-05 | F143: -1.652720711e-05 | G143: 9.359108208e-05 | H143: -3.415052102e-05 | J143: -0.000996986038 | K143: -0.02112532292 | L143: 0.004306550024 | M143: 0.09137847527 | N143: 0.0002812677912
A144: =IF('DF raw data'!E149="","",'DF raw data'!E149) -> -259 | B144: =IF('DF raw data'!F149="","",'DF raw data'!F149) -> -1.20533e-05 | C144: =IF('DF raw data'!G149="","",'DF raw data'!G149) -> 9.55442e-05 | D144: =IF('DF raw data'!H149="","",'DF raw data'!H149) -> -2.48617e-05 | F144: -1.209641465e-05 | G144: 9.58859616e-05 | H144: -2.49506303e-05 | J144: -0.001003034245 | K144: -0.02162684004 | L144: 0.004354493005 | M144: 0.09355572177 | N144: 0.0002912516347
A145: =IF('DF raw data'!E150="","",'DF raw data'!E150) -> -258.5 | B145: =IF('DF raw data'!F150="","",'DF raw data'!F150) -> -1.01372e-05 | C145: =IF('DF raw data'!G150="","",'DF raw data'!G150) -> 9.30544e-05 | D145: =IF('DF raw data'!H150="","",'DF raw data'!H150) -> -1.55815e-05 | F145: -1.017346076e-05 | G145: 9.338725559e-05 | H145: -1.563723503e-05 | J145: -0.001008120976 | K145: -0.02213090053 | L145: 0.004401186632 | M145: 0.09575631509 | N145: 0.0003014450105
A146: =IF('DF raw data'!E151="","",'DF raw data'!E151) -> -258 | B146: =IF('DF raw data'!F151="","",'DF raw data'!F151) -> -1.7114e-05 | C146: =IF('DF raw data'!G151="","",'DF raw data'!G151) -> 9.24057e-05 | D146: =IF('DF raw data'!H151="","",'DF raw data'!H151) -> -2.62206e-05 | F146: -1.717521678e-05 | G146: 9.273623519e-05 | H146: -2.631439109e-05 | J146: -0.001016708584 | K146: -0.02263925482 | L146: 0.00444755475 | M146: 0.09798009246 | N146: 0.0003118522303
A147: =IF('DF raw data'!E152="","",'DF raw data'!E152) -> -257.5 | B147: =IF('DF raw data'!F152="","",'DF raw data'!F152) -> -3.0118e-05 | C147: =IF('DF raw data'!G152="","",'DF raw data'!G152) -> 8.94685e-05 | D147: =IF('DF raw data'!H152="","",'DF raw data'!H152) -> -3.06192e-05 | F147: -3.022573209e-05 | G147: 8.978852882e-05 | H147: -3.072872488e-05 | J147: -0.00103182145 | K147: -0.02315516555 | L147: 0.004492449014 | M147: 0.100226317 | N147: 0.0003224756071
A148: =IF('DF raw data'!E153="","",'DF raw data'!E153) -> -257 | B148: =IF('DF raw data'!F153="","",'DF raw data'!F153) -> -2.30147e-05 | C148: =IF('DF raw data'!G153="","",'DF raw data'!G153) -> 8.78148e-05 | D148: =IF('DF raw data'!H153="","",'DF raw data'!H153) -> -1.7011e-05 | F148: -2.309702358e-05 | G148: 8.812891354e-05 | H148: -1.707184835e-05 | J148: -0.001043369962 | K148: -0.02367685053 | L148: 0.004536513471 | M148: 0.1024945737 | N148: 0.0003333098948
A149: =IF('DF raw data'!E154="","",'DF raw data'!E154) -> -256.5 | B149: =IF('DF raw data'!F154="","",'DF raw data'!F154) -> -1.49455e-05 | C149: =IF('DF raw data'!G154="","",'DF raw data'!G154) -> 8.31981e-05 | D149: =IF('DF raw data'!H154="","",'DF raw data'!H154) -> -1.10349e-05 | F149: -1.499896005e-05 | G149: 8.34956996e-05 | H149: -1.107437184e-05 | J149: -0.001050869442 | K149: -0.02420228525 | L149: 0.004578261321 | M149: 0.1047837044 | N149: 0.0003443422965
A150: =IF('DF raw data'!E155="","",'DF raw data'!E155) -> -256 | B150: =IF('DF raw data'!F155="","",'DF raw data'!F155) -> -1.48143e-05 | C150: =IF('DF raw data'!G155="","",'DF raw data'!G155) -> 8.20299e-05 | D150: =IF('DF raw data'!H155="","",'DF raw data'!H155) -> -1.57193e-05 | F150: -1.486729075e-05 | G150: 8.232332095e-05 | H150: -1.577552794e-05 | J150: -0.001058303087 | K150: -0.0247314368 | L150: 0.004619422981 | M150: 0.1070934159 | N150: 0.0003555718335
A151: =IF('DF raw data'!E156="","",'DF raw data'!E156) -> -255.5 | B151: =IF('DF raw data'!F156="","",'DF raw data'!F156) -> -8.65638e-06 | C151: =IF('DF raw data'!G156="","",'DF raw data'!G156) -> 8.72705e-05 | D151: =IF('DF raw data'!H156="","",'DF raw data'!H156) -> -2.65089e-05 | F151: -8.687343871e-06 | G151: 8.758266658e-05 | H151: -2.660372234e-05 | J151: -0.001062646759 | K151: -0.02526276017 | L151: 0.004663214315 | M151: 0.109425023 | N151: 0.0003670092265
A152: =IF('DF raw data'!E157="","",'DF raw data'!E157) -> -255 | B152: =IF('DF raw data'!F157="","",'DF raw data'!F157) -> -1.05846e-05 | C152: =IF('DF raw data'!G157="","",'DF raw data'!G157) -> 8.83702e-05 | D152: =IF('DF raw data'!H157="","",'DF raw data'!H157) -> -1.70762e-05 | F152: -1.062246111e-05 | G152: 8.868630021e-05 | H152: -1.713728157e-05 | J152: -0.00106795799 | K152: -0.02579673917 | L152: 0.004707557465 | M152: 0.1117788017 | N152: 0.0003786600422
A153: =IF('DF raw data'!E158="","",'DF raw data'!E158) -> -254.5 | B153: =IF('DF raw data'!F158="","",'DF raw data'!F158) -> -1.07821e-05 | C153: =IF('DF raw data'!G158="","",'DF raw data'!G158) -> 9.08177e-05 | D153: =IF('DF raw data'!H158="","",'DF raw data'!H158) -> -9.14182e-06 | F153: -1.082066757e-05 | G153: 9.114255491e-05 | H153: -9.17452029e-06 | J153: -0.001073368324 | K153: -0.02633342333 | L153: 0.004753128742 | M153: 0.1141553661 | N153: 0.0003905322184
A154: =IF('DF raw data'!E159="","",'DF raw data'!E159) -> -254 | B154: =IF('DF raw data'!F159="","",'DF raw data'!F159) -> -1.2315e-05 | C154: =IF('DF raw data'!G159="","",'DF raw data'!G159) -> 9.81519e-05 | D154: =IF('DF raw data'!H159="","",'DF raw data'!H159) -> -1.64956e-05 | F154: -1.235905075e-05 | G154: 9.850298935e-05 | H154: -1.655460476e-05 | J154: -0.001079547849 | K154: -0.02687319726 | L154: 0.004802380237 | M154: 0.1165565562 | N154: 0.0004026463582
A155: =IF('DF raw data'!E160="","",'DF raw data'!E160) -> -253.5 | B155: =IF('DF raw data'!F160="","",'DF raw data'!F160) -> -2.94844e-05 | C155: =IF('DF raw data'!G160="","",'DF raw data'!G160) -> 9.83431e-05 | D155: =IF('DF raw data'!H160="","",'DF raw data'!H160) -> -1.96892e-05 | F155: -2.95898657e-05 | G155: 9.869487327e-05 | H155: -1.975962827e-05 | J155: -0.001094342782 | K155: -0.02742036865 | L155: 0.004851727674 | M155: 0.1189824201 | N155: 0.000415014782
A156: =IF('DF raw data'!E161="","",'DF raw data'!E161) -> -253 | B156: =IF('DF raw data'!F161="","",'DF raw data'!F161) -> -1.19204e-05 | C156: =IF('DF raw data'!G161="","",'DF raw data'!G161) -> 9.34845e-05 | D156: =IF('DF raw data'!H161="","",'DF raw data'!H161) -> -3.21048e-05 | F156: -1.196303927e-05 | G156: 9.381889406e-05 | H156: -3.221963887e-05 | J156: -0.001100324301 | K156: -0.0279705308 | L156: 0.004898637121 | M156: 0.1214317386 | N156: 0.0004276184616
A157: =IF('DF raw data'!E162="","",'DF raw data'!E162) -> -252.5 | B157: =IF('DF raw data'!F162="","",'DF raw data'!F162) -> -2.37189e-05 | C157: =IF('DF raw data'!G162="","",'DF raw data'!G162) -> 8.75824e-05 | D157: =IF('DF raw data'!H162="","",'DF raw data'!H162) -> -1.80465e-05 | F157: -2.380374251e-05 | G157: 8.789568224e-05 | H157: -1.811105233e-05 | J157: -0.001112226173 | K157: -0.02852664388 | L157: 0.004942584962 | M157: 0.1239030311 | N157: 0.0004404515582
A158: =IF('DF raw data'!E163="","",'DF raw data'!E163) -> -252 | B158: =IF('DF raw data'!F163="","",'DF raw data'!F163) -> -2.62148e-05 | C158: =IF('DF raw data'!G163="","",'DF raw data'!G163) -> 9.43375e-05 | D158: =IF('DF raw data'!H163="","",'DF raw data'!H163) -> -2.25513e-05 | F158: -2.630857034e-05 | G158: 9.467494524e-05 | H158: -2.2631966e-05 | J158: -0.001125380458 | K158: -0.02908933411 | L158: 0.004989922434 | M158: 0.1263979923 | N158: 0.0004535344617
A159: =IF('DF raw data'!E164="","",'DF raw data'!E164) -> -251.5 | B159: =IF('DF raw data'!F164="","",'DF raw data'!F164) -> -2.56336e-05 | C159: =IF('DF raw data'!G164="","",'DF raw data'!G164) -> 8.94387e-05 | D159: =IF('DF raw data'!H164="","",'DF raw data'!H164) -> -2.94479e-05 | F159: -2.572529139e-05 | G159: 8.975862223e-05 | H159: -2.955323514e-05 | J159: -0.001138243104 | K159: -0.02965845566 | L159: 0.005034801746 | M159: 0.1289153932 | N159: 0.0004668568747
A160: =IF('DF raw data'!E165="","",'DF raw data'!E165) -> -251 | B160: =IF('DF raw data'!F165="","",'DF raw data'!F165) -> -3.51171e-05 | C160: =IF('DF raw data'!G165="","",'DF raw data'!G165) -> 9.52523e-05 | D160: =IF('DF raw data'!H165="","",'DF raw data'!H165) -> -2.84044e-05 | F160: -3.524271387e-05 | G160: 9.559301748e-05 | H160: -2.850600254e-05 | J160: -0.001155864461 | K160: -0.03023638789 | L160: 0.005082598254 | M160: 0.1314566923 | N160: 0.0004804412885
A161: =IF('DF raw data'!E166="","",'DF raw data'!E166) -> -250.5 | B161: =IF('DF raw data'!F166="","",'DF raw data'!F166) -> -2.98696e-05 | C161: =IF('DF raw data'!G166="","",'DF raw data'!G166) -> 9.79887e-05 | D161: =IF('DF raw data'!H166="","",'DF raw data'!H166) -> -1.84422e-05 | F161: -2.997644356e-05 | G161: 9.833920558e-05 | H161: -1.850816775e-05 | J161: -0.001170852682 | K161: -0.03082181424 | L161: 0.005131767857 | M161: 0.1340225763 | N161: 0.0004942942572
A162: =IF('DF raw data'!E167="","",'DF raw data'!E167) -> -250 | B162: =IF('DF raw data'!F167="","",'DF raw data'!F167) -> -1.55771e-05 | C162: =IF('DF raw data'!G167="","",'DF raw data'!G167) -> 9.21804e-05 | D162: =IF('DF raw data'!H167="","",'DF raw data'!H167) -> -2.51045e-05 | F162: -1.563281929e-05 | G162: 9.251012929e-05 | H162: -2.51942988e-05 | J162: -0.001178669092 | K162: -0.03141114878 | L162: 0.005178022922 | M162: 0.1366115877 | N162: 0.0005083948483
A163: =IF('DF raw data'!E168="","",'DF raw data'!E168) -> -249.5 | B163: =IF('DF raw data'!F168="","",'DF raw data'!F168) -> -2.87251e-05 | C163: =IF('DF raw data'!G168="","",'DF raw data'!G168) -> 9.72834e-05 | D163: =IF('DF raw data'!H168="","",'DF raw data'!H168) -> -4.91193e-06 | F163: -2.882784968e-05 | G163: 9.763138272e-05 | H163: -4.929499974e-06 | J163: -0.001193083017 | K163: -0.03200769029 | L163: 0.005226838613 | M163: 0.139225007 | N163: 0.0005227664928
A164: =IF('DF raw data'!E169="","",'DF raw data'!E169) -> -249 | B164: =IF('DF raw data'!F169="","",'DF raw data'!F169) -> -7.12025e-06 | C164: =IF('DF raw data'!G169="","",'DF raw data'!G169) -> 0.000103271 | D164: =IF('DF raw data'!H169="","",'DF raw data'!H169) -> -2.41373e-05 | F164: -7.145719134e-06 | G164: 0.0001036404004 | H164: -2.422363912e-05 | J164: -0.001196655876 | K164: -0.03260601823 | L164: 0.005278658813 | M164: 0.1418643364 | N164: 0.0005374146049
A165: =IF('DF raw data'!E170="","",'DF raw data'!E170) -> -248.5 | B165: =IF('DF raw data'!F170="","",'DF raw data'!F170) -> -2.67867e-05 | C165: =IF('DF raw data'!G170="","",'DF raw data'!G170) -> 0.00010047 | D165: =IF('DF raw data'!H170="","",'DF raw data'!H170) -> -2.97426e-05 | F165: -2.688251603e-05 | G165: 0.0001008293812 | H165: -2.984898928e-05 | J165: -0.001210097134 | K165: -0.0332110668 | L165: 0.005329073504 | M165: 0.1445288732 | N165: 0.0005523462846
A166: =IF('DF raw data'!E171="","",'DF raw data'!E171) -> -248 | B166: =IF('DF raw data'!F171="","",'DF raw data'!F171) -> -2.14686e-05 | C166: =IF('DF raw data'!G171="","",'DF raw data'!G171) -> 0.000104564 | D166: =IF('DF raw data'!H171="","",'DF raw data'!H171) -> -2.9986e-05 | F166: -2.154539318e-05 | G166: 0.0001049380254 | H166: -3.009325992e-05 | J166: -0.001220869831 | K166: -0.03382150171 | L166: 0.005381542517 | M166: 0.1472196444 | N166: 0.0005675720461
A167: =IF('DF raw data'!E172="","",'DF raw data'!E172) -> -247.5 | B167: =IF('DF raw data'!F172="","",'DF raw data'!F172) -> -1.60967e-05 | C167: =IF('DF raw data'!G172="","",'DF raw data'!G172) -> 0.000101356 | D167: =IF('DF raw data'!H172="","",'DF raw data'!H172) -> -1.42832e-05 | F167: -1.61542779e-05 | G167: 0.0001017185504 | H167: -1.433429101e-05 | J167: -0.00122894697 | K167: -0.0344359752 | L167: 0.005432401792 | M167: 0.1499358453 | N167: 0.000583082696
A168: =IF('DF raw data'!E173="","",'DF raw data'!E173) -> -247 | B168: =IF('DF raw data'!F173="","",'DF raw data'!F173) -> -2.76906e-05 | C168: =IF('DF raw data'!G173="","",'DF raw data'!G173) -> 0.000101846 | D168: =IF('DF raw data'!H173="","",'DF raw data'!H173) -> -1.906e-05 | F168: -2.778964928e-05 | G168: 0.0001022103031 | H168: -1.912817762e-05 | J168: -0.001242841795 | K168: -0.03505739609 | L168: 0.005483506943 | M168: 0.1526775988 | N168: 0.0005988894481
A169: =IF('DF raw data'!E174="","",'DF raw data'!E174) -> -246.5 | B169: =IF('DF raw data'!F174="","",'DF raw data'!F174) -> -2.30783e-05 | C169: =IF('DF raw data'!G174="","",'DF raw data'!G174) -> 9.89704e-05 | D169: =IF('DF raw data'!H174="","",'DF raw data'!H174) -> -1.79457e-05 | F169: -2.316085108e-05 | G169: 9.932441712e-05 | H169: -1.800989177e-05 | J169: -0.00125442222 | K169: -0.0356846072 | L169: 0.005533169152 | M169: 0.1554441834 | N169: 0.0006149842161
A170: =IF('DF raw data'!E175="","",'DF raw data'!E175) -> -246 | B170: =IF('DF raw data'!F175="","",'DF raw data'!F175) -> -3.01206e-05 | C170: =IF('DF raw data'!G175="","",'DF raw data'!G175) -> 9.64237e-05 | D170: =IF('DF raw data'!H175="","",'DF raw data'!H175) -> -2.65069e-05 | F170: -3.022834139e-05 | G170: 9.676860757e-05 | H170: -2.660171518e-05 | J170: -0.001269536391 | K170: -0.0363193754 | L170: 0.005581553456 | M170: 0.1582349601 | N170: 0.0006313669469
A171: =IF('DF raw data'!E176="","",'DF raw data'!E176) -> -245.5 | B171: =IF('DF raw data'!F176="","",'DF raw data'!F176) -> -3.13422e-05 | C171: =IF('DF raw data'!G176="","",'DF raw data'!G176) -> 9.72878e-05 | D171: =IF('DF raw data'!H176="","",'DF raw data'!H176) -> -1.98063e-05 | F171: -3.145431105e-05 | G171: 9.763579846e-05 | H171: -1.987714714e-05 | J171: -0.001285263546 | K171: -0.03696200717 | L171: 0.005630371355 | M171: 0.1610501458 | N171: 0.0006480434389
A172: =IF('DF raw data'!E177="","",'DF raw data'!E177) -> -245 | B172: =IF('DF raw data'!F177="","",'DF raw data'!F177) -> -2.92212e-05 | C172: =IF('DF raw data'!G177="","",'DF raw data'!G177) -> 9.33806e-05 | D172: =IF('DF raw data'!H177="","",'DF raw data'!H177) -> -3.02573e-05 | F172: -2.932572423e-05 | G172: 9.371462241e-05 | H172: -3.036553036e-05 | J172: -0.001299926408 | K172: -0.03761197038 | L172: 0.005677228666 | M172: 0.1638887601 | N172: 0.0006650038059
A173: =IF('DF raw data'!E178="","",'DF raw data'!E178) -> -244.5 | B173: =IF('DF raw data'!F178="","",'DF raw data'!F178) -> -1.94193e-05 | C173: =IF('DF raw data'!G178="","",'DF raw data'!G178) -> 9.72618e-05 | D173: =IF('DF raw data'!H178="","",'DF raw data'!H178) -> -2.84976e-05 | F173: -1.948876284e-05 | G173: 9.760970546e-05 | H173: -2.859953592e-05 | J173: -0.00130967079 | K173: -0.03826680577 | L173: 0.005726033519 | M173: 0.1667517769 | N173: 0.0006822551546
A174: =IF('DF raw data'!E179="","",'DF raw data'!E179) -> -244 | B174: =IF('DF raw data'!F179="","",'DF raw data'!F179) -> -2.67939e-05 | C174: =IF('DF raw data'!G179="","",'DF raw data'!G179) -> 9.53326e-05 | D174: =IF('DF raw data'!H179="","",'DF raw data'!H179) -> -1.86428e-05 | F174: -2.688974178e-05 | G174: 9.567360471e-05 | H174: -1.87094853e-05 | J174: -0.001323115661 | K174: -0.0389283636 | L174: 0.005773870321 | M174: 0.169638712 | N174: 0.0006997992614
A175: =IF('DF raw data'!E180="","",'DF raw data'!E180) -> -243.5 | B175: =IF('DF raw data'!F180="","",'DF raw data'!F180) -> -2.1221e-05 | C175: =IF('DF raw data'!G180="","",'DF raw data'!G180) -> 8.87154e-05 | D175: =IF('DF raw data'!H180="","",'DF raw data'!H180) -> -1.66609e-05 | F175: -2.129690752e-05 | G175: 8.903273499e-05 | H175: -1.672049604e-05 | J175: -0.001333764114 | K175: -0.03959524566 | L175: 0.005818386689 | M175: 0.1725479054 | N175: 0.0007176155366
A176: =IF('DF raw data'!E181="","",'DF raw data'!E181) -> -243 | B176: =IF('DF raw data'!F181="","",'DF raw data'!F181) -> -1.93008e-05 | C176: =IF('DF raw data'!G181="","",'DF raw data'!G181) -> 8.4499e-05 | D176: =IF('DF raw data'!H181="","",'DF raw data'!H181) -> -1.37184e-05 | F176: -1.936983896e-05 | G176: 8.480125292e-05 | H176: -1.376747072e-05 | J176: -0.001343449034 | K176: -0.04026697018 | L176: 0.005860787315 | M176: 0.175478299 | N176: 0.0007356923782
A177: =IF('DF raw data'!E182="","",'DF raw data'!E182) -> -242.5 | B177: =IF('DF raw data'!F182="","",'DF raw data'!F182) -> -3.22432e-05 | C177: =IF('DF raw data'!G182="","",'DF raw data'!G182) -> 8.59201e-05 | D177: =IF('DF raw data'!H182="","",'DF raw data'!H182) -> -1.3976e-05 | F177: -3.235853393e-05 | G177: 8.62274362e-05 | H177: -1.402599215e-05 | J177: -0.001359628301 | K177: -0.04094678433 | L177: 0.005903901033 | M177: 0.1784302496 | N177: 0.0007540446964
A178: =IF('DF raw data'!E183="","",'DF raw data'!E183) -> -242 | B178: =IF('DF raw data'!F183="","",'DF raw data'!F183) -> -2.89135e-05 | C178: =IF('DF raw data'!G183="","",'DF raw data'!G183) -> 9.15641e-05 | D178: =IF('DF raw data'!H183="","",'DF raw data'!H183) -> -1.06874e-05 | F178: -2.901692359e-05 | G178: 9.189162479e-05 | H178: -1.072562883e-05 | J178: -0.001374136763 | K178: -0.04163385271 | L178: 0.005949846846 | M178: 0.181405173 | N178: 0.0007726891611
A179: =IF('DF raw data'!E184="","",'DF raw data'!E184) -> -241.5 | B179: =IF('DF raw data'!F184="","",'DF raw data'!F184) -> -2.48716e-05 | C179: =IF('DF raw data'!G184="","",'DF raw data'!G184) -> 8.63939e-05 | D179: =IF('DF raw data'!H184="","",'DF raw data'!H184) -> -1.88985e-05 | F179: -2.496056571e-05 | G179: 8.670293098e-05 | H179: -1.896609993e-05 | J179: -0.001386617046 | K179: -0.04232716123 | L179: 0.005993198311 | M179: 0.1844017721 | N179: 0.0007916097275
A180: =IF('DF raw data'!E185="","",'DF raw data'!E185) -> -241 | B180: =IF('DF raw data'!F185="","",'DF raw data'!F185) -> -2.77e-05 | C180: =IF('DF raw data'!G185="","",'DF raw data'!G185) -> 8.46788e-05 | D180: =IF('DF raw data'!H185="","",'DF raw data'!H185) -> -4.44397e-06 | F180: -2.77990829e-05 | G180: 8.498169607e-05 | H180: -4.459866081e-06 | J180: -0.001400516587 | K180: -0.04302741952 | L180: 0.006035689159 | M180: 0.1874196167 | N180: 0.0008108052227
A181: =IF('DF raw data'!E186="","",'DF raw data'!E186) -> -240.5 | B181: =IF('DF raw data'!F186="","",'DF raw data'!F186) -> -2.90354e-05 | C181: =IF('DF raw data'!G186="","",'DF raw data'!G186) -> 8.52033e-05 | D181: =IF('DF raw data'!H186="","",'DF raw data'!H186) -> -2.02791e-05 | F181: -2.913925963e-05 | G181: 8.55080722e-05 | H181: -2.035163834e-05 | J181: -0.001415086217 | K181: -0.04373496263 | L181: 0.006078443195 | M181: 0.1904588383 | N181: 0.000830280193
A182: =IF('DF raw data'!E187="","",'DF raw data'!E187) -> -240 | B182: =IF('DF raw data'!F187="","",'DF raw data'!F187) -> -2.87729e-05 | C182: =IF('DF raw data'!G187="","",'DF raw data'!G187) -> 9.57323e-05 | D182: =IF('DF raw data'!H187="","",'DF raw data'!H187) -> -2.98647e-05 | F182: -2.887582066e-05 | G182: 9.607473444e-05 | H182: -2.997152603e-05 | J182: -0.001429524127 | K182: -0.0444497247 | L182: 0.006126480562 | M182: 0.1935220786 | N182: 0.0008500688447
A183: =IF('DF raw data'!E188="","",'DF raw data'!E188) -> -239.5 | B183: =IF('DF raw data'!F188="","",'DF raw data'!F188) -> -2.96116e-05 | C183: =IF('DF raw data'!G188="","",'DF raw data'!G188) -> 0.00010407 | D183: =IF('DF raw data'!H188="","",'DF raw data'!H188) -> -2.11064e-05 | F183: -2.971752069e-05 | G183: 0.0001044422584 | H183: -2.118189759e-05 | J183: -0.001444382888 | K183: -0.04517191614 | L183: 0.006178701692 | M183: 0.1966114294 | N183: 0.000870200143
A184: =IF('DF raw data'!E189="","",'DF raw data'!E189) -> -239 | B184: =IF('DF raw data'!F189="","",'DF raw data'!F189) -> -2.28906e-05 | C184: =IF('DF raw data'!G189="","",'DF raw data'!G189) -> 0.000105442 | D184: =IF('DF raw data'!H189="","",'DF raw data'!H189) -> -1.07987e-05 | F184: -2.297247968e-05 | G184: 0.000105819166 | H184: -1.083732695e-05 | J184: -0.001455869127 | K184: -0.0458998507 | L184: 0.006231611275 | M184: 0.1997272351 | N184: 0.0008906764099
A185: =IF('DF raw data'!E190="","",'DF raw data'!E190) -> -238.5 | B185: =IF('DF raw data'!F190="","",'DF raw data'!F190) -> -2.10287e-05 | C185: =IF('DF raw data'!G190="","",'DF raw data'!G190) -> 8.87944e-05 | D185: =IF('DF raw data'!H190="","",'DF raw data'!H190) -> -1.654e-05 | F185: -2.110391966e-05 | G185: 8.911201757e-05 | H185: -1.659916358e-05 | J185: -0.001466421087 | K185: -0.04663306125 | L185: 0.006276167283 | M185: 0.2028653187 | N185: 0.0009114467432
A186: =IF('DF raw data'!E191="","",'DF raw data'!E191) -> -238 | B186: =IF('DF raw data'!F191="","",'DF raw data'!F191) -> -2.11506e-05 | C186: =IF('DF raw data'!G191="","",'DF raw data'!G191) -> 9.51048e-05 | D186: =IF('DF raw data'!H191="","",'DF raw data'!H191) -> -2.61068e-05 | F186: -2.12262557e-05 | G186: 9.544498987e-05 | H186: -2.620018402e-05 | J186: -0.001477034215 | K186: -0.04737157835 | L186: 0.006323889778 | M186: 0.2060272636 | N186: 0.0009325333492
A187: =IF('DF raw data'!E192="","",'DF raw data'!E192) -> -237.5 | B187: =IF('DF raw data'!F192="","",'DF raw data'!F192) -> -3.17287e-05 | C187: =IF('DF raw data'!G192="","",'DF raw data'!G192) -> 9.43904e-05 | D187: =IF('DF raw data'!H192="","",'DF raw data'!H192) -> -1.70836e-05 | F187: -3.184219356e-05 | G187: 9.472803446e-05 | H187: -1.714470804e-05 | J187: -0.001492955312 | K187: -0.04811805601 | L187: 0.006371253796 | M187: 0.2092128905 | N187: 0.0009539442445
A188: =IF('DF raw data'!E193="","",'DF raw data'!E193) -> -237 | B188: =IF('DF raw data'!F193="","",'DF raw data'!F193) -> -3.11525e-05 | C188: =IF('DF raw data'!G193="","",'DF raw data'!G193) -> 8.63564e-05 | D188: =IF('DF raw data'!H193="","",'DF raw data'!H193) -> -1.61053e-05 | F188: -3.126393249e-05 | G188: 8.666529684e-05 | H188: -1.616290866e-05 | J188: -0.001508587278 | K188: -0.04887234965 | L188: 0.006414586444 | M188: 0.2124201837 | N188: 0.0009756556219
A189: =IF('DF raw data'!E194="","",'DF raw data'!E194) -> -236.5 | B189: =IF('DF raw data'!F194="","",'DF raw data'!F194) -> -3.91612e-05 | C189: =IF('DF raw data'!G194="","",'DF raw data'!G194) -> 9.14377e-05 | D189: =IF('DF raw data'!H194="","",'DF raw data'!H194) -> -1.67099e-05 | F189: -3.930127961e-05 | G189: 9.176477265e-05 | H189: -1.676967131e-05 | J189: -0.001528237918 | K189: -0.04963646861 | L189: 0.00646046883 | M189: 0.2156504181 | N189: 0.0009976922062
A190: =IF('DF raw data'!E195="","",'DF raw data'!E195) -> -236 | B190: =IF('DF raw data'!F195="","",'DF raw data'!F195) -> -3.9603e-05 | C190: =IF('DF raw data'!G195="","",'DF raw data'!G195) -> 9.62683e-05 | D190: =IF('DF raw data'!H195="","",'DF raw data'!H195) -> -2.69211e-05 | F190: -3.974465993e-05 | G190: 9.661265171e-05 | H190: -2.701739677e-05 | J190: -0.001548110248 | K190: -0.05041052373 | L190: 0.006508775156 | M190: 0.2189048057 | N190: 0.001020072606
A191: =IF('DF raw data'!E196="","",'DF raw data'!E196) -> -235.5 | B191: =IF('DF raw data'!F196="","",'DF raw data'!F196) -> -3.13375e-05 | C191: =IF('DF raw data'!G196="","",'DF raw data'!G196) -> 9.50362e-05 | D191: =IF('DF raw data'!H196="","",'DF raw data'!H196) -> -2.69647e-05 | F191: -3.144959424e-05 | G191: 9.537614449e-05 | H191: -2.706115273e-05 | J191: -0.001563835045 | K191: -0.05119244125 | L191: 0.006556463228 | M191: 0.2221830373 | N191: 0.001042789001
A192: =IF('DF raw data'!E197="","",'DF raw data'!E197) -> -235 | B192: =IF('DF raw data'!F197="","",'DF raw data'!F197) -> -3.15289e-05 | C192: =IF('DF raw data'!G197="","",'DF raw data'!G197) -> 9.75743e-05 | D192: =IF('DF raw data'!H197="","",'DF raw data'!H197) -> -2.85486e-05 | F192: =(1-$G$1*($B$49-$G$2))*B192 -> -3.164167888e-05 | G192: 9.792332327e-05 | H192: -2.865071834e-05 | J192: =F192*$G$3+J191 -> -0.001579655884 | K192: =J192*$G$3+K191 -> -0.0519822692 | L192: =G192*$G$3+L191 -> 0.00660542489 | M192: =L192*$G$3+M191 -> 0.2254857498 | N192: =(J192^2+L192^2)*$G$3+N191 -> 0.001065852476
A193: =IF('DF raw data'!E198="","",'DF raw data'!E198) -> -234.5 | B193: =IF('DF raw data'!F198="","",'DF raw data'!F198) -> -4.08251e-05 | C193: =IF('DF raw data'!G198="","",'DF raw data'!G198) -> 9.78658e-05 | D193: =IF('DF raw data'!H198="","",'DF raw data'!H198) -> -1.97425e-05 | F193: -4.097113138e-05 | G193: 9.821586597e-05 | H193: -1.981311892e-05 | J193: -0.00160014145 | K193: -0.05278233992 | L193: 0.006654532823 | M193: 0.2288130162 | N193: 0.001089274106
A194: =IF('DF raw data'!E199="","",'DF raw data'!E199) -> -234 | B194: =IF('DF raw data'!F199="","",'DF raw data'!F199) -> -3.36523e-05 | C194: =IF('DF raw data'!G199="","",'DF raw data'!G199) -> 9.87664e-05 | D194: =IF('DF raw data'!H199="","",'DF raw data'!H199) -> -1.46346e-05 | F194: -3.377267428e-05 | G194: 9.911968741e-05 | H194: -1.468694796e-05 | J194: -0.001617027787 | K194: -0.05359085382 | L194: 0.006704092667 | M194: 0.2321650625 | N194: 0.001113053925
A195: =IF('DF raw data'!E200="","",'DF raw data'!E200) -> -233.5 | B195: =IF('DF raw data'!F200="","",'DF raw data'!F200) -> -3.05074e-05 | C195: =IF('DF raw data'!G200="","",'DF raw data'!G200) -> 0.000101549 | D195: =IF('DF raw data'!H200="","",'DF raw data'!H200) -> -2.28609e-05 | F195: -3.061652497e-05 | G195: 0.0001019122408 | H195: -2.294267344e-05 | J195: -0.00163233605 | K195: -0.05440702184 | L195: 0.006755048787 | M195: 0.2355425869 | N195: 0.001137201527
A196: =IF('DF raw data'!E201="","",'DF raw data'!E201) -> -233 | B196: =IF('DF raw data'!F201="","",'DF raw data'!F201) -> -2.60792e-05 | C196: =IF('DF raw data'!G201="","",'DF raw data'!G201) -> 9.6143e-05 | D196: =IF('DF raw data'!H201="","",'DF raw data'!H201) -> -3.40554e-05 | F196: -2.61724853e-05 | G196: 9.648690351e-05 | H196: -3.417721617e-05 | J196: -0.001645422292 | K196: -0.05522973299 | L196: 0.006803292239 | M196: 0.238944233 | N196: 0.001161697627
A197: =IF('DF raw data'!E202="","",'DF raw data'!E202) -> -232.5 | B197: =IF('DF raw data'!F202="","",'DF raw data'!F202) -> -3.03844e-05 | C197: =IF('DF raw data'!G202="","",'DF raw data'!G202) -> 0.000100197 | D197: =IF('DF raw data'!H202="","",'DF raw data'!H202) -> -1.5009e-05 | F197: -3.0493085e-05 | G197: 0.0001005554047 | H197: -1.506268719e-05 | J197: -0.001660668835 | K197: -0.0560600674 | L197: 0.006853569941 | M197: 0.242371018 | N197: 0.001186562248
A198: =IF('DF raw data'!E203="","",'DF raw data'!E203) -> -232 | B198: =IF('DF raw data'!F203="","",'DF raw data'!F203) -> -3.7937e-05 | C198: =IF('DF raw data'!G203="","",'DF raw data'!G203) -> 0.000107389 | D198: =IF('DF raw data'!H203="","",'DF raw data'!H203) -> -2.72268e-05 | F198: -3.807270065e-05 | G198: 0.0001077731305 | H198: -2.732419026e-05 | J198: -0.001679705185 | K198: -0.05689992 | L198: 0.006907456507 | M198: 0.2458247463 | N198: 0.001211829431
A199: =IF('DF raw data'!E204="","",'DF raw data'!E204) -> -231.5 | B199: =IF('DF raw data'!F204="","",'DF raw data'!F204) -> -2.9675e-05 | C199: =IF('DF raw data'!G204="","",'DF raw data'!G204) -> 9.33538e-05 | D199: =IF('DF raw data'!H204="","",'DF raw data'!H204) -> -2.18965e-05 | F199: -2.978114747e-05 | G199: 9.368772654e-05 | H199: -2.197482378e-05 | J199: -0.001694595759 | K199: -0.05774721788 | L199: 0.00695430037 | M199: 0.2493018965 | N199: 0.001237446405
A200: =IF('DF raw data'!E205="","",'DF raw data'!E205) -> -231 | B200: =IF('DF raw data'!F205="","",'DF raw data'!F205) -> -3.3068e-05 | C200: =IF('DF raw data'!G205="","",'DF raw data'!G205) -> 8.75161e-05 | D200: =IF('DF raw data'!H205="","",'DF raw data'!H205) -> -2.62617e-05 | F200: -3.318628424e-05 | G200: 8.782914509e-05 | H200: -2.63556381e-05 | J200: -0.001711188901 | K200: -0.05860281233 | L200: 0.006998214942 | M200: 0.2528010039 | N200: 0.001263397995
A201: =IF('DF raw data'!E206="","",'DF raw data'!E206) -> -230.5 | B201: =IF('DF raw data'!F206="","",'DF raw data'!F206) -> -3.39677e-05 | C201: =IF('DF raw data'!G206="","",'DF raw data'!G206) -> 8.22683e-05 | D201: =IF('DF raw data'!H206="","",'DF raw data'!H206) -> -2.2118e-05 | F201: -3.408920246e-05 | G201: 8.256257371e-05 | H201: -2.219711609e-05 | J201: -0.001728233502 | K201: -0.05946692908 | L201: 0.007039496229 | M201: 0.256320752 | N201: 0.001289668644
... 1061 more rows

Sheet 10 x=0
A1: =IF('DF raw data'!I1="","",'DF raw data'!I1) -> Number of header lines | B1: =IF('DF raw data'!J1="","",'DF raw data'!J1) -> 54 | C1: =IF('DF raw data'!K1="","",'DF raw data'!K1) ->  | D1: =IF('DF raw data'!L1="","",'DF raw data'!L1) ->  | F1: T_coeff | G1: -0.00073 | H1: /degC | J1: IBy total | K1: =J1262*1000 -> -3.163119054 | L1: muTm | M1: =L1262*1000 -> 22.76647811 | R1: DF ref | S1: ='10 x=-2'!S1 -> 1
A2: =IF('DF raw data'!I2="","",'DF raw data'!I2) -> Measured by | B2: =IF('DF raw data'!J2="","",'DF raw data'!J2) -> Danfysik | C2: =IF('DF raw data'!K2="","",'DF raw data'!K2) ->  | D2: =IF('DF raw data'!L2="","",'DF raw data'!L2) ->  | F2: Tcorr | G2: 20 | H2: degC | J2: JBy total | K2: =K1262 -> -6.506836178 | L2: muTm^2 | M2: =M1262 -> 7.356605994
A3: =IF('DF raw data'!I3="","",'DF raw data'!I3) -> Operator | B3: =IF('DF raw data'!J3="","",'DF raw data'!J3) -> PMHA | C3: =IF('DF raw data'!K3="","",'DF raw data'!K3) ->  | D3: =IF('DF raw data'!L3="","",'DF raw data'!L3) ->  | F3: Step | G3: =A63-A62 -> 0.5 | H3: mm | J3: PI total | K3: =N1262 -> 10553.31658 | L3: T^2mm^3
A4: =IF('DF raw data'!I4="","",'DF raw data'!I4) -> Data-time | B4: =IF('DF raw data'!J4="","",'DF raw data'!J4) -> 15-07-2024, 16:51:38 | C4: =IF('DF raw data'!K4="","",'DF raw data'!K4) ->  | D4: =IF('DF raw data'!L4="","",'DF raw data'!L4) -> 
A5: =IF('DF raw data'!I5="","",'DF raw data'!I5) -> Project | B5: =IF('DF raw data'!J5="","",'DF raw data'!J5) -> 504313 | C5: =IF('DF raw data'!K5="","",'DF raw data'!K5) ->  | D5: =IF('DF raw data'!L5="","",'DF raw data'!L5) -> 
A6: =IF('DF raw data'!I6="","",'DF raw data'!I6) -> Magnet type | B6: =IF('DF raw data'!J6="","",'DF raw data'!J6) -> Dipole | C6: =IF('DF raw data'!K6="","",'DF raw data'!K6) ->  | D6: =IF('DF raw data'!L6="","",'DF raw data'!L6) -> 
A7: =IF('DF raw data'!I7="","",'DF raw data'!I7) -> Magnet nr. | B7: =IF('DF raw data'!J7="","",'DF raw data'!J7) -> 2410082 | C7: =IF('DF raw data'!K7="","",'DF raw data'!K7) ->  | D7: =IF('DF raw data'!L7="","",'DF raw data'!L7) -> 
A8: =IF('DF raw data'!I8="","",'DF raw data'!I8) -> Meas. number | B8: =IF('DF raw data'!J8="","",'DF raw data'!J8) -> 56 | C8: =IF('DF raw data'!K8="","",'DF raw data'!K8) ->  | D8: =IF('DF raw data'!L8="","",'DF raw data'!L8) -> 
A9: =IF('DF raw data'!I9="","",'DF raw data'!I9) -> Add. info | B9: =IF('DF raw data'!J9="","",'DF raw data'!J9) -> X-alignment scan 3) | C9: =IF('DF raw data'!K9="","",'DF raw data'!K9) ->  | D9: =IF('DF raw data'!L9="","",'DF raw data'!L9) -> 
A10: =IF('DF raw data'!I10="","",'DF raw data'!I10) -> Device | B10: =IF('DF raw data'!J10="","",'DF raw data'!J10) -> (HAL) HALL-PROBE | C10: =IF('DF raw data'!K10="","",'DF raw data'!K10) ->  | D10: =IF('DF raw data'!L10="","",'DF raw data'!L10) -> 
A11: =IF('DF raw data'!I11="","",'DF raw data'!I11) -> Goal | B11: =IF('DF raw data'!J11="","",'DF raw data'!J11) -> (AXI) AXis Integral (Line, EFB) | C11: =IF('DF raw data'!K11="","",'DF raw data'!K11) ->  | D11: =IF('DF raw data'!L11="","",'DF raw data'!L11) -> 
A12: =IF('DF raw data'!I12="","",'DF raw data'!I12) -> Power supply mode | B12: =IF('DF raw data'!J12="","",'DF raw data'!J12) -> (PM) Permanent Magnet (no MPS in use) | C12: =IF('DF raw data'!K12="","",'DF raw data'!K12) ->  | D12: =IF('DF raw data'!L12="","",'DF raw data'!L12) -> 
A13: =IF('DF raw data'!I13="","",'DF raw data'!I13) -> Data format | B13: =IF('DF raw data'!J13="","",'DF raw data'!J13) -> Raw data text file | C13: =IF('DF raw data'!K13="","",'DF raw data'!K13) ->  | D13: =IF('DF raw data'!L13="","",'DF raw data'!L13) -> 
A14: =IF('DF raw data'!I14="","",'DF raw data'!I14) -> Direction of the pos. x-axis | B14: =IF('DF raw data'!J14="","",'DF raw data'!J14) -> See test program | C14: =IF('DF raw data'!K14="","",'DF raw data'!K14) ->  | D14: =IF('DF raw data'!L14="","",'DF raw data'!L14) -> 
A15: =IF('DF raw data'!I15="","",'DF raw data'!I15) -> Direction of the pos. y-axis | B15: =IF('DF raw data'!J15="","",'DF raw data'!J15) -> Vertical up | C15: =IF('DF raw data'!K15="","",'DF raw data'!K15) ->  | D15: =IF('DF raw data'!L15="","",'DF raw data'!L15) -> 
A16: =IF('DF raw data'!I16="","",'DF raw data'!I16) -> Direction of the pos. z-axis | B16: =IF('DF raw data'!J16="","",'DF raw data'!J16) -> See test program | C16: =IF('DF raw data'!K16="","",'DF raw data'!K16) ->  | D16: =IF('DF raw data'!L16="","",'DF raw data'!L16) -> 
A17: =IF('DF raw data'!I17="","",'DF raw data'!I17) -> Mapper type | B17: =IF('DF raw data'!J17="","",'DF raw data'!J17) -> Precision Hall Mapper | C17: =IF('DF raw data'!K17="","",'DF raw data'!K17) ->  | D17: =IF('DF raw data'!L17="","",'DF raw data'!L17) -> 
A18: =IF('DF raw data'!I18="","",'DF raw data'!I18) -> Mapper Danfysik Reg. Number | B18: =IF('DF raw data'!J18="","",'DF raw data'!J18) -> 2033-D (mapper 1) | C18: =IF('DF raw data'!K18="","",'DF raw data'!K18) ->  | D18: =IF('DF raw data'!L18="","",'DF raw data'!L18) -> 
A19: =IF('DF raw data'!I19="","",'DF raw data'!I19) -> Measurement consept | B19: =IF('DF raw data'!J19="","",'DF raw data'!J19) -> Square line grid | C19: =IF('DF raw data'!K19="","",'DF raw data'!K19) ->  | D19: =IF('DF raw data'!L19="","",'DF raw data'!L19) -> 
A20: =IF('DF raw data'!I20="","",'DF raw data'!I20) -> Mode | B20: =IF('DF raw data'!J20="","",'DF raw data'!J20) -> On-the-fly measurement | C20: =IF('DF raw data'!K20="","",'DF raw data'!K20) ->  | D20: =IF('DF raw data'!L20="","",'DF raw data'!L20) -> 
A21: =IF('DF raw data'!I21="","",'DF raw data'!I21) ->  | B21: =IF('DF raw data'!J21="","",'DF raw data'!J21) ->  | C21: =IF('DF raw data'!K21="","",'DF raw data'!K21) ->  | D21: =IF('DF raw data'!L21="","",'DF raw data'!L21) -> 
A22: =IF('DF raw data'!I22="","",'DF raw data'!I22) -> Probe Name | B22: =IF('DF raw data'!J22="","",'DF raw data'!J22) -> ID12_By | C22: =IF('DF raw data'!K22="","",'DF raw data'!K22) ->  | D22: =IF('DF raw data'!L22="","",'DF raw data'!L22) -> 
A23: =IF('DF raw data'!I23="","",'DF raw data'!I23) -> Probe Type | B23: =IF('DF raw data'!J23="","",'DF raw data'!J23) -> DF_ID_3D_Bxyz | C23: =IF('DF raw data'!K23="","",'DF raw data'!K23) ->  | D23: =IF('DF raw data'!L23="","",'DF raw data'!L23) -> 
A24: =IF('DF raw data'!I24="","",'DF raw data'!I24) -> Probe Danfysik Reg. Number | B24: =IF('DF raw data'!J24="","",'DF raw data'!J24) -> 2277 | C24: =IF('DF raw data'!K24="","",'DF raw data'!K24) ->  | D24: =IF('DF raw data'!L24="","",'DF raw data'!L24) -> 
A25: =IF('DF raw data'!I25="","",'DF raw data'!I25) -> Probe Axis | B25: =IF('DF raw data'!J25="","",'DF raw data'!J25) -> By | C25: =IF('DF raw data'!K25="","",'DF raw data'!K25) ->  | D25: =IF('DF raw data'!L25="","",'DF raw data'!L25) -> 
A26: =IF('DF raw data'!I26="","",'DF raw data'!I26) -> Probe Current Supply | B26: =IF('DF raw data'!J26="","",'DF raw data'!J26) -> 1825-D | C26: =IF('DF raw data'!K26="","",'DF raw data'!K26) ->  | D26: =IF('DF raw data'!L26="","",'DF raw data'!L26) -> 
A27: =IF('DF raw data'!I27="","",'DF raw data'!I27) -> Probe Gain Correction | B27: =IF('DF raw data'!J27="","",'DF raw data'!J27) -> 0.99613 | C27: =IF('DF raw data'!K27="","",'DF raw data'!K27) ->  | D27: =IF('DF raw data'!L27="","",'DF raw data'!L27) -> 
A28: =IF('DF raw data'!I28="","",'DF raw data'!I28) -> Probe Offset Correction | B28: =IF('DF raw data'!J28="","",'DF raw data'!J28) -> 0.0027685 | C28: =IF('DF raw data'!K28="","",'DF raw data'!K28) ->  | D28: =IF('DF raw data'!L28="","",'DF raw data'!L28) -> 
A29: =IF('DF raw data'!I29="","",'DF raw data'!I29) -> DVM Number | B29: =IF('DF raw data'!J29="","",'DF raw data'!J29) -> 2 | C29: =IF('DF raw data'!K29="","",'DF raw data'!K29) ->  | D29: =IF('DF raw data'!L29="","",'DF raw data'!L29) -> 
A30: =IF('DF raw data'!I30="","",'DF raw data'!I30) -> DVM Type | B30: =IF('DF raw data'!J30="","",'DF raw data'!J30) -> K2701 | C30: =IF('DF raw data'!K30="","",'DF raw data'!K30) ->  | D30: =IF('DF raw data'!L30="","",'DF raw data'!L30) -> 
A31: =IF('DF raw data'!I31="","",'DF raw data'!I31) -> DVM Danfysik Reg. Number | B31: =IF('DF raw data'!J31="","",'DF raw data'!J31) -> 1743-D | C31: =IF('DF raw data'!K31="","",'DF raw data'!K31) ->  | D31: =IF('DF raw data'!L31="","",'DF raw data'!L31) -> 
A32: =IF('DF raw data'!I32="","",'DF raw data'!I32) -> Probe Name | B32: =IF('DF raw data'!J32="","",'DF raw data'!J32) -> ID12_Bx | C32: =IF('DF raw data'!K32="","",'DF raw data'!K32) ->  | D32: =IF('DF raw data'!L32="","",'DF raw data'!L32) -> 
A33: =IF('DF raw data'!I33="","",'DF raw data'!I33) -> Probe Type | B33: =IF('DF raw data'!J33="","",'DF raw data'!J33) -> DF_ID_3D_Bxyz | C33: =IF('DF raw data'!K33="","",'DF raw data'!K33) ->  | D33: =IF('DF raw data'!L33="","",'DF raw data'!L33) -> 
A34: =IF('DF raw data'!I34="","",'DF raw data'!I34) -> Probe Danfysik Reg. Number | B34: =IF('DF raw data'!J34="","",'DF raw data'!J34) -> 2277 | C34: =IF('DF raw data'!K34="","",'DF raw data'!K34) ->  | D34: =IF('DF raw data'!L34="","",'DF raw data'!L34) -> 
A35: =IF('DF raw data'!I35="","",'DF raw data'!I35) -> Probe Axis | B35: =IF('DF raw data'!J35="","",'DF raw data'!J35) -> Bx | C35: =IF('DF raw data'!K35="","",'DF raw data'!K35) ->  | D35: =IF('DF raw data'!L35="","",'DF raw data'!L35) -> 
A36: =IF('DF raw data'!I36="","",'DF raw data'!I36) -> Probe Current Supply | B36: =IF('DF raw data'!J36="","",'DF raw data'!J36) -> 1825-D | C36: =IF('DF raw data'!K36="","",'DF raw data'!K36) ->  | D36: =IF('DF raw data'!L36="","",'DF raw data'!L36) -> 
A37: =IF('DF raw data'!I37="","",'DF raw data'!I37) -> Probe Gain Correction | B37: =IF('DF raw data'!J37="","",'DF raw data'!J37) -> 1 | C37: =IF('DF raw data'!K37="","",'DF raw data'!K37) ->  | D37: =IF('DF raw data'!L37="","",'DF raw data'!L37) -> 
A38: =IF('DF raw data'!I38="","",'DF raw data'!I38) -> Probe Offset Correction | B38: =IF('DF raw data'!J38="","",'DF raw data'!J38) -> -0.17517 | C38: =IF('DF raw data'!K38="","",'DF raw data'!K38) ->  | D38: =IF('DF raw data'!L38="","",'DF raw data'!L38) -> 
A39: =IF('DF raw data'!I39="","",'DF raw data'!I39) -> DVM Number | B39: =IF('DF raw data'!J39="","",'DF raw data'!J39) -> 3 | C39: =IF('DF raw data'!K39="","",'DF raw data'!K39) ->  | D39: =IF('DF raw data'!L39="","",'DF raw data'!L39) -> 
A40: =IF('DF raw data'!I40="","",'DF raw data'!I40) -> DVM Type | B40: =IF('DF raw data'!J40="","",'DF raw data'!J40) -> K2701 | C40: =IF('DF raw data'!K40="","",'DF raw data'!K40) ->  | D40: =IF('DF raw data'!L40="","",'DF raw data'!L40) -> 
A41: =IF('DF raw data'!I41="","",'DF raw data'!I41) -> DVM Danfysik Reg. Number | B41: =IF('DF raw data'!J41="","",'DF raw data'!J41) -> 1744-D | C41: =IF('DF raw data'!K41="","",'DF raw data'!K41) ->  | D41: =IF('DF raw data'!L41="","",'DF raw data'!L41) -> 
A42: =IF('DF raw data'!I42="","",'DF raw data'!I42) -> Probe Name | B42: =IF('DF raw data'!J42="","",'DF raw data'!J42) -> ID12_Bz | C42: =IF('DF raw data'!K42="","",'DF raw data'!K42) ->  | D42: =IF('DF raw data'!L42="","",'DF raw data'!L42) -> 
A43: =IF('DF raw data'!I43="","",'DF raw data'!I43) -> Probe Type | B43: =IF('DF raw data'!J43="","",'DF raw data'!J43) -> DF_ID_3D_Bxyz | C43: =IF('DF raw data'!K43="","",'DF raw data'!K43) ->  | D43: =IF('DF raw data'!L43="","",'DF raw data'!L43) -> 
A44: =IF('DF raw data'!I44="","",'DF raw data'!I44) -> Probe Danfysik Reg. Number | B44: =IF('DF raw data'!J44="","",'DF raw data'!J44) -> 2277 | C44: =IF('DF raw data'!K44="","",'DF raw data'!K44) ->  | D44: =IF('DF raw data'!L44="","",'DF raw data'!L44) -> 
A45: =IF('DF raw data'!I45="","",'DF raw data'!I45) -> Probe Axis | B45: =IF('DF raw data'!J45="","",'DF raw data'!J45) -> Bz | C45: =IF('DF raw data'!K45="","",'DF raw data'!K45) ->  | D45: =IF('DF raw data'!L45="","",'DF raw data'!L45) -> 
A46: =IF('DF raw data'!I46="","",'DF raw data'!I46) -> Probe Current Supply | B46: =IF('DF raw data'!J46="","",'DF raw data'!J46) -> 1825-D | C46: =IF('DF raw data'!K46="","",'DF raw data'!K46) ->  | D46: =IF('DF raw data'!L46="","",'DF raw data'!L46) -> 
A47: =IF('DF raw data'!I47="","",'DF raw data'!I47) -> Probe Gain Correction | B47: =IF('DF raw data'!J47="","",'DF raw data'!J47) -> 1 | C47: =IF('DF raw data'!K47="","",'DF raw data'!K47) ->  | D47: =IF('DF raw data'!L47="","",'DF raw data'!L47) -> 
A48: =IF('DF raw data'!I53="","",'DF raw data'!I53) -> PS-Gap: | B48: =IF('DF raw data'!J53="","",'DF raw data'!J53) -> 10 | C48: =IF('DF raw data'!K53="","",'DF raw data'!K53) ->  | D48: =IF('DF raw data'!L53="","",'DF raw data'!L53) -> 
A49: =IF('DF raw data'!I54="","",'DF raw data'!I54) -> PS-Temperature: | B49: =IF('DF raw data'!J54="","",'DF raw data'!J54) -> 24.9 | C49: =IF('DF raw data'!K54="","",'DF raw data'!K54) ->  | D49: =IF('DF raw data'!L54="","",'DF raw data'!L54) -> 
A50: =IF('DF raw data'!I55="","",'DF raw data'!I55) -> PS-Encoder: | B50: =IF('DF raw data'!J55="","",'DF raw data'!J55) -> 20.4293 | C50: =IF('DF raw data'!K55="","",'DF raw data'!K55) ->  | D50: =IF('DF raw data'!L55="","",'DF raw data'!L55) -> 
A51: =IF('DF raw data'!I56="","",'DF raw data'!I56) ->  | B51: =IF('DF raw data'!J56="","",'DF raw data'!J56) ->  | C51: =IF('DF raw data'!K56="","",'DF raw data'!K56) ->  | D51: =IF('DF raw data'!L56="","",'DF raw data'!L56) -> 
A52: =IF('DF raw data'!I57="","",'DF raw data'!I57) -> Monitor-Index | B52: =IF('DF raw data'!J57="","",'DF raw data'!J57) -> [1,1,4] | C52: =IF('DF raw data'!K57="","",'DF raw data'!K57) ->  | D52: =IF('DF raw data'!L57="","",'DF raw data'!L57) -> 
A53: =IF('DF raw data'!I58="","",'DF raw data'!I58) ->  | B53: =IF('DF raw data'!J58="","",'DF raw data'!J58) ->  | C53: =IF('DF raw data'!K58="","",'DF raw data'!K58) ->  | D53: =IF('DF raw data'!L58="","",'DF raw data'!L58) -> 
A54: =IF('DF raw data'!I59="","",'DF raw data'!I59) -> Time [s] | B54: =IF('DF raw data'!J59="","",'DF raw data'!J59) -> Y [mm] | C54: =IF('DF raw data'!K59="","",'DF raw data'!K59) -> X [mm] | D54: =IF('DF raw data'!L59="","",'DF raw data'!L59) -> Nominal current [A]
A55: =IF('DF raw data'!I60="","",'DF raw data'!I60) ->  | B55: =IF('DF raw data'!J60="","",'DF raw data'!J60) ->  | C55: =IF('DF raw data'!K60="","",'DF raw data'!K60) ->  | D55: =IF('DF raw data'!L60="","",'DF raw data'!L60) -> 
A56: =IF('DF raw data'!I61="","",'DF raw data'!I61) -> 199.4 | B56: =IF('DF raw data'!J61="","",'DF raw data'!J61) -> 30.8 | C56: =IF('DF raw data'!K61="","",'DF raw data'!K61) -> 301.8 | D56: =IF('DF raw data'!L61="","",'DF raw data'!L61) -> 0
A57: =IF('DF raw data'!I62="","",'DF raw data'!I62) ->  | B57: =IF('DF raw data'!J62="","",'DF raw data'!J62) ->  | C57: =IF('DF raw data'!K62="","",'DF raw data'!K62) ->  | D57: =IF('DF raw data'!L62="","",'DF raw data'!L62) -> 
A58: =IF('DF raw data'!I63="","",'DF raw data'!I63) -> Measurement-Index | B58: =IF('DF raw data'!J63="","",'DF raw data'!J63) -> [1,1,1201,2] | C58: =IF('DF raw data'!K63="","",'DF raw data'!K63) ->  | D58: =IF('DF raw data'!L63="","",'DF raw data'!L63) -> 
A59: =IF('DF raw data'!I64="","",'DF raw data'!I64) ->  | B59: =IF('DF raw data'!J64="","",'DF raw data'!J64) ->  | C59: =IF('DF raw data'!K64="","",'DF raw data'!K64) ->  | D59: =IF('DF raw data'!L64="","",'DF raw data'!L64) -> 
A60: =IF('DF raw data'!I65="","",'DF raw data'!I65) -> Z [mm] | B60: By [T] | C60: Bx [T] | D60: Bz [T] | F60: By_corr | G60: Bx_corr | H60: Bz_corr | J60: Iy | K60: Jy | L60: Ix | M60: Jx | N60: PI
A62: =IF('DF raw data'!I67="","",'DF raw data'!I67) -> -300 | B62: =IF('DF raw data'!J67="","",'DF raw data'!J67) -> -1.96976e-05 | C62: =IF('DF raw data'!K67="","",'DF raw data'!K67) -> 0.000103973 | D62: =IF('DF raw data'!L67="","",'DF raw data'!L67) -> -3.54169e-06 | F62: =(1-$G$1*($B$49))*B62 -> -2.005564328e-05 | G62: =(1-$G$1*($B$49-$G$2))*C62 -> 0.0001043449114 | H62: =(1-$G$1*($B$49-$G$2))*D62 -> -3.554358625e-06 | J62: =F62*$G$3 -> -1.002782164e-05 | K62: =J62*$G$3 -> -5.013910819e-06 | L62: =G62*$G$3 -> 5.217245571e-05 | M62: =L62*$G$3 -> 2.608622786e-05 | N62: =(J62^2+L62^2)*$G$3 -> 1.411261171e-09
A63: =IF('DF raw data'!I68="","",'DF raw data'!I68) -> -299.5 | B63: =IF('DF raw data'!J68="","",'DF raw data'!J68) -> -1.62376e-05 | C63: =IF('DF raw data'!K68="","",'DF raw data'!K68) -> 0.000113557 | D63: =IF('DF raw data'!L68="","",'DF raw data'!L68) -> -3.66206e-06 | F63: =(1-$G$1*($B$49-$G$2))*B63 -> -1.62956819e-05 | G63: =(1-$G$1*($B$49-$G$2))*C63 -> 0.0001139631934 | H63: -3.675159189e-06 | J63: =F63*$G$3+J62 -> -1.817566259e-05 | K63: =J63*$G$3+K62 -> -1.410174211e-05 | L63: =G63*$G$3+L62 -> 0.0001091540524 | M63: =L63*$G$3+M62 -> 8.066325406e-05 | N63: =(J63^2+L63^2)*$G$3+N62 -> 7.533742104e-09
A64: =IF('DF raw data'!I69="","",'DF raw data'!I69) -> -299 | B64: =IF('DF raw data'!J69="","",'DF raw data'!J69) -> -1.82878e-05 | C64: =IF('DF raw data'!K69="","",'DF raw data'!K69) -> 0.0001212 | D64: =IF('DF raw data'!L69="","",'DF raw data'!L69) -> -4.09076e-06 | F64: =(1-$G$1*($B$49-$G$2))*B64 -> -1.835321546e-05 | G64: 0.0001216335324 | H64: -4.105392649e-06 | J64: =F64*$G$3+J63 -> -2.735227032e-05 | K64: =J64*$G$3+K63 -> -2.777787727e-05 | L64: =G64*$G$3+L63 -> 0.0001699708186 | M64: =L64*$G$3+M63 -> 0.0001656486634 | N64: =(J64^2+L64^2)*$G$3+N63 -> 2.235285504e-08
A65: =IF('DF raw data'!I70="","",'DF raw data'!I70) -> -298.5 | B65: =IF('DF raw data'!J70="","",'DF raw data'!J70) -> -1.0663e-05 | C65: =IF('DF raw data'!K70="","",'DF raw data'!K70) -> 0.000118282 | D65: =IF('DF raw data'!L70="","",'DF raw data'!L70) -> -4.73719e-06 | F65: -1.070114155e-05 | G65: 0.0001187050947 | H65: -4.754134929e-06 | J65: -3.270284109e-05 | K65: -4.412929781e-05 | L65: 0.000229323366 | M65: 0.0002803103463 | N65: 4.918219603e-08
A66: =IF('DF raw data'!I71="","",'DF raw data'!I71) -> -298 | B66: =IF('DF raw data'!J71="","",'DF raw data'!J71) -> -2.50787e-05 | C66: =IF('DF raw data'!K71="","",'DF raw data'!K71) -> 0.000113435 | D66: =IF('DF raw data'!L71="","",'DF raw data'!L71) -> -4.8669e-06 | F66: -2.516840651e-05 | G66: 0.000113840757 | H66: -4.884308901e-06 | J66: -4.528704435e-05 | K66: -6.677281999e-05 | L66: 0.0002862437445 | M66: 0.0004234322186 | N66: 9.117539485e-08
A67: =IF('DF raw data'!I72="","",'DF raw data'!I72) -> -297.5 | B67: =IF('DF raw data'!J72="","",'DF raw data'!J72) -> -1.96971e-05 | C67: =IF('DF raw data'!K72="","",'DF raw data'!K72) -> 0.000114255 | D67: =IF('DF raw data'!L72="","",'DF raw data'!L72) -> -4.31002e-06 | F67: -1.976755653e-05 | G67: 0.0001146636901 | H67: -4.325436942e-06 | J67: -5.517082261e-05 | K67: -9.435823129e-05 | L67: 0.0003435755895 | M67: 0.0005952200133 | N67: 1.517193975e-07
A68: =IF('DF raw data'!I73="","",'DF raw data'!I73) -> -297 | B68: =IF('DF raw data'!J73="","",'DF raw data'!J73) -> -2.39903e-05 | C68: =IF('DF raw data'!K73="","",'DF raw data'!K73) -> 0.0001172 | D68: =IF('DF raw data'!L73="","",'DF raw data'!L73) -> -3.4877e-06 | F68: -2.40761133e-05 | G68: 0.0001176192244 | H68: -3.500175503e-06 | J68: -6.720887926e-05 | K68: -0.0001279626709 | L68: 0.0004023852017 | M68: 0.0007964126142 | N68: 2.349348396e-07
A69: =IF('DF raw data'!I74="","",'DF raw data'!I74) -> -296.5 | B69: =IF('DF raw data'!J74="","",'DF raw data'!J74) -> -1.77115e-05 | C69: =IF('DF raw data'!K74="","",'DF raw data'!K74) -> 0.00011127 | D69: =IF('DF raw data'!L74="","",'DF raw data'!L74) -> -3.40416e-06 | F69: -1.777485404e-05 | G69: 0.0001116680128 | H69: -3.41633668e-06 | J69: -7.609630628e-05 | K69: -0.0001660108241 | L69: 0.0004582192081 | M69: 0.001025522218 | N69: 3.428125848e-07
A70: =IF('DF raw data'!I75="","",'DF raw data'!I75) -> -296 | B70: =IF('DF raw data'!J75="","",'DF raw data'!J75) -> -7.97242e-06 | C70: =IF('DF raw data'!K75="","",'DF raw data'!K75) -> 0.000115822 | D70: =IF('DF raw data'!L75="","",'DF raw data'!L75) -> -4.33564e-06 | F70: -8.000937346e-06 | G70: 0.0001162362953 | H70: -4.351148584e-06 | J70: -8.009677495e-05 | K70: -0.0002060592115 | L70: 0.0005163373558 | M70: 0.001283690896 | N70: 4.79322464e-07
A71: =IF('DF raw data'!I76="","",'DF raw data'!I76) -> -295.5 | B71: =IF('DF raw data'!J76="","",'DF raw data'!J76) -> -2.10421e-05 | C71: =IF('DF raw data'!K76="","",'DF raw data'!K76) -> 0.00011356 | D71: =IF('DF raw data'!L76="","",'DF raw data'!L76) -> -5.13925e-06 | F71: -2.111736759e-05 | G71: 0.0001139662041 | H71: -5.157633097e-06 | J71: -9.065545875e-05 | K71: -0.0002513869409 | L71: 0.0005733204578 | M71: 0.001570351125 | N71: 6.477798438e-07
A72: =IF('DF raw data'!I77="","",'DF raw data'!I77) -> -295 | B72: =IF('DF raw data'!J77="","",'DF raw data'!J77) -> -2.15548e-05 | C72: =IF('DF raw data'!K77="","",'DF raw data'!K77) -> 0.000112681 | D72: =IF('DF raw data'!L77="","",'DF raw data'!L77) -> -4.99391e-06 | F72: -2.163190152e-05 | G72: 0.0001130840599 | H72: -5.011773216e-06 | J72: -0.0001014714095 | K72: -0.0003021226457 | L72: 0.0006298624878 | M72: 0.001885282369 | N72: 8.51291444e-07
A73: =IF('DF raw data'!I78="","",'DF raw data'!I78) -> -294.5 | B73: =IF('DF raw data'!J78="","",'DF raw data'!J78) -> -2.4118e-05 | C73: =IF('DF raw data'!K78="","",'DF raw data'!K78) -> 0.000105552 | D73: =IF('DF raw data'!L78="","",'DF raw data'!L78) -> -4.1989e-06 | F73: -2.420427009e-05 | G73: 0.0001059295595 | H73: -4.213919465e-06 | J73: -0.0001135735446 | K73: -0.0003589094179 | L73: 0.0006828272675 | M73: 0.002226696003 | N73: 1.090867458e-06
A74: =IF('DF raw data'!I79="","",'DF raw data'!I79) -> -294 | B74: =IF('DF raw data'!J79="","",'DF raw data'!J79) -> -2.57201e-05 | C74: =IF('DF raw data'!K79="","",'DF raw data'!K79) -> 0.000108641 | D74: =IF('DF raw data'!L79="","",'DF raw data'!L79) -> -3.71241e-06 | F74: -2.58121008e-05 | G74: 0.0001090296089 | H74: -3.725689291e-06 | J74: -0.0001264795949 | K74: -0.0004221492154 | L74: 0.000737342072 | M74: 0.002595367039 | N74: 1.370702667e-06
A75: =IF('DF raw data'!I80="","",'DF raw data'!I80) -> -293.5 | B75: =IF('DF raw data'!J80="","",'DF raw data'!J80) -> -1.23292e-05 | C75: =IF('DF raw data'!K80="","",'DF raw data'!K80) -> 0.000106045 | D75: =IF('DF raw data'!L80="","",'DF raw data'!L80) -> -4.03005e-06 | F75: -1.237330155e-05 | G75: 0.000106424323 | H75: -4.044465489e-06 | J75: -0.0001326662457 | K75: -0.0004884823383 | L75: 0.0007905542335 | M75: 0.002990644155 | N75: 1.691990832e-06
A76: =IF('DF raw data'!I81="","",'DF raw data'!I81) -> -293 | B76: =IF('DF raw data'!J81="","",'DF raw data'!J81) -> -2.47586e-05 | C76: =IF('DF raw data'!K81="","",'DF raw data'!K81) -> 0.000110793 | D76: =IF('DF raw data'!L81="","",'DF raw data'!L81) -> -4.28329e-06 | F76: -2.484716151e-05 | G76: 0.0001111893066 | H76: -4.298611328e-06 | J76: -0.0001450898265 | K76: -0.0005610272515 | L76: 0.0008461488867 | M76: 0.003413718599 | N76: 2.06050033e-06
A77: =IF('DF raw data'!I82="","",'DF raw data'!I82) -> -292.5 | B77: =IF('DF raw data'!J82="","",'DF raw data'!J82) -> -2.20678e-05 | C77: =IF('DF raw data'!K82="","",'DF raw data'!K82) -> 0.000113074 | D77: =IF('DF raw data'!L82="","",'DF raw data'!L82) -> -4.21627e-06 | F77: -2.214673652e-05 | G77: 0.0001134784657 | H77: -4.231351598e-06 | J77: -0.0001561631947 | K77: -0.0006391088489 | L77: 0.0009028881196 | M77: 0.003865162659 | N77: 2.48029728e-06
A78: =IF('DF raw data'!I83="","",'DF raw data'!I83) -> -292 | B78: =IF('DF raw data'!J83="","",'DF raw data'!J83) -> -1.6878e-05 | C78: =IF('DF raw data'!K83="","",'DF raw data'!K83) -> 0.00011603 | D78: =IF('DF raw data'!L83="","",'DF raw data'!L83) -> -4.51089e-06 | F78: -1.693837261e-05 | G78: 0.0001164450393 | H78: -4.527025454e-06 | J78: -0.000164632381 | K78: -0.0007214250394 | L78: 0.0009611106392 | M78: 0.004345717978 | N78: 2.955716021e-06
A79: =IF('DF raw data'!I84="","",'DF raw data'!I84) -> -291.5 | B79: =IF('DF raw data'!J84="","",'DF raw data'!J84) -> -2.21216e-05 | C79: =IF('DF raw data'!K84="","",'DF raw data'!K84) -> 0.000117579 | D79: =IF('DF raw data'!L84="","",'DF raw data'!L84) -> -1.98339e-05 | F79: -2.220072896e-05 | G79: 0.0001179995801 | H79: -1.990484586e-05 | J79: -0.0001757327455 | K79: -0.0008092914122 | L79: 0.001020110429 | M79: 0.004855773193 | N79: 3.491469663e-06
A80: =IF('DF raw data'!I85="","",'DF raw data'!I85) -> -291 | B80: =IF('DF raw data'!J85="","",'DF raw data'!J85) -> -2.9749e-05 | C80: =IF('DF raw data'!K85="","",'DF raw data'!K85) -> 0.000111859 | D80: =IF('DF raw data'!L85="","",'DF raw data'!L85) -> -1.52255e-05 | F80: -2.985541217e-05 | G80: 0.0001122591196 | H80: -1.527996161e-05 | J80: -0.0001906604516 | K80: -0.000904621638 | L80: 0.001076239989 | M80: 0.005393893187 | N80: 4.088791624e-06
A81: =IF('DF raw data'!I86="","",'DF raw data'!I86) -> -290.5 | B81: =IF('DF raw data'!J86="","",'DF raw data'!J86) -> -2.35298e-05 | C81: =IF('DF raw data'!K86="","",'DF raw data'!K86) -> 0.00011011 | D81: =IF('DF raw data'!L86="","",'DF raw data'!L86) -> -2.18391e-05 | F81: -2.361396609e-05 | G81: 0.0001105038635 | H81: -2.191721846e-05 | J81: -0.0002024674347 | K81: -0.001005855355 | L81: 0.001131491921 | M81: 0.005959639148 | N81: 4.749425139e-06
A82: =IF('DF raw data'!I87="","",'DF raw data'!I87) -> -290 | B82: =IF('DF raw data'!J87="","",'DF raw data'!J87) -> -1.30266e-05 | C82: =IF('DF raw data'!K87="","",'DF raw data'!K87) -> 0.00010247 | D82: =IF('DF raw data'!L87="","",'DF raw data'!L87) -> -1.55697e-05 | F82: -1.307319615e-05 | G82: 0.0001028365352 | H82: -1.562539282e-05 | J82: -0.0002090040327 | K82: -0.001110357372 | L82: 0.001182910188 | M82: 0.006551094242 | N82: 5.470904739e-06
A83: =IF('DF raw data'!I88="","",'DF raw data'!I88) -> -289.5 | B83: =IF('DF raw data'!J88="","",'DF raw data'!J88) -> -3.5897e-05 | C83: =IF('DF raw data'!K88="","",'DF raw data'!K88) -> 0.000107134 | D83: =IF('DF raw data'!L88="","",'DF raw data'!L88) -> -1.94362e-05 | F83: -3.602540357e-05 | G83: 0.0001075172183 | H83: -1.950572329e-05 | J83: -0.0002270167345 | K83: -0.001223865739 | L83: 0.001236668798 | M83: 0.007169428641 | N83: 6.261347895e-06
A84: =IF('DF raw data'!I89="","",'DF raw data'!I89) -> -289 | B84: =IF('DF raw data'!J89="","",'DF raw data'!J89) -> -2.10321e-05 | C84: =IF('DF raw data'!K89="","",'DF raw data'!K89) -> 0.000115946 | D84: =IF('DF raw data'!L89="","",'DF raw data'!L89) -> -2.06242e-05 | F84: -2.110733182e-05 | G84: 0.0001163607388 | H84: -2.069797276e-05 | J84: -0.0002375704004 | K84: -0.001342650939 | L84: 0.001294849167 | M84: 0.007816853224 | N84: 7.127884925e-06
A85: =IF('DF raw data'!I90="","",'DF raw data'!I90) -> -288.5 | B85: =IF('DF raw data'!J90="","",'DF raw data'!J90) -> -2.66121e-05 | C85: =IF('DF raw data'!K90="","",'DF raw data'!K90) -> 0.000122603 | D85: =IF('DF raw data'!L90="","",'DF raw data'!L90) -> -1.12895e-05 | F85: -2.670729148e-05 | G85: 0.0001230415509 | H85: -1.132988254e-05 | J85: -0.0002509240462 | K85: -0.001468112962 | L85: 0.001356369942 | M85: 0.008495038196 | N85: 8.079236074e-06
A86: =IF('DF raw data'!I91="","",'DF raw data'!I91) -> -288 | B86: =IF('DF raw data'!J91="","",'DF raw data'!J91) -> -9.11644e-06 | C86: =IF('DF raw data'!K91="","",'DF raw data'!K91) -> 0.000121547 | D86: =IF('DF raw data'!L91="","",'DF raw data'!L91) -> -1.85171e-05 | F86: -9.149049506e-06 | G86: 0.0001219817736 | H86: -1.858333567e-05 | J86: -0.0002554985709 | K86: -0.001595862248 | L86: 0.001417360829 | M86: 0.00920371861 | N86: 9.116331694e-06
A87: =IF('DF raw data'!I92="","",'DF raw data'!I92) -> -287.5 | B87: =IF('DF raw data'!J92="","",'DF raw data'!J92) -> -1.48901e-05 | C87: =IF('DF raw data'!K92="","",'DF raw data'!K92) -> 0.000101308 | D87: =IF('DF raw data'!L92="","",'DF raw data'!L92) -> -7.26894e-06 | F87: -1.494336189e-05 | G87: 0.0001016703787 | H87: -7.294940998e-06 | J87: -0.0002629702519 | K87: -0.001727347374 | L87: 0.001468196019 | M87: 0.00993781662 | N87: 1.022870815e-05
A88: =IF('DF raw data'!I93="","",'DF raw data'!I93) -> -287 | B88: =IF('DF raw data'!J93="","",'DF raw data'!J93) -> -6.23394e-06 | C88: =IF('DF raw data'!K93="","",'DF raw data'!K93) -> 9.97537e-05 | D88: =IF('DF raw data'!L93="","",'DF raw data'!L93) -> -1.75045e-05 | F88: -6.256238803e-06 | G88: 0.000100110519 | H88: -1.75671136e-05 | J88: -0.0002660983713 | K88: -0.001860396559 | L88: 0.001518251278 | M88: 0.01069694226 | N88: 1.141665579e-05
A89: =IF('DF raw data'!I94="","",'DF raw data'!I94) -> -286.5 | B89: =IF('DF raw data'!J94="","",'DF raw data'!J94) -> -2.61669e-05 | C89: =IF('DF raw data'!K94="","",'DF raw data'!K94) -> 0.000100899 | D89: =IF('DF raw data'!L94="","",'DF raw data'!L94) -> -6.12928e-06 | F89: -2.6260499e-05 | G89: 0.0001012599157 | H89: -6.151204435e-06 | J89: -0.0002792286208 | K89: -0.00200001087 | L89: 0.001568881236 | M89: 0.01148138288 | N89: 1.268633427e-05
A90: =IF('DF raw data'!I95="","",'DF raw data'!I95) -> -286 | B90: =IF('DF raw data'!J95="","",'DF raw data'!J95) -> -1.93051e-05 | C90: =IF('DF raw data'!K95="","",'DF raw data'!K95) -> 0.000103428 | D90: =IF('DF raw data'!L95="","",'DF raw data'!L95) -> -1.61412e-05 | F90: -1.937415434e-05 | G90: 0.000103797962 | H90: -1.619893707e-05 | J90: -0.0002889156979 | K90: -0.002144468719 | L90: 0.001620780217 | M90: 0.01229177299 | N90: 1.404153466e-05
A91: =IF('DF raw data'!I96="","",'DF raw data'!I96) -> -285.5 | B91: =IF('DF raw data'!J96="","",'DF raw data'!J96) -> -2.09705e-05 | C91: =IF('DF raw data'!K96="","",'DF raw data'!K96) -> 9.74976e-05 | D91: =IF('DF raw data'!L96="","",'DF raw data'!L96) -> -1.66738e-05 | F91: -2.104551148e-05 | G91: 9.784634892e-05 | H91: -1.673344218e-05 | J91: -0.0002994384537 | K91: -0.002294187945 | L91: 0.001669703391 | M91: 0.01312662468 | N91: 1.548032106e-05
A92: =IF('DF raw data'!I97="","",'DF raw data'!I97) -> -285 | B92: =IF('DF raw data'!J97="","",'DF raw data'!J97) -> -3.17406e-05 | C92: =IF('DF raw data'!K97="","",'DF raw data'!K97) -> 9.70091e-05 | D92: =IF('DF raw data'!L97="","",'DF raw data'!L97) -> -7.03004e-06 | F92: -3.185413613e-05 | G92: 9.735610155e-05 | H92: -7.055186453e-06 | J92: -0.0003153655217 | K92: -0.002451870706 | L92: 0.001718381442 | M92: 0.0139858154 | N92: 1.700646616e-05
A93: =IF('DF raw data'!I98="","",'DF raw data'!I98) -> -284.5 | B93: =IF('DF raw data'!J98="","",'DF raw data'!J98) -> -1.84132e-05 | C93: =IF('DF raw data'!K98="","",'DF raw data'!K98) -> 9.98633e-05 | D93: =IF('DF raw data'!L98="","",'DF raw data'!L98) -> -8.41412e-06 | F93: -1.847906402e-05 | G93: 0.000100220511 | H93: -8.444217307e-06 | J93: -0.0003246050537 | K93: -0.002614173233 | L93: 0.001768491698 | M93: 0.01487006125 | N93: 1.862293182e-05
A94: =IF('DF raw data'!I99="","",'DF raw data'!I99) -> -284 | B94: =IF('DF raw data'!J99="","",'DF raw data'!J99) -> -2.07144e-05 | C94: =IF('DF raw data'!K99="","",'DF raw data'!K99) -> 0.000106677 | D94: =IF('DF raw data'!L99="","",'DF raw data'!L99) -> -1.63348e-05 | F94: -2.078849541e-05 | G94: 0.0001070585836 | H94: -1.639322958e-05 | J94: -0.0003349993015 | K94: -0.002781672884 | L94: 0.00182202099 | M94: 0.01578107175 | N94: 2.033892433e-05
A95: =IF('DF raw data'!I100="","",'DF raw data'!I100) -> -283.5 | B95: =IF('DF raw data'!J100="","",'DF raw data'!J100) -> -1.68677e-05 | C95: =IF('DF raw data'!K100="","",'DF raw data'!K100) -> 0.000111828 | D95: =IF('DF raw data'!L100="","",'DF raw data'!L100) -> -2.04321e-05 | F95: -1.692803576e-05 | G95: 0.0001122280088 | H95: -2.050518562e-05 | J95: -0.0003434633193 | K95: -0.002953404544 | L95: 0.001878134994 | M95: 0.01672013924 | N95: 2.216160339e-05
A96: =IF('DF raw data'!I101="","",'DF raw data'!I101) -> -283 | B96: =IF('DF raw data'!J101="","",'DF raw data'!J101) -> -1.93054e-05 | C96: =IF('DF raw data'!K101="","",'DF raw data'!K101) -> 0.000112968 | D96: =IF('DF raw data'!L101="","",'DF raw data'!L101) -> -1.56501e-05 | F96: -1.937445542e-05 | G96: 0.0001133720865 | H96: -1.570608041e-05 | J96: -0.000353150547 | K96: -0.003129979817 | L96: 0.001934821037 | M96: 0.01768754976 | N96: 2.409572726e-05
A97: =IF('DF raw data'!I102="","",'DF raw data'!I102) -> -282.5 | B97: =IF('DF raw data'!J102="","",'DF raw data'!J102) -> -2.32188e-05 | C97: =IF('DF raw data'!K102="","",'DF raw data'!K102) -> 0.000100641 | D97: =IF('DF raw data'!L102="","",'DF raw data'!L102) -> -7.69556e-06 | F97: -2.330185365e-05 | G97: 0.0001010009929 | H97: -7.723087018e-06 | J97: -0.0003648014739 | K97: -0.003312380554 | L97: 0.001985321534 | M97: 0.01868021053 | N97: 2.613301812e-05
A98: =IF('DF raw data'!I103="","",'DF raw data'!I103) -> -282 | B98: =IF('DF raw data'!J103="","",'DF raw data'!J103) -> -2.85991e-05 | C98: =IF('DF raw data'!K103="","",'DF raw data'!K103) -> 9.53366e-05 | D98: =IF('DF raw data'!L103="","",'DF raw data'!L103) -> -1.01365e-05 | F98: -2.870139898e-05 | G98: 9.567761902e-05 | H98: -1.017275826e-05 | J98: -0.0003791521734 | K98: -0.003501956641 | L98: 0.002033160343 | M98: 0.0196967907 | N98: 2.827176679e-05
A99: =IF('DF raw data'!I104="","",'DF raw data'!I104) -> -281.5 | B99: =IF('DF raw data'!J104="","",'DF raw data'!J104) -> -3.28932e-05 | C99: =IF('DF raw data'!K104="","",'DF raw data'!K104) -> 0.000102517 | D99: =IF('DF raw data'!L104="","",'DF raw data'!L104) -> -7.95318e-06 | F99: -3.301085898e-05 | G99: 0.0001028837033 | H99: -7.981628525e-06 | J99: -0.0003956576028 | K99: -0.003699785442 | L99: 0.002084602195 | M99: 0.0207390918 | N99: 3.052282242e-05
A100: =IF('DF raw data'!I105="","",'DF raw data'!I105) -> -281 | B100: =IF('DF raw data'!J105="","",'DF raw data'!J105) -> -2.0587e-05 | C100: =IF('DF raw data'!K105="","",'DF raw data'!K105) -> 0.000110684 | D100: =IF('DF raw data'!L105="","",'DF raw data'!L105) -> -1.52094e-05 | F100: -2.06606397e-05 | G100: 0.0001110799167 | H100: -1.526380402e-05 | J100: -0.0004059879227 | K100: -0.003902779403 | L100: 0.002140142153 | M100: 0.02180916287 | N100: 3.289533973e-05
A101: =IF('DF raw data'!I106="","",'DF raw data'!I106) -> -280.5 | B101: =IF('DF raw data'!J106="","",'DF raw data'!J106) -> -1.75735e-05 | C101: =IF('DF raw data'!K106="","",'DF raw data'!K106) -> 0.000108489 | D101: =IF('DF raw data'!L106="","",'DF raw data'!L106) -> -1.87091e-05 | F101: -1.763636041e-05 | G101: 0.0001088770652 | H101: -1.877602245e-05 | J101: -0.0004148061029 | K101: -0.004110182455 | L101: 0.002194580686 | M101: 0.02290645322 | N101: 3.538946398e-05
A102: =IF('DF raw data'!I107="","",'DF raw data'!I107) -> -280 | B102: =IF('DF raw data'!J107="","",'DF raw data'!J107) -> -2.96848e-05 | C102: =IF('DF raw data'!K107="","",'DF raw data'!K107) -> 0.000102291 | D102: =IF('DF raw data'!L107="","",'DF raw data'!L107) -> -1.53774e-05 | F102: -2.979098253e-05 | G102: 0.0001026568949 | H102: -1.543240496e-05 | J102: -0.0004297015942 | K102: -0.004325033252 | L102: 0.002245909133 | M102: 0.02402940778 | N102: 3.800383962e-05
A103: =IF('DF raw data'!I108="","",'DF raw data'!I108) -> -279.5 | B103: =IF('DF raw data'!J108="","",'DF raw data'!J108) -> -3.25695e-05 | C103: =IF('DF raw data'!K108="","",'DF raw data'!K108) -> 9.98837e-05 | D103: =IF('DF raw data'!L108="","",'DF raw data'!L108) -> -1.29351e-05 | F103: -3.26860011e-05 | G103: 0.000100240984 | H103: -1.298136885e-05 | J103: -0.0004460445947 | K103: -0.004548055549 | L103: 0.002296029625 | M103: 0.0251774226 | N103: 4.073919353e-05
A104: =IF('DF raw data'!I109="","",'DF raw data'!I109) -> -279 | B104: =IF('DF raw data'!J109="","",'DF raw data'!J109) -> -1.48866e-05 | C104: =IF('DF raw data'!K109="","",'DF raw data'!K109) -> 0.00010032 | D104: =IF('DF raw data'!L109="","",'DF raw data'!L109) -> -1.26674e-05 | F104: -1.493984937e-05 | G104: 0.0001006788446 | H104: -1.271271129e-05 | J104: -0.0004535145194 | K104: -0.004774812809 | L104: 0.002346369047 | M104: 0.02635060712 | N104: 4.35947551e-05
A105: =IF('DF raw data'!I110="","",'DF raw data'!I110) -> -278.5 | B105: =IF('DF raw data'!J110="","",'DF raw data'!J110) -> -2.40533e-05 | C105: =IF('DF raw data'!K110="","",'DF raw data'!K110) -> 8.8166e-05 | D105: =IF('DF raw data'!L110="","",'DF raw data'!L110) -> -5.38023e-06 | F105: -2.413933865e-05 | G105: 8.848136978e-05 | H105: -5.399475083e-06 | J105: -0.0004655841887 | K105: -0.005007604903 | L105: 0.002390609732 | M105: 0.02754591199 | N105: 4.656064686e-05
A106: =IF('DF raw data'!I111="","",'DF raw data'!I111) -> -278 | B106: =IF('DF raw data'!J111="","",'DF raw data'!J111) -> -1.62331e-05 | C106: =IF('DF raw data'!K111="","",'DF raw data'!K111) -> 9.80085e-05 | D106: =IF('DF raw data'!L111="","",'DF raw data'!L111) -> -1.07999e-05 | F106: -1.62911658e-05 | G106: 9.83590764e-05 | H106: -1.083853124e-05 | J106: -0.0004737297716 | K106: -0.005244469789 | L106: 0.002439789271 | M106: 0.02876580662 | N106: 4.964914265e-05
A107: =IF('DF raw data'!I112="","",'DF raw data'!I112) -> -277.5 | B107: =IF('DF raw data'!J112="","",'DF raw data'!J112) -> -1.45688e-05 | C107: =IF('DF raw data'!K112="","",'DF raw data'!K112) -> 0.000104507 | D107: =IF('DF raw data'!L112="","",'DF raw data'!L112) -> -8.49694e-06 | F107: -1.46209126e-05 | G107: 0.0001048808215 | H107: -8.527333554e-06 | J107: -0.0004810402279 | K107: -0.005484989903 | L107: 0.002492229681 | M107: 0.03001192146 | N107: 5.287044689e-05
A108: =IF('DF raw data'!I113="","",'DF raw data'!I113) -> -277 | B108: =IF('DF raw data'!J113="","",'DF raw data'!J113) -> -1.54593e-05 | C108: =IF('DF raw data'!K113="","",'DF raw data'!K113) -> 9.66576e-05 | D108: =IF('DF raw data'!L113="","",'DF raw data'!L113) -> -1.84451e-05 | F108: -1.551459792e-05 | G108: 9.700334424e-05 | H108: -1.851107812e-05 | J108: -0.0004887975269 | K108: -0.005729388667 | L108: 0.002540731353 | M108: 0.03128228714 | N108: 5.621756631e-05
A109: =IF('DF raw data'!I114="","",'DF raw data'!I114) -> -276.5 | B109: =IF('DF raw data'!J114="","",'DF raw data'!J114) -> -3.96151e-05 | C109: =IF('DF raw data'!K114="","",'DF raw data'!K114) -> 8.49923e-05 | D109: =IF('DF raw data'!L114="","",'DF raw data'!L114) -> -1.61404e-05 | F109: -3.975680321e-05 | G109: 8.529631746e-05 | H109: -1.619813421e-05 | J109: -0.0005086759285 | K109: -0.005983726631 | L109: 0.002583379512 | M109: 0.03257397689 | N109: 5.968386676e-05
A110: =IF('DF raw data'!I115="","",'DF raw data'!I115) -> -276 | B110: =IF('DF raw data'!J115="","",'DF raw data'!J115) -> -1.73678e-05 | C110: =IF('DF raw data'!K115="","",'DF raw data'!K115) -> 8.67413e-05 | D110: =IF('DF raw data'!L115="","",'DF raw data'!L115) -> -3.97304e-05 | F110: -1.742992462e-05 | G110: 8.705157363e-05 | H110: -3.987251564e-05 | J110: -0.0005173908908 | K110: -0.006242422076 | L110: 0.002626905299 | M110: 0.03388742954 | N110: 6.326802916e-05
A111: =IF('DF raw data'!I116="","",'DF raw data'!I116) -> -275.5 | B111: =IF('DF raw data'!J116="","",'DF raw data'!J116) -> -1.71932e-05 | C111: =IF('DF raw data'!K116="","",'DF raw data'!K116) -> 9.18288e-05 | D111: =IF('DF raw data'!L116="","",'DF raw data'!L116) -> -1.23879e-05 | F111: -1.725470008e-05 | G111: 9.215727162e-05 | H111: -1.243221152e-05 | J111: -0.0005260182408 | K111: -0.006505431197 | L111: 0.002672983935 | M111: 0.03522392151 | N111: 6.697879831e-05
A112: =IF('DF raw data'!I117="","",'DF raw data'!I117) -> -275 | B112: =IF('DF raw data'!J117="","",'DF raw data'!J117) -> -1.23875e-05 | C112: =IF('DF raw data'!K117="","",'DF raw data'!K117) -> 9.66077e-05 | D112: =IF('DF raw data'!L117="","",'DF raw data'!L117) -> -1.30894e-05 | F112: -1.243181009e-05 | G112: 9.695326574e-05 | H112: -1.313622078e-05 | J112: -0.0005322341459 | K112: -0.00677154827 | L112: 0.002721460568 | M112: 0.03658465179 | N112: 7.082360871e-05
A113: =IF('DF raw data'!I118="","",'DF raw data'!I118) -> -274.5 | B113: =IF('DF raw data'!J118="","",'DF raw data'!J118) -> -2.68075e-05 | C113: =IF('DF raw data'!K118="","",'DF raw data'!K118) -> 9.3726e-05 | D113: =IF('DF raw data'!L118="","",'DF raw data'!L118) -> -6.23453e-06 | F113: -2.690339043e-05 | G113: 9.40612579e-05 | H113: -6.256830914e-06 | J113: -0.0005456858411 | K113: -0.00704439119 | L113: 0.002768491197 | M113: 0.03796889739 | N113: 7.480476698e-05
A114: =IF('DF raw data'!I119="","",'DF raw data'!I119) -> -274 | B114: =IF('DF raw data'!J119="","",'DF raw data'!J119) -> -1.78309e-05 | C114: =IF('DF raw data'!K119="","",'DF raw data'!K119) -> 9.06354e-05 | D114: =IF('DF raw data'!L119="","",'DF raw data'!L119) -> -1.69356e-05 | F114: -1.789468113e-05 | G114: 9.095960283e-05 | H114: -1.699617864e-05 | J114: -0.0005546331817 | K114: -0.007321707781 | L114: 0.002813970998 | M114: 0.03937588289 | N114: 7.891779236e-05
A115: =IF('DF raw data'!I120="","",'DF raw data'!I120) -> -273.5 | B115: =IF('DF raw data'!J120="","",'DF raw data'!J120) -> -2.74432e-05 | C115: =IF('DF raw data'!K120="","",'DF raw data'!K120) -> 9.6672e-05 | D115: =IF('DF raw data'!L120="","",'DF raw data'!L120) -> -1.43505e-05 | F115: -2.754136433e-05 | G115: 9.701779574e-05 | H115: -1.440183174e-05 | J115: -0.0005684038638 | K115: -0.007605909713 | L115: 0.002862479896 | M115: 0.04080712284 | N115: 8.317622941e-05
A116: =IF('DF raw data'!I121="","",'DF raw data'!I121) -> -273 | B116: =IF('DF raw data'!J121="","",'DF raw data'!J121) -> -1.90518e-05 | C116: =IF('DF raw data'!K121="","",'DF raw data'!K121) -> 9.76275e-05 | D116: =IF('DF raw data'!L121="","",'DF raw data'!L121) -> -1.15407e-05 | F116: -1.911994829e-05 | G116: 9.797671357e-05 | H116: -1.158198108e-05 | J116: -0.000577963838 | K116: -0.007894891632 | L116: 0.002911468253 | M116: 0.04226285697 | N116: 8.75815742e-05
A117: =IF('DF raw data'!I122="","",'DF raw data'!I122) -> -272.5 | B117: =IF('DF raw data'!J122="","",'DF raw data'!J122) -> -2.37957e-05 | C117: =IF('DF raw data'!K122="","",'DF raw data'!K122) -> 9.2582e-05 | D117: =IF('DF raw data'!L122="","",'DF raw data'!L122) -> -7.46145e-06 | F117: -2.388081722e-05 | G117: 9.291316581e-05 | H117: -7.488139607e-06 | J117: -0.0005899042466 | K117: -0.008189843755 | L117: 0.002957924836 | M117: 0.04374181938 | N117: 9.213022738e-05
A118: =IF('DF raw data'!I123="","",'DF raw data'!I123) -> -272 | B118: =IF('DF raw data'!J123="","",'DF raw data'!J123) -> -1.86626e-05 | C118: =IF('DF raw data'!K123="","",'DF raw data'!K123) -> 8.79811e-05 | D118: =IF('DF raw data'!L123="","",'DF raw data'!L123) -> -1.89832e-05 | F118: -1.872935612e-05 | G118: 8.829580839e-05 | H118: -1.905110291e-05 | J118: -0.0005992689246 | K118: -0.008489478218 | L118: 0.00300207274 | M118: 0.04524285575 | N118: 9.681600937e-05
A119: =IF('DF raw data'!I124="","",'DF raw data'!I124) -> -271.5 | B119: =IF('DF raw data'!J124="","",'DF raw data'!J124) -> -3.00078e-05 | C119: =IF('DF raw data'!K124="","",'DF raw data'!K124) -> 8.02802e-05 | D119: =IF('DF raw data'!L124="","",'DF raw data'!L124) -> -1.14865e-05 | F119: -3.01151379e-05 | G119: 8.056736228e-05 | H119: -1.152758721e-05 | J119: -0.0006143264936 | K119: -0.008796641464 | L119: 0.003042356421 | M119: 0.04676403396 | N119: 0.0001016326742
A120: =IF('DF raw data'!I125="","",'DF raw data'!I125) -> -271 | B120: =IF('DF raw data'!J125="","",'DF raw data'!J125) -> -1.71894e-05 | C120: =IF('DF raw data'!K125="","",'DF raw data'!K125) -> 8.3053e-05 | D120: =IF('DF raw data'!L125="","",'DF raw data'!L125) -> -1.82015e-05 | F120: -1.725088648e-05 | G120: 8.335008058e-05 | H120: -1.826660677e-05 | J120: -0.0006229519368 | K120: -0.009108117433 | L120: 0.003084031461 | M120: 0.0483060497 | N120: 0.0001065823338
A121: =IF('DF raw data'!I126="","",'DF raw data'!I126) -> -270.5 | B121: =IF('DF raw data'!J126="","",'DF raw data'!J126) -> -2.77628e-05 | C121: =IF('DF raw data'!K126="","",'DF raw data'!K126) -> 8.36004e-05 | D121: =IF('DF raw data'!L126="","",'DF raw data'!L126) -> -1.54122e-05 | F121: -2.786210754e-05 | G121: 8.389943863e-05 | H121: -1.546732944e-05 | J121: -0.0006368829906 | K121: -0.009426558928 | L121: 0.003125981181 | M121: 0.04986904029 | N121: 0.0001116710229
A122: =IF('DF raw data'!I127="","",'DF raw data'!I127) -> -270 | B122: =IF('DF raw data'!J127="","",'DF raw data'!J127) -> -2.07142e-05 | C122: =IF('DF raw data'!K127="","",'DF raw data'!K127) -> 7.96921e-05 | D122: =IF('DF raw data'!L127="","",'DF raw data'!L127) -> -1.66799e-05 | F122: -2.078829469e-05 | G122: 7.997715864e-05 | H122: -1.6739564e-05 | J122: -0.0006472771379 | K122: -0.009750197497 | L122: 0.00316596976 | M122: 0.05145202517 | N122: 0.000116892189
A123: =IF('DF raw data'!I128="","",'DF raw data'!I128) -> -269.5 | B123: =IF('DF raw data'!J128="","",'DF raw data'!J128) -> -2.42374e-05 | C123: =IF('DF raw data'!K128="","",'DF raw data'!K128) -> 9.25721e-05 | D123: =IF('DF raw data'!L128="","",'DF raw data'!L128) -> -1.78086e-05 | F123: -2.432409718e-05 | G123: 9.29032304e-05 | H123: -1.787230136e-05 | J123: -0.0006594391865 | K123: -0.01007991709 | L123: 0.003212421375 | M123: 0.05305823585 | N123: 0.0001222694446
A124: =IF('DF raw data'!I129="","",'DF raw data'!I129) -> -269 | B124: =IF('DF raw data'!J129="","",'DF raw data'!J129) -> -1.6808e-05 | C124: =IF('DF raw data'!K129="","",'DF raw data'!K129) -> 0.00010469 | D124: =IF('DF raw data'!L129="","",'DF raw data'!L129) -> -1.36073e-05 | F124: -1.686812222e-05 | G124: 0.0001050644761 | H124: -1.365597331e-05 | J124: -0.0006678732476 | K124: -0.01041385371 | L124: 0.003264953613 | M124: 0.05469071266 | N124: 0.000127822433
A125: =IF('DF raw data'!I130="","",'DF raw data'!I130) -> -268.5 | B125: =IF('DF raw data'!J130="","",'DF raw data'!J130) -> -2.50049e-05 | C125: =IF('DF raw data'!K130="","",'DF raw data'!K130) -> 0.00010127 | D125: =IF('DF raw data'!L130="","",'DF raw data'!L130) -> -1.98079e-05 | F125: -2.509434253e-05 | G125: 0.0001016322428 | H125: -1.987875286e-05 | J125: -0.0006804204189 | K125: -0.01075406392 | L125: 0.003315769735 | M125: 0.05634859753 | N125: 0.0001335510834
A126: =IF('DF raw data'!I131="","",'DF raw data'!I131) -> -268 | B126: =IF('DF raw data'!J131="","",'DF raw data'!J131) -> -1.54622e-05 | C126: =IF('DF raw data'!K131="","",'DF raw data'!K131) -> 9.6389e-05 | D126: =IF('DF raw data'!L131="","",'DF raw data'!L131) -> -1.39913e-05 | F126: -1.551750829e-05 | G126: 9.673378345e-05 | H126: -1.404134688e-05 | J126: -0.000688179173 | K126: -0.01109815351 | L126: 0.003364136626 | M126: 0.05803066584 | N126: 0.0001394465863
A127: =IF('DF raw data'!I132="","",'DF raw data'!I132) -> -267.5 | B127: =IF('DF raw data'!J132="","",'DF raw data'!J132) -> -1.47579e-05 | C127: =IF('DF raw data'!K132="","",'DF raw data'!K132) -> 9.25351e-05 | D127: =IF('DF raw data'!L132="","",'DF raw data'!L132) -> -1.35933e-05 | F127: -1.481068901e-05 | G127: 9.286609805e-05 | H127: -1.364192323e-05 | J127: -0.0006955845176 | K127: -0.01144594577 | L127: 0.003410569675 | M127: 0.05973595068 | N127: 0.000145504498
A128: =IF('DF raw data'!I133="","",'DF raw data'!I133) -> -267 | B128: =IF('DF raw data'!J133="","",'DF raw data'!J133) -> -2.16716e-05 | C128: =IF('DF raw data'!K133="","",'DF raw data'!K133) -> 9.84556e-05 | D128: =IF('DF raw data'!L133="","",'DF raw data'!L133) -> -2.26014e-05 | F128: =(1-$G$1*($B$49-$G$2))*B128 -> -2.174911931e-05 | G128: 9.880777568e-05 | H128: -2.268224521e-05 | J128: =F128*$G$3+J127 -> -0.0007064590772 | K128: =J128*$G$3+K127 -> -0.01179917531 | L128: =G128*$G$3+L127 -> 0.003459973563 | M128: =L128*$G$3+M127 -> 0.06146593746 | N128: =(J128^2+L128^2)*$G$3+N127 -> 0.0001517397487
A129: =IF('DF raw data'!I134="","",'DF raw data'!I134) -> -266.5 | B129: =IF('DF raw data'!J134="","",'DF raw data'!J134) -> -2.44912e-05 | C129: =IF('DF raw data'!K134="","",'DF raw data'!K134) -> 9.50558e-05 | D129: =IF('DF raw data'!L134="","",'DF raw data'!L134) -> -2.15845e-05 | F129: -2.457880502e-05 | G129: 9.53958146e-05 | H129: -2.166170776e-05 | J129: -0.0007187484797 | K129: -0.01215854955 | L129: 0.00350767147 | M129: 0.06321977319 | N129: 0.000158149928
A130: =IF('DF raw data'!I135="","",'DF raw data'!I135) -> -266 | B130: =IF('DF raw data'!J135="","",'DF raw data'!J135) -> -2.39819e-05 | C130: =IF('DF raw data'!K135="","",'DF raw data'!K135) -> 9.39529e-05 | D130: =IF('DF raw data'!L135="","",'DF raw data'!L135) -> -1.65172e-05 | F130: -2.406768326e-05 | G130: 9.428896952e-05 | H130: -1.657628202e-05 | J130: -0.0007307823213 | K130: -0.01252394071 | L130: 0.003554815955 | M130: 0.06499718117 | N130: 0.0001647353076
A131: =IF('DF raw data'!I136="","",'DF raw data'!I136) -> -265.5 | B131: =IF('DF raw data'!J136="","",'DF raw data'!J136) -> -2.70602e-05 | C131: =IF('DF raw data'!K136="","",'DF raw data'!K136) -> 9.12619e-05 | D131: =IF('DF raw data'!L136="","",'DF raw data'!L136) -> -1.18469e-05 | F131: -2.715699434e-05 | G131: 9.158834382e-05 | H131: -1.188927636e-05 | J131: -0.0007443608185 | K131: -0.01289612112 | L131: 0.003600610127 | M131: 0.06679748624 | N131: 0.0001714945408
A132: =IF('DF raw data'!I137="","",'DF raw data'!I137) -> -265 | B132: =IF('DF raw data'!J137="","",'DF raw data'!J137) -> -2.60929e-05 | C132: =IF('DF raw data'!K137="","",'DF raw data'!K137) -> 9.45109e-05 | D132: =IF('DF raw data'!L137="","",'DF raw data'!L137) -> -2.17885e-05 | F132: -2.61862343e-05 | G132: 9.484896549e-05 | H132: -2.186643746e-05 | J132: -0.0007574539357 | K132: -0.01327484809 | L132: 0.00364803461 | M132: 0.06862150354 | N132: 0.0001784354873
A133: =IF('DF raw data'!I138="","",'DF raw data'!I138) -> -264.5 | B133: =IF('DF raw data'!J138="","",'DF raw data'!J138) -> -2.60942e-05 | C133: =IF('DF raw data'!K138="","",'DF raw data'!K138) -> 0.000101114 | D133: =IF('DF raw data'!L138="","",'DF raw data'!L138) -> -1.96953e-05 | F133: -2.618753895e-05 | G133: 0.0001014756848 | H133: -1.976575009e-05 | J133: -0.0007705477051 | K133: -0.01366012194 | L133: 0.003698772452 | M133: 0.07047088977 | N133: 0.000185572818
A134: =IF('DF raw data'!I139="","",'DF raw data'!I139) -> -264 | B134: =IF('DF raw data'!J139="","",'DF raw data'!J139) -> -9.76257e-06 | C134: =IF('DF raw data'!K139="","",'DF raw data'!K139) -> 0.000104204 | D134: =IF('DF raw data'!L139="","",'DF raw data'!L139) -> -1.01598e-05 | F134: -9.797490713e-06 | G134: 0.0001045767377 | H134: -1.01961416e-05 | J134: -0.0007754464505 | K134: -0.01404784516 | L134: 0.003751060821 | M134: 0.07234642018 | N134: 0.0001929087052
A135: =IF('DF raw data'!I140="","",'DF raw data'!I140) -> -263.5 | B135: =IF('DF raw data'!J140="","",'DF raw data'!J140) -> -2.64274e-05 | C135: =IF('DF raw data'!K140="","",'DF raw data'!K140) -> 0.000100111 | D135: =IF('DF raw data'!L140="","",'DF raw data'!L140) -> 2.98638e-07 | F135: -2.652193081e-05 | G135: 0.000100469097 | H135: 2.997062281e-07 | J135: -0.0007887074159 | K135: -0.01444219887 | L135: 0.00380129537 | M135: 0.07424706786 | N135: 0.0002004446582
A136: =IF('DF raw data'!I141="","",'DF raw data'!I141) -> -263 | B136: =IF('DF raw data'!J141="","",'DF raw data'!J141) -> -1.6166e-05 | C136: =IF('DF raw data'!K141="","",'DF raw data'!K141) -> 9.62816e-05 | D136: =IF('DF raw data'!L141="","",'DF raw data'!L141) -> -1.55922e-05 | F136: -1.622382578e-05 | G136: 9.662599928e-05 | H136: -1.56479733e-05 | J136: -0.0007968193288 | K136: -0.01484060854 | L136: 0.003849608369 | M136: 0.07617187205 | N136: 0.000208171861
A137: =IF('DF raw data'!I142="","",'DF raw data'!I142) -> -262.5 | B137: =IF('DF raw data'!J142="","",'DF raw data'!J142) -> -3.57716e-05 | C137: =IF('DF raw data'!K142="","",'DF raw data'!K142) -> 9.10841e-05 | D137: =IF('DF raw data'!L142="","",'DF raw data'!L142) -> -1.5347e-05 | F137: -3.589955501e-05 | G137: 9.140990783e-05 | H137: -1.540189622e-05 | J137: -0.0008147691063 | K137: -0.01524799309 | L137: 0.003895313323 | M137: 0.07811952871 | N137: 0.0002160905183
A138: =IF('DF raw data'!I143="","",'DF raw data'!I143) -> -262 | B138: =IF('DF raw data'!J143="","",'DF raw data'!J143) -> -1.62866e-05 | C138: =IF('DF raw data'!K143="","",'DF raw data'!K143) -> 9.01074e-05 | D138: =IF('DF raw data'!L143="","",'DF raw data'!L143) -> -2.72482e-05 | F138: -1.634485717e-05 | G138: 9.042971417e-05 | H138: -2.734566681e-05 | J138: -0.0008229415349 | K138: -0.01565946386 | L138: 0.00394052818 | M138: 0.0800897928 | N138: 0.0002241930158
A139: =IF('DF raw data'!I144="","",'DF raw data'!I144) -> -261.5 | B139: =IF('DF raw data'!J144="","",'DF raw data'!J144) -> -3.1543e-05 | C139: =IF('DF raw data'!K144="","",'DF raw data'!K144) -> 8.92762e-05 | D139: =IF('DF raw data'!L144="","",'DF raw data'!L144) -> -1.52531e-05 | F139: -3.165582931e-05 | G139: 8.959554097e-05 | H139: -1.530766034e-05 | J139: -0.0008387694495 | K139: -0.01607884858 | L139: 0.003985325951 | M139: 0.08208245577 | N139: 0.0002324861944
A140: =IF('DF raw data'!I145="","",'DF raw data'!I145) -> -261 | B140: =IF('DF raw data'!J145="","",'DF raw data'!J145) -> -2.42402e-05 | C140: =IF('DF raw data'!K145="","",'DF raw data'!K145) -> 8.63775e-05 | D140: =IF('DF raw data'!L145="","",'DF raw data'!L145) -> -1.3456e-05 | F140: -2.43269072e-05 | G140: 8.668647232e-05 | H140: -1.350413211e-05 | J140: -0.0008509329031 | K140: -0.01650431503 | L140: 0.004028669187 | M140: 0.08409679037 | N140: 0.0002409633255
A141: =IF('DF raw data'!I146="","",'DF raw data'!I146) -> -260.5 | B141: =IF('DF raw data'!J146="","",'DF raw data'!J146) -> -2.05272e-05 | C141: =IF('DF raw data'!K146="","",'DF raw data'!K146) -> 7.5693e-05 | D141: =IF('DF raw data'!L146="","",'DF raw data'!L146) -> -9.01163e-06 | F141: -2.060062579e-05 | G141: 7.596375386e-05 | H141: -9.043864601e-06 | J141: -0.000861233216 | K141: -0.01693493164 | L141: 0.004066651064 | M141: 0.0861301159 | N141: 0.0002496030123
A142: =IF('DF raw data'!I147="","",'DF raw data'!I147) -> -260 | B142: =IF('DF raw data'!J147="","",'DF raw data'!J147) -> -1.4433e-05 | C142: =IF('DF raw data'!K147="","",'DF raw data'!K147) -> 8.01685e-05 | D142: =IF('DF raw data'!L147="","",'DF raw data'!L147) -> -2.03604e-05 | F142: -1.448462684e-05 | G142: 8.045526272e-05 | H142: -2.043322915e-05 | J142: -0.0008684755295 | K142: -0.0173691694 | L142: 0.004106878695 | M142: 0.08818355525 | N142: 0.0002584133634
A143: =IF('DF raw data'!I148="","",'DF raw data'!I148) -> -259.5 | B143: =IF('DF raw data'!J148="","",'DF raw data'!J148) -> -2.57726e-05 | C143: =IF('DF raw data'!K148="","",'DF raw data'!K148) -> 8.17583e-05 | D143: =IF('DF raw data'!L148="","",'DF raw data'!L148) -> -2.15075e-05 | F143: -2.586478859e-05 | G143: 8.205074944e-05 | H143: -2.158443233e-05 | J143: -0.0008814079238 | K143: -0.01780987337 | L143: 0.00414790407 | M143: 0.09025750728 | N143: 0.0002674043575
A144: =IF('DF raw data'!I149="","",'DF raw data'!I149) -> -259 | B144: =IF('DF raw data'!J149="","",'DF raw data'!J149) -> -2.30722e-05 | C144: =IF('DF raw data'!K149="","",'DF raw data'!K149) -> 8.17202e-05 | D144: =IF('DF raw data'!L149="","",'DF raw data'!L149) -> -3.6244e-05 | F144: -2.315472926e-05 | G144: 8.201251316e-05 | H144: -3.637364479e-05 | J144: -0.0008929852884 | K144: -0.01825636601 | L144: 0.004188910326 | M144: 0.09235196244 | N144: 0.0002765765537
A145: =IF('DF raw data'!I150="","",'DF raw data'!I150) -> -258.5 | B145: =IF('DF raw data'!J150="","",'DF raw data'!J150) -> -2.16102e-05 | C145: =IF('DF raw data'!K150="","",'DF raw data'!K150) -> 8.67465e-05 | D145: =IF('DF raw data'!L150="","",'DF raw data'!L150) -> -1.83153e-05 | F145: -2.168749969e-05 | G145: 8.705679223e-05 | H145: -1.838081383e-05 | J145: -0.0009038290382 | K145: -0.01870828053 | L145: 0.004232438723 | M145: 0.09446818181 | N145: 0.0002859417759
A146: =IF('DF raw data'!I151="","",'DF raw data'!I151) -> -258 | B146: =IF('DF raw data'!J151="","",'DF raw data'!J151) -> -2.04609e-05 | C146: =IF('DF raw data'!K151="","",'DF raw data'!K151) -> 9.47124e-05 | D146: =IF('DF raw data'!L151="","",'DF raw data'!L151) -> -1.22078e-05 | F146: -2.053408864e-05 | G146: 9.505118625e-05 | H146: -1.22514673e-05 | J146: -0.0009140960825 | K146: -0.01916532857 | L146: 0.004279964316 | M146: 0.09660816396 | N146: 0.000295518609
A147: =IF('DF raw data'!I152="","",'DF raw data'!I152) -> -257.5 | B147: =IF('DF raw data'!J152="","",'DF raw data'!J152) -> -1.49442e-05 | C147: =IF('DF raw data'!K152="","",'DF raw data'!K152) -> 9.00689e-05 | D147: =IF('DF raw data'!L152="","",'DF raw data'!L152) -> -2.23875e-05 | F147: -1.49976554e-05 | G147: 9.039107646e-05 | H147: -2.246758009e-05 | J147: -0.0009215949102 | K147: -0.01962612603 | L147: 0.004325159854 | M147: 0.09877074389 | N147: 0.0003052967815
A148: =IF('DF raw data'!I153="","",'DF raw data'!I153) -> -257 | B148: =IF('DF raw data'!J153="","",'DF raw data'!J153) -> -2.30139e-05 | C148: =IF('DF raw data'!K153="","",'DF raw data'!K153) -> 8.96083e-05 | D148: =IF('DF raw data'!L153="","",'DF raw data'!L153) -> -2.7098e-05 | F148: -2.309622072e-05 | G148: 8.992882889e-05 | H148: -2.719492955e-05 | J148: -0.0009331430206 | K148: -0.02009269754 | L148: 0.004370124268 | M148: 0.100955806 | N148: 0.0003152811525
A149: =IF('DF raw data'!I154="","",'DF raw data'!I154) -> -256.5 | B149: =IF('DF raw data'!J154="","",'DF raw data'!J154) -> -1.16806e-05 | C149: =IF('DF raw data'!K154="","",'DF raw data'!K154) -> 9.24084e-05 | D149: =IF('DF raw data'!L154="","",'DF raw data'!L154) -> -1.62491e-05 | F149: -1.172238151e-05 | G149: 9.273894485e-05 | H149: -1.630722303e-05 | J149: -0.0009390042114 | K149: -0.02056219964 | L149: 0.004416493741 | M149: 0.1031640529 | N149: 0.0003254747255
A150: =IF('DF raw data'!I155="","",'DF raw data'!I155) -> -256 | B150: =IF('DF raw data'!J155="","",'DF raw data'!J155) -> -2.37177e-05 | C150: =IF('DF raw data'!K155="","",'DF raw data'!K155) -> 9.09532e-05 | D150: =IF('DF raw data'!L155="","",'DF raw data'!L155) -> -2.87531e-05 | F150: -2.380253821e-05 | G150: 9.12785396e-05 | H150: -2.885594984e-05 | J150: -0.0009509054805 | K150: -0.02103765238 | L150: 0.004462133011 | M150: 0.1053951194 | N150: 0.0003358821516
A151: =IF('DF raw data'!I156="","",'DF raw data'!I156) -> -255.5 | B151: =IF('DF raw data'!J156="","",'DF raw data'!J156) -> -2.2187e-05 | C151: =IF('DF raw data'!K156="","",'DF raw data'!K156) -> 9.09323e-05 | D151: =IF('DF raw data'!L156="","",'DF raw data'!L156) -> -1.81667e-05 | F151: -2.22663629e-05 | G151: 9.125756484e-05 | H151: -1.823168229e-05 | J151: -0.0009620386619 | K151: -0.02151867171 | L151: 0.004507761793 | M151: 0.1076490003 | N151: 0.000346504869
A152: =IF('DF raw data'!I157="","",'DF raw data'!I157) -> -255 | B152: =IF('DF raw data'!J157="","",'DF raw data'!J157) -> -2.11652e-05 | C152: =IF('DF raw data'!K157="","",'DF raw data'!K157) -> 8.9057e-05 | D152: =IF('DF raw data'!L157="","",'DF raw data'!L157) -> -1.31129e-05 | F152: -2.124090792e-05 | G152: 8.937555689e-05 | H152: -1.315980484e-05 | J152: -0.0009726591159 | K152: -0.02200500127 | L152: 0.004552449571 | M152: 0.1099252251 | N152: 0.0003573403004
A153: =IF('DF raw data'!I158="","",'DF raw data'!I158) -> -254.5 | B153: =IF('DF raw data'!J158="","",'DF raw data'!J158) -> -3.333e-05 | C153: =IF('DF raw data'!K158="","",'DF raw data'!K158) -> 8.92597e-05 | D153: =IF('DF raw data'!L158="","",'DF raw data'!L158) -> -2.59383e-05 | F153: -3.344922141e-05 | G153: 8.957898195e-05 | H153: -2.60310813e-05 | J153: -0.0009893837266 | K153: -0.02249969313 | L153: 0.004597239062 | M153: 0.1122238446 | N153: 0.000368397044
A154: =IF('DF raw data'!I159="","",'DF raw data'!I159) -> -254 | B154: =IF('DF raw data'!J159="","",'DF raw data'!J159) -> -2.66082e-05 | C154: =IF('DF raw data'!K159="","",'DF raw data'!K159) -> 9.23871e-05 | D154: =IF('DF raw data'!L159="","",'DF raw data'!L159) -> -1.75664e-05 | F154: -2.670337753e-05 | G154: 9.271756866e-05 | H154: -1.762923501e-05 | J154: -0.001002735415 | K154: -0.02300106084 | L154: 0.004643597847 | M154: 0.1145456435 | N154: 0.0003796812836
A155: =IF('DF raw data'!I160="","",'DF raw data'!I160) -> -253.5 | B155: =IF('DF raw data'!J160="","",'DF raw data'!J160) -> -2.76916e-05 | C155: =IF('DF raw data'!K160="","",'DF raw data'!K160) -> 9.98768e-05 | D155: =IF('DF raw data'!L160="","",'DF raw data'!L160) -> -2.66141e-05 | F155: -2.779065285e-05 | G155: 0.0001002340593 | H155: -2.670929864e-05 | J155: -0.001016630742 | K155: -0.02350937621 | L155: 0.004693714876 | M155: 0.116892501 | N155: 0.0003912135323
A156: =IF('DF raw data'!I161="","",'DF raw data'!I161) -> -253 | B156: =IF('DF raw data'!J161="","",'DF raw data'!J161) -> -1.89861e-05 | C156: =IF('DF raw data'!K161="","",'DF raw data'!K161) -> 9.96298e-05 | D156: =IF('DF raw data'!L161="","",'DF raw data'!L161) -> -1.38947e-05 | F156: -1.905401328e-05 | G156: 9.998617579e-05 | H156: -1.394440134e-05 | J156: -0.001026157748 | K156: -0.02402245509 | L156: 0.004743707964 | M156: 0.119264355 | N156: 0.0004029914148
A157: =IF('DF raw data'!I162="","",'DF raw data'!I162) -> -252.5 | B157: =IF('DF raw data'!J162="","",'DF raw data'!J162) -> -2.48147e-05 | C157: =IF('DF raw data'!K162="","",'DF raw data'!K162) -> 9.92739e-05 | D157: =IF('DF raw data'!L162="","",'DF raw data'!L162) -> -1.69764e-05 | F157: -2.490346218e-05 | G157: 9.962900274e-05 | H157: -1.703712458e-05 | J157: -0.00103860948 | K157: -0.02454175983 | L157: 0.004793522466 | M157: 0.1216611162 | N157: 0.0004150196984
A158: =IF('DF raw data'!I163="","",'DF raw data'!I163) -> -252 | B158: =IF('DF raw data'!J163="","",'DF raw data'!J163) -> -2.40422e-05 | C158: =IF('DF raw data'!K163="","",'DF raw data'!K163) -> 9.27595e-05 | D158: =IF('DF raw data'!L163="","",'DF raw data'!L163) -> -2.26406e-05 | F158: -2.412819895e-05 | G158: 9.309130073e-05 | H158: -2.272158543e-05 | J158: -0.001050673579 | K158: -0.02506709662 | L158: 0.004840068116 | M158: 0.1240811502 | N158: 0.0004272847856
A159: =IF('DF raw data'!I164="","",'DF raw data'!I164) -> -251.5 | B159: =IF('DF raw data'!J164="","",'DF raw data'!J164) -> -1.7961e-05 | C159: =IF('DF raw data'!K164="","",'DF raw data'!K164) -> 0.000100241 | D159: =IF('DF raw data'!L164="","",'DF raw data'!L164) -> -1.39024e-05 | F159: -1.80252465e-05 | G159: 0.0001005995621 | H159: -1.395212888e-05 | J159: -0.001059686202 | K159: -0.02559693972 | L159: 0.004890367897 | M159: 0.1265263342 | N159: 0.0004398041021
A160: =IF('DF raw data'!I165="","",'DF raw data'!I165) -> -251 | B160: =IF('DF raw data'!J165="","",'DF raw data'!J165) -> -3.01322e-05 | C160: =IF('DF raw data'!K165="","",'DF raw data'!K165) -> 9.93208e-05 | D160: =IF('DF raw data'!L165="","",'DF raw data'!L165) -> -1.72381e-05 | F160: -3.023998288e-05 | G160: 9.96760705e-05 | H160: -1.729976068e-05 | J160: -0.001074806194 | K160: -0.02613434281 | L160: 0.004940205932 | M160: 0.1289964372 | N160: 0.0004525845236
A161: =IF('DF raw data'!I166="","",'DF raw data'!I166) -> -250.5 | B161: =IF('DF raw data'!J166="","",'DF raw data'!J166) -> -1.63511e-05 | C161: =IF('DF raw data'!K166="","",'DF raw data'!K166) -> 9.58525e-05 | D161: =IF('DF raw data'!L166="","",'DF raw data'!L166) -> -2.63733e-05 | F161: -1.640958788e-05 | G161: 9.619536439e-05 | H161: -2.646763729e-05 | J161: -0.001083010988 | K161: -0.02667584831 | L161: 0.004988303615 | M161: 0.131490589 | N161: 0.0004656125665
A162: =IF('DF raw data'!I167="","",'DF raw data'!I167) -> -250 | B162: =IF('DF raw data'!J167="","",'DF raw data'!J167) -> -8.73018e-06 | C162: =IF('DF raw data'!K167="","",'DF raw data'!K167) -> 9.23803e-05 | D162: =IF('DF raw data'!L167="","",'DF raw data'!L167) -> -2.14358e-05 | F162: -8.761407854e-06 | G162: 9.271074433e-05 | H162: -2.151247586e-05 | J162: -0.001087391692 | K162: -0.02721954415 | L162: 0.005034658987 | M162: 0.1340079185 | N162: 0.0004788776724
A163: =IF('DF raw data'!I168="","",'DF raw data'!I168) -> -249.5 | B163: =IF('DF raw data'!J168="","",'DF raw data'!J168) -> -2.4111e-05 | C163: =IF('DF raw data'!K168="","",'DF raw data'!K168) -> 9.56866e-05 | D163: =IF('DF raw data'!L168="","",'DF raw data'!L168) -> -1.50514e-05 | F163: -2.419724505e-05 | G163: 9.602887097e-05 | H163: -1.510523886e-05 | J163: -0.001099490314 | K163: -0.02776928931 | L163: 0.005082673422 | M163: 0.1365492552 | N163: 0.0004923988964
A164: =IF('DF raw data'!I169="","",'DF raw data'!I169) -> -249 | B164: =IF('DF raw data'!J169="","",'DF raw data'!J169) -> -2.693e-05 | C164: =IF('DF raw data'!K169="","",'DF raw data'!K169) -> 9.71947e-05 | D164: =IF('DF raw data'!L169="","",'DF raw data'!L169) -> -1.5101e-05 | F164: -2.702632861e-05 | G164: 9.754236544e-05 | H164: -1.515501628e-05 | J164: -0.001113003478 | K164: -0.02832579105 | L164: 0.005131444605 | M164: 0.1391149775 | N164: 0.0005061841467
A165: =IF('DF raw data'!I170="","",'DF raw data'!I170) -> -248.5 | B165: =IF('DF raw data'!J170="","",'DF raw data'!J170) -> -2.0775e-05 | C165: =IF('DF raw data'!K170="","",'DF raw data'!K170) -> 9.82492e-05 | D165: =IF('DF raw data'!L170="","",'DF raw data'!L170) -> -2.20831e-05 | F165: -2.084931217e-05 | G165: 9.860063739e-05 | H165: -2.216209125e-05 | J165: -0.001123428134 | K165: -0.02888750512 | L165: 0.005180744924 | M165: 0.1417053499 | N165: 0.000520235251
A166: =IF('DF raw data'!I171="","",'DF raw data'!I171) -> -248 | B166: =IF('DF raw data'!J171="","",'DF raw data'!J171) -> -2.16092e-05 | C166: =IF('DF raw data'!K171="","",'DF raw data'!K171) -> 8.45008e-05 | D166: =IF('DF raw data'!L171="","",'DF raw data'!L171) -> -1.97318e-05 | F166: -2.168649611e-05 | G166: 8.480305936e-05 | H166: -1.980238065e-05 | J166: -0.001134271383 | K166: -0.02945464081 | L166: 0.005223146453 | M166: 0.1443169232 | N166: 0.0005345191663
A167: =IF('DF raw data'!I172="","",'DF raw data'!I172) -> -247.5 | B167: =IF('DF raw data'!J172="","",'DF raw data'!J172) -> -1.62303e-05 | C167: =IF('DF raw data'!K172="","",'DF raw data'!K172) -> 8.44133e-05 | D167: =IF('DF raw data'!L172="","",'DF raw data'!L172) -> -1.51802e-05 | F167: -1.628835578e-05 | G167: 8.471524637e-05 | H167: -1.523449958e-05 | J167: -0.00114241556 | K167: -0.03002584859 | L167: 0.005265504076 | M167: 0.1469496752 | N167: 0.0005490344895
A168: =IF('DF raw data'!I173="","",'DF raw data'!I173) -> -247 | B168: =IF('DF raw data'!J173="","",'DF raw data'!J173) -> -2.52657e-05 | C168: =IF('DF raw data'!K173="","",'DF raw data'!K173) -> 8.22361e-05 | D168: =IF('DF raw data'!L173="","",'DF raw data'!L173) -> -1.28204e-05 | F168: -2.535607541e-05 | G168: 8.253025853e-05 | H168: -1.286625857e-05 | J168: -0.001155093598 | K168: -0.03060339539 | L168: 0.005306769206 | M168: 0.1496030598 | N168: 0.0005637825098
A169: =IF('DF raw data'!I174="","",'DF raw data'!I174) -> -246.5 | B169: =IF('DF raw data'!J174="","",'DF raw data'!J174) -> -2.25763e-05 | C169: =IF('DF raw data'!K174="","",'DF raw data'!K174) -> 8.34479e-05 | D169: =IF('DF raw data'!L174="","",'DF raw data'!L174) -> -1.06474e-05 | F169: -2.265705543e-05 | G169: 8.374639314e-05 | H169: -1.068548575e-05 | J169: -0.001166422126 | K169: -0.03118660645 | L169: 0.005348642402 | M169: 0.152277381 | N169: 0.0005787667679
A170: =IF('DF raw data'!I175="","",'DF raw data'!I175) -> -246 | B170: =IF('DF raw data'!J175="","",'DF raw data'!J175) -> -2.43086e-05 | C170: =IF('DF raw data'!K175="","",'DF raw data'!K175) -> 9.10204e-05 | D170: =IF('DF raw data'!L175="","",'DF raw data'!L175) -> -6.97693e-06 | F170: -2.439555186e-05 | G170: 9.134597997e-05 | H170: -7.001886479e-06 | J170: -0.001178619902 | K170: -0.0317759164 | L170: 0.005394315392 | M170: 0.1549745387 | N170: 0.0005940106596
A171: =IF('DF raw data'!I176="","",'DF raw data'!I176) -> -245.5 | B171: =IF('DF raw data'!J176="","",'DF raw data'!J176) -> -2.32766e-05 | C171: =IF('DF raw data'!K176="","",'DF raw data'!K176) -> 7.46558e-05 | D171: =IF('DF raw data'!L176="","",'DF raw data'!L176) -> -1.73127e-05 | F171: -2.33598604e-05 | G171: 7.49228438e-05 | H171: -1.737462753e-05 | J171: -0.001190299832 | K171: -0.03237106632 | L171: 0.005431776814 | M171: 0.1576904271 | N171: 0.0006094711661
A172: =IF('DF raw data'!I177="","",'DF raw data'!I177) -> -245 | B172: =IF('DF raw data'!J177="","",'DF raw data'!J177) -> -2.14199e-05 | C172: =IF('DF raw data'!K177="","",'DF raw data'!K177) -> 5.88727e-05 | D172: =IF('DF raw data'!L177="","",'DF raw data'!L177) -> -1.54744e-05 | F172: -2.149651898e-05 | G172: 5.908328765e-05 | H172: -1.552975193e-05 | J172: -0.001201048091 | K172: -0.03297159036 | L172: 0.005461318458 | M172: 0.1604210863 | N172: 0.000625105424
A173: =IF('DF raw data'!I178="","",'DF raw data'!I178) -> -244.5 | B173: =IF('DF raw data'!J178="","",'DF raw data'!J178) -> -3.01296e-05 | C173: =IF('DF raw data'!K178="","",'DF raw data'!K178) -> 6.1955e-05 | D173: =IF('DF raw data'!L178="","",'DF raw data'!L178) -> -2.12285e-05 | F173: -3.023737358e-05 | G173: 6.217661303e-05 | H173: -2.130443434e-05 | J173: -0.001216166778 | K173: -0.03357967375 | L173: 0.005492406765 | M173: 0.1631672897 | N173: 0.0006409282209
A174: =IF('DF raw data'!I179="","",'DF raw data'!I179) -> -244 | B174: =IF('DF raw data'!J179="","",'DF raw data'!J179) -> -2.20499e-05 | C174: =IF('DF raw data'!K179="","",'DF raw data'!K179) -> 6.80611e-05 | D174: =IF('DF raw data'!L179="","",'DF raw data'!L179) -> -3.20598e-05 | F174: -2.212877249e-05 | G174: 6.830455455e-05 | H174: -3.21744779e-05 | J174: -0.001227231164 | K174: -0.03419328934 | L174: 0.005526559042 | M174: 0.1659305692 | N174: 0.0006569526965
A175: =IF('DF raw data'!I180="","",'DF raw data'!I180) -> -243.5 | B175: =IF('DF raw data'!J180="","",'DF raw data'!J180) -> -2.84047e-05 | C175: =IF('DF raw data'!K180="","",'DF raw data'!K180) -> 6.58304e-05 | D175: =IF('DF raw data'!L180="","",'DF raw data'!L180) -> -1.35431e-05 | F175: -2.850630361e-05 | G175: 6.606587534e-05 | H175: -1.359154367e-05 | J175: -0.001241484316 | K175: -0.03481403149 | L175: 0.005559591979 | M175: 0.1687103652 | N175: 0.0006731778696
A176: =IF('DF raw data'!I181="","",'DF raw data'!I181) -> -243 | B176: =IF('DF raw data'!J181="","",'DF raw data'!J181) -> -2.71269e-05 | C176: =IF('DF raw data'!K181="","",'DF raw data'!K181) -> 6.87753e-05 | D176: =IF('DF raw data'!L181="","",'DF raw data'!L181) -> -7.96965e-06 | F176: -2.722393292e-05 | G176: 6.902130925e-05 | H176: -7.998157438e-06 | J176: -0.001255096283 | K176: -0.03544157963 | L176: 0.005594102634 | M176: 0.1715074166 | N176: 0.0006896124951
A177: =IF('DF raw data'!I182="","",'DF raw data'!I182) -> -242.5 | B177: =IF('DF raw data'!J182="","",'DF raw data'!J182) -> -3.55803e-05 | C177: =IF('DF raw data'!K182="","",'DF raw data'!K182) -> 7.65778e-05 | D177: =IF('DF raw data'!L182="","",'DF raw data'!L182) -> -1.39225e-05 | F177: -3.570757073e-05 | G177: 7.685171879e-05 | H177: -1.397230078e-05 | J177: -0.001272950068 | K177: -0.03607805467 | L177: 0.005632528493 | M177: 0.1743236808 | N177: 0.0007062853846
A178: =IF('DF raw data'!I183="","",'DF raw data'!I183) -> -242 | B178: =IF('DF raw data'!J183="","",'DF raw data'!J183) -> -2.46267e-05 | C178: =IF('DF raw data'!K183="","",'DF raw data'!K183) -> 7.65733e-05 | D178: =IF('DF raw data'!L183="","",'DF raw data'!L183) -> -1.03025e-05 | F178: -2.471478971e-05 | G178: 7.684720269e-05 | H178: -1.033935204e-05 | J178: -0.001285307463 | K178: -0.0367207084 | L178: 0.005670952095 | M178: 0.1771591568 | N178: 0.0007231912411
A179: =IF('DF raw data'!I184="","",'DF raw data'!I184) -> -241.5 | B179: =IF('DF raw data'!J184="","",'DF raw data'!J184) -> -2.4233e-05 | C179: =IF('DF raw data'!K184="","",'DF raw data'!K184) -> 7.56765e-05 | D179: =IF('DF raw data'!L184="","",'DF raw data'!L184) -> -2.45783e-05 | F179: -2.431968144e-05 | G179: 7.594719484e-05 | H179: -2.466621658e-05 | J179: -0.001297467304 | K179: -0.03736944205 | L179: 0.005708925692 | M179: 0.1800136197 | N179: 0.0007403288681
A180: =IF('DF raw data'!I185="","",'DF raw data'!I185) -> -241 | B180: =IF('DF raw data'!J185="","",'DF raw data'!J185) -> -2.89737e-05 | C180: =IF('DF raw data'!K185="","",'DF raw data'!K185) -> 6.70457e-05 | D180: =IF('DF raw data'!L185="","",'DF raw data'!L185) -> -2.54273e-05 | F180: -2.907733892e-05 | G180: 6.728552247e-05 | H180: -2.551825345e-05 | J180: -0.001312005973 | K180: -0.03802544504 | L180: 0.005742568453 | M180: 0.1828849039 | N180: 0.0007576780941
A181: =IF('DF raw data'!I186="","",'DF raw data'!I186) -> -240.5 | B181: =IF('DF raw data'!J186="","",'DF raw data'!J186) -> -1.68653e-05 | C181: =IF('DF raw data'!K186="","",'DF raw data'!K186) -> 6.92808e-05 | D181: =IF('DF raw data'!L186="","",'DF raw data'!L186) -> -2.42715e-05 | F181: -1.692562718e-05 | G181: 6.952861742e-05 | H181: -2.435831916e-05 | J181: -0.001320468787 | K181: -0.03868567943 | L181: 0.005777332762 | M181: 0.1857735703 | N181: 0.0007752387
A182: =IF('DF raw data'!I187="","",'DF raw data'!I187) -> -240 | B182: =IF('DF raw data'!J187="","",'DF raw data'!J187) -> -2.40468e-05 | C182: =IF('DF raw data'!K187="","",'DF raw data'!K187) -> 8.05983e-05 | D182: =IF('DF raw data'!L187="","",'DF raw data'!L187) -> -1.54897e-05 | F182: -2.41328154e-05 | G182: 8.088660012e-05 | H182: -1.554510666e-05 | J182: -0.001332535194 | K182: -0.03935194703 | L182: 0.005817776062 | M182: 0.1886824583 | N182: 0.0007930497841
A183: =IF('DF raw data'!I188="","",'DF raw data'!I188) -> -239.5 | B183: =IF('DF raw data'!J188="","",'DF raw data'!J188) -> -2.92366e-05 | C183: =IF('DF raw data'!K188="","",'DF raw data'!K188) -> 8.59017e-05 | D183: =IF('DF raw data'!L188="","",'DF raw data'!L188) -> -1.52817e-05 | F183: -2.934117932e-05 | G183: 8.620897038e-05 | H183: -1.533636264e-05 | J183: -0.001347205784 | K183: -0.04002554992 | L183: 0.005860880547 | M183: 0.1916128986 | N183: 0.0008111322263
A184: =IF('DF raw data'!I189="","",'DF raw data'!I189) -> -239 | B184: =IF('DF raw data'!J189="","",'DF raw data'!J189) -> -1.77034e-05 | C184: =IF('DF raw data'!K189="","",'DF raw data'!K189) -> 7.79785e-05 | D184: =IF('DF raw data'!L189="","",'DF raw data'!L189) -> -1.60639e-05 | F184: -1.776672506e-05 | G184: 7.825742909e-05 | H184: -1.612136057e-05 | J184: -0.001356089147 | K184: -0.04070359449 | L184: 0.005900009262 | M184: 0.1945629032 | N184: 0.0008294567698
A185: =IF('DF raw data'!I190="","",'DF raw data'!I190) -> -238.5 | B185: =IF('DF raw data'!J190="","",'DF raw data'!J190) -> -2.3722e-05 | C185: =IF('DF raw data'!K190="","",'DF raw data'!K190) -> 6.73524e-05 | D185: =IF('DF raw data'!L190="","",'DF raw data'!L190) -> -2.21753e-05 | F185: -2.380685359e-05 | G185: 6.759331953e-05 | H185: -2.225462105e-05 | J185: -0.001367992573 | K185: -0.04138759078 | L185: 0.005933805922 | M185: 0.1975298062 | N185: 0.000847997498
A186: =IF('DF raw data'!I191="","",'DF raw data'!I191) -> -238 | B186: =IF('DF raw data'!J191="","",'DF raw data'!J191) -> -2.72392e-05 | C186: =IF('DF raw data'!K191="","",'DF raw data'!K191) -> 7.41761e-05 | D186: =IF('DF raw data'!L191="","",'DF raw data'!L191) -> -3.24066e-05 | F186: -2.733663462e-05 | G186: 7.444142791e-05 | H186: -3.252251841e-05 | J186: -0.001381660891 | K186: -0.04207842123 | L186: 0.005971026636 | M186: 0.2005153195 | N186: 0.0008667785709
A187: =IF('DF raw data'!I192="","",'DF raw data'!I192) -> -237.5 | B187: =IF('DF raw data'!J192="","",'DF raw data'!J192) -> -1.99403e-05 | C187: =IF('DF raw data'!K192="","",'DF raw data'!K192) -> 7.86136e-05 | D187: =IF('DF raw data'!L192="","",'DF raw data'!L192) -> -2.47079e-05 | F187: -2.001162645e-05 | G187: 7.889480085e-05 | H187: -2.479628016e-05 | J187: -0.001391666704 | K187: -0.04277425458 | L187: 0.006010474036 | M187: 0.2035205565 | N187: 0.0008858098381
A188: =IF('DF raw data'!I193="","",'DF raw data'!I193) -> -237 | B188: =IF('DF raw data'!J193="","",'DF raw data'!J193) -> -2.55117e-05 | C188: =IF('DF raw data'!K193="","",'DF raw data'!K193) -> 7.4929e-05 | D188: =IF('DF raw data'!L193="","",'DF raw data'!L193) -> -2.87542e-05 | F188: -2.560295535e-05 | G188: 7.519702103e-05 | H188: -2.885705377e-05 | J188: -0.001404468182 | K188: -0.04347648867 | L188: 0.006048072547 | M188: 0.2065445928 | N188: 0.0009050856943
A189: =IF('DF raw data'!I194="","",'DF raw data'!I194) -> -236.5 | B189: =IF('DF raw data'!J194="","",'DF raw data'!J194) -> -1.46284e-05 | C189: =IF('DF raw data'!K194="","",'DF raw data'!K194) -> 7.06284e-05 | D189: =IF('DF raw data'!L194="","",'DF raw data'!L194) -> -1.57443e-05 | F189: -1.468072579e-05 | G189: 7.088103779e-05 | H189: -1.580061736e-05 | J189: -0.001411808545 | K189: -0.04418239294 | L189: 0.006083513066 | M189: 0.2095863493 | N189: 0.0009245868616
A190: =IF('DF raw data'!I195="","",'DF raw data'!I195) -> -236 | B190: =IF('DF raw data'!J195="","",'DF raw data'!J195) -> -2.62214e-05 | C190: =IF('DF raw data'!K195="","",'DF raw data'!K195) -> 6.91878e-05 | D190: =IF('DF raw data'!L195="","",'DF raw data'!L195) -> -2.13103e-05 | F190: -2.631519395e-05 | G190: 6.943528476e-05 | H190: -2.138652694e-05 | J190: -0.001424966141 | K190: -0.04489487601 | L190: 0.006118230708 | M190: 0.2126454647 | N190: 0.0009443184994
A191: =IF('DF raw data'!I196="","",'DF raw data'!I196) -> -235.5 | B191: =IF('DF raw data'!J196="","",'DF raw data'!J196) -> -2.96211e-05 | C191: =IF('DF raw data'!K196="","",'DF raw data'!K196) -> 7.45404e-05 | D191: =IF('DF raw data'!L196="","",'DF raw data'!L196) -> -1.50835e-05 | F191: -2.972705467e-05 | G191: 7.480703101e-05 | H191: -1.513745368e-05 | J191: -0.001439829669 | K191: -0.04561479085 | L191: 0.006155634223 | M191: 0.2157232818 | N191: 0.0009643009704
A192: =IF('DF raw data'!I197="","",'DF raw data'!I197) -> -235 | B192: =IF('DF raw data'!J197="","",'DF raw data'!J197) -> -2.62913e-05 | C192: =IF('DF raw data'!K197="","",'DF raw data'!K197) -> 6.52852e-05 | D192: =IF('DF raw data'!L197="","",'DF raw data'!L197) -> -1.2079e-05 | F192: =(1-$G$1*($B$49-$G$2))*B192 -> -2.638534398e-05 | G192: 6.551872516e-05 | H192: -1.212220658e-05 | J192: =F192*$G$3+J191 -> -0.001453022341 | K192: =J192*$G$3+K191 -> -0.04634130202 | L192: =G192*$G$3+L191 -> 0.006188393586 | M192: =L192*$G$3+M191 -> 0.2188174786 | N192: =(J192^2+L192^2)*$G$3+N191 -> 0.000984504715
A193: =IF('DF raw data'!I198="","",'DF raw data'!I198) -> -234.5 | B193: =IF('DF raw data'!J198="","",'DF raw data'!J198) -> -1.99408e-05 | C193: =IF('DF raw data'!K198="","",'DF raw data'!K198) -> 6.88354e-05 | D193: =IF('DF raw data'!L198="","",'DF raw data'!L198) -> -2.39592e-05 | F193: -2.001212824e-05 | G193: 6.908162423e-05 | H193: -2.404490206e-05 | J193: -0.001463028405 | K193: -0.04707281622 | L193: 0.006222934398 | M193: 0.2219289458 | N193: 0.001004937397
A194: =IF('DF raw data'!I199="","",'DF raw data'!I199) -> -234 | B194: =IF('DF raw data'!J199="","",'DF raw data'!J199) -> -3.15399e-05 | C194: =IF('DF raw data'!K199="","",'DF raw data'!K199) -> 8.36568e-05 | D194: =IF('DF raw data'!L199="","",'DF raw data'!L199) -> -2.00601e-05 | F194: -3.165271822e-05 | G194: 8.395604037e-05 | H194: -2.013185498e-05 | J194: -0.001478854764 | K194: -0.0478122436 | L194: 0.006264912418 | M194: 0.225061402 | N194: 0.001025655467
A195: =IF('DF raw data'!I200="","",'DF raw data'!I200) -> -233.5 | B195: =IF('DF raw data'!J200="","",'DF raw data'!J200) -> -3.19177e-05 | C195: =IF('DF raw data'!K200="","",'DF raw data'!K200) -> 7.83588e-05 | D195: =IF('DF raw data'!L200="","",'DF raw data'!L200) -> -3.02281e-05 | F195: -3.203186961e-05 | G195: 7.863908943e-05 | H195: -3.033622591e-05 | J195: -0.001494870699 | K195: -0.04855967895 | L195: 0.006304231963 | M195: 0.228213518 | N195: 0.001046644456
A196: =IF('DF raw data'!I201="","",'DF raw data'!I201) -> -233 | B196: =IF('DF raw data'!J201="","",'DF raw data'!J201) -> -1.97516e-05 | C196: =IF('DF raw data'!K201="","",'DF raw data'!K201) -> 8.06009e-05 | D196: =IF('DF raw data'!L201="","",'DF raw data'!L201) -> -1.91011e-05 | F196: -1.982225147e-05 | G196: 8.088920942e-05 | H196: -1.916942463e-05 | J196: -0.001504781825 | K196: -0.04931206986 | L196: 0.006344676568 | M196: 0.2313858563 | N196: 0.001067904101
A197: =IF('DF raw data'!I202="","",'DF raw data'!I202) -> -232.5 | B197: =IF('DF raw data'!J202="","",'DF raw data'!J202) -> -3.21113e-05 | C197: =IF('DF raw data'!K202="","",'DF raw data'!K202) -> 7.99351e-05 | D197: =IF('DF raw data'!L202="","",'DF raw data'!L202) -> -2.8346e-05 | F197: -3.222616212e-05 | G197: 8.022102785e-05 | H197: -2.844739364e-05 | J197: -0.001520894906 | K197: -0.05007251732 | L197: 0.006384787082 | M197: 0.2345782498 | N197: 0.001089443415
A198: =IF('DF raw data'!I203="","",'DF raw data'!I203) -> -232 | B198: =IF('DF raw data'!J203="","",'DF raw data'!J203) -> -3.60237e-05 | C198: =IF('DF raw data'!K203="","",'DF raw data'!K203) -> 8.01312e-05 | D198: =IF('DF raw data'!L203="","",'DF raw data'!L203) -> -2.18941e-05 | F198: -3.615255677e-05 | G198: 8.04178293e-05 | H198: -2.19724152e-05 | J198: -0.001538971184 | K198: -0.05084200291 | L198: 0.006424995996 | M198: 0.2377907478 | N198: 0.001111267918
A199: =IF('DF raw data'!I204="","",'DF raw data'!I204) -> -231.5 | B199: =IF('DF raw data'!J204="","",'DF raw data'!J204) -> -3.013e-05 | C199: =IF('DF raw data'!K204="","",'DF raw data'!K204) -> 7.13884e-05 | D199: =IF('DF raw data'!L204="","",'DF raw data'!L204) -> -2.07165e-05 | F199: -3.023777501e-05 | G199: 7.164375631e-05 | H199: -2.079060292e-05 | J199: -0.001554090072 | K199: -0.05161904794 | L199: 0.006460817874 | M199: 0.2410211567 | N199: 0.001133346599
A200: =IF('DF raw data'!I205="","",'DF raw data'!I205) -> -231 | B200: =IF('DF raw data'!J205="","",'DF raw data'!J205) -> -3.43618e-05 | C200: =IF('DF raw data'!K205="","",'DF raw data'!K205) -> 7.06896e-05 | D200: =IF('DF raw data'!L205="","",'DF raw data'!L205) -> -1.59269e-05 | F200: -3.448471216e-05 | G200: 7.09424567e-05 | H200: -1.598387052e-05 | J200: -0.001571332428 | K200: -0.05240471416 | L200: 0.006496289103 | M200: 0.2442693013 | N200: 0.001155682028
A201: =IF('DF raw data'!I206="","",'DF raw data'!I206) -> -230.5 | B201: =IF('DF raw data'!J206="","",'DF raw data'!J206) -> -2.82065e-05 | C201: =IF('DF raw data'!K206="","",'DF raw data'!K206) -> 6.85812e-05 | D201: =IF('DF raw data'!L206="","",'DF raw data'!L206) -> -2.29993e-05 | F201: -2.830739465e-05 | G201: 6.882651495e-05 | H201: -2.30815685e-05 | J201: -0.001585486125 | K201: -0.05319745722 | L201: 0.00653070236 | M201: 0.2475346525 | N201: 0.001178263948
... 1061 more rows

Sheet 10 x=1
A1: =IF('DF raw data'!M1="","",'DF raw data'!M1) -> Number of header lines | B1: =IF('DF raw data'!N1="","",'DF raw data'!N1) -> 54 | C1: =IF('DF raw data'!O1="","",'DF raw data'!O1) ->  | D1: =IF('DF raw data'!P1="","",'DF raw data'!P1) ->  | F1: T_coeff | G1: -0.00073 | H1: /degC | J1: ='10 x=-2'!J1 -> IBy total | K1: ='10 x=-2'!K1 -> -3.038100843 | L1: ='10 x=-2'!L1 -> muTm | R1: ='10 x=-2'!R1 -> DF ref | S1: ='10 x=-2'!S1 -> 1
A2: =IF('DF raw data'!M2="","",'DF raw data'!M2) -> Measured by | B2: =IF('DF raw data'!N2="","",'DF raw data'!N2) -> Danfysik | C2: =IF('DF raw data'!O2="","",'DF raw data'!O2) ->  | D2: =IF('DF raw data'!P2="","",'DF raw data'!P2) ->  | F2: Tcorr | G2: 20 | H2: degC | J2: JBy total | K2: =K1262 -> -7.850753594 | L2: muTm^2 | M2: =M1262 -> 9.78561267
A3: =IF('DF raw data'!M3="","",'DF raw data'!M3) -> Operator | B3: =IF('DF raw data'!N3="","",'DF raw data'!N3) -> PMHA | C3: =IF('DF raw data'!O3="","",'DF raw data'!O3) ->  | D3: =IF('DF raw data'!P3="","",'DF raw data'!P3) ->  | F3: Step | G3: =A63-A62 -> 0.5 | H3: mm | J3: PI total | K3: =N1262 -> 10552.58354 | L3: T^2mm^3
A4: =IF('DF raw data'!M4="","",'DF raw data'!M4) -> Data-time | B4: =IF('DF raw data'!N4="","",'DF raw data'!N4) -> 15-07-2024, 16:55:00 | C4: =IF('DF raw data'!O4="","",'DF raw data'!O4) ->  | D4: =IF('DF raw data'!P4="","",'DF raw data'!P4) -> 
A5: =IF('DF raw data'!M5="","",'DF raw data'!M5) -> Project | B5: =IF('DF raw data'!N5="","",'DF raw data'!N5) -> 504313 | C5: =IF('DF raw data'!O5="","",'DF raw data'!O5) ->  | D5: =IF('DF raw data'!P5="","",'DF raw data'!P5) -> 
A6: =IF('DF raw data'!M6="","",'DF raw data'!M6) -> Magnet type | B6: =IF('DF raw data'!N6="","",'DF raw data'!N6) -> Dipole | C6: =IF('DF raw data'!O6="","",'DF raw data'!O6) ->  | D6: =IF('DF raw data'!P6="","",'DF raw data'!P6) -> 
A7: =IF('DF raw data'!M7="","",'DF raw data'!M7) -> Magnet nr. | B7: =IF('DF raw data'!N7="","",'DF raw data'!N7) -> 2410082 | C7: =IF('DF raw data'!O7="","",'DF raw data'!O7) ->  | D7: =IF('DF raw data'!P7="","",'DF raw data'!P7) -> 
A8: =IF('DF raw data'!M8="","",'DF raw data'!M8) -> Meas. number | B8: =IF('DF raw data'!N8="","",'DF raw data'!N8) -> 57 | C8: =IF('DF raw data'!O8="","",'DF raw data'!O8) ->  | D8: =IF('DF raw data'!P8="","",'DF raw data'!P8) -> 
A9: =IF('DF raw data'!M9="","",'DF raw data'!M9) -> Add. info | B9: =IF('DF raw data'!N9="","",'DF raw data'!N9) -> X-alignment scan 4) | C9: =IF('DF raw data'!O9="","",'DF raw data'!O9) ->  | D9: =IF('DF raw data'!P9="","",'DF raw data'!P9) -> 
A10: =IF('DF raw data'!M10="","",'DF raw data'!M10) -> Device | B10: =IF('DF raw data'!N10="","",'DF raw data'!N10) -> (HAL) HALL-PROBE | C10: =IF('DF raw data'!O10="","",'DF raw data'!O10) ->  | D10: =IF('DF raw data'!P10="","",'DF raw data'!P10) -> 
A11: =IF('DF raw data'!M11="","",'DF raw data'!M11) -> Goal | B11: =IF('DF raw data'!N11="","",'DF raw data'!N11) -> (AXI) AXis Integral (Line, EFB) | C11: =IF('DF raw data'!O11="","",'DF raw data'!O11) ->  | D11: =IF('DF raw data'!P11="","",'DF raw data'!P11) -> 
A12: =IF('DF raw data'!M12="","",'DF raw data'!M12) -> Power supply mode | B12: =IF('DF raw data'!N12="","",'DF raw data'!N12) -> (PM) Permanent Magnet (no MPS in use) | C12: =IF('DF raw data'!O12="","",'DF raw data'!O12) ->  | D12: =IF('DF raw data'!P12="","",'DF raw data'!P12) -> 
A13: =IF('DF raw data'!M13="","",'DF raw data'!M13) -> Data format | B13: =IF('DF raw data'!N13="","",'DF raw data'!N13) -> Raw data text file | C13: =IF('DF raw data'!O13="","",'DF raw data'!O13) ->  | D13: =IF('DF raw data'!P13="","",'DF raw data'!P13) -> 
A14: =IF('DF raw data'!M14="","",'DF raw data'!M14) -> Direction of the pos. x-axis | B14: =IF('DF raw data'!N14="","",'DF raw data'!N14) -> See test program | C14: =IF('DF raw data'!O14="","",'DF raw data'!O14) ->  | D14: =IF('DF raw data'!P14="","",'DF raw data'!P14) -> 
A15: =IF('DF raw data'!M15="","",'DF raw data'!M15) -> Direction of the pos. y-axis | B15: =IF('DF raw data'!N15="","",'DF raw data'!N15) -> Vertical up | C15: =IF('DF raw data'!O15="","",'DF raw data'!O15) ->  | D15: =IF('DF raw data'!P15="","",'DF raw data'!P15) -> 
A16: =IF('DF raw data'!M16="","",'DF raw data'!M16) -> Direction of the pos. z-axis | B16: =IF('DF raw data'!N16="","",'DF raw data'!N16) -> See test program | C16: =IF('DF raw data'!O16="","",'DF raw data'!O16) ->  | D16: =IF('DF raw data'!P16="","",'DF raw data'!P16) -> 
A17: =IF('DF raw data'!M17="","",'DF raw data'!M17) -> Mapper type | B17: =IF('DF raw data'!N17="","",'DF raw data'!N17) -> Precision Hall Mapper | C17: =IF('DF raw data'!O17="","",'DF raw data'!O17) ->  | D17: =IF('DF raw data'!P17="","",'DF raw data'!P17) -> 
A18: =IF('DF raw data'!M18="","",'DF raw data'!M18) -> Mapper Danfysik Reg. Number | B18: =IF('DF raw data'!N18="","",'DF raw data'!N18) -> 2033-D (mapper 1) | C18: =IF('DF raw data'!O18="","",'DF raw data'!O18) ->  | D18: =IF('DF raw data'!P18="","",'DF raw data'!P18) -> 
A19: =IF('DF raw data'!M19="","",'DF raw data'!M19) -> Measurement consept | B19: =IF('DF raw data'!N19="","",'DF raw data'!N19) -> Square line grid | C19: =IF('DF raw data'!O19="","",'DF raw data'!O19) ->  | D19: =IF('DF raw data'!P19="","",'DF raw data'!P19) -> 
A20: =IF('DF raw data'!M20="","",'DF raw data'!M20) -> Mode | B20: =IF('DF raw data'!N20="","",'DF raw data'!N20) -> On-the-fly measurement | C20: =IF('DF raw data'!O20="","",'DF raw data'!O20) ->  | D20: =IF('DF raw data'!P20="","",'DF raw data'!P20) -> 
A21: =IF('DF raw data'!M21="","",'DF raw data'!M21) ->  | B21: =IF('DF raw data'!N21="","",'DF raw data'!N21) ->  | C21: =IF('DF raw data'!O21="","",'DF raw data'!O21) ->  | D21: =IF('DF raw data'!P21="","",'DF raw data'!P21) -> 
A22: =IF('DF raw data'!M22="","",'DF raw data'!M22) -> Probe Name | B22: =IF('DF raw data'!N22="","",'DF raw data'!N22) -> ID12_By | C22: =IF('DF raw data'!O22="","",'DF raw data'!O22) ->  | D22: =IF('DF raw data'!P22="","",'DF raw data'!P22) -> 
A23: =IF('DF raw data'!M23="","",'DF raw data'!M23) -> Probe Type | B23: =IF('DF raw data'!N23="","",'DF raw data'!N23) -> DF_ID_3D_Bxyz | C23: =IF('DF raw data'!O23="","",'DF raw data'!O23) ->  | D23: =IF('DF raw data'!P23="","",'DF raw data'!P23) -> 
A24: =IF('DF raw data'!M24="","",'DF raw data'!M24) -> Probe Danfysik Reg. Number | B24: =IF('DF raw data'!N24="","",'DF raw data'!N24) -> 2277 | C24: =IF('DF raw data'!O24="","",'DF raw data'!O24) ->  | D24: =IF('DF raw data'!P24="","",'DF raw data'!P24) -> 
A25: =IF('DF raw data'!M25="","",'DF raw data'!M25) -> Probe Axis | B25: =IF('DF raw data'!N25="","",'DF raw data'!N25) -> By | C25: =IF('DF raw data'!O25="","",'DF raw data'!O25) ->  | D25: =IF('DF raw data'!P25="","",'DF raw data'!P25) -> 
A26: =IF('DF raw data'!M26="","",'DF raw data'!M26) -> Probe Current Supply | B26: =IF('DF raw data'!N26="","",'DF raw data'!N26) -> 1825-D | C26: =IF('DF raw data'!O26="","",'DF raw data'!O26) ->  | D26: =IF('DF raw data'!P26="","",'DF raw data'!P26) -> 
A27: =IF('DF raw data'!M27="","",'DF raw data'!M27) -> Probe Gain Correction | B27: =IF('DF raw data'!N27="","",'DF raw data'!N27) -> 0.99613 | C27: =IF('DF raw data'!O27="","",'DF raw data'!O27) ->  | D27: =IF('DF raw data'!P27="","",'DF raw data'!P27) -> 
A28: =IF('DF raw data'!M28="","",'DF raw data'!M28) -> Probe Offset Correction | B28: =IF('DF raw data'!N28="","",'DF raw data'!N28) -> 0.0027685 | C28: =IF('DF raw data'!O28="","",'DF raw data'!O28) ->  | D28: =IF('DF raw data'!P28="","",'DF raw data'!P28) -> 
A29: =IF('DF raw data'!M29="","",'DF raw data'!M29) -> DVM Number | B29: =IF('DF raw data'!N29="","",'DF raw data'!N29) -> 2 | C29: =IF('DF raw data'!O29="","",'DF raw data'!O29) ->  | D29: =IF('DF raw data'!P29="","",'DF raw data'!P29) -> 
A30: =IF('DF raw data'!M30="","",'DF raw data'!M30) -> DVM Type | B30: =IF('DF raw data'!N30="","",'DF raw data'!N30) -> K2701 | C30: =IF('DF raw data'!O30="","",'DF raw data'!O30) ->  | D30: =IF('DF raw data'!P30="","",'DF raw data'!P30) -> 
A31: =IF('DF raw data'!M31="","",'DF raw data'!M31) -> DVM Danfysik Reg. Number | B31: =IF('DF raw data'!N31="","",'DF raw data'!N31) -> 1743-D | C31: =IF('DF raw data'!O31="","",'DF raw data'!O31) ->  | D31: =IF('DF raw data'!P31="","",'DF raw data'!P31) -> 
A32: =IF('DF raw data'!M32="","",'DF raw data'!M32) -> Probe Name | B32: =IF('DF raw data'!N32="","",'DF raw data'!N32) -> ID12_Bx | C32: =IF('DF raw data'!O32="","",'DF raw data'!O32) ->  | D32: =IF('DF raw data'!P32="","",'DF raw data'!P32) -> 
A33: =IF('DF raw data'!M33="","",'DF raw data'!M33) -> Probe Type | B33: =IF('DF raw data'!N33="","",'DF raw data'!N33) -> DF_ID_3D_Bxyz | C33: =IF('DF raw data'!O33="","",'DF raw data'!O33) ->  | D33: =IF('DF raw data'!P33="","",'DF raw data'!P33) -> 
A34: =IF('DF raw data'!M34="","",'DF raw data'!M34) -> Probe Danfysik Reg. Number | B34: =IF('DF raw data'!N34="","",'DF raw data'!N34) -> 2277 | C34: =IF('DF raw data'!O34="","",'DF raw data'!O34) ->  | D34: =IF('DF raw data'!P34="","",'DF raw data'!P34) -> 
A35: =IF('DF raw data'!M35="","",'DF raw data'!M35) -> Probe Axis | B35: =IF('DF raw data'!N35="","",'DF raw data'!N35) -> Bx | C35: =IF('DF raw data'!O35="","",'DF raw data'!O35) ->  | D35: =IF('DF raw data'!P35="","",'DF raw data'!P35) -> 
A36: =IF('DF raw data'!M36="","",'DF raw data'!M36) -> Probe Current Supply | B36: =IF('DF raw data'!N36="","",'DF raw data'!N36) -> 1825-D | C36: =IF('DF raw data'!O36="","",'DF raw data'!O36) ->  | D36: =IF('DF raw data'!P36="","",'DF raw data'!P36) -> 
A37: =IF('DF raw data'!M37="","",'DF raw data'!M37) -> Probe Gain Correction | B37: =IF('DF raw data'!N37="","",'DF raw data'!N37) -> 1 | C37: =IF('DF raw data'!O37="","",'DF raw data'!O37) ->  | D37: =IF('DF raw data'!P37="","",'DF raw data'!P37) -> 
A38: =IF('DF raw data'!M38="","",'DF raw data'!M38) -> Probe Offset Correction | B38: =IF('DF raw data'!N38="","",'DF raw data'!N38) -> -0.17517 | C38: =IF('DF raw data'!O38="","",'DF raw data'!O38) ->  | D38: =IF('DF raw data'!P38="","",'DF raw data'!P38) -> 
A39: =IF('DF raw data'!M39="","",'DF raw data'!M39) -> DVM Number | B39: =IF('DF raw data'!N39="","",'DF raw data'!N39) -> 3 | C39: =IF('DF raw data'!O39="","",'DF raw data'!O39) ->  | D39: =IF('DF raw data'!P39="","",'DF raw data'!P39) -> 
A40: =IF('DF raw data'!M40="","",'DF raw data'!M40) -> DVM Type | B40: =IF('DF raw data'!N40="","",'DF raw data'!N40) -> K2701 | C40: =IF('DF raw data'!O40="","",'DF raw data'!O40) ->  | D40: =IF('DF raw data'!P40="","",'DF raw data'!P40) -> 
A41: =IF('DF raw data'!M41="","",'DF raw data'!M41) -> DVM Danfysik Reg. Number | B41: =IF('DF raw data'!N41="","",'DF raw data'!N41) -> 1744-D | C41: =IF('DF raw data'!O41="","",'DF raw data'!O41) ->  | D41: =IF('DF raw data'!P41="","",'DF raw data'!P41) -> 
A42: =IF('DF raw data'!M42="","",'DF raw data'!M42) -> Probe Name | B42: =IF('DF raw data'!N42="","",'DF raw data'!N42) -> ID12_Bz | C42: =IF('DF raw data'!O42="","",'DF raw data'!O42) ->  | D42: =IF('DF raw data'!P42="","",'DF raw data'!P42) -> 
A43: =IF('DF raw data'!M43="","",'DF raw data'!M43) -> Probe Type | B43: =IF('DF raw data'!N43="","",'DF raw data'!N43) -> DF_ID_3D_Bxyz | C43: =IF('DF raw data'!O43="","",'DF raw data'!O43) ->  | D43: =IF('DF raw data'!P43="","",'DF raw data'!P43) -> 
A44: =IF('DF raw data'!M44="","",'DF raw data'!M44) -> Probe Danfysik Reg. Number | B44: =IF('DF raw data'!N44="","",'DF raw data'!N44) -> 2277 | C44: =IF('DF raw data'!O44="","",'DF raw data'!O44) ->  | D44: =IF('DF raw data'!P44="","",'DF raw data'!P44) -> 
A45: =IF('DF raw data'!M45="","",'DF raw data'!M45) -> Probe Axis | B45: =IF('DF raw data'!N45="","",'DF raw data'!N45) -> Bz | C45: =IF('DF raw data'!O45="","",'DF raw data'!O45) ->  | D45: =IF('DF raw data'!P45="","",'DF raw data'!P45) -> 
A46: =IF('DF raw data'!M46="","",'DF raw data'!M46) -> Probe Current Supply | B46: =IF('DF raw data'!N46="","",'DF raw data'!N46) -> 1825-D | C46: =IF('DF raw data'!O46="","",'DF raw data'!O46) ->  | D46: =IF('DF raw data'!P46="","",'DF raw data'!P46) -> 
A47: =IF('DF raw data'!M47="","",'DF raw data'!M47) -> Probe Gain Correction | B47: =IF('DF raw data'!N47="","",'DF raw data'!N47) -> 1 | C47: =IF('DF raw data'!O47="","",'DF raw data'!O47) ->  | D47: =IF('DF raw data'!P47="","",'DF raw data'!P47) -> 
A48: =IF('DF raw data'!M53="","",'DF raw data'!M53) -> PS-Gap: | B48: =IF('DF raw data'!N53="","",'DF raw data'!N53) -> 10 | C48: =IF('DF raw data'!O53="","",'DF raw data'!O53) ->  | D48: =IF('DF raw data'!P53="","",'DF raw data'!P53) -> 
A49: =IF('DF raw data'!M54="","",'DF raw data'!M54) -> PS-Temperature: | B49: =IF('DF raw data'!N54="","",'DF raw data'!N54) -> 24.9 | C49: =IF('DF raw data'!O54="","",'DF raw data'!O54) ->  | D49: =IF('DF raw data'!P54="","",'DF raw data'!P54) -> 
A50: =IF('DF raw data'!M55="","",'DF raw data'!M55) -> PS-Encoder: | B50: =IF('DF raw data'!N55="","",'DF raw data'!N55) -> 20.4293 | C50: =IF('DF raw data'!O55="","",'DF raw data'!O55) ->  | D50: =IF('DF raw data'!P55="","",'DF raw data'!P55) -> 
A51: =IF('DF raw data'!M56="","",'DF raw data'!M56) ->  | B51: =IF('DF raw data'!N56="","",'DF raw data'!N56) ->  | C51: =IF('DF raw data'!O56="","",'DF raw data'!O56) ->  | D51: =IF('DF raw data'!P56="","",'DF raw data'!P56) -> 
A52: =IF('DF raw data'!M57="","",'DF raw data'!M57) -> Monitor-Index | B52: =IF('DF raw data'!N57="","",'DF raw data'!N57) -> [1,1,4] | C52: =IF('DF raw data'!O57="","",'DF raw data'!O57) ->  | D52: =IF('DF raw data'!P57="","",'DF raw data'!P57) -> 
A53: =IF('DF raw data'!M58="","",'DF raw data'!M58) ->  | B53: =IF('DF raw data'!N58="","",'DF raw data'!N58) ->  | C53: =IF('DF raw data'!O58="","",'DF raw data'!O58) ->  | D53: =IF('DF raw data'!P58="","",'DF raw data'!P58) -> 
A54: =IF('DF raw data'!M59="","",'DF raw data'!M59) -> Time [s] | B54: =IF('DF raw data'!N59="","",'DF raw data'!N59) -> Y [mm] | C54: =IF('DF raw data'!O59="","",'DF raw data'!O59) -> X [mm] | D54: =IF('DF raw data'!P59="","",'DF raw data'!P59) -> Nominal current [A]
A55: =IF('DF raw data'!M60="","",'DF raw data'!M60) ->  | B55: =IF('DF raw data'!N60="","",'DF raw data'!N60) ->  | C55: =IF('DF raw data'!O60="","",'DF raw data'!O60) ->  | D55: =IF('DF raw data'!P60="","",'DF raw data'!P60) -> 
A56: =IF('DF raw data'!M61="","",'DF raw data'!M61) -> 202 | B56: =IF('DF raw data'!N61="","",'DF raw data'!N61) -> 30.8 | C56: =IF('DF raw data'!O61="","",'DF raw data'!O61) -> 302.8 | D56: =IF('DF raw data'!P61="","",'DF raw data'!P61) -> 0
A57: =IF('DF raw data'!M62="","",'DF raw data'!M62) ->  | B57: =IF('DF raw data'!N62="","",'DF raw data'!N62) ->  | C57: =IF('DF raw data'!O62="","",'DF raw data'!O62) ->  | D57: =IF('DF raw data'!P62="","",'DF raw data'!P62) -> 
A58: =IF('DF raw data'!M63="","",'DF raw data'!M63) -> Measurement-Index | B58: =IF('DF raw data'!N63="","",'DF raw data'!N63) -> [1,1,1201,2] | C58: =IF('DF raw data'!O63="","",'DF raw data'!O63) ->  | D58: =IF('DF raw data'!P63="","",'DF raw data'!P63) -> 
A59: =IF('DF raw data'!M64="","",'DF raw data'!M64) ->  | B59: =IF('DF raw data'!N64="","",'DF raw data'!N64) ->  | C59: =IF('DF raw data'!O64="","",'DF raw data'!O64) ->  | D59: =IF('DF raw data'!P64="","",'DF raw data'!P64) -> 
A60: =IF('DF raw data'!M65="","",'DF raw data'!M65) -> Z [mm] | B60: By [T] | C60: Bx [T] | D60: Bz [T] | F60: By_corr | G60: Bx_corr | H60: Bz_corr | J60: Iy | K60: Jy | L60: Ix | M60: Jx | N60: PI
A62: =IF('DF raw data'!M67="","",'DF raw data'!M67) -> -300 | B62: =IF('DF raw data'!N67="","",'DF raw data'!N67) -> -2.00987e-05 | C62: =IF('DF raw data'!O67="","",'DF raw data'!O67) -> 0.000100254 | D62: =IF('DF raw data'!P67="","",'DF raw data'!P67) -> -1.22614e-05 | F62: =(1-$G$1*($B$49))*B62 -> -2.046403407e-05 | G62: =(1-$G$1*($B$49-$G$2))*C62 -> 0.0001006126086 | H62: =(1-$G$1*($B$49-$G$2))*D62 -> -1.230525903e-05 | J62: =F62*$G$3 -> -1.023201703e-05 | K62: =J62*$G$3 -> -5.116008517e-06 | L62: =G62*$G$3 -> 5.030630428e-05 | M62: =L62*$G$3 -> 2.515315214e-05 | N62: =(J62^2+L62^2)*$G$3 -> 1.317709211e-09
A63: =IF('DF raw data'!M68="","",'DF raw data'!M68) -> -299.5 | B63: =IF('DF raw data'!N68="","",'DF raw data'!N68) -> -1.45886e-05 | C63: =IF('DF raw data'!O68="","",'DF raw data'!O68) -> 0.000103699 | D63: =IF('DF raw data'!P68="","",'DF raw data'!P68) -> -1.25216e-05 | F63: =(1-$G$1*($B$49-$G$2))*B63 -> -1.464078342e-05 | G63: =(1-$G$1*($B$49-$G$2))*C63 -> 0.0001040699313 | H63: -1.256638976e-05 | J63: =F63*$G$3+J62 -> -1.755240875e-05 | K63: =J63*$G$3+K62 -> -1.389221289e-05 | L63: =G63*$G$3+L62 -> 0.0001023412699 | M63: =L63*$G$3+M62 -> 7.632378711e-05 | N63: =(J63^2+L63^2)*$G$3+N62 -> 6.708620504e-09
A64: =IF('DF raw data'!M69="","",'DF raw data'!M69) -> -299 | B64: =IF('DF raw data'!N69="","",'DF raw data'!N69) -> -1.62541e-05 | C64: =IF('DF raw data'!O69="","",'DF raw data'!O69) -> 0.000108999 | D64: =IF('DF raw data'!P69="","",'DF raw data'!P69) -> -1.29496e-05 | F64: =(1-$G$1*($B$49-$G$2))*B64 -> -1.631224092e-05 | G64: 0.0001093888894 | H64: -1.299592072e-05 | J64: =F64*$G$3+J63 -> -2.57085292e-05 | K64: =J64*$G$3+K63 -> -2.674647749e-05 | L64: =G64*$G$3+L63 -> 0.0001570357147 | M64: =L64*$G$3+M63 -> 0.0001548416444 | N64: =(J64^2+L64^2)*$G$3+N63 -> 1.936919258e-08
A65: =IF('DF raw data'!M70="","",'DF raw data'!M70) -> -298.5 | B65: =IF('DF raw data'!N70="","",'DF raw data'!N70) -> -1.42677e-05 | C65: =IF('DF raw data'!O70="","",'DF raw data'!O70) -> 0.000113179 | D65: =IF('DF raw data'!P70="","",'DF raw data'!P70) -> -1.33096e-05 | F65: -1.431873556e-05 | G65: 0.0001135838413 | H65: -1.335720844e-05 | J65: -3.286789699e-05 | K65: -4.318042599e-05 | L65: 0.0002138276353 | M65: 0.0002617554621 | N65: 4.277047071e-08
A66: =IF('DF raw data'!M71="","",'DF raw data'!M71) -> -298 | B66: =IF('DF raw data'!N71="","",'DF raw data'!N71) -> -1.51644e-05 | C66: =IF('DF raw data'!O71="","",'DF raw data'!O71) -> 0.000109722 | D66: =IF('DF raw data'!P71="","",'DF raw data'!P71) -> -1.35524e-05 | F66: -1.521864306e-05 | G66: 0.0001101144756 | H66: -1.360087693e-05 | J66: -4.047721851e-05 | K66: -6.341903524e-05 | L66: 0.0002688848731 | M66: 0.0003961978986 | N66: 7.973921081e-08
A67: =IF('DF raw data'!M72="","",'DF raw data'!M72) -> -297.5 | B67: =IF('DF raw data'!N72="","",'DF raw data'!N72) -> -1.66382e-05 | C67: =IF('DF raw data'!O72="","",'DF raw data'!O72) -> 0.000108851 | D67: =IF('DF raw data'!P72="","",'DF raw data'!P72) -> -1.33777e-05 | F67: -1.669771484e-05 | G67: 0.00010924036 | H67: -1.342555203e-05 | J67: -4.882607594e-05 | K67: -8.783207321e-05 | L67: 0.0003235050531 | M67: 0.0005579504252 | N67: 1.332589633e-07
A68: =IF('DF raw data'!M73="","",'DF raw data'!M73) -> -297 | B68: =IF('DF raw data'!N73="","",'DF raw data'!N73) -> -2.22124e-05 | C68: =IF('DF raw data'!O73="","",'DF raw data'!O73) -> 0.000109648 | D68: =IF('DF raw data'!P73="","",'DF raw data'!P73) -> -1.29259e-05 | F68: -2.229185375e-05 | G68: 0.0001100402109 | H68: -1.297213594e-05 | J68: -5.997200281e-05 | K68: -0.0001178180746 | L68: 0.0003785251586 | M68: 0.0007472130045 | N68: 2.066979317e-07
A69: =IF('DF raw data'!M74="","",'DF raw data'!M74) -> -296.5 | B69: =IF('DF raw data'!N74="","",'DF raw data'!N74) -> -8.18135e-06 | C69: =IF('DF raw data'!O74="","",'DF raw data'!O74) -> 0.000105987 | D69: =IF('DF raw data'!P74="","",'DF raw data'!P74) -> -1.31565e-05 | F69: -8.210614689e-06 | G69: 0.0001063661155 | H69: -1.32035608e-05 | J69: -6.407731016e-05 | K69: -0.0001498567297 | L69: 0.0004317082163 | M69: 0.0009630671126 | N69: 3.019368746e-07
A70: =IF('DF raw data'!M75="","",'DF raw data'!M75) -> -296 | B70: =IF('DF raw data'!N75="","",'DF raw data'!N75) -> -1.7727e-05 | C70: =IF('DF raw data'!O75="","",'DF raw data'!O75) -> 0.000106917 | D70: =IF('DF raw data'!P75="","",'DF raw data'!P75) -> -1.40878e-05 | F70: -1.779040948e-05 | G70: 0.0001072994421 | H70: -1.413819206e-05 | J70: -7.29725149e-05 | K70: -0.0001863429871 | L70: 0.0004853579374 | M70: 0.001205746081 | N70: 4.223855322e-07
A71: =IF('DF raw data'!M76="","",'DF raw data'!M76) -> -295.5 | B71: =IF('DF raw data'!N76="","",'DF raw data'!N76) -> -1.54841e-05 | C71: =IF('DF raw data'!O76="","",'DF raw data'!O76) -> 0.000107099 | D71: =IF('DF raw data'!P76="","",'DF raw data'!P76) -> -1.48263e-05 | F71: -1.553948663e-05 | G71: 0.0001074820931 | H71: -1.487933368e-05 | J71: -8.074225821e-05 | K71: -0.0002267141162 | L71: 0.0005390989839 | M71: 0.001475295573 | N71: 5.709590456e-07
A72: =IF('DF raw data'!M77="","",'DF raw data'!M77) -> -295 | B72: =IF('DF raw data'!N77="","",'DF raw data'!N77) -> -2.99639e-05 | C72: =IF('DF raw data'!O77="","",'DF raw data'!O77) -> 0.000110777 | D72: =IF('DF raw data'!P77="","",'DF raw data'!P77) -> -1.42894e-05 | F72: -3.007108087e-05 | G72: 0.0001111732493 | H72: -1.434051318e-05 | J72: -9.577779864e-05 | K72: -0.0002746030156 | L72: 0.0005946856086 | M72: 0.001772638378 | N72: 7.523712255e-07
A73: =IF('DF raw data'!M78="","",'DF raw data'!M78) -> -294.5 | B73: =IF('DF raw data'!N78="","",'DF raw data'!N78) -> -3.23993e-05 | C73: =IF('DF raw data'!O78="","",'DF raw data'!O78) -> 0.000106746 | D73: =IF('DF raw data'!P78="","",'DF raw data'!P78) -> -1.29289e-05 | F73: -3.25151923e-05 | G73: 0.0001071278304 | H73: -1.297514668e-05 | J73: -0.0001120353948 | K73: -0.000330620713 | L73: 0.0006482495238 | M73: 0.002096763139 | N73: 9.687609129e-07
A74: =IF('DF raw data'!M79="","",'DF raw data'!M79) -> -294 | B74: =IF('DF raw data'!N79="","",'DF raw data'!N79) -> -2.01628e-05 | C74: =IF('DF raw data'!O79="","",'DF raw data'!O79) -> 0.000105221 | D74: =IF('DF raw data'!P79="","",'DF raw data'!P79) -> -1.21697e-05 | F74: -2.023492234e-05 | G74: 0.0001055973755 | H74: -1.221323102e-05 | J74: -0.000122152856 | K74: -0.0003916971409 | L74: 0.0007010482116 | M74: 0.002447287245 | N74: 1.22195587e-06
A75: =IF('DF raw data'!M80="","",'DF raw data'!M80) -> -293.5 | B75: =IF('DF raw data'!N80="","",'DF raw data'!N80) -> -2.09956e-05 | C75: =IF('DF raw data'!O80="","",'DF raw data'!O80) -> 0.000102891 | D75: =IF('DF raw data'!P80="","",'DF raw data'!P80) -> -1.24727e-05 | F75: -2.107070126e-05 | G75: 0.0001032590411 | H75: -1.251731485e-05 | J75: -0.0001326882066 | K75: -0.0004580412442 | L75: 0.0007526777321 | M75: 0.002823626111 | N75: 1.514020835e-06
A76: =IF('DF raw data'!M81="","",'DF raw data'!M81) -> -293 | B76: =IF('DF raw data'!N81="","",'DF raw data'!N81) -> -1.73431e-05 | C76: =IF('DF raw data'!O81="","",'DF raw data'!O81) -> 0.000105155 | D76: =IF('DF raw data'!P81="","",'DF raw data'!P81) -> -1.33155e-05 | F76: -1.740513627e-05 | G76: 0.0001055311394 | H76: -1.336312954e-05 | J76: -0.0001413907747 | K76: -0.0005287366316 | L76: 0.0008054433018 | M76: 0.003226347762 | N76: 1.848385967e-06
A77: =IF('DF raw data'!M82="","",'DF raw data'!M82) -> -292.5 | B77: =IF('DF raw data'!N82="","",'DF raw data'!N82) -> -1.63818e-05 | C77: =IF('DF raw data'!O82="","",'DF raw data'!O82) -> 0.000103534 | D77: =IF('DF raw data'!P82="","",'DF raw data'!P82) -> -1.36646e-05 | F77: -1.64403977e-05 | G77: 0.0001039043411 | H77: -1.371347827e-05 | J77: -0.0001496109736 | K77: -0.0006035421184 | L77: 0.0008573954724 | M77: 0.003655045498 | N77: 2.227141186e-06
A78: =IF('DF raw data'!M83="","",'DF raw data'!M83) -> -292 | B78: =IF('DF raw data'!N83="","",'DF raw data'!N83) -> -3.18868e-05 | C78: =IF('DF raw data'!O83="","",'DF raw data'!O83) -> 0.000104161 | D78: =IF('DF raw data'!P83="","",'DF raw data'!P83) -> -1.29556e-05 | F78: -3.200085908e-05 | G78: 0.0001045335839 | H78: -1.300194218e-05 | J78: -0.0001656114031 | K78: -0.00068634782 | L78: 0.0009096622643 | M78: 0.004109876631 | N78: 2.654597472e-06
A79: =IF('DF raw data'!M84="","",'DF raw data'!M84) -> -291.5 | B79: =IF('DF raw data'!N84="","",'DF raw data'!N84) -> -1.49838e-05 | C79: =IF('DF raw data'!O84="","",'DF raw data'!O84) -> 0.000106289 | D79: =IF('DF raw data'!P84="","",'DF raw data'!P84) -> 4.12433e-06 | F79: -1.503739705e-05 | G79: 0.0001066691958 | H79: 4.139082728e-06 | J79: -0.0001731301016 | K79: -0.0007729128708 | L79: 0.0009629968622 | M79: 0.004591375062 | N79: 3.133265967e-06
A80: =IF('DF raw data'!M85="","",'DF raw data'!M85) -> -291 | B80: =IF('DF raw data'!N85="","",'DF raw data'!N85) -> -1.23561e-05 | C80: =IF('DF raw data'!O85="","",'DF raw data'!O85) -> 0.000107021 | D80: =IF('DF raw data'!P85="","",'DF raw data'!P85) -> 2.6799e-06 | F80: -1.240029777e-05 | G80: 0.0001074038141 | H80: 2.689486002e-06 | J80: -0.0001793302505 | K80: -0.000862577996 | L80: 0.001016698769 | M80: 0.005099724446 | N80: 3.66618383e-06
A81: =IF('DF raw data'!M86="","",'DF raw data'!M86) -> -290.5 | B81: =IF('DF raw data'!N86="","",'DF raw data'!N86) -> -2.31765e-05 | C81: =IF('DF raw data'!O86="","",'DF raw data'!O86) -> 0.000102697 | D81: =IF('DF raw data'!P86="","",'DF raw data'!P86) -> -8.26183e-06 | F81: -2.325940234e-05 | G81: 0.0001030643472 | H81: -8.291382566e-06 | J81: -0.0001909599517 | K81: -0.0009580579719 | L81: 0.001068230943 | M81: 0.005633839918 | N81: 4.254975355e-06
A82: =IF('DF raw data'!M87="","",'DF raw data'!M87) -> -290 | B82: =IF('DF raw data'!N87="","",'DF raw data'!N87) -> -2.60566e-05 | C82: =IF('DF raw data'!O87="","",'DF raw data'!O87) -> 9.3446e-05 | D82: =IF('DF raw data'!P87="","",'DF raw data'!P87) -> -1.29469e-05 | F82: -2.614980446e-05 | G82: 9.378025634e-05 | H82: -1.299321106e-05 | J82: -0.0002040348539 | K82: -0.001060075399 | L82: 0.001115121071 | M82: 0.006191400453 | N82: 4.897537967e-06
A83: =IF('DF raw data'!M88="","",'DF raw data'!M88) -> -289.5 | B83: =IF('DF raw data'!N88="","",'DF raw data'!N88) -> -1.9396e-05 | C83: =IF('DF raw data'!O88="","",'DF raw data'!O88) -> 9.4774e-05 | D83: =IF('DF raw data'!P88="","",'DF raw data'!P88) -> -9.09269e-06 | F83: -1.946537949e-05 | G83: 9.51130066e-05 | H83: -9.125214552e-06 | J83: -0.0002137675437 | K83: -0.001166959171 | L83: 0.001162677574 | M83: 0.00677273924 | N83: 5.59629582e-06
A84: =IF('DF raw data'!M89="","",'DF raw data'!M89) -> -289 | B84: =IF('DF raw data'!N89="","",'DF raw data'!N89) -> -1.79312e-05 | C84: =IF('DF raw data'!O89="","",'DF raw data'!O89) -> 0.000100504 | D84: =IF('DF raw data'!P89="","",'DF raw data'!P89) -> 4.66634e-06 | F84: -1.79953399e-05 | G84: 0.0001008635028 | H84: 4.683031498e-06 | J84: -0.0002227652136 | K84: -0.001278341777 | L84: 0.001213109326 | M84: 0.007379293903 | N84: 6.356925108e-06
A85: =IF('DF raw data'!M90="","",'DF raw data'!M90) -> -288.5 | B85: =IF('DF raw data'!N90="","",'DF raw data'!N90) -> -2.74164e-05 | C85: =IF('DF raw data'!O90="","",'DF raw data'!O90) -> 9.53379e-05 | D85: =IF('DF raw data'!P90="","",'DF raw data'!P90) -> 9.36392e-06 | F85: -2.751446846e-05 | G85: 9.567892367e-05 | H85: 9.397414742e-06 | J85: -0.0002365224479 | K85: -0.001396603001 | L85: 0.001260948788 | M85: 0.008009768297 | N85: 7.179892465e-06
A86: =IF('DF raw data'!M91="","",'DF raw data'!M91) -> -288 | B86: =IF('DF raw data'!N91="","",'DF raw data'!N91) -> -1.89483e-05 | C86: =IF('DF raw data'!O91="","",'DF raw data'!O91) -> 9.81588e-05 | D86: =IF('DF raw data'!P91="","",'DF raw data'!P91) -> -7.6611e-06 | F86: -1.901607807e-05 | G86: 9.850991403e-05 | H86: -7.688503755e-06 | J86: -0.0002460304869 | K86: -0.001519618245 | L86: 0.001310203745 | M86: 0.008664870169 | N86: 8.068474891e-06
A87: =IF('DF raw data'!M92="","",'DF raw data'!M92) -> -287.5 | B87: =IF('DF raw data'!N92="","",'DF raw data'!N92) -> -1.66377e-05 | C87: =IF('DF raw data'!O92="","",'DF raw data'!O92) -> 0.000105636 | D87: =IF('DF raw data'!P92="","",'DF raw data'!P92) -> -1.42213e-05 | F87: -1.669721305e-05 | G87: 0.00010601386 | H87: -1.427216959e-05 | J87: -0.0002543790934 | K87: -0.001646807792 | L87: 0.001363210675 | M87: 0.009346475507 | N87: 9.030000924e-06
A88: =IF('DF raw data'!M93="","",'DF raw data'!M93) -> -287 | B88: =IF('DF raw data'!N93="","",'DF raw data'!N93) -> -2.03541e-05 | C88: =IF('DF raw data'!O93="","",'DF raw data'!O93) -> 9.99237e-05 | D88: =IF('DF raw data'!P93="","",'DF raw data'!P93) -> -1.37899e-05 | F88: -2.042690662e-05 | G88: 0.0001002811271 | H88: -1.383922647e-05 | J88: -0.0002645925467 | K88: -0.001779104065 | L88: 0.001413351238 | M88: 0.01005315113 | N88: 1.006378639e-05
A89: =IF('DF raw data'!M94="","",'DF raw data'!M94) -> -286.5 | B89: =IF('DF raw data'!N94="","",'DF raw data'!N94) -> -2.43289e-05 | C89: =IF('DF raw data'!O94="","",'DF raw data'!O94) -> 9.90457e-05 | D89: =IF('DF raw data'!P94="","",'DF raw data'!P94) -> -9.58294e-06 | F89: -2.441592448e-05 | G89: 9.939998647e-05 | H89: -9.617218176e-06 | J89: -0.000276800509 | K89: -0.001917504319 | L89: 0.001463051231 | M89: 0.01078467674 | N89: 1.117235511e-05
A90: =IF('DF raw data'!M95="","",'DF raw data'!M95) -> -286 | B90: =IF('DF raw data'!N95="","",'DF raw data'!N95) -> -2.29131e-05 | C90: =IF('DF raw data'!O95="","",'DF raw data'!O95) -> 9.63837e-05 | D90: =IF('DF raw data'!P95="","",'DF raw data'!P95) -> -1.94007e-05 | F90: -2.299506016e-05 | G90: 9.672846449e-05 | H90: -1.94700963e-05 | J90: -0.000288298039 | K90: -0.002061653339 | L90: 0.001511415464 | M90: 0.01154038447 | N90: 1.235610134e-05
A91: =IF('DF raw data'!M96="","",'DF raw data'!M96) -> -285.5 | B91: =IF('DF raw data'!N96="","",'DF raw data'!N96) -> -2.50303e-05 | C91: =IF('DF raw data'!O96="","",'DF raw data'!O96) -> 0.000101109 | D91: =IF('DF raw data'!P96="","",'DF raw data'!P96) -> -1.49111e-05 | F91: -2.511983338e-05 | G91: 0.0001014706669 | H91: -1.4964437e-05 | J91: -0.0003008579557 | K91: -0.002212082317 | L91: 0.001562150797 | M91: 0.01232145987 | N91: 1.362151665e-05
A92: =IF('DF raw data'!M97="","",'DF raw data'!M97) -> -285 | B92: =IF('DF raw data'!N97="","",'DF raw data'!N97) -> -2.26627e-05 | C92: =IF('DF raw data'!O97="","",'DF raw data'!O97) -> 0.000107507 | D92: =IF('DF raw data'!P97="","",'DF raw data'!P97) -> -1.04144e-05 | F92: -2.274376448e-05 | G92: 0.0001078915525 | H92: -1.045165231e-05 | J92: -0.000312229838 | K92: -0.002368197236 | L92: 0.001616096573 | M92: 0.01312950816 | N92: 1.497614445e-05
A93: =IF('DF raw data'!M98="","",'DF raw data'!M98) -> -284.5 | B93: =IF('DF raw data'!N98="","",'DF raw data'!N98) -> -2.39442e-05 | C93: =IF('DF raw data'!O98="","",'DF raw data'!O98) -> 0.000104461 | D93: =IF('DF raw data'!P98="","",'DF raw data'!P98) -> -1.00005e-05 | F93: -2.40298484e-05 | G93: 0.000104834657 | H93: -1.003627179e-05 | J93: -0.0003242447622 | K93: -0.002530319617 | L93: 0.001668513902 | M93: 0.01396376511 | N93: 1.642068111e-05
A94: =IF('DF raw data'!M99="","",'DF raw data'!M99) -> -284 | B94: =IF('DF raw data'!N99="","",'DF raw data'!N99) -> -3.20259e-05 | C94: =IF('DF raw data'!O99="","",'DF raw data'!O99) -> 0.000104517 | D94: =IF('DF raw data'!P99="","",'DF raw data'!P99) -> 3.86013e-06 | F94: -3.214045664e-05 | G94: 0.0001048908573 | H94: 3.873937685e-06 | J94: -0.0003403149905 | K94: -0.002700477112 | L94: 0.00172095933 | M94: 0.01482424477 | N94: 1.795943876e-05
A95: =IF('DF raw data'!M100="","",'DF raw data'!M100) -> -283.5 | B95: =IF('DF raw data'!N100="","",'DF raw data'!N100) -> -3.02287e-05 | C95: =IF('DF raw data'!O100="","",'DF raw data'!O100) -> 0.00011393 | D95: =IF('DF raw data'!P100="","",'DF raw data'!P100) -> -1.17538e-06 | F95: -3.033682806e-05 | G95: 0.0001143375276 | H95: -1.179584334e-06 | J95: -0.0003554834045 | K95: -0.002878218814 | L95: 0.001778128094 | M95: 0.01571330882 | N95: 1.960349275e-05
A96: =IF('DF raw data'!M101="","",'DF raw data'!M101) -> -283 | B96: =IF('DF raw data'!N101="","",'DF raw data'!N101) -> -2.22809e-05 | C96: =IF('DF raw data'!O101="","",'DF raw data'!O101) -> 0.000117065 | D96: =IF('DF raw data'!P101="","",'DF raw data'!P101) -> -6.32986e-06 | F96: -2.236059878e-05 | G96: 0.0001174837415 | H96: -6.352501909e-06 | J96: -0.0003666637039 | K96: -0.003061550666 | L96: 0.001836869965 | M96: 0.0166317438 | N96: 2.135775952e-05
A97: =IF('DF raw data'!M102="","",'DF raw data'!M102) -> -282.5 | B97: =IF('DF raw data'!N102="","",'DF raw data'!N102) -> -1.31168e-05 | C97: =IF('DF raw data'!O102="","",'DF raw data'!O102) -> 0.0001107 | D97: =IF('DF raw data'!P102="","",'DF raw data'!P102) -> -9.76854e-06 | F97: -1.316371879e-05 | G97: 0.0001110959739 | H97: -9.803482068e-06 | J97: -0.0003732455633 | K97: -0.003248173448 | L97: 0.001892417952 | M97: 0.01757795278 | N97: 2.321803849e-05
A98: =IF('DF raw data'!M103="","",'DF raw data'!M103) -> -282 | B98: =IF('DF raw data'!N103="","",'DF raw data'!N103) -> -3.81121e-05 | C98: =IF('DF raw data'!O103="","",'DF raw data'!O103) -> 0.000119155 | D98: =IF('DF raw data'!P103="","",'DF raw data'!P103) -> 3.57497e-06 | F98: -3.824842698e-05 | G98: 0.0001195812174 | H98: 3.587757668e-06 | J98: -0.0003923697768 | K98: -0.003444358336 | L98: 0.001952208561 | M98: 0.01855405706 | N98: 2.520057465e-05
A99: =IF('DF raw data'!M104="","",'DF raw data'!M104) -> -281.5 | B99: =IF('DF raw data'!N104="","",'DF raw data'!N104) -> -2.46439e-05 | C99: =IF('DF raw data'!O104="","",'DF raw data'!O104) -> 0.000116023 | D99: =IF('DF raw data'!P104="","",'DF raw data'!P104) -> -1.80646e-05 | F99: -2.473205123e-05 | G99: 0.0001164380143 | H99: -1.812921707e-05 | J99: -0.0004047358024 | K99: -0.003646726238 | L99: 0.002010427568 | M99: 0.01955927084 | N99: 2.730338968e-05
A100: =IF('DF raw data'!M105="","",'DF raw data'!M105) -> -281 | B100: =IF('DF raw data'!N105="","",'DF raw data'!N105) -> -2.57366e-05 | C100: =IF('DF raw data'!O105="","",'DF raw data'!O105) -> 0.000109941 | D100: =IF('DF raw data'!P105="","",'DF raw data'!P105) -> -1.24188e-05 | F100: -2.582865982e-05 | G100: 0.000110334259 | H100: -1.246322205e-05 | J100: -0.0004176501323 | K100: -0.003855551304 | L100: 0.002065594697 | M100: 0.02059206819 | N100: 2.952394623e-05
A101: =IF('DF raw data'!M106="","",'DF raw data'!M106) -> -280.5 | B101: =IF('DF raw data'!N106="","",'DF raw data'!N106) -> -2.97014e-05 | C101: =IF('DF raw data'!O106="","",'DF raw data'!O106) -> 0.000111491 | D101: =IF('DF raw data'!P106="","",'DF raw data'!P106) -> -2.4013e-05 | F101: -2.980764191e-05 | G101: 0.0001118898033 | H101: -2.40988945e-05 | J101: -0.0004325539533 | K101: -0.00407182828 | L101: 0.002121539599 | M101: 0.02165283799 | N101: 3.186796282e-05
A102: =IF('DF raw data'!M107="","",'DF raw data'!M107) -> -280 | B102: =IF('DF raw data'!N107="","",'DF raw data'!N107) -> -3.50968e-05 | C102: =IF('DF raw data'!O107="","",'DF raw data'!O107) -> 0.000112507 | D102: =IF('DF raw data'!P107="","",'DF raw data'!P107) -> -2.74878e-06 | F102: -3.522234125e-05 | G102: 0.0001129094375 | H102: -2.758612386e-06 | J102: -0.0004501651239 | K102: -0.004296910842 | L102: 0.002177994318 | M102: 0.02274183515 | N102: 3.434111677e-05
A103: =IF('DF raw data'!M108="","",'DF raw data'!M108) -> -279.5 | B103: =IF('DF raw data'!N108="","",'DF raw data'!N108) -> -1.35636e-05 | C103: =IF('DF raw data'!O108="","",'DF raw data'!O108) -> 0.00012004 | D103: =IF('DF raw data'!P108="","",'DF raw data'!P108) -> -1.25517e-05 | F103: -1.3612117e-05 | G103: 0.0001204693831 | H103: -1.259659743e-05 | J103: -0.0004569711824 | K103: -0.004525396434 | L103: 0.002238229009 | M103: 0.02386094966 | N103: 3.695036265e-05
A104: =IF('DF raw data'!M109="","",'DF raw data'!M109) -> -279 | B104: =IF('DF raw data'!N109="","",'DF raw data'!N109) -> -3.28466e-05 | C104: =IF('DF raw data'!O109="","",'DF raw data'!O109) -> 0.000114192 | D104: =IF('DF raw data'!P109="","",'DF raw data'!P109) -> -1.47423e-05 | F104: -3.296409229e-05 | G104: 0.0001146004648 | H104: -1.479503321e-05 | J104: -0.0004734532286 | K104: -0.004762123048 | L104: 0.002295529242 | M104: 0.02500871428 | N104: 3.969716888e-05
A105: =IF('DF raw data'!M110="","",'DF raw data'!M110) -> -278.5 | B105: =IF('DF raw data'!N110="","",'DF raw data'!N110) -> -1.49779e-05 | C105: =IF('DF raw data'!O110="","",'DF raw data'!O110) -> 0.000115018 | D105: =IF('DF raw data'!P110="","",'DF raw data'!P110) -> -5.07659e-06 | F105: -1.503147595e-05 | G105: 0.0001154294194 | H105: -5.094748962e-06 | J105: -0.0004809689665 | K105: -0.005002607531 | L105: 0.002353243951 | M105: 0.02618533625 | N105: 4.2581713e-05
A106: =IF('DF raw data'!M111="","",'DF raw data'!M111) -> -278 | B106: =IF('DF raw data'!N111="","",'DF raw data'!N111) -> -2.74055e-05 | C106: =IF('DF raw data'!O111="","",'DF raw data'!O111) -> 0.000106784 | D106: =IF('DF raw data'!P111="","",'DF raw data'!P111) -> -7.44447e-06 | F106: -2.750352947e-05 | G106: 0.0001071659664 | H106: -7.471098869e-06 | J106: -0.0004947207313 | K106: -0.005249967897 | L106: 0.002406826935 | M106: 0.02738874972 | N106: 4.560049524e-05
A107: =IF('DF raw data'!M112="","",'DF raw data'!M112) -> -277.5 | B107: =IF('DF raw data'!N112="","",'DF raw data'!N112) -> -2.75365e-05 | C107: =IF('DF raw data'!O112="","",'DF raw data'!O112) -> 0.000104087 | D107: =IF('DF raw data'!P112="","",'DF raw data'!P112) -> -3.0287e-06 | F107: -2.763499806e-05 | G107: 0.0001044593192 | H107: -3.03953366e-06 | J107: -0.0005085382303 | K107: -0.005504237012 | L107: 0.002459056594 | M107: 0.02861827802 | N107: 4.875328048e-05
A108: =IF('DF raw data'!M113="","",'DF raw data'!M113) -> -277 | B108: =IF('DF raw data'!N113="","",'DF raw data'!N113) -> -2.29786e-05 | C108: =IF('DF raw data'!O113="","",'DF raw data'!O113) -> 9.91111e-05 | D108: =IF('DF raw data'!P113="","",'DF raw data'!P113) -> -1.69861e-05 | F108: -2.306079445e-05 | G108: 9.94656204e-05 | H108: -1.704685928e-05 | J108: -0.0005200686275 | K108: -0.005764271326 | L108: 0.002508789404 | M108: 0.02987267272 | N108: 5.20355283e-05
A109: =IF('DF raw data'!M114="","",'DF raw data'!M114) -> -276.5 | B109: =IF('DF raw data'!N114="","",'DF raw data'!N114) -> -2.52233e-05 | C109: =IF('DF raw data'!O114="","",'DF raw data'!O114) -> 9.69908e-05 | D109: =IF('DF raw data'!P114="","",'DF raw data'!P114) -> -1.35649e-05 | F109: -2.531352374e-05 | G109: 9.733773609e-05 | H109: -1.361342165e-05 | J109: -0.0005327253894 | K109: -0.00603063402 | L109: 0.002557458272 | M109: 0.03115140186 | N109: 5.544772288e-05
A110: =IF('DF raw data'!M115="","",'DF raw data'!M115) -> -276 | B110: =IF('DF raw data'!N115="","",'DF raw data'!N115) -> -1.97159e-05 | C110: =IF('DF raw data'!O115="","",'DF raw data'!O115) -> 0.000102748 | D110: =IF('DF raw data'!P115="","",'DF raw data'!P115) -> -9.59182e-06 | F110: -1.978642377e-05 | G110: 0.0001031155296 | H110: -9.62612994e-06 | J110: -0.0005426186013 | K110: -0.006301943321 | L110: 0.002609016037 | M110: 0.03245590987 | N110: 5.899842269e-05
A111: =IF('DF raw data'!M116="","",'DF raw data'!M116) -> -275.5 | B111: =IF('DF raw data'!N116="","",'DF raw data'!N116) -> -2.71384e-05 | C111: =IF('DF raw data'!O116="","",'DF raw data'!O116) -> 0.00010139 | D111: =IF('DF raw data'!P116="","",'DF raw data'!P116) -> -2.41668e-05 | F111: -2.723547406e-05 | G111: 0.000101752672 | H111: -2.425324464e-05 | J111: -0.0005562363383 | K111: -0.00658006149 | L111: 0.002659892373 | M111: 0.03378585606 | N111: 6.269063585e-05
A112: =IF('DF raw data'!M117="","",'DF raw data'!M117) -> -275 | B112: =IF('DF raw data'!N117="","",'DF raw data'!N117) -> -3.51568e-05 | C112: =IF('DF raw data'!O117="","",'DF raw data'!O117) -> 9.46879e-05 | D112: =IF('DF raw data'!P117="","",'DF raw data'!P117) -> -9.29559e-06 | F112: -3.528255587e-05 | G112: 9.502659862e-05 | H112: -9.328840325e-06 | J112: -0.0005738776162 | K112: -0.006867000298 | L112: 0.002707405672 | M112: 0.0351395589 | N112: 6.652032634e-05
A113: =IF('DF raw data'!M118="","",'DF raw data'!M118) -> -274.5 | B113: =IF('DF raw data'!N118="","",'DF raw data'!N118) -> -2.92024e-05 | C113: =IF('DF raw data'!O118="","",'DF raw data'!O118) -> 0.000106257 | D113: =IF('DF raw data'!P118="","",'DF raw data'!P118) -> -3.30835e-06 | F113: -2.930685698e-05 | G113: 0.0001066370813 | H113: -3.320183968e-06 | J113: -0.0005885310447 | K113: -0.007161265821 | L113: 0.002760724213 | M113: 0.036519921 | N113: 7.050430983e-05
A114: =IF('DF raw data'!M119="","",'DF raw data'!M119) -> -274 | B114: =IF('DF raw data'!N119="","",'DF raw data'!N119) -> -2.53018e-05 | C114: =IF('DF raw data'!O119="","",'DF raw data'!O119) -> 0.000106652 | D114: =IF('DF raw data'!P119="","",'DF raw data'!P119) -> 8.39787e-06 | F114: -2.539230454e-05 | G114: 0.0001070334942 | H114: 8.427909181e-06 | J114: -0.000601227197 | K114: -0.007461879419 | L114: 0.00281424096 | M114: 0.03792704148 | N114: 7.464502299e-05
A115: =IF('DF raw data'!M120="","",'DF raw data'!M120) -> -273.5 | B115: =IF('DF raw data'!N120="","",'DF raw data'!N120) -> -1.69607e-05 | C115: =IF('DF raw data'!O120="","",'DF raw data'!O120) -> 0.000103651 | D115: =IF('DF raw data'!P120="","",'DF raw data'!P120) -> -1.03877e-05 | F115: -1.702136842e-05 | G115: 0.0001040217596 | H115: -1.04248568e-05 | J115: -0.0006097378812 | K115: -0.00776674836 | L115: 0.00286625184 | M115: 0.0393601674 | N115: 7.893861294e-05
A116: =IF('DF raw data'!M121="","",'DF raw data'!M121) -> -273 | B116: =IF('DF raw data'!N121="","",'DF raw data'!N121) -> -3.46449e-05 | C116: =IF('DF raw data'!O121="","",'DF raw data'!O121) -> 0.000103473 | D116: =IF('DF raw data'!P121="","",'DF raw data'!P121) -> -8.24725e-06 | F116: -3.476882481e-05 | G116: 0.0001038431229 | H116: -8.276750413e-06 | J116: -0.0006271222936 | K116: -0.008080309507 | L116: 0.002918173402 | M116: 0.0408192541 | N116: 8.339312212e-05
A117: =IF('DF raw data'!M122="","",'DF raw data'!M122) -> -272.5 | B117: =IF('DF raw data'!N122="","",'DF raw data'!N122) -> -1.51722e-05 | C117: =IF('DF raw data'!O122="","",'DF raw data'!O122) -> 9.97305e-05 | D117: =IF('DF raw data'!P122="","",'DF raw data'!P122) -> -1.64828e-06 | F117: -1.522647096e-05 | G117: 0.000100087236 | H117: -1.654175898e-06 | J117: -0.0006347355291 | K117: -0.008397677271 | L117: 0.00296821702 | M117: 0.04230336261 | N117: 8.799972286e-05
A118: =IF('DF raw data'!M123="","",'DF raw data'!M123) -> -272 | B118: =IF('DF raw data'!N123="","",'DF raw data'!N123) -> -2.52207e-05 | C118: =IF('DF raw data'!O123="","",'DF raw data'!O123) -> 9.89575e-05 | D118: =IF('DF raw data'!P123="","",'DF raw data'!P123) -> -1.76782e-05 | F118: -2.531091444e-05 | G118: 9.931147098e-05 | H118: -1.774143492e-05 | J118: -0.0006473909863 | K118: -0.008721372764 | L118: 0.003017872755 | M118: 0.04381229899 | N118: 9.276305838e-05
A119: =IF('DF raw data'!M124="","",'DF raw data'!M124) -> -271.5 | B119: =IF('DF raw data'!N124="","",'DF raw data'!N124) -> -1.95228e-05 | C119: =IF('DF raw data'!O124="","",'DF raw data'!O124) -> 0.000100361 | D119: =IF('DF raw data'!P124="","",'DF raw data'!P124) -> -1.12814e-05 | F119: -1.959263306e-05 | G119: 0.0001007199913 | H119: -1.132175357e-05 | J119: -0.0006571873028 | K119: -0.009049966416 | L119: 0.003068232751 | M119: 0.04534641537 | N119: 9.768603207e-05
A120: =IF('DF raw data'!M125="","",'DF raw data'!M125) -> -271 | B120: =IF('DF raw data'!N125="","",'DF raw data'!N125) -> -3.70104e-05 | C120: =IF('DF raw data'!O125="","",'DF raw data'!O125) -> 0.000101534 | D120: =IF('DF raw data'!P125="","",'DF raw data'!P125) -> -1.57391e-05 | F120: -3.71427862e-05 | G120: 0.0001018971871 | H120: -1.579539876e-05 | J120: -0.0006757586959 | K120: -0.009387845764 | L120: 0.003119181344 | M120: 0.04690600604 | N120: 0.0001027790031
A121: =IF('DF raw data'!M126="","",'DF raw data'!M126) -> -270.5 | B121: =IF('DF raw data'!N126="","",'DF raw data'!N126) -> -2.72165e-05 | C121: =IF('DF raw data'!O126="","",'DF raw data'!O126) -> 0.000108519 | D121: =IF('DF raw data'!P126="","",'DF raw data'!P126) -> -2.75775e-06 | F121: -2.731385342e-05 | G121: 0.0001089071725 | H121: -2.767614472e-06 | J121: -0.0006894156227 | K121: -0.009732553575 | L121: 0.00317363493 | M121: 0.0484928235 | N121: 0.0001080526294
A122: =IF('DF raw data'!M127="","",'DF raw data'!M127) -> -270 | B122: =IF('DF raw data'!N127="","",'DF raw data'!N127) -> -3.65733e-05 | C122: =IF('DF raw data'!O127="","",'DF raw data'!O127) -> 0.00010466 | D122: =IF('DF raw data'!P127="","",'DF raw data'!P127) -> 1.44398e-06 | F122: -3.670412269e-05 | G122: 0.0001050343688 | H122: 1.449145116e-06 | J122: -0.000707767684 | K122: -0.01008643742 | L122: 0.003226152115 | M122: 0.05010589956 | N122: 0.0001135071257
A123: =IF('DF raw data'!M128="","",'DF raw data'!M128) -> -269.5 | B123: =IF('DF raw data'!N128="","",'DF raw data'!N128) -> -2.20228e-05 | C123: =IF('DF raw data'!O128="","",'DF raw data'!O128) -> 0.000110932 | D123: =IF('DF raw data'!P128="","",'DF raw data'!P128) -> -9.19903e-06 | F123: -2.210157556e-05 | G123: 0.0001113288038 | H123: -9.23193493e-06 | J123: -0.0007188184718 | K123: -0.01044584665 | L123: 0.003281816517 | M123: 0.05174680782 | N123: 0.0001191506355
A124: =IF('DF raw data'!M129="","",'DF raw data'!M129) -> -269 | B124: =IF('DF raw data'!N129="","",'DF raw data'!N129) -> -1.54915e-05 | C124: =IF('DF raw data'!O129="","",'DF raw data'!O129) -> 0.00010534 | D124: =IF('DF raw data'!P129="","",'DF raw data'!P129) -> -3.50789e-06 | F124: -1.55469131e-05 | G124: 0.0001057168012 | H124: -3.520437723e-06 | J124: -0.0007265919283 | K124: -0.01080914262 | L124: 0.003334674917 | M124: 0.05341414528 | N124: 0.0001249746318
A125: =IF('DF raw data'!M130="","",'DF raw data'!M130) -> -268.5 | B125: =IF('DF raw data'!N130="","",'DF raw data'!N130) -> -1.99678e-05 | C125: =IF('DF raw data'!O130="","",'DF raw data'!O130) -> 9.58325e-05 | D125: =IF('DF raw data'!P130="","",'DF raw data'!P130) -> -1.67522e-05 | F125: -2.003922482e-05 | G125: 9.617529285e-05 | H125: -1.681212262e-05 | J125: -0.0007366115407 | K125: -0.01117744839 | L125: 0.003382762564 | M125: 0.05510552656 | N125: 0.0001309674714
A126: =IF('DF raw data'!M131="","",'DF raw data'!M131) -> -268 | B126: =IF('DF raw data'!N131="","",'DF raw data'!N131) -> -3.11163e-05 | C126: =IF('DF raw data'!O131="","",'DF raw data'!O131) -> 9.1539e-05 | D126: =IF('DF raw data'!P131="","",'DF raw data'!P131) -> -1.57941e-05 | F126: -3.122760301e-05 | G126: 9.1866435e-05 | H126: -1.58505955e-05 | J126: -0.0007522253422 | K126: -0.01155356106 | L126: 0.003428695781 | M126: 0.05681987445 | N126: 0.0001371283702
A127: =IF('DF raw data'!M132="","",'DF raw data'!M132) -> -267.5 | B127: =IF('DF raw data'!N132="","",'DF raw data'!N132) -> -1.92597e-05 | C127: =IF('DF raw data'!O132="","",'DF raw data'!O132) -> 0.000102989 | D127: =IF('DF raw data'!P132="","",'DF raw data'!P132) -> -2.17974e-05 | F127: -1.932859195e-05 | G127: 0.0001033573917 | H127: -2.18753693e-05 | J127: -0.0007618896382 | K127: -0.01193450588 | L127: 0.003480374477 | M127: 0.05856006169 | N127: 0.0001434751114
A128: =IF('DF raw data'!M133="","",'DF raw data'!M133) -> -267 | B128: =IF('DF raw data'!N133="","",'DF raw data'!N133) -> -3.84827e-05 | C128: =IF('DF raw data'!O133="","",'DF raw data'!O133) -> 0.000114751 | D128: =IF('DF raw data'!P133="","",'DF raw data'!P133) -> -1.78853e-05 | F128: =(1-$G$1*($B$49-$G$2))*B128 -> -3.862035262e-05 | G128: 0.0001151614643 | H128: -1.794927572e-05 | J128: =F128*$G$3+J127 -> -0.0007811998145 | K128: =J128*$G$3+K127 -> -0.01232510578 | L128: =G128*$G$3+L127 -> 0.003537955209 | M128: =L128*$G$3+M127 -> 0.06032903929 | N128: =(J128^2+L128^2)*$G$3+N127 -> 0.0001500388115
A129: =IF('DF raw data'!M134="","",'DF raw data'!M134) -> -266.5 | B129: =IF('DF raw data'!N134="","",'DF raw data'!N134) -> -3.36818e-05 | C129: =IF('DF raw data'!O134="","",'DF raw data'!O134) -> 0.000108327 | D129: =IF('DF raw data'!P134="","",'DF raw data'!P134) -> -1.14799e-05 | F129: -3.38022798e-05 | G129: 0.0001087144857 | H129: -1.15209636e-05 | J129: -0.0007981009544 | K129: -0.01272415626 | L129: 0.003592312452 | M129: 0.06212519552 | N129: 0.0001568096484
A130: =IF('DF raw data'!M135="","",'DF raw data'!M135) -> -266 | B130: =IF('DF raw data'!N135="","",'DF raw data'!N135) -> -2.1768e-05 | C130: =IF('DF raw data'!O135="","",'DF raw data'!O135) -> 0.000103903 | D130: =IF('DF raw data'!P135="","",'DF raw data'!P135) -> -7.12213e-06 | F130: -2.184586414e-05 | G130: 0.000104274661 | H130: -7.147605859e-06 | J130: -0.0008090238865 | K130: -0.01312866821 | L130: 0.003644449783 | M130: 0.06394742041 | N130: 0.0001637779154
A131: =IF('DF raw data'!M136="","",'DF raw data'!M136) -> -265.5 | B131: =IF('DF raw data'!N136="","",'DF raw data'!N136) -> -1.85543e-05 | C131: =IF('DF raw data'!O136="","",'DF raw data'!O136) -> 0.000106461 | D131: =IF('DF raw data'!P136="","",'DF raw data'!P136) -> -2.26688e-05 | F131: -1.862066873e-05 | G131: 0.000106841811 | H131: -2.27498863e-05 | J131: -0.0008183342209 | K131: -0.01353783532 | L131: 0.003697870688 | M131: 0.06579635576 | N131: 0.0001709498746
A132: =IF('DF raw data'!M137="","",'DF raw data'!M137) -> -265 | B132: =IF('DF raw data'!N137="","",'DF raw data'!N137) -> -3.06654e-05 | C132: =IF('DF raw data'!O137="","",'DF raw data'!O137) -> 0.000109936 | D132: =IF('DF raw data'!P137="","",'DF raw data'!P137) -> -1.94505e-05 | F132: -3.077509014e-05 | G132: 0.0001103292411 | H132: -1.952007444e-05 | J132: -0.0008337217659 | K132: -0.0139546962 | L132: 0.003753035309 | M132: 0.06767287341 | N132: 0.0001783400576
A133: =IF('DF raw data'!M138="","",'DF raw data'!M138) -> -264.5 | B133: =IF('DF raw data'!N138="","",'DF raw data'!N138) -> -2.50328e-05 | C133: =IF('DF raw data'!O138="","",'DF raw data'!O138) -> 0.000106474 | D133: =IF('DF raw data'!P138="","",'DF raw data'!P138) -> -1.11798e-05 | F133: -2.512234233e-05 | G133: 0.0001068548575 | H133: -1.121979014e-05 | J133: -0.0008462829371 | K133: -0.01437783767 | L133: 0.003806462737 | M133: 0.06957610478 | N133: 0.0001859427343
A134: =IF('DF raw data'!M139="","",'DF raw data'!M139) -> -264 | B134: =IF('DF raw data'!N139="","",'DF raw data'!N139) -> -1.81714e-05 | C134: =IF('DF raw data'!O139="","",'DF raw data'!O139) -> 0.000110499 | D134: =IF('DF raw data'!P139="","",'DF raw data'!P139) -> -2.02806e-05 | F134: -1.82363991e-05 | G134: 0.0001108942549 | H134: -2.035314371e-05 | J134: -0.0008554011366 | K134: -0.01480553824 | L134: 0.003861909865 | M134: 0.07150705971 | N134: 0.0001937657638
A135: =IF('DF raw data'!M140="","",'DF raw data'!M140) -> -263.5 | B135: =IF('DF raw data'!N140="","",'DF raw data'!N140) -> -2.33e-05 | C135: =IF('DF raw data'!O140="","",'DF raw data'!O140) -> 0.000109871 | D135: =IF('DF raw data'!P140="","",'DF raw data'!P140) -> -1.57339e-05 | F135: -2.33833441e-05 | G135: 0.0001102640086 | H135: -1.579018016e-05 | J135: -0.0008670928087 | K135: -0.01523908464 | L135: 0.003917041869 | M135: 0.07346558065 | N135: 0.0002018132973
A136: =IF('DF raw data'!M141="","",'DF raw data'!M141) -> -263 | B136: =IF('DF raw data'!N141="","",'DF raw data'!N141) -> -3.34225e-05 | C136: =IF('DF raw data'!O141="","",'DF raw data'!O141) -> 0.000105122 | D136: =IF('DF raw data'!P141="","",'DF raw data'!P141) -> -1.61336e-05 | F136: -3.354205228e-05 | G136: 0.0001054980214 | H136: -1.619130989e-05 | J136: -0.0008838638348 | K136: -0.01568101656 | L136: 0.00396979088 | M136: 0.07545047609 | N136: 0.0002100835247
A137: =IF('DF raw data'!M142="","",'DF raw data'!M142) -> -262.5 | B137: =IF('DF raw data'!N142="","",'DF raw data'!N142) -> -2.70779e-05 | C137: =IF('DF raw data'!O142="","",'DF raw data'!O142) -> 0.000104789 | D137: =IF('DF raw data'!P142="","",'DF raw data'!P142) -> -1.89933e-05 | F137: -2.717475765e-05 | G137: 0.0001051638303 | H137: -1.906123903e-05 | J137: -0.0008974512137 | K137: -0.01612974216 | L137: 0.004022372795 | M137: 0.07746166248 | N137: 0.0002185759755
A138: =IF('DF raw data'!M143="","",'DF raw data'!M143) -> -262 | B138: =IF('DF raw data'!N143="","",'DF raw data'!N143) -> -3.65689e-05 | C138: =IF('DF raw data'!O143="","",'DF raw data'!O143) -> 0.000106212 | D138: =IF('DF raw data'!P143="","",'DF raw data'!P143) -> -5.27129e-06 | F138: -3.669970696e-05 | G138: 0.0001065919203 | H138: -5.290145404e-06 | J138: -0.0009158010671 | K138: -0.0165876427 | L138: 0.004075668755 | M138: 0.07949949686 | N138: 0.0002273008592
A139: =IF('DF raw data'!M144="","",'DF raw data'!M144) -> -261.5 | B139: =IF('DF raw data'!N144="","",'DF raw data'!N144) -> -2.49743e-05 | C139: =IF('DF raw data'!O144="","",'DF raw data'!O144) -> 0.000108887 | D139: =IF('DF raw data'!P144="","",'DF raw data'!P144) -> -2.51637e-06 | F139: -2.506363307e-05 | G139: 0.0001092764888 | H139: -2.525371055e-06 | J139: -0.0009283328837 | K139: -0.01705180914 | L139: 0.004130307 | M139: 0.08156465036 | N139: 0.0002362614781
A140: =IF('DF raw data'!M145="","",'DF raw data'!M145) -> -261 | B140: =IF('DF raw data'!N145="","",'DF raw data'!N145) -> -2.24723e-05 | C140: =IF('DF raw data'!O145="","",'DF raw data'!O145) -> 0.000102117 | D140: =IF('DF raw data'!P145="","",'DF raw data'!P145) -> -7.51658e-06 | F140: -2.255268342e-05 | G140: 0.0001024822725 | H140: -7.543466807e-06 | J140: -0.0009396092254 | K140: -0.01752161375 | L140: 0.004181548136 | M140: 0.08365542443 | N140: 0.0002454455833
A141: =IF('DF raw data'!M146="","",'DF raw data'!M146) -> -260.5 | B141: =IF('DF raw data'!N146="","",'DF raw data'!N146) -> -3.18241e-05 | C141: =IF('DF raw data'!O146="","",'DF raw data'!O146) -> 0.000102722 | D141: =IF('DF raw data'!P146="","",'DF raw data'!P146) -> -1.09272e-05 | F141: -3.193793481e-05 | G141: 0.0001030894366 | H141: -1.096628659e-05 | J141: -0.0009555781928 | K141: -0.01799940285 | L141: 0.004233092854 | M141: 0.08577197086 | N141: 0.0002548616857
A142: =IF('DF raw data'!M147="","",'DF raw data'!M147) -> -260 | B142: =IF('DF raw data'!N147="","",'DF raw data'!N147) -> -3.12488e-05 | C142: =IF('DF raw data'!O147="","",'DF raw data'!O147) -> 0.000103762 | D142: =IF('DF raw data'!P147="","",'DF raw data'!P147) -> -9.15303e-06 | F142: -3.136057696e-05 | G142: 0.0001041331567 | H142: -9.185770388e-06 | J142: -0.0009712584813 | K142: -0.01848503209 | L142: 0.004285159432 | M142: 0.08791455057 | N142: 0.0002645146529
